Workbook

Sheet Instructions
B13: Class-Specific Traffic Load Distributions (CTLD) Spreadsheet
B15: March 2025
B23: Instructions
B24: 1. This spreadsheet generates a traffic load distribution (TLD) for use in pavement design. It combines class-specific traffic load distributions (CTLD) with classified vehicle counts to produce a single combined TLD.
B25: 2. This spreadsheet must be read in conjunction with the Queensland Department of Transport and Main Roads Pavement Design Supplement, with particular reference to Methods 2 and 3 in Appendix E.
B26: 3. This spreadsheet is intended for use by experienced pavement designers. The pavement designer must assess the suitability of this spreadsheet for project-specific pavement design applications.
B27: 4. Vehicle volumes in this spreadsheet were derived from weigh-in-motion (WIM) data recorded within the period indicated. The WIM data sample size typically represents a fraction of the total vehicle volume for each particular WIM site.
B28: 5. The presumptive CTLDs were derived by summing the recorded number of Heavy Vehicle Axle Group (HVAG) loads, at each load level, from all operational Transport and Main Roads WIM sites within the period indicated.
B29: 6. For WIM sites where Transport and Main Roads considered there was insufficient data for particular vehicle classes, the Presumptive CTLDs have been adopted for those classes (refer to the "WIM site details" worksheet).
B30: 7. The preferred option is to use 12 bin classified counts. Where 4 bin classified counts are used, the counts are converted to 12 bin values using classified vehicle proportions from the selected WIM site.
B31: 8. Lane descriptions: Lanes 1, 3 = gazettal direction; Lanes 2, 4 = against gazettal direction.
B32: 9. The worksheets in this spreadsheet are summarised as follows:
B33: Class-specific TLD analysis
C34: • Used to undertake the calculations to combine a set of CTLDs using classified vehicle counts/proportions. The combined TLD can be exported in CSV format for use in AustPADS or CIRCLY.
C35: • User inputs: (Step 1) Insert project details; (Step 2) Insert classified vehicle counts or proportions; (Step 3) Select the set of CTLDs to use; (Step 4) Export the combined TLD.
B36: WIM site details
C37: • Includes a list of Transport and Main Roads WIM sites, together with summary data for each site.
C38: • No user input is required in this worksheet.
B39: Data to be exported
C40: • Recombined TLD to be exported as a CSV file.
C41: • No user input is required in this worksheet.
B42: User-defined CTLD
C43: • Allows the user to input their own set of CTLDs.
B51: Copyright
B54: http://creativecommons.org/licenses/by/4.0/
B55: © State of Queensland (Department of Transport and Main Roads) 2025
B56: Feedback: Please send your feedback regarding this document to: | H56: tmr.techdocs@tmr.qld.gov.au

Sheet Class-specific TLD analysis
A1: Class-Specific Traffic Load Distributions Spreadsheet (Transport and Main Roads, March 2025)
A2: This is the calculation worksheet. Follow Steps 1 to 4 below to fill in the yellow cells. The resulting traffic load distribution can then be exported for use in pavement design.
A3: STEP 1: | B3: Insert project details
A5: Project site details | B5: Project Name
B6: Road Section(s)
B7: Project Info
A9: STEP 2: | B9: Insert classified traffic count details
A11: Classified Traffic Count site details | B11: Road ID/Name | H11: Chainage
B12: Site ID | H12: Traffic Lane
B13: Site Location | H13: Data Year
A14: Classification Type: Select either 12 bin or 4 bin classification inputs from the drop-down list (12 bin preferred) (click cell I14) | I14: 12 bin
A15: Classified Traffic Counts or Proportions: Based on your selection above, enter either 12 bin or 4 bin inputs below. Enter as either counts or proportions (% or decimal).
C16: Class 3 | D16: Class 4 | E16: Class 5 | F16: Class 6 | G16: Class 7 | H16: Class 8 | I16: Class 9 | J16: Class 10 | K16: Class 11 | L16: Class 12
A17: Counts/proportions (12 bin)
A18: Counts/proportions (4 bin)
A19: Heavy Vehicle Proportions | C19: =IFERROR(IF($I$14="12 bin",C17/SUM($C$17:$L$17),($C$18*INDIRECT(ADDRESS(3,21,1,1,$K$24))/(INDIRECT(ADDRESS(3,21,1,1,$K$24))+INDIRECT(ADDRESS(3,22,1,1,$K$24))+INDIRECT(ADDRESS(3,23,1,1,$K$24))))/SUM($C$18:$L$18)),0) -> 0 | D19: =IFERROR(IF($I$14="12 bin",D17/SUM($C$17:$L$17),($C$18*INDIRECT(ADDRESS(3,22,1,1,$K$24))/(INDIRECT(ADDRESS(3,21,1,1,$K$24))+INDIRECT(ADDRESS(3,22,1,1,$K$24))+INDIRECT(ADDRESS(3,23,1,1,$K$24))))/SUM($C$18:$L$18)),0) -> 0 | E19: =IFERROR(IF($I$14="12 bin",E17/SUM($C$17:$L$17),($C$18*INDIRECT(ADDRESS(3,23,1,1,$K$24))/(INDIRECT(ADDRESS(3,21,1,1,$K$24))+INDIRECT(ADDRESS(3,22,1,1,$K$24))+INDIRECT(ADDRESS(3,23,1,1,$K$24))))/SUM($C$18:$L$18)),0) -> 0 | F19: =IFERROR(IF($I$14="12 bin",F17/SUM($C$17:$L$17),($F$18*INDIRECT(ADDRESS(3,24,1,1,$K$24))/(INDIRECT(ADDRESS(3,24,1,1,$K$24))+INDIRECT(ADDRESS(3,25,1,1,$K$24))+INDIRECT(ADDRESS(3,26,1,1,$K$24))+INDIRECT(ADDRESS(3,27,1,1,$K$24))))/SUM($C$18:$L$18)),0) -> 0 | G19: =IFERROR(IF($I$14="12 bin",G17/SUM($C$17:$L$17),($F$18*INDIRECT(ADDRESS(3,25,1,1,$K$24))/(INDIRECT(ADDRESS(3,24,1,1,$K$24))+INDIRECT(ADDRESS(3,25,1,1,$K$24))+INDIRECT(ADDRESS(3,26,1,1,$K$24))+INDIRECT(ADDRESS(3,27,1,1,$K$24))))/SUM($C$18:$L$18)),0) -> 0 | H19: =IFERROR(IF($I$14="12 bin",H17/SUM($C$17:$L$17),($F$18*INDIRECT(ADDRESS(3,26,1,1,$K$24))/(INDIRECT(ADDRESS(3,24,1,1,$K$24))+INDIRECT(ADDRESS(3,25,1,1,$K$24))+INDIRECT(ADDRESS(3,26,1,1,$K$24))+INDIRECT(ADDRESS(3,27,1,1,$K$24))))/SUM($C$18:$L$18)),0) -> 0 | I19: =IFERROR(IF($I$14="12 bin",I17/SUM($C$17:$L$17),($F$18*INDIRECT(ADDRESS(3,27,1,1,$K$24))/(INDIRECT(ADDRESS(3,24,1,1,$K$24))+INDIRECT(ADDRESS(3,25,1,1,$K$24))+INDIRECT(ADDRESS(3,26,1,1,$K$24))+INDIRECT(ADDRESS(3,27,1,1,$K$24))))/SUM($C$18:$L$18)),0) -> 0 | J19: =IFERROR(IF($I$14="12 bin",J17/SUM($C$17:$L$17),($J$18*INDIRECT(ADDRESS(3,28,1,1,$K$24))/(INDIRECT(ADDRESS(3,28,1,1,$K$24))+INDIRECT(ADDRESS(3,29,1,1,$K$24))+INDIRECT(ADDRESS(3,30,1,1,$K$24))))/SUM($C$18:$L$18)),0) -> 0 | K19: =IFERROR(IF($I$14="12 bin",K17/SUM($C$17:$L$17),($J$18*INDIRECT(ADDRESS(3,29,1,1,$K$24))/(INDIRECT(ADDRESS(3,28,1,1,$K$24))+INDIRECT(ADDRESS(3,29,1,1,$K$24))+INDIRECT(ADDRESS(3,30,1,1,$K$24))))/SUM($C$18:$L$18)),0) -> 0 | L19: =IFERROR(IF($I$14="12 bin",L17/SUM($C$17:$L$17),($J$18*INDIRECT(ADDRESS(3,30,1,1,$K$24))/(INDIRECT(ADDRESS(3,28,1,1,$K$24))+INDIRECT(ADDRESS(3,29,1,1,$K$24))+INDIRECT(ADDRESS(3,30,1,1,$K$24))))/SUM($C$18:$L$18)),0) -> 0
A21: STEP 3: | B21: Select a WIM site from the drop-down menu (click cell A24)
A23: District - Road ID - Lane - WIM Site Description | E23: Road Name | J23: Chainage | K23: WIM Site ID & Lane
A24: Presumptive CTLD (2014-2023) | E24: =VLOOKUP(A24,'WIM site details'!F3:N26,7,FALSE) -> Presumptive Class-specific Traffic Load Distributions (Year 2014 - 2023) | J24: =VLOOKUP(A24,'WIM site details'!F3:N26,8,FALSE) -> N/A | K24: =VLOOKUP(A24,'WIM site details'!F3:N26,3,FALSE) -> Presumptive CTLD
C26: Weigh-in-Motion data based on selected WIM site details
B27: Recombined | C27: Class 3 | D27: Class 4 | E27: Class 5 | F27: Class 6 | G27: Class 7 | H27: Class 8 | I27: Class 9 | J27: Class 10 | K27: Class 11 | L27: Class 12
A28: NHVAG | B28: =IFERROR(1/SUM(G37:G86,I37:I86),0) -> 0 | C28: =IFERROR(1/SUM(S37:S86,U37:U86),0) -> 2.000058202 | D28: =IFERROR(1/SUM(Y37:Y86,AA37:AA86),0) -> 2.000027191 | E28: =IFERROR(1/SUM(AE37:AE86,AG37:AG86),0) -> 2.001007278 | F28: =IFERROR(1/SUM(AK37:AK86,AM37:AM86),0) -> 2.999899457 | G28: =IFERROR(1/SUM(AQ37:AQ86,AS37:AS86),0) -> 3.107760533 | H28: =IFERROR(1/SUM(AW37:AW86,AY37:AY86),0) -> 3.035928467 | I28: =IFERROR(1/SUM(BC37:BC86,BE37:BE86),0) -> 3.027563199 | J28: =IFERROR(1/SUM(BI37:BI86,BK37:BK86),0) -> 3.999055894 | K28: =IFERROR(1/SUM(BO37:BO86,BQ37:BQ86),0) -> 5.048316955 | L28: =IFERROR(1/SUM(BU37:BU86,BW37:BW86),0) -> 7.160134329
A29: ESA / HVAG | B29: =IFERROR(SUM(G150:L199),0) -> 0 | C29: =IFERROR(SUM(S150:X199),0) -> 0.5200052896 | D29: =IFERROR(SUM(Y150:AD199),0) -> 1.134734918 | E29: =IFERROR(SUM(AE150:AJ199),0) -> 1.270239954 | F29: =IFERROR(SUM(AK150:AP199),0) -> 0.3139000036 | G29: =IFERROR(SUM(AQ150:AV199),0) -> 0.5434914326 | H29: =IFERROR(SUM(AW150:BB199),0) -> 0.895987097 | I29: =IFERROR(SUM(BC150:BH199),0) -> 1.076127398 | J29: =IFERROR(SUM(BI150:BN199),0) -> 1.312514117 | K29: =IFERROR(SUM(BO150:BT199),0) -> 1.133827871 | L29: =IFERROR(SUM(BU150:BZ199),0) -> 0.9688430543
A30: ESA / HV | B30: =IFERROR(B28*B29,0) -> 0 | C30: 1.040040845 | D30: 2.26950069 | E30: 2.541759393 | F30: 0.9416684505 | G30: 1.689041224 | H30: 2.720152734 | I30: 3.258043706 | J30: 5.248817313 | K30: 5.723922466 | L30: 6.937046412
A31: WIM recorded heavy vehicles | C31: =IF(K24="User-defined CTLD","N/A",VLOOKUP(K24,'WIM site details'!H3:X26,8,FALSE)) -> 13865487 | D31: =IF(K24="User-defined CTLD","N/A",VLOOKUP(K24,'WIM site details'!H3:X26,9,FALSE)) -> 7355334 | E31: =IF(K24="User-defined CTLD","N/A",VLOOKUP(K24,'WIM site details'!H3:X26,10,FALSE)) -> 2204953 | F31: =IF(K24="User-defined CTLD","N/A",VLOOKUP(K24,'WIM site details'!H3:X26,11,FALSE)) -> 1163685 | G31: =IF(K24="User-defined CTLD","N/A",VLOOKUP(K24,'WIM site details'!H3:X26,12,FALSE)) -> 1911776 | H31: =IF(K24="User-defined CTLD","N/A",VLOOKUP(K24,'WIM site details'!H3:X26,13,FALSE)) -> 2535232 | I31: =IF(K24="User-defined CTLD","N/A",VLOOKUP(K24,'WIM site details'!H3:X26,14,FALSE)) -> 18474706 | J31: =IF(K24="User-defined CTLD","N/A",VLOOKUP(K24,'WIM site details'!H3:X26,15,FALSE)) -> 10066661 | K31: =IF(K24="User-defined CTLD","N/A",VLOOKUP(K24,'WIM site details'!H3:X26,16,FALSE)) -> 1328871 | L31: =IF(K24="User-defined CTLD","N/A",VLOOKUP(K24,'WIM site details'!H3:X26,17,FALSE)) -> 269786
A33: STEP 4: | B33: Click the "Export Recombined TLD" button to export the recombined TLD to a Comma Separated Values (CSV) file
A34: Alternatively, the recombined TLD can be copied from the cells below in AGPT02 format (cells F89:L141). | R34: Class-specific Traffic Load Distributions (CTLD) based on the selected WIM site details (refer to Step 3) - AustPADS / CIRCLY format
G35: Recombined - Traffic Load Distribution - AustPADS / CIRCLY format | S35: =IF(OR($K$24="Presumptive CTLD",$C$31="Presumptive"),C27&" - Adopt Presumptive CTLD",C27) -> Class 3 - Adopt Presumptive CTLD | Y35: =IF(OR($K$24="Presumptive CTLD",$D$31="Presumptive"),D27&" - Adopt Presumptive CTLD",D27) -> Class 4 - Adopt Presumptive CTLD | AE35: =IF(OR($K$24="Presumptive CTLD",$E$31="Presumptive"),E27&" - Adopt Presumptive CTLD",E27) -> Class 5 - Adopt Presumptive CTLD | AK35: =IF(OR($K$24="Presumptive CTLD",$F$31="Presumptive"),F27&" - Adopt Presumptive CTLD",F27) -> Class 6 - Adopt Presumptive CTLD | AQ35: =IF(OR($K$24="Presumptive CTLD",$G$31="Presumptive"),G27&" - Adopt Presumptive CTLD",G27) -> Class 7 - Adopt Presumptive CTLD | AW35: =IF(OR($K$24="Presumptive CTLD",$H$31="Presumptive"),H27&" - Adopt Presumptive CTLD",H27) -> Class 8 - Adopt Presumptive CTLD | BC35: =IF(OR($K$24="Presumptive CTLD",$I$31="Presumptive"),I27&" - Adopt Presumptive CTLD",I27) -> Class 9 - Adopt Presumptive CTLD | BI35: =IF(OR($K$24="Presumptive CTLD",$J$31="Presumptive"),J27&" - Adopt Presumptive CTLD",J27) -> Class 10 - Adopt Presumptive CTLD | BO35: =IF(OR($K$24="Presumptive CTLD",$K$31="Presumptive"),K27&" - Adopt Presumptive CTLD",K27) -> Class 11 - Adopt Presumptive CTLD | BU35: =IF(OR($K$24="Presumptive CTLD",$L$31="Presumptive"),L27&" - Adopt Presumptive CTLD",L27) -> Class 12 - Adopt Presumptive CTLD
F36: Load (kN) | G36: SAST | H36: SADT | I36: TAST | J36: TADT | K36: TRDT | L36: QADT | Q36: Row | R36: Load (kN) | S36: SAST | T36: SADT | U36: TAST | V36: TADT | W36: TRDT | X36: QADT | Y36: SAST | Z36: SADT | AA36: TAST | AB36: TADT | AC36: TRDT | AD36: QADT | AE36: SAST | AF36: SADT | AG36: TAST | AH36: TADT | AI36: TRDT | AJ36: QADT | AK36: SAST | AL36: SADT | AM36: TAST | AN36: TADT | AO36: TRDT | AP36: QADT | AQ36: SAST | AR36: SADT | AS36: TAST | AT36: TADT | AU36: TRDT | AV36: QADT | AW36: SAST | AX36: SADT | AY36: TAST | AZ36: TADT | BA36: TRDT | BB36: QADT | BC36: SAST | BD36: SADT | BE36: TAST | BF36: TADT | BG36: TRDT | BH36: QADT | BI36: SAST | BJ36: SADT | BK36: TAST | BL36: TADT | BM36: TRDT | BN36: QADT | BO36: SAST | BP36: SADT | BQ36: TAST | BR36: TADT | BS36: TRDT | BT36: QADT | BU36: SAST | BV36: SADT | BW36: TAST | BX36: TADT | BY36: TRDT | BZ36: QADT
F37: =R37 -> 10 | G37: =(S37*$C$19*$C$28+Y37*$D$19*$D$28+AE37*$E$19*$E$28+AK37*$F$19*$F$28+AQ37*$G$19*$G$28+AW37*$H$19*$H$28+BC37*$I$19*$I$28+BI37*$J$19*$J$28+BO37*$K$19*$K$28+BU37*$L$19*$L$28)/SUMPRODUCT($C$19:$L$19,$C$28:$L$28) ->  | Q37: 1 | R37: =INDIRECT(ADDRESS($Q37+6,R$87,1,1,$K$24)) -> 10 | S37: =IF(OR($K$24="Presumptive CTLD",$C$31="Presumptive"),INDIRECT(ADDRESS(($Q37+6),S$87,1,1,"Presumptive CTLD"),TRUE),INDIRECT(ADDRESS(($Q37+6),S$87,1,1,$K$24),TRUE)) -> 0.0001544066331 | T37: 0.000419639889 | U37: 0 | V37: 0 | W37: 0 | X37: 0 | Y37: =IF(OR($K$24="Presumptive CTLD",$D$31="Presumptive"),INDIRECT(ADDRESS(($Q37+6),Y$87,1,1,"Presumptive CTLD"),TRUE),INDIRECT(ADDRESS(($Q37+6),Y$87,1,1,$K$24),TRUE)) -> 0.0001417523668 | Z37: 2.381440424e-05 | AA37: 5.78742415e-06 | AB37: 5.791773725e-05 | AC37: 0 | AD37: 0 | AE37: =IF(OR($K$24="Presumptive CTLD",$E$31="Presumptive"),INDIRECT(ADDRESS(($Q37+6),AE$87,1,1,"Presumptive CTLD"),TRUE),INDIRECT(ADDRESS(($Q37+6),AE$87,1,1,$K$24),TRUE)) -> 1.14485252e-05 | AF37: 4.532961087e-07 | AG37: 4.348822769e-05 | AH37: 9.814449352e-05 | AI37: 1.433099185e-05 | AJ37: 4.109558397e-06 | AK37: =IF(OR($K$24="Presumptive CTLD",$F$31="Presumptive"),INDIRECT(ADDRESS(($Q37+6),AK$87,1,1,"Presumptive CTLD"),TRUE),INDIRECT(ADDRESS(($Q37+6),AK$87,1,1,$K$24),TRUE)) -> 0.0006798001818 | AL37: 0.06262559391 | AM37: 0 | AN37: 0 | AO37: 0 | AP37: 0 | AQ37: =IF(OR($K$24="Presumptive CTLD",$G$31="Presumptive"),INDIRECT(ADDRESS(($Q37+6),AQ$87,1,1,"Presumptive CTLD"),TRUE),INDIRECT(ADDRESS(($Q37+6),AQ$87,1,1,$K$24),TRUE)) -> 0.002015530064 | AR37: 0.02156912083 | AS37: 1.564439784e-06 | AT37: 0.009003095695 | AU37: 0 | AV37: 0 | AW37: =IF(OR($K$24="Presumptive CTLD",$H$31="Presumptive"),INDIRECT(ADDRESS(($Q37+6),AW$87,1,1,"Presumptive CTLD"),TRUE),INDIRECT(ADDRESS(($Q37+6),AW$87,1,1,$K$24),TRUE)) -> 0.0002861216933 | AX37: 0.001245181495 | AY37: 1.319437228e-06 | AZ37: 0.0003977081459 | BA37: 0.00011655744 | BB37: 0 | BC37: =IF(OR($K$24="Presumptive CTLD",$I$31="Presumptive"),INDIRECT(ADDRESS(($Q37+6),BC$87,1,1,"Presumptive CTLD"),TRUE),INDIRECT(ADDRESS(($Q37+6),BC$87,1,1,$K$24),TRUE)) -> 0.0001318804616 | BD37: 0.0001148354474 | BE37: 1.06969796e-05 | BF37: 6.073498059e-05 | BG37: 7.121385494e-05 | BH37: 5.333131004e-06 | BI37: =IF(OR($K$24="Presumptive CTLD",$J$31="Presumptive"),INDIRECT(ADDRESS(($Q37+6),BI$87,1,1,"Presumptive CTLD"),TRUE),INDIRECT(ADDRESS(($Q37+6),BI$87,1,1,$K$24),TRUE)) -> 0.0001417795015 | BJ37: 0.0001554868492 | BK37: 2.261130604e-05 | BL37: 0.0001062467167 | BM37: 0.0002904471568 | BN37: 8.076550633e-06 | BO37: =IF(OR($K$24="Presumptive CTLD",$K$31="Presumptive"),INDIRECT(ADDRESS(($Q37+6),BO$87,1,1,"Presumptive CTLD"),TRUE),INDIRECT(ADDRESS(($Q37+6),BO$87,1,1,$K$24),TRUE)) -> 0.0001471256031 | BP37: 0.001880192492 | BQ37: 6.572777037e-07 | BR37: 0.0009008064117 | BS37: 0.001684165294 | BT37: 3.834385953e-05 | BU37: =IF(OR($K$24="Presumptive CTLD",$L$31="Presumptive"),INDIRECT(ADDRESS(($Q37+6),BU$87,1,1,"Presumptive CTLD"),TRUE),INDIRECT(ADDRESS(($Q37+6),BU$87,1,1,$K$24),TRUE)) -> 8.343437546e-05 | BV37: 0.0009685271486 | BW37: 0 | BX37: 0.004746664294 | BY37: 0.01658886132 | BZ37: 2.076910359e-05
F38: =R38 -> 20 | Q38: 2 | R38: 20 | S38: 0.0258585611 | T38: 0.003219957601 | U38: 0 | V38: 0 | W38: 0 | X38: 0 | Y38: 0.001826560693 | Z38: 5.477312974e-05 | AA38: 2.112034008e-05 | AB38: 0.0001345975584 | AC38: 0 | AD38: 0 | AE38: 7.315886833e-05 | AF38: 4.079664978e-06 | AG38: 6.569011235e-05 | AH38: 0.0002894469243 | AI38: 1.319361155e-05 | AJ38: 3.196323197e-06 | AK38: 0.04607400369 | AL38: 0.06914600705 | AM38: 0 | AN38: 0 | AO38: 0 | AP38: 0 | AQ38: 0.06899016572 | AR38: 0.06932259364 | AS38: 3.824186139e-06 | AT38: 0.04226759027 | AU38: 1.683121423e-07 | AV38: 0 | AW38: 0.002515714004 | AX38: 0.003942468173 | AY38: 6.597186138e-06 | AZ38: 0.001327989206 | BA38: 0.001247307543 | BB38: 0 | BC38: 0.0005363198499 | BD38: 0.0004187148609 | BE38: 1.143408239e-05 | BF38: 0.0002361816584 | BG38: 0.000125835579 | BH38: 1.234852481e-06 | BI38: 0.0003203000342 | BJ38: 0.0001059764977 | BK38: 1.844343837e-05 | BL38: 0.0007527196079 | BM38: 8.982696878e-05 | BN38: 1.242546251e-06 | BO38: 0.0004144087762 | BP38: 0.000698621421 | BQ38: 2.136152537e-06 | BR38: 0.0003277963428 | BS38: 0.0003027562145 | BT38: 3.580749528e-06 | BU38: 0.0003107930486 | BV38: 0.0003708371328 | BW38: 0 | BX38: 0.0001190678141 | BY38: 9.163114633e-05 | BZ38: 3.115365538e-06
F39: 30 | Q39: 3 | R39: 30 | S39: 0.1861456409 | T39: 0.08806754181 | U39: 0 | V39: 0 | W39: 0 | X39: 0 | Y39: 0.01102202633 | Z39: 0.0001182555273 | AA39: 0.0001158988057 | AB39: 0.003121099848 | AC39: 4.758386793e-07 | AD39: 0 | AE39: 0.0001895987466 | AF39: 5.008922001e-05 | AG39: 0.001129549493 | AH39: 0.00413340181 | AI39: 5.482173074e-05 | AJ39: 1.484007199e-05 | AK39: 0.1237716562 | AL39: 0.1296134118 | AM39: 0 | AN39: 3.123165687e-07 | AO39: 0 | AP39: 0 | AQ39: 0.05326420767 | AR39: 0.06638901135 | AS39: 2.433572997e-05 | AT39: 0.05322009434 | AU39: 0 | AV39: 0 | AW39: 0.005959293098 | AX39: 0.009885675255 | AY39: 8.299260161e-05 | AZ39: 0.003813762564 | BA39: 0.001641289882 | BB39: 0 | BC39: 0.002716397056 | BD39: 0.002959775474 | BE39: 2.596040091e-05 | BF39: 0.001234295001 | BG39: 0.0007105472782 | BH39: 3.024493757e-06 | BI39: 0.001936506588 | BJ39: 0.0003823202763 | BK39: 2.94246466e-05 | BL39: 0.007908462062 | BM39: 0.0004871672248 | BN39: 2.236583252e-06 | BO39: 0.001524592808 | BP39: 0.001046440625 | BQ39: 3.943666222e-06 | BR39: 0.002256860677 | BS39: 0.002707663161 | BT39: 7.01230116e-06 | BU39: 0.0008598955321 | BV39: 0.0005013552298 | BW39: 0 | BX39: 0.0004830011764 | BY39: 0.0009106168723 | BZ39: 1.557682769e-06
F40: 40 | Q40: 4 | R40: 40 | S40: 0.1457525453 | T40: 0.1182945686 | U40: 0 | V40: 0 | W40: 0 | X40: 0 | Y40: 0.05247423078 | Z40: 9.831946892e-05 | AA40: 0.0001306304308 | AB40: 0.02098002053 | AC40: 4.078617251e-07 | AD40: 0 | AE40: 0.0003160909884 | AF40: 0.0001511742522 | AG40: 0.00423163344 | AH40: 0.01432592279 | AI40: 0.0001207897885 | AJ40: 1.735146879e-05 | AK40: 0.09461070144 | AL40: 0.1078438395 | AM40: 0 | AN40: 1.249266275e-06 | AO40: 0 | AP40: 0 | AQ40: 0.03564908295 | AR40: 0.04381042973 | AS40: 1.755649091e-05 | AT40: 0.02593140664 | AU40: 0 | AV40: 0 | AW40: 0.01612946139 | AX40: 0.008638804057 | AY40: 0.00011518687 | AZ40: 0.01257516518 | BA40: 0.001598409219 | BB40: 0 | BC40: 0.008299402297 | BD40: 0.001755541091 | BE40: 4.749818504e-05 | BF40: 0.003108604751 | BG40: 0.003388889098 | BH40: 3.811935919e-06 | BI40: 0.005415039738 | BJ40: 0.0004120562978 | BK40: 6.785887541e-05 | BL40: 0.0294506608 | BM40: 0.002549958108 | BN40: 2.957260078e-06 | BO40: 0.005472263394 | BP40: 0.0007833389631 | BQ40: 5.751179907e-06 | BR40: 0.01397762959 | BS40: 0.01783548636 | BT40: 1.089144648e-05 | BU40: 0.002405517338 | BV40: 0.0004764946399 | BW40: 1.094196546e-06 | BX40: 0.002115265602 | BY40: 0.008509789736 | BZ40: 4.153820718e-06
F41: 50 | Q41: 5 | R41: 50 | S41: 0.08240465794 | T41: 0.1004756247 | U41: 3.60597107e-07 | V41: 0 | W41: 0 | X41: 0 | Y41: 0.1467164029 | Z41: 8.573185525e-05 | AA41: 0.000127473654 | AB41: 0.04475192072 | AC41: 2.719078167e-07 | AD41: 0 | AE41: 0.0004163353919 | AF41: 0.0001683995044 | AG41: 0.01180499385 | AH41: 0.03462823325 | AI41: 0.0003842070673 | AJ41: 1.255698399e-05 | AK41: 0.04834431775 | AL41: 0.1020305972 | AM41: 0 | AN41: 1.249266275e-06 | AO41: 0 | AP41: 0 | AQ41: 0.0595570706 | AR41: 0.04434504824 | AS41: 1.633970441e-05 | AT41: 0.01790301514 | AU41: 0 | AV41: 0 | AW41: 0.08756655232 | AX41: 0.01140003951 | AY41: 0.0001269298613 | AZ41: 0.03110140066 | BA41: 0.001424417678 | BB41: 0 | BC41: 0.07137736118 | BD41: 0.0006846138182 | BE41: 6.042445114e-05 | BF41: 0.008094719594 | BG41: 0.012529258 | BH41: 4.867824272e-06 | BI41: 0.03878177859 | BJ41: 0.0002573395544 | BK41: 8.243393361e-05 | BL41: 0.03192126338 | BM41: 0.009408306794 | BN41: 5.492054431e-06 | BO41: 0.03440911279 | BP41: 0.0009068356618 | BQ41: 7.887332444e-06 | BR41: 0.03302708399 | BS41: 0.0403783772 | BT41: 1.074224858e-05 | BU41: 0.02698737021 | BV41: 0.0003635861274 | BW41: 5.470982731e-06 | BX41: 0.00617185426 | BY41: 0.02995096029 | BZ41: 5.192275897e-06
F42: 60 | Q42: 6 | R42: 60 | S42: 0.04033900589 | T42: 0.0730580092 | U42: 2.524179749e-07 | V42: 0 | W42: 0 | X42: 0 | Y42: 0.1752983243 | Z42: 7.9472069e-05 | AA42: 0.0001061278299 | AB42: 0.05315189603 | AC42: 4.078617251e-07 | AD42: 0 | AE42: 0.0005221644419 | AF42: 9.020592562e-05 | AG42: 0.03449074227 | AH42: 0.05255308969 | AI42: 0.0008539451336 | AJ42: 8.219116793e-06 | AK42: 0.01319082662 | AL42: 0.1037864898 | AM42: 0 | AN42: 2.810849118e-06 | AO42: 2.864559611e-07 | AP42: 0 | AQ42: 0.07259831611 | AR42: 0.04779977834 | AS42: 1.268934491e-05 | AT42: 0.02324781424 | AU42: 0 | AV42: 0 | AW42: 0.1500943276 | AX42: 0.010439898 | AY42: 0.0003116510732 | AZ42: 0.05699257776 | BA42: 0.002532298094 | BB42: 0 | BC42: 0.1659453998 | BD42: 0.0007715718968 | BE42: 0.0001335774091 | BF42: 0.02483654853 | BG42: 0.02480275046 | BH42: 7.999696507e-06 | BI42: 0.1033433977 | BJ42: 0.0002084750981 | BK42: 0.0001638446183 | BL42: 0.03100128655 | BM42: 0.01975458004 | BN42: 7.281321032e-06 | BO42: 0.08065449534 | BP42: 0.001182465975 | BQ42: 1.544602604e-05 | BR42: 0.04930733755 | BS42: 0.04036585553 | BT42: 1.596417498e-05 | BU42: 0.06052381743 | BV42: 0.0003392434665 | BW42: 7.659375824e-06 | BX42: 0.0132714021 | BY42: 0.05782287716 | BZ42: 6.749958666e-06
F43: 70 | Q43: 7 | R43: 70 | S43: 0.0133604689 | T43: 0.04405139874 | U43: 1.081791321e-07 | V43: 0 | W43: 0 | X43: 0 | Y43: 0.08704440981 | Z43: 6.599992031e-05 | AA43: 7.997167916e-05 | AB43: 0.06033158811 | AC43: 7.47746496e-07 | AD43: 6.797695418e-08 | AE43: 0.0004154976949 | AF43: 2.062497294e-05 | AG43: 0.07018931284 | AH43: 0.05474128124 | AI43: 0.0006746939974 | AJ43: 8.904043193e-06 | AK43: 0.004607055293 | AL43: 0.05151258183 | AM43: 0 | AN43: 3.123165687e-06 | AO43: 1.432279806e-06 | AP43: 0 | AQ43: 0.02505086301 | AR43: 0.03648994471 | AS43: 9.038985418e-06 | AT43: 0.02484628872 | AU43: 8.415607114e-07 | AV43: 0 | AW43: 0.0518954719 | AX43: 0.007329153875 | AY43: 0.0004342267916 | AZ43: 0.07129746804 | BA43: 0.005737432782 | BB43: 1.306450697e-07 | BC43: 0.07212198407 | BD43: 0.0009872772849 | BE43: 0.0002042853431 | BF43: 0.04107483316 | BG43: 0.0359176187 | BH43: 1.16326683e-05 | BI43: 0.08459146337 | BJ43: 0.0001975445638 | BK43: 0.0002631247236 | BL43: 0.03316663786 | BM43: 0.02655768116 | BN43: 1.165508384e-05 | BO43: 0.05933102134 | BP43: 0.001246302433 | BQ43: 2.990613552e-05 | BR43: 0.0470622531 | BS43: 0.04975800622 | BT43: 1.715775816e-05 | BU43: 0.03562334953 | BV43: 0.0003180083793 | BW43: 0.0001116080477 | BX43: 0.02364065565 | BY43: 0.07605747528 | BZ43: 4.673048307e-06
F44: 80 | Q44: 8 | R44: 80 | S44: 0.004029423452 | T44: 0.02937352923 | U44: 7.21194214e-08 | V44: 0 | W44: 0 | X44: 0 | Y44: 0.01934320218 | Z44: 6.055662792e-05 | AA44: 4.960649271e-05 | AB44: 0.06281491306 | AC44: 1.019654313e-06 | AD44: 6.797695418e-08 | AE44: 0.0002627576149 | AF44: 1.019916244e-05 | AG44: 0.08187711736 | AH44: 0.05614499682 | AI44: 0.000520465228 | AJ44: 9.588969592e-06 | AK44: 0.001198277224 | AL44: 0.01960049484 | AM44: 0 | AN44: 4.684748531e-06 | AO44: 5.729119222e-07 | AP44: 0 | AQ44: 0.00347142656 | AR44: 0.02567819032 | AS44: 5.736279208e-06 | AT44: 0.02030198921 | AU44: 0 | AV44: 0 | AW44: 0.007015773152 | AX44: 0.005462551428 | AY44: 0.0005046847395 | AZ44: 0.07588209059 | BA44: 0.004398126724 | BB44: 0 | BC44: 0.00639394465 | BD44: 0.0009567892067 | BE44: 0.0002864093815 | BF44: 0.04404408894 | BG44: 0.03939506472 | BH44: 2.127883478e-05 | BI44: 0.01115135163 | BJ44: 0.0001616725379 | BK44: 0.0003897081058 | BL44: 0.02567951098 | BM44: 0.02777220836 | BN44: 2.485092503e-05 | BO44: 0.01300818061 | BP44: 0.0009160829991 | BQ44: 5.143198031e-05 | BR44: 0.03301918349 | BS44: 0.04115472106 | BT44: 1.760535185e-05 | BU44: 0.00977590148 | BV44: 0.0002801995654 | BW44: 7.495246342e-05 | BX44: 0.0271593684 | BY44: 0.05772296298 | BZ44: 8.826869025e-06
F45: 90 | Q45: 9 | R45: 90 | S45: 0.001939874376 | T45: 0.01886885555 | U45: 3.60597107e-08 | V45: 0 | W45: 0 | X45: 0 | Y45: 0.005336196797 | Z45: 6.981022499e-05 | AA45: 3.299583379e-05 | AB45: 0.04743428691 | AC45: 8.157234502e-07 | AD45: 0 | AE45: 0.0001675393931 | AF45: 5.892849413e-06 | AG45: 0.08779861177 | AH45: 0.04057492824 | AI45: 0.0003676013148 | AJ45: 6.849263994e-06 | AK45: 0.0008678667295 | AL45: 0.008567999365 | AM45: 0 | AN45: 4.684748531e-06 | AO45: 0 | AP45: 0 | AQ45: 0.001056425129 | AR45: 0.01889552311 | AS45: 5.91010585e-06 | AT45: 0.01553299101 | AU45: 0 | AV45: 0 | AW45: 0.002721817485 | AX45: 0.003530570453 | AY45: 0.0005294901594 | AZ45: 0.06752879033 | BA45: 0.003029713791 | BB45: 0 | BC45: 0.00108650865 | BD45: 0.0006691283779 | BE45: 0.0002664896279 | BF45: 0.03384833593 | BG45: 0.0276362144 | BH45: 4.236080902e-05 | BI45: 0.001738144902 | BJ45: 9.449943673e-05 | BK45: 0.000435205248 | BL45: 0.01815022822 | BM45: 0.02230895994 | BN45: 3.374755618e-05 | BO45: 0.002697552428 | BP45: 0.0008052641016 | BQ45: 7.16432697e-05 | BR45: 0.01497950281 | BS45: 0.01398238807 | BT45: 1.805294554e-05 | BU45: 0.002639655054 | BV45: 0.0002232273802 | BW45: 9.355380471e-05 | BX45: 0.02176611411 | BY45: 0.03719913927 | BZ45: 1.349991733e-05
F46: 100 | Q46: 10 | R46: 100 | S46: 0 | T46: 0.01072854898 | U46: 0 | V46: 0 | W46: 0 | X46: 0 | Y46: 0 | Z46: 4.198139261e-05 | AA46: 2.818550722e-05 | AB46: 0.03629511534 | AC46: 6.797695418e-07 | AD46: 0 | AE46: 0 | AF46: 2.266480543e-07 | AG46: 0.07604717711 | AH46: 0.02892746615 | AI46: 0.0003648716021 | AJ46: 7.534190394e-06 | AK46: 0 | AL46: 0.004482855664 | AM46: 0 | AN46: 3.747798825e-06 | AO46: 5.729119222e-07 | AP46: 0 | AQ46: 0 | AR46: 0.009144081399 | AS46: 3.476532853e-06 | AT46: 0.009952384529 | AU46: 3.366242845e-07 | AV46: 0 | AW46: 0 | AX46: 0.001673586318 | AY46: 0.0007435028777 | AZ46: 0.05247772628 | BA46: 0.002428215029 | BB46: 1.306450697e-07 | BC46: 0 | BD46: 0.0003492449585 | BE46: 0.0002314322998 | BF46: 0.02450782514 | BG46: 0.01929173139 | BH46: 4.026692872e-05 | BI46: 0 | BJ46: 4.481519029e-05 | BK46: 0.0004347310595 | BL46: 0.01444736743 | BM46: 0.01660228938 | BN46: 4.381218082e-05 | BO46: 0 | BP46: 0.001016759656 | BQ46: 7.460101937e-05 | BR46: 0.01016809647 | BS46: 0.008321696542 | BT46: 1.820214344e-05 | BU46: 0 | BV46: 0.0001595221186 | BW46: 4.376786185e-05 | BX46: 0.01679839783 | BY46: 0.02223893098 | BZ46: 1.194223456e-05
F47: 110 | Q47: 11 | R47: 110 | S47: =IF(OR($K$24="Presumptive CTLD",$C$31="Presumptive"),INDIRECT(ADDRESS(($Q47+6),S$87,1,1,"Presumptive CTLD"),TRUE),INDIRECT(ADDRESS(($Q47+6),S$87,1,1,$K$24),TRUE)) -> 0 | T47: 0.00579210582 | U47: 0 | V47: 0 | W47: 0 | X47: 0 | Y47: =IF(OR($K$24="Presumptive CTLD",$D$31="Presumptive"),INDIRECT(ADDRESS(($Q47+6),Y$87,1,1,"Presumptive CTLD"),TRUE),INDIRECT(ADDRESS(($Q47+6),Y$87,1,1,$K$24),TRUE)) -> 0 | Z47: 1.680616528e-05 | AA47: 2.61561507e-05 | AB47: 0.03223482364 | AC47: 4.758386793e-07 | AD47: 6.797695418e-08 | AE47: =IF(OR($K$24="Presumptive CTLD",$E$31="Presumptive"),INDIRECT(ADDRESS(($Q47+6),AE$87,1,1,"Presumptive CTLD"),TRUE),INDIRECT(ADDRESS(($Q47+6),AE$87,1,1,$K$24),TRUE)) -> 0 | AF47: 0 | AG47: 0.05916756486 | AH47: 0.02570343087 | AI47: 0.0003726057882 | AJ47: 5.936028795e-06 | AK47: =IF(OR($K$24="Presumptive CTLD",$F$31="Presumptive"),INDIRECT(ADDRESS(($Q47+6),AK$87,1,1,"Presumptive CTLD"),TRUE),INDIRECT(ADDRESS(($Q47+6),AK$87,1,1,$K$24),TRUE)) -> 0 | AL47: 0.002788854853 | AM47: 0 | AN47: 3.123165687e-06 | AO47: 0 | AP47: 0 | AQ47: =IF(OR($K$24="Presumptive CTLD",$G$31="Presumptive"),INDIRECT(ADDRESS(($Q47+6),AQ$87,1,1,"Presumptive CTLD"),TRUE),INDIRECT(ADDRESS(($Q47+6),AQ$87,1,1,$K$24),TRUE)) -> 0 | AR47: 0.003714714662 | AS47: 5.040972637e-06 | AT47: 0.008095043699 | AU47: 0 | AV47: 0 | AW47: =IF(OR($K$24="Presumptive CTLD",$H$31="Presumptive"),INDIRECT(ADDRESS(($Q47+6),AW$87,1,1,"Presumptive CTLD"),TRUE),INDIRECT(ADDRESS(($Q47+6),AW$87,1,1,$K$24),TRUE)) -> 0 | AX47: 0.0006904388413 | AY47: 0.001032063799 | AZ47: 0.04350181333 | BA47: 0.002220828547 | BB47: 1.306450697e-07 | BC47: =IF(OR($K$24="Presumptive CTLD",$I$31="Presumptive"),INDIRECT(ADDRESS(($Q47+6),BC$87,1,1,"Presumptive CTLD"),TRUE),INDIRECT(ADDRESS(($Q47+6),BC$87,1,1,$K$24),TRUE)) -> 0 | BD47: 0.0001256895609 | BE47: 0.0002115844586 | BF47: 0.0184877853 | BG47: 0.01547074959 | BH47: 3.699188519e-05 | BI47: =IF(OR($K$24="Presumptive CTLD",$J$31="Presumptive"),INDIRECT(ADDRESS(($Q47+6),BI$87,1,1,"Presumptive CTLD"),TRUE),INDIRECT(ADDRESS(($Q47+6),BI$87,1,1,$K$24),TRUE)) -> 0 | BJ47: 1.460716845e-05 | BK47: 0.0003591853383 | BL47: 0.0126969919 | BM47: 0.01199212391 | BN47: 4.515413077e-05 | BO47: =IF(OR($K$24="Presumptive CTLD",$K$31="Presumptive"),INDIRECT(ADDRESS(($Q47+6),BO$87,1,1,"Presumptive CTLD"),TRUE),INDIRECT(ADDRESS(($Q47+6),BO$87,1,1,$K$24),TRUE)) -> 0 | BP47: 0.0003059078852 | BQ47: 5.077470261e-05 | BR47: 0.009535459961 | BS47: 0.007061926592 | BT47: 1.536738339e-05 | BU47: =IF(OR($K$24="Presumptive CTLD",$L$31="Presumptive"),INDIRECT(ADDRESS(($Q47+6),BU$87,1,1,"Presumptive CTLD"),TRUE),INDIRECT(ADDRESS(($Q47+6),BU$87,1,1,$K$24),TRUE)) -> 0 | BV47: 0.000107211294 | BW47: 3.173169984e-05 | BX47: 0.01398839741 | BY47: 0.01370584519 | BZ47: 8.307641436e-06
F48: 120 | Q48: 12 | R48: 120 | S48: 0 | T48: 0.00318289765 | U48: 0 | V48: 0 | W48: 0 | X48: 0 | Y48: 0 | Z48: 1.809894722e-05 | AA48: 1.916614491e-05 | AB48: 0.02766829557 | AC48: 4.758386793e-07 | AD48: 0 | AE48: 0 | AF48: 0 | AG48: 0.03637355364 | AH48: 0.02433938107 | AI48: 0.0003464460412 | AJ48: 4.337867196e-06 | AK48: 0 | AL48: 0.00161319766 | AM48: 0 | AN48: 4.372431962e-06 | AO48: 0 | AP48: 0 | AQ48: 0 | AR48: 0.001517979814 | AS48: 3.302706211e-06 | AT48: 0.007623765554 | AU48: 1.683121423e-07 | AV48: 1.683121423e-07 | AW48: 0 | AX48: 0.0003341713594 | AY48: 0.0006785865661 | AZ48: 0.03504548053 | BA48: 0.001714576835 | BB48: 6.532253483e-07 | BC48: 0 | BD48: 3.610289137e-05 | BE48: 0.0001157970514 | BF48: 0.01635905731 | BG48: 0.01214760323 | BH48: 1.891650829e-05 | BI48: 0 | BJ48: 5.440424985e-06 | BK48: 0.0002022039752 | BL48: 0.01378671009 | BM48: 0.009881612446 | BN48: 2.654078793e-05 | BO48: 0 | BP48: 7.979557221e-05 | BQ48: 2.497655274e-05 | BR48: 0.01046995531 | BS48: 0.006272166658 | BT48: 1.253262335e-05 | BU48: 0 | BV48: 7.406384077e-05 | BW48: 2.516652056e-05 | BX48: 0.01442894833 | BY48: 0.009784860434 | BZ48: 6.749958666e-06
F49: 130 | Q49: 13 | R49: 130 | S49: 0 | T49: 0.001969445887 | U49: 3.60597107e-08 | V49: 0 | W49: 0 | X49: 0 | Y49: 0 | Z49: 2.898553201e-05 | AA49: 1.413033429e-05 | AB49: 0.02372254775 | AC49: 5.438156334e-07 | AD49: 0 | AE49: 0 | AF49: 0 | AG49: 0.01533417797 | AH49: 0.02329628417 | AI49: 0.0003462185651 | AJ49: 3.652940797e-06 | AK49: 0 | AL49: 0.001144138234 | AM49: 0 | AN49: 3.747798825e-06 | AO49: 2.864559611e-07 | AP49: 0 | AQ49: 0 | AR49: 0.0009320042453 | AS49: 3.128879568e-06 | AT49: 0.006720762967 | AU49: 3.366242845e-07 | AV49: 1.683121423e-07 | AW49: 0 | AX49: 0.0001726097103 | AY49: 0.0002794568048 | AZ49: 0.03173050973 | BA49: 0.001472106174 | BB49: 3.91935209e-07 | BC49: 0 | BD49: 1.55927297e-05 | BE49: 3.960579169e-05 | BF49: 0.01715347515 | BG49: 0.01066564703 | BH49: 1.512246879e-05 | BI49: 0 | BJ49: 3.254318142e-06 | BK49: 8.273342111e-05 | BL49: 0.01771259707 | BM49: 0.009509014353 | BN49: 2.311136027e-05 | BO49: 0 | BP49: 3.9375759e-05 | BQ49: 2.119720594e-05 | BR49: 0.013818427 | BS49: 0.006044093291 | BT49: 1.312941494e-05 | BU49: 0 | BV49: 4.350603234e-05 | BW49: 1.696004647e-05 | BX49: 0.01604619985 | BY49: 0.009269758792 | BZ49: 6.749958666e-06
F50: 140 | Q50: 14 | R50: 140 | S50: 0 | T50: 0.001030930604 | U50: 0 | V50: 0 | W50: 0 | X50: 0 | Y50: 0 | Z50: 1.898348223e-05 | AA50: 9.470330427e-06 | AB50: 0.02032008463 | AC50: 5.438156334e-07 | AD50: 6.797695418e-08 | AE50: 0 | AF50: 0 | AG50: 0.007159993361 | AH50: 0.02134246076 | AI50: 0.0003853444476 | AJ50: 2.511396798e-06 | AK50: 0 | AL50: 0.0008587483813 | AM50: 0 | AN50: 3.747798825e-06 | AO50: 0 | AP50: 0 | AQ50: 0 | AR50: 0.0006457518122 | AS50: 3.998012781e-06 | AT50: 0.00509956615 | AU50: 1.683121423e-07 | AV50: 0 | AW50: 0 | AX50: 8.669478674e-05 | AY50: 0.0001048952596 | AZ50: 0.02609945091 | BA50: 0.001057463151 | BB50: 6.532253483e-07 | BC50: 0 | BD50: 6.777115319e-06 | BE50: 1.598254599e-05 | BF50: 0.01827783215 | BG50: 0.009608041716 | BH50: 1.225904274e-05 | BI50: 0 | BJ50: 2.061896227e-06 | BK50: 3.726123611e-05 | BL50: 0.02178174447 | BM50: 0.00950864173 | BN50: 1.756960399e-05 | BO50: 0 | BP50: 2.132853612e-05 | BQ50: 1.577466489e-05 | BR50: 0.0183904332 | BS50: 0.006498898417 | BT50: 1.163743597e-05 | BU50: 0 | BV50: 2.900402156e-05 | BW50: 1.203616201e-05 | BX50: 0.01832971345 | BY50: 0.01126752486 | BZ50: 2.076910359e-06
F51: 150 | Q51: 15 | R51: 150 | S51: 0 | T51: 0.0006428295626 | U51: 0 | V51: 0 | W51: 0 | X51: 0 | Y51: 0 | Z51: 8.09689744e-06 | AA51: 9.921298542e-06 | AB51: 0.01770862008 | AC51: 0 | AD51: 0 | AE51: 0 | AF51: 0 | AG51: 0.004965440061 | AH51: 0.02053803857 | AI51: 0.0003944434901 | AJ51: 2.511396798e-06 | AK51: 0 | AL51: 0.0005349627053 | AM51: 0 | AN51: 3.747798825e-06 | AO51: 2.864559611e-07 | AP51: 0 | AQ51: 0 | AR51: 0.000431399255 | AS51: 2.085919712e-06 | AT51: 0.003703909588 | AU51: 0 | AV51: 0 | AW51: 0 | AX51: 4.588194861e-05 | AY51: 7.388848474e-05 | AZ51: 0.01946522169 | BA51: 0.0007436546589 | BB51: 1.306450697e-07 | BC51: 0 | BD51: 2.57494619e-06 | BE51: 8.737364848e-06 | BF51: 0.02043749082 | BG51: 0.009101588375 | BH51: 1.408447685e-05 | BI51: 0 | BJ51: 7.94947943e-07 | BK51: 2.241164771e-05 | BL51: 0.02740032523 | BM51: 0.01015057168 | BN51: 1.990559095e-05 | BO51: 0 | BP51: 1.148459637e-05 | BQ51: 1.593898431e-05 | BR51: 0.02233203888 | BS51: 0.00811896466 | BT51: 1.074224858e-05 | BU51: 0 | BV51: 8.286863303e-06 | BW51: 9.300670643e-06 | BX51: 0.01953488681 | BY51: 0.01508807774 | BZ51: 3.634593128e-06
F52: 160 | Q52: 16 | R52: 160 | S52: 0 | T52: 0.0003735224431 | U52: 0 | V52: 0 | W52: 0 | X52: 0 | Y52: 0 | Z52: 1.224740789e-06 | AA52: 8.41807149e-06 | AB52: 0.01649071611 | AC52: 3.398847709e-07 | AD52: 0 | AE52: 0 | AF52: 0 | AG52: 0.004069811456 | AH52: 0.02221805471 | AI52: 0.0004563169787 | AJ52: 3.424631997e-06 | AK52: 0 | AL52: 0.0002186269653 | AM52: 0 | AN52: 1.873899412e-06 | AO52: 0 | AP52: 0 | AQ52: 0 | AR52: 0.000263689006 | AS52: 2.433572997e-06 | AT52: 0.003417271488 | AU52: 0 | AV52: 3.366242845e-07 | AW52: 0 | AX52: 3.184441192e-05 | AY52: 8.866618169e-05 | AZ52: 0.01504170926 | BA52: 0.0005601773955 | BB52: 6.532253483e-07 | BC52: 0 | BD52: 1.126538958e-06 | BE52: 1.003178927e-05 | BF52: 0.02352462288 | BG52: 0.009555619164 | BH52: 2.095669935e-05 | BI52: 0 | BJ52: 4.968424644e-08 | BK52: 1.692104359e-05 | BL52: 0.03845532467 | BM52: 0.01166195514 | BN52: 2.805669435e-05 | BO52: 0 | BP52: 1.044054216e-06 | BQ52: 1.807513685e-05 | BR52: 0.02665137805 | BS52: 0.01099417976 | BT52: 8.355082233e-06 | BU52: 0 | BV52: 2.589644782e-06 | BW52: 1.203616201e-05 | BX52: 0.01709244356 | BY52: 0.02092969274 | BZ52: 3.634593128e-06
F53: 170 | Q53: 17 | R53: 170 | S53: 0 | T53: 0.0002703536029 | U53: 0 | V53: 0 | W53: 0 | X53: 0 | Y53: 0 | Z53: 1.088658479e-06 | AA53: 5.035810624e-06 | AB53: 0.01261831716 | AC53: 1.359539084e-07 | AD53: 0 | AE53: 0 | AF53: 0 | AG53: 0.002624857869 | AH53: 0.02120895705 | AI53: 0.000509318901 | AJ53: 2.054779198e-06 | AK53: 0 | AL53: 0.0001335257743 | AM53: 0 | AN53: 1.249266275e-06 | AO53: 0 | AP53: 0 | AQ53: 0 | AR53: 0.0001862324653 | AS53: 1.564439784e-06 | AT53: 0.003313421983 | AU53: 3.366242845e-07 | AV53: 6.732485691e-07 | AW53: 0 | AX53: 2.378582605e-05 | AY53: 8.98536752e-05 | AZ53: 0.01096159528 | BA53: 0.0004458289594 | BB53: 1.045160557e-06 | BC53: 0 | BD53: 6.794996889e-07 | BE53: 9.49244576e-06 | BF53: 0.02150513561 | BG53: 0.01012338114 | BH53: 2.081352805e-05 | BI53: 0 | BJ53: 9.936849288e-08 | BK53: 1.115590927e-05 | BL53: 0.04487638238 | BM53: 0.01306935197 | BN53: 3.185888588e-05 | BO53: 0 | BP53: 8.949036136e-07 | BQ53: 1.692490087e-05 | BR53: 0.02732649839 | BS53: 0.01470432226 | BT53: 9.9962591e-06 | BU53: 0 | BV53: 1.035857913e-06 | BW53: 7.112277551e-06 | BX53: 0.01311350782 | BY53: 0.02799719788 | BZ53: 3.634593128e-06
F54: 180 | Q54: 18 | R54: 180 | S54: 0 | T54: 0.0001947902761 | U54: 0 | V54: 0 | W54: 0 | X54: 0 | Y54: 0 | Z54: 4.762880847e-07 | AA54: 0 | AB54: 0.007756490206 | AC54: 3.398847709e-07 | AD54: 0 | AE54: 0 | AF54: 0 | AG54: 0 | AH54: 0.01452719833 | AI54: 0.0006414824925 | AJ54: 2.054779198e-06 | AK54: 0 | AL54: 0.0001034394947 | AM54: 0 | AN54: 6.246331374e-07 | AO54: 8.593678834e-07 | AP54: 0 | AQ54: 0 | AR54: 0.000106081784 | AS54: 0 | AT54: 0.00342198427 | AU54: 0 | AV54: 1.683121423e-07 | AW54: 0 | AX54: 1.715698928e-05 | AY54: 0 | AZ54: 0.006055402107 | BA54: 0.0004076261865 | BB54: 6.532253483e-07 | BC54: 0 | BD54: 4.291576983e-07 | BE54: 0 | BF54: 0.01276671819 | BG54: 0.01169498492 | BH54: 2.322954377e-05 | BI54: 0 | BJ54: 2.484212322e-08 | BK54: 0 | BL54: 0.02929090569 | BM54: 0.01569803288 | BN54: 3.712728199e-05 | BO54: 0 | BP54: 1.193204818e-06 | BQ54: 0 | BR54: 0.01910460886 | BS54: 0.01895721975 | BT54: 5.96791588e-06 | BU54: 0 | BV54: 1.035857913e-06 | BW54: 0 | BX54: 0.009219990301 | BY54: 0.03324605772 | BZ54: 5.711503487e-06
F55: 190 | Q55: 19 | R55: 190 | S55: 0 | T55: 0 | U55: 0 | V55: 0 | W55: 0 | X55: 0 | Y55: 0 | Z55: 0 | AA55: 0 | AB55: 0.004243969782 | AC55: 3.398847709e-07 | AD55: 0 | AE55: 0 | AF55: 0 | AG55: 0 | AH55: 0.008933188865 | AI55: 0.000740207103 | AJ55: 2.511396798e-06 | AK55: 0 | AL55: 0 | AM55: 0 | AN55: 3.123165687e-07 | AO55: 0 | AP55: 0 | AQ55: 0 | AR55: 0 | AS55: 0 | AT55: 0.00192331977 | AU55: 0 | AV55: 0 | AW55: 0 | AX55: 0 | AY55: 0 | AZ55: 0.002999506781 | BA55: 0.0004915683339 | BB55: 1.175805627e-06 | BC55: 0 | BD55: 0 | BE55: 0 | BF55: 0.005223834096 | BG55: 0.01363524511 | BH55: 2.870584608e-05 | BI55: 0 | BJ55: 0 | BK55: 0 | BL55: 0.01123147283 | BM55: 0.01889459115 | BN55: 3.605869221e-05 | BO55: 0 | BP55: 0 | BQ55: 0 | BR55: 0.009806760254 | BS55: 0.02258641857 | BT55: 5.221926395e-06 | BU55: 0 | BV55: 0 | BW55: 0 | BX55: 0.005982898816 | BY55: 0.03620206815 | BZ55: 4.673048307e-06
F56: 200 | Q56: 20 | R56: 200 | S56: 0 | T56: 0 | U56: 0 | V56: 0 | W56: 0 | X56: 0 | Y56: 0 | Z56: 0 | AA56: 0 | AB56: 0.002412423309 | AC56: 1.359539084e-07 | AD56: 6.797695418e-08 | AE56: 0 | AF56: 0 | AG56: 0 | AH56: 0.00590362928 | AI56: 0.0008223259611 | AJ56: 1.826470398e-06 | AK56: 0 | AL56: 0 | AM56: 0 | AN56: 0 | AO56: 0 | AP56: 0 | AQ56: 0 | AR56: 0 | AS56: 0 | AT56: 0.0007355305326 | AU56: 0 | AV56: 0 | AW56: 0 | AX56: 0 | AY56: 0 | AZ56: 0.001922667476 | BA56: 0.0006716671207 | BB56: 1.567740836e-06 | BC56: 0 | BD56: 0 | BE56: 0 | BF56: 0.002165737534 | BG56: 0.01557952817 | BH56: 3.53275188e-05 | BI56: 0 | BJ56: 0 | BK56: 0 | BL56: 0.00439948849 | BM56: 0.0224210946 | BN56: 3.464218949e-05 | BO56: 0 | BP56: 0 | BQ56: 0 | BR56: 0.005240567633 | BS56: 0.02489815829 | BT56: 6.415509571e-06 | BU56: 0 | BV56: 0 | BW56: 0 | BX56: 0.003674536281 | BY56: 0.03643554638 | BZ56: 4.673048307e-06
F57: 210 | Q57: 21 | R57: 210 | S57: =IF(OR($K$24="Presumptive CTLD",$C$31="Presumptive"),INDIRECT(ADDRESS(($Q57+6),S$87,1,1,"Presumptive CTLD"),TRUE),INDIRECT(ADDRESS(($Q57+6),S$87,1,1,$K$24),TRUE)) -> 0 | T57: 0 | U57: 0 | V57: 0 | W57: 0 | X57: 0 | Y57: =IF(OR($K$24="Presumptive CTLD",$D$31="Presumptive"),INDIRECT(ADDRESS(($Q57+6),Y$87,1,1,"Presumptive CTLD"),TRUE),INDIRECT(ADDRESS(($Q57+6),Y$87,1,1,$K$24),TRUE)) -> 0 | Z57: 0 | AA57: 0 | AB57: 0.001470376358 | AC57: 4.078617251e-07 | AD57: 0 | AE57: =IF(OR($K$24="Presumptive CTLD",$E$31="Presumptive"),INDIRECT(ADDRESS(($Q57+6),AE$87,1,1,"Presumptive CTLD"),TRUE),INDIRECT(ADDRESS(($Q57+6),AE$87,1,1,$K$24),TRUE)) -> 0 | AF57: 0 | AG57: 0 | AH57: 0.004067216609 | AI57: 0.0007941189295 | AJ57: 1.369852799e-06 | AK57: =IF(OR($K$24="Presumptive CTLD",$F$31="Presumptive"),INDIRECT(ADDRESS(($Q57+6),AK$87,1,1,"Presumptive CTLD"),TRUE),INDIRECT(ADDRESS(($Q57+6),AK$87,1,1,$K$24),TRUE)) -> 0 | AL57: 0 | AM57: 0 | AN57: 0 | AO57: 2.864559611e-07 | AP57: 0 | AQ57: =IF(OR($K$24="Presumptive CTLD",$G$31="Presumptive"),INDIRECT(ADDRESS(($Q57+6),AQ$87,1,1,"Presumptive CTLD"),TRUE),INDIRECT(ADDRESS(($Q57+6),AQ$87,1,1,$K$24),TRUE)) -> 0 | AR57: 0 | AS57: 0 | AT57: 0.0003529536675 | AU57: 1.683121423e-07 | AV57: 0 | AW57: =IF(OR($K$24="Presumptive CTLD",$H$31="Presumptive"),INDIRECT(ADDRESS(($Q57+6),AW$87,1,1,"Presumptive CTLD"),TRUE),INDIRECT(ADDRESS(($Q57+6),AW$87,1,1,$K$24),TRUE)) -> 0 | AX57: 0 | AY57: 0 | AZ57: 0.001373593766 | BA57: 0.0006828420815 | BB57: 1.698385906e-06 | BC57: =IF(OR($K$24="Presumptive CTLD",$I$31="Presumptive"),INDIRECT(ADDRESS(($Q57+6),BC$87,1,1,"Presumptive CTLD"),TRUE),INDIRECT(ADDRESS(($Q57+6),BC$87,1,1,$K$24),TRUE)) -> 0 | BD57: 0 | BE57: 0 | BF57: 0.001007249515 | BG57: 0.01532719547 | BH57: 4.653067319e-05 | BI57: =IF(OR($K$24="Presumptive CTLD",$J$31="Presumptive"),INDIRECT(ADDRESS(($Q57+6),BI$87,1,1,"Presumptive CTLD"),TRUE),INDIRECT(ADDRESS(($Q57+6),BI$87,1,1,$K$24),TRUE)) -> 0 | BJ57: 0 | BK57: 0 | BL57: 0.002176977091 | BM57: 0.02299021403 | BN57: 4.013424392e-05 | BO57: =IF(OR($K$24="Presumptive CTLD",$K$31="Presumptive"),INDIRECT(ADDRESS(($Q57+6),BO$87,1,1,"Presumptive CTLD"),TRUE),INDIRECT(ADDRESS(($Q57+6),BO$87,1,1,$K$24),TRUE)) -> 0 | BP57: 0 | BQ57: 0 | BR57: 0.002859683965 | BS57: 0.0240990071 | BT57: 7.459894851e-06 | BU57: =IF(OR($K$24="Presumptive CTLD",$L$31="Presumptive"),INDIRECT(ADDRESS(($Q57+6),BU$87,1,1,"Presumptive CTLD"),TRUE),INDIRECT(ADDRESS(($Q57+6),BU$87,1,1,$K$24),TRUE)) -> 0 | BV57: 0 | BW57: 0 | BX57: 0.002178940998 | BY57: 0.02939185499 | BZ57: 4.153820718e-06
F58: 220 | Q58: 22 | R58: 220 | S58: 0 | T58: 0 | U58: 0 | V58: 0 | W58: 0 | X58: 0 | Y58: 0 | Z58: 0 | AA58: 0 | AB58: 0.0009253242247 | AC58: 3.398847709e-07 | AD58: 0 | AE58: 0 | AF58: 0 | AG58: 0 | AH58: 0.002680500648 | AI58: 0.00060986332 | AJ58: 1.141543999e-06 | AK58: 0 | AL58: 0 | AM58: 0 | AN58: 0 | AO58: 2.864559611e-07 | AP58: 0 | AQ58: 0 | AR58: 0 | AS58: 0 | AT58: 0.0001684819366 | AU58: 1.683121423e-07 | AV58: 1.683121423e-07 | AW58: 0 | AX58: 0 | AY58: 0 | AZ58: 0.0008469975183 | BA58: 0.0004542751507 | BB58: 9.145154876e-07 | BC58: 0 | BD58: 0 | BE58: 0 | BF58: 0.0004753312316 | BG58: 0.01062450641 | BH58: 4.914354946e-05 | BI58: 0 | BJ58: 0 | BK58: 0 | BL58: 0.001076005736 | BM58: 0.01839130177 | BN58: 4.980125375e-05 | BO58: 0 | BP58: 0 | BQ58: 0 | BR58: 0.001442661667 | BS58: 0.01896512033 | BT58: 4.774332704e-06 | BU58: 0 | BV58: 0 | BW58: 0 | BX58: 0.001184983593 | BY58: 0.02053935441 | BZ58: 4.153820718e-06
F59: 230 | Q59: 23 | R59: 230 | S59: 0 | T59: 0 | U59: 0 | V59: 0 | W59: 0 | X59: 0 | Y59: 0 | Z59: 0 | AA59: 0 | AB59: 0.0006394743595 | AC59: 2.719078167e-07 | AD59: 0 | AE59: 0 | AF59: 0 | AG59: 0 | AH59: 0.002042901432 | AI59: 0.0005320665071 | AJ59: 3.424631997e-06 | AK59: 0 | AL59: 0 | AM59: 0 | AN59: 0 | AO59: 2.864559611e-07 | AP59: 0 | AQ59: 0 | AR59: 0 | AS59: 0 | AT59: 8.398849788e-05 | AU59: 0 | AV59: 1.683121423e-07 | AW59: 0 | AX59: 0 | AY59: 0 | AZ59: 0.0005067173372 | BA59: 0.0002600127507 | BB59: 1.829030975e-06 | BC59: 0 | BD59: 0 | BE59: 0 | BF59: 0.0002569570624 | BG59: 0.005879264246 | BH59: 4.969833825e-05 | BI59: 0 | BJ59: 0 | BK59: 0 | BL59: 0.0005810157721 | BM59: 0.01274820068 | BN59: 6.043744966e-05 | BO59: 0 | BP59: 0 | BQ59: 0 | BR59: 0.0007808082053 | BS59: 0.01226155215 | BT59: 6.415509571e-06 | BU59: 0 | BV59: 0 | BW59: 0 | BX59: 0.0006372716486 | BY59: 0.01330722382 | BZ59: 2.596137949e-06
F60: 240 | Q60: 24 | R60: 240 | S60: 0 | T60: 0 | U60: 0 | V60: 0 | W60: 0 | X60: 0 | Y60: 0 | Z60: 0 | AA60: 0 | AB60: 0.000550830311 | AC60: 2.039308625e-07 | AD60: 0 | AE60: 0 | AF60: 0 | AG60: 0 | AH60: 0.001531552755 | AI60: 0.0003892115407 | AJ60: 3.424631997e-06 | AK60: 0 | AL60: 0 | AM60: 0 | AN60: 3.123165687e-07 | AO60: 0 | AP60: 0 | AQ60: 0 | AR60: 0 | AS60: 0 | AT60: 4.325660111e-05 | AU60: 1.683121423e-07 | AV60: 0 | AW60: 0 | AX60: 0 | AY60: 0 | AZ60: 0.000316633372 | BA60: 0.000132930057 | BB60: 9.145154876e-07 | BC60: 0 | BD60: 0 | BE60: 0 | BF60: 0.0001556367401 | BG60: 0.002942367679 | BH60: 4.295139064e-05 | BI60: 0 | BJ60: 0 | BK60: 0 | BL60: 0.0003343653979 | BM60: 0.007026650045 | BN60: 6.098417001e-05 | BO60: 0 | BP60: 0 | BQ60: 0 | BR60: 0.0004440678968 | BS60: 0.007491986502 | BT60: 6.415509571e-06 | BU60: 0 | BV60: 0 | BW60: 0 | BX60: 0.0003266599596 | BY60: 0.008039209443 | BZ60: 3.115365538e-06
F61: 250 | Q61: 25 | R61: 250 | S61: 0 | T61: 0 | U61: 0 | V61: 0 | W61: 0 | X61: 0 | Y61: 0 | Z61: 0 | AA61: 0 | AB61: 0.0004942041664 | AC61: 6.797695418e-08 | AD61: 0 | AE61: 0 | AF61: 0 | AG61: 0 | AH61: 0.001099308992 | AI61: 0.0002961738316 | AJ61: 3.424631997e-06 | AK61: 0 | AL61: 0 | AM61: 0 | AN61: 0 | AO61: 0 | AP61: 0 | AQ61: 0 | AR61: 0 | AS61: 0 | AT61: 2.592029794e-05 | AU61: 1.683121423e-07 | AV61: 0 | AW61: 0 | AX61: 0 | AY61: 0 | AZ61: 0.0002006080945 | BA61: 7.49761905e-05 | BB61: 2.220966184e-06 | BC61: 0 | BD61: 0 | BE61: 0 | BF61: 0.0001037876251 | BG61: 0.001578952233 | BH61: 3.615075379e-05 | BI61: 0 | BJ61: 0 | BK61: 0 | BL61: 0.0002100092923 | BM61: 0.003433148988 | BN61: 5.581517761e-05 | BO61: 0 | BP61: 0 | BQ61: 0 | BR61: 0.0002568408816 | BS61: 0.004250810543 | BT61: 5.072728498e-06 | BU61: 0 | BV61: 0 | BW61: 0 | BX61: 0.0001827432104 | BY61: 0.004748253526 | BZ61: 2.076910359e-06
F62: 260 | Q62: 26 | R62: 260 | S62: 0 | T62: 0 | U62: 0 | V62: 0 | W62: 0 | X62: 0 | Y62: 0 | Z62: 0 | AA62: 0 | AB62: 0.0004019572539 | AC62: 2.719078167e-07 | AD62: 0 | AE62: 0 | AF62: 0 | AG62: 0 | AH62: 0.0007282638746 | AI62: 0.0002254287766 | AJ62: 5.022793596e-06 | AK62: 0 | AL62: 0 | AM62: 0 | AN62: 0 | AO62: 0 | AP62: 0 | AQ62: 0 | AR62: 0 | AS62: 0 | AT62: 1.582148056e-05 | AU62: 1.683121423e-07 | AV62: 1.683121423e-07 | AW62: 0 | AX62: 0 | AY62: 0 | AZ62: 0.0001145960747 | BA62: 5.054720642e-05 | BB62: 1.567740836e-06 | BC62: 0 | BD62: 0 | BE62: 0 | BF62: 6.713566444e-05 | BG62: 0.0008968690413 | BH62: 2.786471468e-05 | BI62: 0 | BJ62: 0 | BK62: 0 | BL62: 0.0001341933046 | BM62: 0.001877448235 | BN62: 4.57754039e-05 | BO62: 0 | BP62: 0 | BQ62: 0 | BR62: 0.0001514511525 | BS62: 0.002551887561 | BT62: 4.028343219e-06 | BU62: 0 | BV62: 0 | BW62: 0 | BX62: 0.0001216562449 | BY62: 0.002626759528 | BZ62: 4.673048307e-06
F63: 270 | Q63: 27 | R63: 270 | S63: 0 | T63: 0 | U63: 0 | V63: 0 | W63: 0 | X63: 0 | Y63: 0 | Z63: 0 | AA63: 0 | AB63: 0.0002356816843 | AC63: 0 | AD63: 0 | AE63: 0 | AF63: 0 | AG63: 0 | AH63: 0.0004381369653 | AI63: 0.0001403527297 | AJ63: 5.707719995e-06 | AK63: 0 | AL63: 0 | AM63: 0 | AN63: 0 | AO63: 0 | AP63: 0 | AQ63: 0 | AR63: 0 | AS63: 0 | AT63: 1.24552081e-05 | AU63: 0 | AV63: 1.683121423e-07 | AW63: 0 | AX63: 0 | AY63: 0 | AZ63: 6.15856456e-05 | BA63: 3.196558555e-05 | BB63: 1.306450697e-06 | BC63: 0 | BD63: 0 | BE63: 0 | BF63: 4.553782619e-05 | BG63: 0.0004880017466 | BH63: 2.002608589e-05 | BI63: 0 | BJ63: 0 | BK63: 0 | BL63: 7.852370155e-05 | BM63: 0.001083637177 | BN63: 3.573563019e-05 | BO63: 0 | BP63: 0 | BQ63: 0 | BR63: 9.018498743e-05 | BS63: 0.001635718337 | BT63: 5.221926395e-06 | BU63: 0 | BV63: 0 | BW63: 0 | BX63: 6.367539624e-05 | BY63: 0.001486288255 | BZ63: 2.076910359e-06
F64: 280 | Q64: 28 | R64: 280 | S64: 0 | T64: 0 | U64: 0 | V64: 0 | W64: 0 | X64: 0 | Y64: 0 | Z64: 0 | AA64: 0 | AB64: 0.0001286154447 | AC64: 6.797695418e-08 | AD64: 0 | AE64: 0 | AF64: 0 | AG64: 0 | AH64: 0.0002493278126 | AI64: 9.826965843e-05 | AJ64: 1.118713119e-05 | AK64: 0 | AL64: 0 | AM64: 0 | AN64: 0 | AO64: 0 | AP64: 0 | AQ64: 0 | AR64: 0 | AS64: 0 | AT64: 5.04940869e-06 | AU64: 0 | AV64: 0 | AW64: 0 | AX64: 0 | AY64: 0 | AZ64: 3.598992369e-05 | BA64: 2.78074606e-05 | BB64: 1.437095766e-06 | BC64: 0 | BD64: 0 | BE64: 0 | BF64: 2.619274258e-05 | BG64: 0.0002903444113 | BH64: 1.403078761e-05 | BI64: 0 | BJ64: 0 | BK64: 0 | BL64: 4.468969917e-05 | BM64: 0.000680707577 | BN64: 2.554675093e-05 | BO64: 0 | BP64: 0 | BQ64: 0 | BR64: 5.127873666e-05 | BS64: 0.001064640514 | BT64: 5.669520086e-06 | BU64: 0 | BV64: 0 | BW64: 0 | BX64: 3.727340268e-05 | BY64: 0.0008805908469 | BZ64: 1.038455179e-06
F65: 290 | Q65: 29 | R65: 290 | S65: 0 | T65: 0 | U65: 0 | V65: 0 | W65: 0 | X65: 0 | Y65: 0 | Z65: 0 | AA65: 0 | AB65: 5.927730855e-05 | AC65: 1.359539084e-07 | AD65: 0 | AE65: 0 | AF65: 0 | AG65: 0 | AH65: 0.0001205839967 | AI65: 5.163706589e-05 | AJ65: 1.461176319e-05 | AK65: 0 | AL65: 0 | AM65: 0 | AN65: 0 | AO65: 0 | AP65: 0 | AQ65: 0 | AR65: 0 | AS65: 0 | AT65: 3.534586083e-06 | AU65: 0 | AV65: 0 | AW65: 0 | AX65: 0 | AY65: 0 | AZ65: 2.286724394e-05 | BA65: 1.962115211e-05 | BB65: 1.306450697e-06 | BC65: 0 | BD65: 0 | BE65: 0 | BF65: 1.728899801e-05 | BG65: 0.0001762735114 | BH65: 9.932509085e-06 | BI65: 0 | BJ65: 0 | BK65: 0 | BL65: 2.593443354e-05 | BM65: 0.0004374593253 | BN65: 1.779326232e-05 | BO65: 0 | BP65: 0 | BQ65: 0 | BR65: 2.891882242e-05 | BS65: 0.0006898846681 | BT65: 4.326739013e-06 | BU65: 0 | BV65: 0 | BW65: 0 | BX65: 2.691967971e-05 | BY65: 0.0005270085139 | BZ65: 4.673048307e-06
F66: 300 | Q66: 30 | R66: 300 | S66: 0 | T66: 0 | U66: 0 | V66: 0 | W66: 0 | X66: 0 | Y66: 0 | Z66: 0 | AA66: 0 | AB66: 2.318069061e-05 | AC66: 6.797695418e-08 | AD66: 0 | AE66: 0 | AF66: 0 | AG66: 0 | AH66: 5.757205856e-05 | AI66: 3.639616979e-05 | AJ66: 1.187205759e-05 | AK66: 0 | AL66: 0 | AM66: 0 | AN66: 0 | AO66: 0 | AP66: 0 | AQ66: 0 | AR66: 0 | AS66: 0 | AT66: 2.188077099e-06 | AU66: 1.683121423e-07 | AV66: 0 | AW66: 0 | AX66: 0 | AY66: 0 | AZ66: 1.130369445e-05 | BA66: 1.507320294e-05 | BB66: 1.437095766e-06 | BC66: 0 | BD66: 0 | BE66: 0 | BF66: 1.088831415e-05 | BG66: 0.000112211437 | BH66: 6.997497392e-06 | BI66: 0 | BJ66: 0 | BK66: 0 | BL66: 1.326531371e-05 | BM66: 0.0002820755615 | BN66: 1.205269864e-05 | BO66: 0 | BP66: 0 | BQ66: 0 | BR66: 1.088182493e-05 | BS66: 0.0004367679511 | BT66: 3.133155837e-06 | BU66: 0 | BV66: 0 | BW66: 0 | BX66: 1.3977526e-05 | BY66: 0.0003012956337 | BZ66: 3.634593128e-06
F67: 310 | Q67: 31 | R67: 310 | S67: =IF(OR($K$24="Presumptive CTLD",$C$31="Presumptive"),INDIRECT(ADDRESS(($Q67+6),S$87,1,1,"Presumptive CTLD"),TRUE),INDIRECT(ADDRESS(($Q67+6),S$87,1,1,$K$24),TRUE)) -> 0 | T67: 0 | U67: 0 | V67: 0 | W67: 0 | X67: 0 | Y67: =IF(OR($K$24="Presumptive CTLD",$D$31="Presumptive"),INDIRECT(ADDRESS(($Q67+6),Y$87,1,1,"Presumptive CTLD"),TRUE),INDIRECT(ADDRESS(($Q67+6),Y$87,1,1,$K$24),TRUE)) -> 0 | Z67: 0 | AA67: 0 | AB67: 1.162433459e-05 | AC67: 6.797695418e-08 | AD67: 0 | AE67: =IF(OR($K$24="Presumptive CTLD",$E$31="Presumptive"),INDIRECT(ADDRESS(($Q67+6),AE$87,1,1,"Presumptive CTLD"),TRUE),INDIRECT(ADDRESS(($Q67+6),AE$87,1,1,$K$24),TRUE)) -> 0 | AF67: 0 | AG67: 0 | AH67: 3.2185954e-05 | AI67: 2.274760612e-05 | AJ67: 1.438345439e-05 | AK67: =IF(OR($K$24="Presumptive CTLD",$F$31="Presumptive"),INDIRECT(ADDRESS(($Q67+6),AK$87,1,1,"Presumptive CTLD"),TRUE),INDIRECT(ADDRESS(($Q67+6),AK$87,1,1,$K$24),TRUE)) -> 0 | AL67: 0 | AM67: 0 | AN67: 0 | AO67: 0 | AP67: 0 | AQ67: =IF(OR($K$24="Presumptive CTLD",$G$31="Presumptive"),INDIRECT(ADDRESS(($Q67+6),AQ$87,1,1,"Presumptive CTLD"),TRUE),INDIRECT(ADDRESS(($Q67+6),AQ$87,1,1,$K$24),TRUE)) -> 0 | AR67: 0 | AS67: 0 | AT67: 1.009881738e-06 | AU67: 0 | AV67: 0 | AW67: =IF(OR($K$24="Presumptive CTLD",$H$31="Presumptive"),INDIRECT(ADDRESS(($Q67+6),AW$87,1,1,"Presumptive CTLD"),TRUE),INDIRECT(ADDRESS(($Q67+6),AW$87,1,1,$K$24),TRUE)) -> 0 | AX67: 0 | AY67: 0 | AZ67: 1.117376692e-05 | BA67: 1.364384749e-05 | BB67: 4.180642229e-06 | BC67: =IF(OR($K$24="Presumptive CTLD",$I$31="Presumptive"),INDIRECT(ADDRESS(($Q67+6),BC$87,1,1,"Presumptive CTLD"),TRUE),INDIRECT(ADDRESS(($Q67+6),BC$87,1,1,$K$24),TRUE)) -> 0 | BD67: 0 | BE67: 0 | BF67: 7.437666154e-06 | BG67: 7.852655056e-05 | BH67: 4.993099162e-06 | BI67: =IF(OR($K$24="Presumptive CTLD",$J$31="Presumptive"),INDIRECT(ADDRESS(($Q67+6),BI$87,1,1,"Presumptive CTLD"),TRUE),INDIRECT(ADDRESS(($Q67+6),BI$87,1,1,$K$24),TRUE)) -> 0 | BJ67: 0 | BK67: 0 | BL67: 9.588784815e-06 | BM67: 0.0001949066364 | BN67: 7.952296008e-06 | BO67: =IF(OR($K$24="Presumptive CTLD",$K$31="Presumptive"),INDIRECT(ADDRESS(($Q67+6),BO$87,1,1,"Presumptive CTLD"),TRUE),INDIRECT(ADDRESS(($Q67+6),BO$87,1,1,$K$24),TRUE)) -> 0 | BP67: 0 | BQ67: 0 | BR67: 6.260775987e-06 | BS67: 0.0002699613513 | BT67: 4.028343219e-06 | BU67: =IF(OR($K$24="Presumptive CTLD",$L$31="Presumptive"),INDIRECT(ADDRESS(($Q67+6),BU$87,1,1,"Presumptive CTLD"),TRUE),INDIRECT(ADDRESS(($Q67+6),BU$87,1,1,$K$24),TRUE)) -> 0 | BV67: 0 | BW67: 0 | BX67: 1.087140911e-05 | BY67: 0.0002008637558 | BZ67: 1.557682769e-06
F68: 320 | Q68: 32 | R68: 320 | S68: 0 | T68: 0 | U68: 0 | V68: 0 | W68: 0 | X68: 0 | Y68: 0 | Z68: 0 | AA68: 0 | AB68: 7.613599263e-06 | AC68: 1.359539084e-07 | AD68: 0 | AE68: 0 | AF68: 0 | AG68: 0 | AH68: 2.379947302e-05 | AI68: 1.433099185e-05 | AJ68: 1.438345439e-05 | AK68: 0 | AL68: 0 | AM68: 0 | AN68: 0 | AO68: 0 | AP68: 0 | AQ68: 0 | AR68: 0 | AS68: 0 | AT68: 1.009881738e-06 | AU68: 0 | AV68: 3.366242845e-07 | AW68: 0 | AX68: 0 | AY68: 0 | AZ68: 6.106593551e-06 | BA68: 1.442349592e-05 | BB68: 3.65806195e-06 | BC68: 0 | BD68: 0 | BE68: 0 | BF68: 6.07886176e-06 | BG68: 5.272650219e-05 | BH68: 3.489800489e-06 | BI68: 0 | BJ68: 0 | BK68: 0 | BL68: 8.495762711e-06 | BM68: 0.0001232885083 | BN68: 5.417501656e-06 | BO68: 0 | BP68: 0 | BQ68: 0 | BR68: 5.515445513e-06 | BS68: 0.0001818624233 | BT68: 3.879145322e-06 | BU68: 0 | BV68: 0 | BW68: 0 | BX68: 4.659175335e-06 | BY68: 0.0001320109735 | BZ68: 1.557682769e-06
F69: 330 | G69: =(S69*$C$19*$C$28+Y69*$D$19*$D$28+AE69*$E$19*$E$28+AK69*$F$19*$F$28+AQ69*$G$19*$G$28+AW69*$H$19*$H$28+BC69*$I$19*$I$28+BI69*$J$19*$J$28+BO69*$K$19*$K$28+BU69*$L$19*$L$28)/SUMPRODUCT($C$19:$L$19,$C$28:$L$28) ->  | Q69: 33 | R69: =INDIRECT(ADDRESS($Q69+6,R$87,1,1,$K$24)) -> 330 | S69: 0 | T69: 0 | U69: 0 | V69: 0 | W69: 0 | X69: 0 | Y69: 0 | Z69: 0 | AA69: 0 | AB69: 5.642220882e-06 | AC69: 6.797695418e-08 | AD69: 6.797695418e-08 | AE69: 0 | AF69: 0 | AG69: 0 | AH69: 1.56396537e-05 | AI69: 1.160127912e-05 | AJ69: 1.461176319e-05 | AK69: 0 | AL69: 0 | AM69: 0 | AN69: 0 | AO69: 0 | AP69: 0 | AQ69: 0 | AR69: 0 | AS69: 0 | AT69: 0 | AU69: 0 | AV69: 1.683121423e-07 | AW69: 0 | AX69: 0 | AY69: 0 | AZ69: 4.677390805e-06 | BA69: 1.442349592e-05 | BB69: 4.572577438e-06 | BC69: 0 | BD69: 0 | BE69: 0 | BF69: 4.988242444e-06 | BG69: 3.656347812e-05 | BH69: 2.702358328e-06 | BI69: 0 | BJ69: 0 | BK69: 0 | BL69: 6.110987213e-06 | BM69: 8.249871773e-05 | BN69: 3.479129504e-06 | BO69: 0 | BP69: 0 | BQ69: 0 | BR69: 2.981321899e-06 | BS69: 0.0001065833055 | BT69: 3.729947425e-06 | BU69: 0 | BV69: 0 | BW69: 0 | BX69: 4.141489186e-06 | BY69: 8.593655531e-05 | BZ69: 3.115365538e-06
F70: 340 | Q70: 34 | R70: 340 | S70: 0 | T70: 0 | U70: 0 | V70: 0 | W70: 0 | X70: 0 | Y70: 0 | Z70: 0 | AA70: 0 | AB70: 0 | AC70: 6.797695418e-08 | AD70: 6.797695418e-08 | AE70: 0 | AF70: 0 | AG70: 0 | AH70: 0 | AI70: 7.051757896e-06 | AJ70: 1.141543999e-05 | AK70: 0 | AL70: 0 | AM70: 0 | AN70: 0 | AO70: 0 | AP70: 0 | AQ70: 0 | AR70: 0 | AS70: 0 | AT70: 0 | AU70: 0 | AV70: 0 | AW70: 0 | AX70: 0 | AY70: 0 | AZ70: 0 | BA70: 1.338396468e-05 | BB70: 6.532253483e-06 | BC70: 0 | BD70: 0 | BE70: 0 | BF70: 0 | BG70: 2.529942374e-05 | BH70: 1.986501817e-06 | BI70: 0 | BJ70: 0 | BK70: 0 | BL70: 0 | BM70: 5.167038027e-05 | BN70: 2.833005453e-06 | BO70: 0 | BP70: 0 | BQ70: 0 | BR70: 0 | BS70: 7.02108208e-05 | BT70: 1.641176867e-06 | BU70: 0 | BV70: 0 | BW70: 0 | BX70: 0 | BY70: 4.65921083e-05 | BZ70: 1.038455179e-06
F71: 350 | Q71: 35 | R71: 350 | S71: 0 | T71: 0 | U71: 0 | V71: 0 | W71: 0 | X71: 0 | Y71: 0 | Z71: 0 | AA71: 0 | AB71: 0 | AC71: 0 | AD71: 0 | AE71: 0 | AF71: 0 | AG71: 0 | AH71: 0 | AI71: 6.824281835e-06 | AJ71: 1.438345439e-05 | AK71: 0 | AL71: 0 | AM71: 0 | AN71: 0 | AO71: 0 | AP71: 0 | AQ71: 0 | AR71: 0 | AS71: 0 | AT71: 0 | AU71: 0 | AV71: 0 | AW71: 0 | AX71: 0 | AY71: 0 | AZ71: 0 | BA71: 8.965956922e-06 | BB71: 6.009673204e-06 | BC71: 0 | BD71: 0 | BE71: 0 | BF71: 0 | BG71: 1.72179117e-05 | BH71: 1.718055626e-06 | BI71: 0 | BJ71: 0 | BK71: 0 | BL71: 0 | BM71: 3.452972528e-05 | BN71: 2.112328627e-06 | BO71: 0 | BP71: 0 | BQ71: 0 | BR71: 0 | BS71: 4.21861195e-05 | BT71: 1.193583176e-06 | BU71: 0 | BV71: 0 | BW71: 0 | BX71: 0 | BY71: 3.572061637e-05 | BZ71: 5.192275897e-07
F72: 360 | Q72: 36 | R72: 360 | S72: 0 | T72: 0 | U72: 0 | V72: 0 | W72: 0 | X72: 0 | Y72: 0 | Z72: 0 | AA72: 0 | AB72: 0 | AC72: 0 | AD72: 0 | AE72: 0 | AF72: 0 | AG72: 0 | AH72: 0 | AI72: 5.004473346e-06 | AJ72: 2.260257118e-05 | AK72: 0 | AL72: 0 | AM72: 0 | AN72: 0 | AO72: 0 | AP72: 0 | AQ72: 0 | AR72: 0 | AS72: 0 | AT72: 0 | AU72: 0 | AV72: 0 | AW72: 0 | AX72: 0 | AY72: 0 | AZ72: 0 | BA72: 5.977304615e-06 | BB72: 1.332579711e-05 | BC72: 0 | BD72: 0 | BE72: 0 | BF72: 0 | BG72: 1.369565977e-05 | BH72: 1.610677149e-06 | BI72: 0 | BJ72: 0 | BK72: 0 | BL72: 0 | BM72: 2.404660005e-05 | BN72: 1.192844401e-06 | BO72: 0 | BP72: 0 | BQ72: 0 | BR72: 0 | BS72: 2.683216082e-05 | BT72: 2.387166352e-06 | BU72: 0 | BV72: 0 | BW72: 0 | BX72: 0 | BY72: 1.967222351e-05 | BZ72: 5.192275897e-07
F73: 370 | Q73: 37 | R73: 370 | S73: 0 | T73: 0 | U73: 0 | V73: 0 | W73: 0 | X73: 0 | Y73: 0 | Z73: 0 | AA73: 0 | AB73: 0 | AC73: 0 | AD73: 0 | AE73: 0 | AF73: 0 | AG73: 0 | AH73: 0 | AI73: 2.729712734e-06 | AJ73: 3.493124637e-05 | AK73: 0 | AL73: 0 | AM73: 0 | AN73: 0 | AO73: 0 | AP73: 0 | AQ73: 0 | AR73: 0 | AS73: 0 | AT73: 0 | AU73: 0 | AV73: 1.683121423e-07 | AW73: 0 | AX73: 0 | AY73: 0 | AZ73: 0 | BA73: 2.468886689e-06 | BB73: 1.384837738e-05 | BC73: 0 | BD73: 0 | BE73: 0 | BF73: 0 | BG73: 9.207917473e-06 | BH73: 1.378023783e-06 | BI73: 0 | BJ73: 0 | BK73: 0 | BL73: 0 | BM73: 1.485523433e-05 | BN73: 7.455277508e-07 | BO73: 0 | BP73: 0 | BQ73: 0 | BR73: 0 | BS73: 1.460862089e-05 | BT73: 7.459894851e-07 | BU73: 0 | BV73: 0 | BW73: 0 | BX73: 0 | BY73: 1.087149194e-05 | BZ73: 0
F74: 380 | Q74: 38 | R74: 380 | S74: 0 | T74: 0 | U74: 0 | V74: 0 | W74: 0 | X74: 0 | Y74: 0 | Z74: 0 | AA74: 0 | AB74: 0 | AC74: 0 | AD74: 0 | AE74: 0 | AF74: 0 | AG74: 0 | AH74: 0 | AI74: 5.231949407e-06 | AJ74: 4.086727517e-05 | AK74: 0 | AL74: 0 | AM74: 0 | AN74: 0 | AO74: 0 | AP74: 0 | AQ74: 0 | AR74: 0 | AS74: 0 | AT74: 0 | AU74: 0 | AV74: 0 | AW74: 0 | AX74: 0 | AY74: 0 | AZ74: 0 | BA74: 1.039531237e-06 | BB74: 1.672256892e-05 | BC74: 0 | BD74: 0 | BE74: 0 | BF74: 0 | BG74: 7.795440812e-06 | BH74: 1.002199115e-06 | BI74: 0 | BJ74: 0 | BK74: 0 | BL74: 0 | BM74: 9.71303783e-06 | BN74: 9.44335151e-07 | BO74: 0 | BP74: 0 | BQ74: 0 | BR74: 0 | BS74: 1.088193189e-05 | BT74: 1.641176867e-06 | BU74: 0 | BV74: 0 | BW74: 0 | BX74: 0 | BY74: 9.836111753e-06 | BZ74: 1.038455179e-06
F75: 390 | Q75: 39 | R75: 390 | S75: 0 | T75: 0 | U75: 0 | V75: 0 | W75: 0 | X75: 0 | Y75: 0 | Z75: 0 | AA75: 0 | AB75: 0 | AC75: 0 | AD75: 0 | AE75: 0 | AF75: 0 | AG75: 0 | AH75: 0 | AI75: 7.279233957e-06 | AJ75: 5.410918555e-05 | AK75: 0 | AL75: 0 | AM75: 0 | AN75: 0 | AO75: 0 | AP75: 0 | AQ75: 0 | AR75: 0 | AS75: 0 | AT75: 0 | AU75: 0 | AV75: 0 | AW75: 0 | AX75: 0 | AY75: 0 | AZ75: 0 | BA75: 6.497070234e-07 | BB75: 1.750643933e-05 | BC75: 0 | BD75: 0 | BE75: 0 | BF75: 0 | BG75: 5.453232678e-06 | BH75: 6.263744468e-07 | BI75: 0 | BJ75: 0 | BK75: 0 | BL75: 0 | BM75: 7.005311172e-06 | BN75: 5.964222006e-07 | BO75: 0 | BP75: 0 | BQ75: 0 | BR75: 0 | BS75: 5.217364603e-06 | BT75: 2.98395794e-07 | BU75: 0 | BV75: 0 | BW75: 0 | BX75: 0 | BY75: 7.765351384e-06 | BZ75: 0
F76: 400 | Q76: 40 | R76: 400 | S76: 0 | T76: 0 | U76: 0 | V76: 0 | W76: 0 | X76: 0 | Y76: 0 | Z76: 0 | AA76: 0 | AB76: 0 | AC76: 0 | AD76: 0 | AE76: 0 | AF76: 0 | AG76: 0 | AH76: 0 | AI76: 3.86709304e-06 | AJ76: 5.273933276e-05 | AK76: 0 | AL76: 0 | AM76: 0 | AN76: 0 | AO76: 0 | AP76: 0 | AQ76: 0 | AR76: 0 | AS76: 0 | AT76: 0 | AU76: 0 | AV76: 1.683121423e-07 | AW76: 0 | AX76: 0 | AY76: 0 | AZ76: 0 | BA76: 9.095898327e-07 | BB76: 1.672256892e-05 | BC76: 0 | BD76: 0 | BE76: 0 | BF76: 0 | BG76: 4.84533133e-06 | BH76: 7.695457489e-07 | BI76: 0 | BJ76: 0 | BK76: 0 | BL76: 0 | BM76: 4.545999803e-06 | BN76: 3.976148004e-07 | BO76: 0 | BP76: 0 | BQ76: 0 | BR76: 0 | BS76: 3.130418762e-06 | BT76: 4.47593691e-07 | BU76: 0 | BV76: 0 | BW76: 0 | BX76: 0 | BY76: 2.588450461e-06 | BZ76: 5.192275897e-07
F77: 410 | Q77: 41 | R77: 410 | S77: =IF(OR($K$24="Presumptive CTLD",$C$31="Presumptive"),INDIRECT(ADDRESS(($Q77+6),S$87,1,1,"Presumptive CTLD"),TRUE),INDIRECT(ADDRESS(($Q77+6),S$87,1,1,$K$24),TRUE)) -> 0 | T77: 0 | U77: 0 | V77: 0 | W77: 0 | X77: 0 | Y77: =IF(OR($K$24="Presumptive CTLD",$D$31="Presumptive"),INDIRECT(ADDRESS(($Q77+6),Y$87,1,1,"Presumptive CTLD"),TRUE),INDIRECT(ADDRESS(($Q77+6),Y$87,1,1,$K$24),TRUE)) -> 0 | Z77: 0 | AA77: 0 | AB77: 0 | AC77: 0 | AD77: 0 | AE77: =IF(OR($K$24="Presumptive CTLD",$E$31="Presumptive"),INDIRECT(ADDRESS(($Q77+6),AE$87,1,1,"Presumptive CTLD"),TRUE),INDIRECT(ADDRESS(($Q77+6),AE$87,1,1,$K$24),TRUE)) -> 0 | AF77: 0 | AG77: 0 | AH77: 0 | AI77: 0 | AJ77: 4.817315676e-05 | AK77: =IF(OR($K$24="Presumptive CTLD",$F$31="Presumptive"),INDIRECT(ADDRESS(($Q77+6),AK$87,1,1,"Presumptive CTLD"),TRUE),INDIRECT(ADDRESS(($Q77+6),AK$87,1,1,$K$24),TRUE)) -> 0 | AL77: 0 | AM77: 0 | AN77: 0 | AO77: 0 | AP77: 0 | AQ77: =IF(OR($K$24="Presumptive CTLD",$G$31="Presumptive"),INDIRECT(ADDRESS(($Q77+6),AQ$87,1,1,"Presumptive CTLD"),TRUE),INDIRECT(ADDRESS(($Q77+6),AQ$87,1,1,$K$24),TRUE)) -> 0 | AR77: 0 | AS77: 0 | AT77: 0 | AU77: 0 | AV77: 0 | AW77: =IF(OR($K$24="Presumptive CTLD",$H$31="Presumptive"),INDIRECT(ADDRESS(($Q77+6),AW$87,1,1,"Presumptive CTLD"),TRUE),INDIRECT(ADDRESS(($Q77+6),AW$87,1,1,$K$24),TRUE)) -> 0 | AX77: 0 | AY77: 0 | AZ77: 0 | BA77: 0 | BB77: 1.424031259e-05 | BC77: =IF(OR($K$24="Presumptive CTLD",$I$31="Presumptive"),INDIRECT(ADDRESS(($Q77+6),BC$87,1,1,"Presumptive CTLD"),TRUE),INDIRECT(ADDRESS(($Q77+6),BC$87,1,1,$K$24),TRUE)) -> 0 | BD77: 0 | BE77: 0 | BF77: 0 | BG77: 0 | BH77: 5.905816213e-07 | BI77: =IF(OR($K$24="Presumptive CTLD",$J$31="Presumptive"),INDIRECT(ADDRESS(($Q77+6),BI$87,1,1,"Presumptive CTLD"),TRUE),INDIRECT(ADDRESS(($Q77+6),BI$87,1,1,$K$24),TRUE)) -> 0 | BJ77: 0 | BK77: 0 | BL77: 0 | BM77: 0 | BN77: 4.224657254e-07 | BO77: =IF(OR($K$24="Presumptive CTLD",$K$31="Presumptive"),INDIRECT(ADDRESS(($Q77+6),BO$87,1,1,"Presumptive CTLD"),TRUE),INDIRECT(ADDRESS(($Q77+6),BO$87,1,1,$K$24),TRUE)) -> 0 | BP77: 0 | BQ77: 0 | BR77: 0 | BS77: 0 | BT77: 1.49197897e-07 | BU77: =IF(OR($K$24="Presumptive CTLD",$L$31="Presumptive"),INDIRECT(ADDRESS(($Q77+6),BU$87,1,1,"Presumptive CTLD"),TRUE),INDIRECT(ADDRESS(($Q77+6),BU$87,1,1,$K$24),TRUE)) -> 0 | BV77: 0 | BW77: 0 | BX77: 0 | BY77: 0 | BZ77: 0
F78: 420 | Q78: 42 | R78: 420 | S78: 0 | T78: 0 | U78: 0 | V78: 0 | W78: 0 | X78: 0 | Y78: 0 | Z78: 0 | AA78: 0 | AB78: 0 | AC78: 0 | AD78: 0 | AE78: 0 | AF78: 0 | AG78: 0 | AH78: 0 | AI78: 0 | AJ78: 2.808198238e-05 | AK78: 0 | AL78: 0 | AM78: 0 | AN78: 0 | AO78: 0 | AP78: 0 | AQ78: 0 | AR78: 0 | AS78: 0 | AT78: 0 | AU78: 0 | AV78: 0 | AW78: 0 | AX78: 0 | AY78: 0 | AZ78: 0 | BA78: 0 | BB78: 1.005967036e-05 | BC78: 0 | BD78: 0 | BE78: 0 | BF78: 0 | BG78: 0 | BH78: 2.863426043e-07 | BI78: 0 | BJ78: 0 | BK78: 0 | BL78: 0 | BM78: 0 | BN78: 2.733601753e-07 | BO78: 0 | BP78: 0 | BQ78: 0 | BR78: 0 | BS78: 0 | BT78: 0 | BU78: 0 | BV78: 0 | BW78: 0 | BX78: 0 | BY78: 0 | BZ78: 5.192275897e-07
F79: 430 | Q79: 43 | R79: 430 | S79: 0 | T79: 0 | U79: 0 | V79: 0 | W79: 0 | X79: 0 | Y79: 0 | Z79: 0 | AA79: 0 | AB79: 0 | AC79: 0 | AD79: 0 | AE79: 0 | AF79: 0 | AG79: 0 | AH79: 0 | AI79: 0 | AJ79: 2.283087998e-05 | AK79: 0 | AL79: 0 | AM79: 0 | AN79: 0 | AO79: 0 | AP79: 0 | AQ79: 0 | AR79: 0 | AS79: 0 | AT79: 0 | AU79: 0 | AV79: 0 | AW79: 0 | AX79: 0 | AY79: 0 | AZ79: 0 | BA79: 0 | BB79: 6.532253483e-06 | BC79: 0 | BD79: 0 | BE79: 0 | BF79: 0 | BG79: 0 | BH79: 2.684461915e-07 | BI79: 0 | BJ79: 0 | BK79: 0 | BL79: 0 | BM79: 0 | BN79: 1.491055502e-07 | BO79: 0 | BP79: 0 | BQ79: 0 | BR79: 0 | BS79: 0 | BT79: 1.49197897e-07 | BU79: 0 | BV79: 0 | BW79: 0 | BX79: 0 | BY79: 0 | BZ79: 5.192275897e-07
F80: 440 | Q80: 44 | R80: 440 | S80: 0 | T80: 0 | U80: 0 | V80: 0 | W80: 0 | X80: 0 | Y80: 0 | Z80: 0 | AA80: 0 | AB80: 0 | AC80: 0 | AD80: 0 | AE80: 0 | AF80: 0 | AG80: 0 | AH80: 0 | AI80: 0 | AJ80: 1.095882239e-05 | AK80: 0 | AL80: 0 | AM80: 0 | AN80: 0 | AO80: 0 | AP80: 0 | AQ80: 0 | AR80: 0 | AS80: 0 | AT80: 0 | AU80: 0 | AV80: 0 | AW80: 0 | AX80: 0 | AY80: 0 | AZ80: 0 | BA80: 0 | BB80: 2.351611254e-06 | BC80: 0 | BD80: 0 | BE80: 0 | BF80: 0 | BG80: 0 | BH80: 2.505497787e-07 | BI80: 0 | BJ80: 0 | BK80: 0 | BL80: 0 | BM80: 0 | BN80: 2.236583252e-07 | BO80: 0 | BP80: 0 | BQ80: 0 | BR80: 0 | BS80: 0 | BT80: 0 | BU80: 0 | BV80: 0 | BW80: 0 | BX80: 0 | BY80: 0 | BZ80: 0
F81: 450 | Q81: 45 | R81: 450 | S81: 0 | T81: 0 | U81: 0 | V81: 0 | W81: 0 | X81: 0 | Y81: 0 | Z81: 0 | AA81: 0 | AB81: 0 | AC81: 0 | AD81: 6.797695418e-08 | AE81: 0 | AF81: 0 | AG81: 0 | AH81: 0 | AI81: 0 | AJ81: 8.219116793e-06 | AK81: 0 | AL81: 0 | AM81: 0 | AN81: 0 | AO81: 0 | AP81: 0 | AQ81: 0 | AR81: 0 | AS81: 0 | AT81: 0 | AU81: 0 | AV81: 0 | AW81: 0 | AX81: 0 | AY81: 0 | AZ81: 0 | BA81: 0 | BB81: 2.874191533e-06 | BC81: 0 | BD81: 0 | BE81: 0 | BF81: 0 | BG81: 0 | BH81: 1.968605404e-07 | BI81: 0 | BJ81: 0 | BK81: 0 | BL81: 0 | BM81: 0 | BN81: 1.242546251e-07 | BO81: 0 | BP81: 0 | BQ81: 0 | BR81: 0 | BS81: 0 | BT81: 1.49197897e-07 | BU81: 0 | BV81: 0 | BW81: 0 | BX81: 0 | BY81: 0 | BZ81: 0
F82: 460 | Q82: 46 | R82: 460 | S82: 0 | T82: 0 | U82: 0 | V82: 0 | W82: 0 | X82: 0 | Y82: 0 | Z82: 0 | AA82: 0 | AB82: 0 | AC82: 0 | AD82: 0 | AE82: 0 | AF82: 0 | AG82: 0 | AH82: 0 | AI82: 0 | AJ82: 5.251102396e-06 | AK82: 0 | AL82: 0 | AM82: 0 | AN82: 0 | AO82: 0 | AP82: 0 | AQ82: 0 | AR82: 0 | AS82: 0 | AT82: 0 | AU82: 0 | AV82: 0 | AW82: 0 | AX82: 0 | AY82: 0 | AZ82: 0 | BA82: 0 | BB82: 1.175805627e-06 | BC82: 0 | BD82: 0 | BE82: 0 | BF82: 0 | BG82: 0 | BH82: 1.431713021e-07 | BI82: 0 | BJ82: 0 | BK82: 0 | BL82: 0 | BM82: 0 | BN82: 1.739564752e-07 | BO82: 0 | BP82: 0 | BQ82: 0 | BR82: 0 | BS82: 0 | BT82: 1.49197897e-07 | BU82: 0 | BV82: 0 | BW82: 0 | BX82: 0 | BY82: 0 | BZ82: 0
F83: 470 | Q83: 47 | R83: 470 | S83: 0 | T83: 0 | U83: 0 | V83: 0 | W83: 0 | X83: 0 | Y83: 0 | Z83: 0 | AA83: 0 | AB83: 0 | AC83: 0 | AD83: 0 | AE83: 0 | AF83: 0 | AG83: 0 | AH83: 0 | AI83: 0 | AJ83: 4.566175996e-06 | AK83: 0 | AL83: 0 | AM83: 0 | AN83: 0 | AO83: 0 | AP83: 0 | AQ83: 0 | AR83: 0 | AS83: 0 | AT83: 0 | AU83: 0 | AV83: 0 | AW83: 0 | AX83: 0 | AY83: 0 | AZ83: 0 | BA83: 0 | BB83: 1.437095766e-06 | BC83: 0 | BD83: 0 | BE83: 0 | BF83: 0 | BG83: 0 | BH83: 1.252748894e-07 | BI83: 0 | BJ83: 0 | BK83: 0 | BL83: 0 | BM83: 0 | BN83: 1.242546251e-07 | BO83: 0 | BP83: 0 | BQ83: 0 | BR83: 0 | BS83: 0 | BT83: 0 | BU83: 0 | BV83: 0 | BW83: 0 | BX83: 0 | BY83: 0 | BZ83: 0
F84: 480 | Q84: 48 | R84: 480 | S84: 0 | T84: 0 | U84: 0 | V84: 0 | W84: 0 | X84: 0 | Y84: 0 | Z84: 0 | AA84: 0 | AB84: 0 | AC84: 0 | AD84: 0 | AE84: 0 | AF84: 0 | AG84: 0 | AH84: 0 | AI84: 0 | AJ84: 4.337867196e-06 | AK84: 0 | AL84: 0 | AM84: 0 | AN84: 0 | AO84: 0 | AP84: 0 | AQ84: 0 | AR84: 0 | AS84: 0 | AT84: 0 | AU84: 0 | AV84: 0 | AW84: 0 | AX84: 0 | AY84: 0 | AZ84: 0 | BA84: 0 | BB84: 1.175805627e-06 | BC84: 0 | BD84: 0 | BE84: 0 | BF84: 0 | BG84: 0 | BH84: 1.789641277e-08 | BI84: 0 | BJ84: 0 | BK84: 0 | BL84: 0 | BM84: 0 | BN84: 2.485092503e-08 | BO84: 0 | BP84: 0 | BQ84: 0 | BR84: 0 | BS84: 0 | BT84: 2.98395794e-07 | BU84: 0 | BV84: 0 | BW84: 0 | BX84: 0 | BY84: 0 | BZ84: 0
F85: 490 | Q85: 49 | R85: 490 | S85: 0 | T85: 0 | U85: 0 | V85: 0 | W85: 0 | X85: 0 | Y85: 0 | Z85: 0 | AA85: 0 | AB85: 0 | AC85: 0 | AD85: 0 | AE85: 0 | AF85: 0 | AG85: 0 | AH85: 0 | AI85: 0 | AJ85: 0 | AK85: 0 | AL85: 0 | AM85: 0 | AN85: 0 | AO85: 0 | AP85: 0 | AQ85: 0 | AR85: 0 | AS85: 0 | AT85: 0 | AU85: 0 | AV85: 0 | AW85: 0 | AX85: 0 | AY85: 0 | AZ85: 0 | BA85: 0 | BB85: 0 | BC85: 0 | BD85: 0 | BE85: 0 | BF85: 0 | BG85: 0 | BH85: 0 | BI85: 0 | BJ85: 0 | BK85: 0 | BL85: 0 | BM85: 0 | BN85: 0 | BO85: 0 | BP85: 0 | BQ85: 0 | BR85: 0 | BS85: 0 | BT85: 0 | BU85: 0 | BV85: 0 | BW85: 0 | BX85: 0 | BY85: 0 | BZ85: 0
F86: 500 | Q86: 50 | R86: 500 | S86: 0 | T86: 0 | U86: 0 | V86: 0 | W86: 0 | X86: 0 | Y86: 0 | Z86: 0 | AA86: 0 | AB86: 0 | AC86: 0 | AD86: 0 | AE86: 0 | AF86: 0 | AG86: 0 | AH86: 0 | AI86: 0 | AJ86: 0 | AK86: 0 | AL86: 0 | AM86: 0 | AN86: 0 | AO86: 0 | AP86: 0 | AQ86: 0 | AR86: 0 | AS86: 0 | AT86: 0 | AU86: 0 | AV86: 0 | AW86: 0 | AX86: 0 | AY86: 0 | AZ86: 0 | BA86: 0 | BB86: 0 | BC86: 0 | BD86: 0 | BE86: 0 | BF86: 0 | BG86: 0 | BH86: 0 | BI86: 0 | BJ86: 0 | BK86: 0 | BL86: 0 | BM86: 0 | BN86: 0 | BO86: 0 | BP86: 0 | BQ86: 0 | BR86: 0 | BS86: 0 | BT86: 0 | BU86: 0 | BV86: 0 | BW86: 0 | BX86: 0 | BY86: 0 | BZ86: 0
Q87: Column | R87: 1 | S87: 2 | T87: 3 | U87: 4 | V87: 5 | W87: 6 | X87: 7 | Y87: 8 | Z87: 9 | AA87: 10 | AB87: 11 | AC87: 12 | AD87: 13 | AE87: 14 | AF87: 15 | AG87: 16 | AH87: 17 | AI87: 18 | AJ87: 19 | AK87: 20 | AL87: 21 | AM87: 22 | AN87: 23 | AO87: 24 | AP87: 25 | AQ87: 26 | AR87: 27 | AS87: 28 | AT87: 29 | AU87: 30 | AV87: 31 | AW87: 32 | AX87: 33 | AY87: 34 | AZ87: 35 | BA87: 36 | BB87: 37 | BC87: 38 | BD87: 39 | BE87: 40 | BF87: 41 | BG87: 42 | BH87: 43 | BI87: 44 | BJ87: 45 | BK87: 46 | BL87: 47 | BM87: 48 | BN87: 49 | BO87: 50 | BP87: 51 | BQ87: 52 | BR87: 53 | BS87: 54 | BT87: 55 | BU87: 56 | BV87: 57 | BW87: 58 | BX87: 59 | BY87: 60 | BZ87: 61
G89: Recombined - Traffic Load Distribution - AGPT02 format
F90: Load (kN) | G90: SAST | H90: SADT | I90: TAST | J90: TADT | K90: TRDT | L90: QADT
F91: HVAG % | G91: =SUM(G37:G86)*100 ->  | H91: =SUM(H37:H86)*100 -> 
F92: =R37 -> 10 | G92: =IF(G$91=0,0,G37/G$91*10000) ->  | H92: =IF(H$91=0,0,H37/H$91*10000) -> 
F93: =R38 -> 20 | G93: =IF(G$91=0,0,G38/G$91*10000) -> 
F94: 30 | G94: =IF(G$91=0,0,G39/G$91*10000) -> 
F95: 40 | G95: =IF(G$91=0,0,G40/G$91*10000) -> 
F96: 50 | G96: =IF(G$91=0,0,G41/G$91*10000) -> 
F97: 60 | G97: =IF(G$91=0,0,G42/G$91*10000) -> 
F98: 70 | G98: =IF(G$91=0,0,G43/G$91*10000) -> 
F99: 80 | G99: =IF(G$91=0,0,G44/G$91*10000) -> 
F100: 90 | G100: =IF(G$91=0,0,G45/G$91*10000) -> 
F101: 100 | G101: =IF(G$91=0,0,G46/G$91*10000) -> 
F102: 110 | G102: =IF(G$91=0,0,G47/G$91*10000) -> 
F103: 120 | G103: =IF(G$91=0,0,G48/G$91*10000) -> 
F104: 130 | G104: =IF(G$91=0,0,G49/G$91*10000) -> 
F105: 140 | G105: =IF(G$91=0,0,G50/G$91*10000) -> 
F106: 150 | G106: =IF(G$91=0,0,G51/G$91*10000) -> 
F107: 160 | G107: =IF(G$91=0,0,G52/G$91*10000) -> 
F108: 170 | G108: =IF(G$91=0,0,G53/G$91*10000) -> 
F109: 180 | G109: =IF(G$91=0,0,G54/G$91*10000) -> 
F110: 190 | G110: =IF(G$91=0,0,G55/G$91*10000) -> 
F111: 200 | G111: =IF(G$91=0,0,G56/G$91*10000) -> 
F112: 210 | G112: =IF(G$91=0,0,G57/G$91*10000) -> 
F113: 220 | G113: =IF(G$91=0,0,G58/G$91*10000) -> 
F114: 230 | G114: =IF(G$91=0,0,G59/G$91*10000) -> 
F115: 240 | G115: =IF(G$91=0,0,G60/G$91*10000) -> 
F116: 250 | G116: =IF(G$91=0,0,G61/G$91*10000) -> 
F117: 260 | G117: =IF(G$91=0,0,G62/G$91*10000) -> 
F118: 270 | G118: =IF(G$91=0,0,G63/G$91*10000) -> 
F119: 280 | G119: =IF(G$91=0,0,G64/G$91*10000) -> 
F120: 290 | G120: =IF(G$91=0,0,G65/G$91*10000) -> 
F121: 300 | G121: =IF(G$91=0,0,G66/G$91*10000) -> 
F122: 310 | G122: =IF(G$91=0,0,G67/G$91*10000) -> 
F123: 320 | G123: =IF(G$91=0,0,G68/G$91*10000) -> 
F124: 330 | G124: =IF(G$91=0,0,G69/G$91*10000) -> 
F125: 340 | G125: =IF(G$91=0,0,G70/G$91*10000) -> 
F126: 350 | G126: =IF(G$91=0,0,G71/G$91*10000) -> 
F127: 360 | G127: =IF(G$91=0,0,G72/G$91*10000) -> 
F128: 370 | G128: =IF(G$91=0,0,G73/G$91*10000) -> 
F129: 380 | G129: =IF(G$91=0,0,G74/G$91*10000) -> 
F130: 390 | G130: =IF(G$91=0,0,G75/G$91*10000) -> 
F131: 400 | G131: =IF(G$91=0,0,G76/G$91*10000) -> 
F132: 410 | G132: =IF(G$91=0,0,G77/G$91*10000) -> 
F133: 420 | G133: =IF(G$91=0,0,G78/G$91*10000) -> 
F134: 430 | G134: =IF(G$91=0,0,G79/G$91*10000) -> 
F135: 440 | G135: =IF(G$91=0,0,G80/G$91*10000) -> 
F136: 450 | G136: =IF(G$91=0,0,G81/G$91*10000) -> 
F137: 460 | G137: =IF(G$91=0,0,G82/G$91*10000) -> 
F138: 470 | G138: =IF(G$91=0,0,G83/G$91*10000) -> 
F139: 480 | G139: =IF(G$91=0,0,G84/G$91*10000) -> 
F140: 490 | G140: =IF(G$91=0,0,G85/G$91*10000) -> 
F141: 500 | G141: =IF(G$91=0,0,G86/G$91*10000) -> 
F143: Austroads 2017 - Heavy Vehicle Axle Group loads which cause same damage as a Standard Axle
F144: HVAG | G144: SAST | H144: SADT | I144: TAST | J144: TADT | K144: TRDT | L144: QADT
F145: Load (kN) | G145: 53 | H145: 80 | I145: 89 | J145: 135 | K145: 182 | L145: 226
R147: Calculation of ESA/HVAG for each vehicle class
F148: Calculation of ESA/HVAG for the recombined traffic load distribution | S148: Class 3 | Y148: Class 4 | AE148: Class 5 | AK148: Class 6 | AQ148: Class 7 | AW148: Class 8 | BC148: Class 9 | BI148: Class 10 | BO148: Class 11 | BU148: Class 12
A149: STEP 2 drop down list selection options | F149: Load (kN) | G149: SAST | H149: SADT | I149: TAST | J149: TADT | K149: TRDT | L149: QADT | R149: Load (kN) | S149: SAST | T149: SADT | U149: TAST | V149: TADT | W149: TRDT | X149: QADT | Y149: SAST | Z149: SADT | AA149: TAST | AB149: TADT | AC149: TRDT | AD149: QADT | AE149: SAST | AF149: SADT | AG149: TAST | AH149: TADT | AI149: TRDT | AJ149: QADT | AK149: SAST | AL149: SADT | AM149: TAST | AN149: TADT | AO149: TRDT | AP149: QADT | AQ149: SAST | AR149: SADT | AS149: TAST | AT149: TADT | AU149: TRDT | AV149: QADT | AW149: SAST | AX149: SADT | AY149: TAST | AZ149: TADT | BA149: TRDT | BB149: QADT | BC149: SAST | BD149: SADT | BE149: TAST | BF149: TADT | BG149: TRDT | BH149: QADT | BI149: SAST | BJ149: SADT | BK149: TAST | BL149: TADT | BM149: TRDT | BN149: QADT | BO149: SAST | BP149: SADT | BQ149: TAST | BR149: TADT | BS149: TRDT | BT149: QADT | BU149: SAST | BV149: SADT | BW149: TAST | BX149: TADT | BY149: TRDT | BZ149: QADT
A150: 12 bin | F150: =R37 -> 10 | G150: =IFERROR(G37*(F150/G145)^4,0) -> 0 | H150: =IFERROR(H37*(F150/H145)^4,0) -> 0 | I150: =IFERROR(I37*(F150/I145)^4,0) -> 0 | J150: =IFERROR(J37*(F150/J145)^4,0) -> 0 | K150: =IFERROR(K37*(F150/K145)^4,0) -> 0 | L150: =IFERROR(L37*(F150/L145)^4,0) -> 0 | R150: =R37 -> 10 | S150: =IFERROR(S37*(F150/G145)^4,0) -> 1.95687225e-07 | T150: =IFERROR(T37*(F150/H145)^4,0) -> 1.024511448e-07 | U150: =IFERROR(U37*(F150/I145)^4,0) -> 0 | V150: =IFERROR(V37*(F150/J145)^4,0) -> 0 | W150: =IFERROR(W37*(F150/K145)^4,0) -> 0 | X150: =IFERROR(X37*(F150/L145)^4,0) -> 0 | Y150: =IFERROR(Y37*(F150/G145)^4,0) -> 1.796498423e-07 | Z150: =IFERROR(Z37*(F150/H145)^4,0) -> 5.814063534e-09 | AA150: =IFERROR(AA37*(F150/I145)^4,0) -> 9.22412725e-10 | AB150: =IFERROR(AB37*(F150/J145)^4,0) -> 1.743719051e-09 | AC150: =IFERROR(AC37*(F150/K145)^4,0) -> 0 | AD150: =IFERROR(AD37*(F150/L145)^4,0) -> 0 | AE150: =IFERROR(AE37*(F150/G145)^4,0) -> 1.450928682e-08 | AF150: =IFERROR(AF37*(F150/H145)^4,0) -> 1.106679953e-10 | AG150: =IFERROR(AG37*(F150/I145)^4,0) -> 6.931251896e-09 | AH150: =IFERROR(AH37*(F150/J145)^4,0) -> 2.954818872e-09 | AI150: =IFERROR(AI37*(F150/K145)^4,0) -> 1.30614291e-10 | AJ150: =IFERROR(AJ37*(F150/L145)^4,0) -> 1.575293204e-11 | AK150: =IFERROR(AK37*(F150/G145)^4,0) -> 8.61544666e-07 | AL150: =IFERROR(AL37*(F150/H145)^4,0) -> 1.528945164e-05 | AM150: =IFERROR(AM37*(F150/I145)^4,0) -> 0 | AN150: =IFERROR(AN37*(F150/J145)^4,0) -> 0 | AO150: =IFERROR(AO37*(F150/K145)^4,0) -> 0 | AP150: =IFERROR(AP37*(F150/L145)^4,0) -> 0 | AQ150: =IFERROR(AQ37*(F150/G145)^4,0) -> 2.554381747e-06 | AR150: =IFERROR(AR37*(F150/H145)^4,0) -> 5.265898641e-06 | AS150: =IFERROR(AS37*(F150/I145)^4,0) -> 2.493439442e-10 | AT150: =IFERROR(AT37*(F150/J145)^4,0) -> 2.710546065e-07 | AU150: =IFERROR(AU37*(F150/K145)^4,0) -> 0 | AV150: =IFERROR(AV37*(F150/L145)^4,0) -> 0 | AW150: =IFERROR(AW37*(F150/G145)^4,0) -> 3.626162882e-07 | AX150: =IFERROR(AX37*(F150/H145)^4,0) -> 3.039993884e-07 | AY150: =IFERROR(AY37*(F150/I145)^4,0) -> 2.102948837e-10 | AZ150: =IFERROR(AZ37*(F150/J145)^4,0) -> 1.197372866e-08 | BA150: =IFERROR(BA37*(F150/K145)^4,0) -> 1.062317775e-09 | BB150: =IFERROR(BB37*(F150/L145)^4,0) -> 0 | BC150: =IFERROR(BC37*(F150/G145)^4,0) -> 1.671386847e-07 | BD150: =IFERROR(BD37*(F150/H145)^4,0) -> 2.803599791e-08 | BE150: =IFERROR(BE37*(F150/I145)^4,0) -> 1.704908755e-09 | BF150: =IFERROR(BF37*(F150/J145)^4,0) -> 1.828537296e-09 | BG150: =IFERROR(BG37*(F150/K145)^4,0) -> 6.490511797e-10 | BH150: =IFERROR(BH37*(F150/L145)^4,0) -> 2.044318201e-11 | BI150: =IFERROR(BI37*(F150/G145)^4,0) -> 1.796842316e-07 | BJ150: =IFERROR(BJ37*(F150/H145)^4,0) -> 3.796065655e-08 | BK150: =IFERROR(BK37*(F150/I145)^4,0) -> 3.603840998e-09 | BL150: =IFERROR(BL37*(F150/J145)^4,0) -> 3.19875107e-09 | BM150: =IFERROR(BM37*(F150/K145)^4,0) -> 2.647168447e-09 | BN150: =IFERROR(BN37*(F150/L145)^4,0) -> 3.095937349e-11 | BO150: =IFERROR(BO37*(F150/G145)^4,0) -> 1.864596127e-07 | BP150: =IFERROR(BP37*(F150/H145)^4,0) -> 4.590313701e-07 | BQ150: =IFERROR(BQ37*(F150/I145)^4,0) -> 1.047584041e-10 | BR150: =IFERROR(BR37*(F150/J145)^4,0) -> 2.712041899e-08 | BS150: =IFERROR(BS37*(F150/K145)^4,0) -> 1.534967419e-08 | BT150: =IFERROR(BT37*(F150/L145)^4,0) -> 1.469812946e-10 | BU150: =IFERROR(BU37*(F150/G145)^4,0) -> 1.057405442e-07 | BV150: =IFERROR(BV37*(F150/H145)^4,0) -> 2.364568234e-07 | BW150: =IFERROR(BW37*(F150/I145)^4,0) -> 0 | BX150: =IFERROR(BX37*(F150/J145)^4,0) -> 1.429069806e-07 | BY150: =IFERROR(BY37*(F150/K145)^4,0) -> 1.511927702e-07 | BZ150: =IFERROR(BZ37*(F150/L145)^4,0) -> 7.961300118e-11
A151: 4 bin | F151: =R38 -> 20 | G151: =IFERROR(G38*(F151/G145)^4,0) -> 0 | H151: =IFERROR(H38*(F151/H145)^4,0) -> 0 | I151: =IFERROR(I38*(F151/I145)^4,0) -> 0 | J151: =IFERROR(J38*(F151/J145)^4,0) -> 0 | K151: =IFERROR(K38*(F151/K145)^4,0) -> 0 | L151: =IFERROR(L38*(F151/L145)^4,0) -> 0 | R151: =R38 -> 20 | S151: =IFERROR(S38*(F151/G145)^4,0) -> 0.0005243495012 | T151: =IFERROR(T38*(F151/H145)^4,0) -> 1.257795938e-05 | U151: =IFERROR(U38*(F151/I145)^4,0) -> 0 | V151: =IFERROR(V38*(F151/J145)^4,0) -> 0 | W151: =IFERROR(W38*(F151/K145)^4,0) -> 0 | X151: =IFERROR(X38*(F151/L145)^4,0) -> 0 | Y151: =IFERROR(Y38*(F151/G145)^4,0) -> 3.703826304e-05 | Z151: =IFERROR(Z38*(F151/H145)^4,0) -> 2.139575381e-07 | AA151: =IFERROR(AA38*(F151/I145)^4,0) -> 5.385931963e-08 | AB151: =IFERROR(AB38*(F151/J145)^4,0) -> 6.483687738e-08 | AC151: =IFERROR(AC38*(F151/K145)^4,0) -> 0 | AD151: =IFERROR(AD38*(F151/L145)^4,0) -> 0 | AE151: =IFERROR(AE38*(F151/G145)^4,0) -> 1.483486106e-06 | AF151: =IFERROR(AF38*(F151/H145)^4,0) -> 1.593619132e-08 | AG151: =IFERROR(AG38*(F151/I145)^4,0) -> 1.675174143e-07 | AH151: =IFERROR(AH38*(F151/J145)^4,0) -> 1.39429236e-07 | AI151: =IFERROR(AI38*(F151/K145)^4,0) -> 1.923969238e-09 | AJ151: =IFERROR(AJ38*(F151/L145)^4,0) -> 1.960364877e-10 | AK151: =IFERROR(AK38*(F151/G145)^4,0) -> 0.0009342701149 | AL151: =IFERROR(AL38*(F151/H145)^4,0) -> 0.00027010159 | AM151: =IFERROR(AM38*(F151/I145)^4,0) -> 0 | AN151: =IFERROR(AN38*(F151/J145)^4,0) -> 0 | AO151: =IFERROR(AO38*(F151/K145)^4,0) -> 0 | AP151: =IFERROR(AP38*(F151/L145)^4,0) -> 0 | AQ151: =IFERROR(AQ38*(F151/G145)^4,0) -> 0.001398954831 | AR151: =IFERROR(AR38*(F151/H145)^4,0) -> 0.0002707913814 | AS151: =IFERROR(AS38*(F151/I145)^4,0) -> 9.752118707e-09 | AT151: =IFERROR(AT38*(F151/J145)^4,0) -> 2.036068559e-05 | AU151: =IFERROR(AU38*(F151/K145)^4,0) -> 2.454425636e-11 | AV151: =IFERROR(AV38*(F151/L145)^4,0) -> 0 | AW151: =IFERROR(AW38*(F151/G145)^4,0) -> 5.10126367e-05 | AX151: =IFERROR(AX38*(F151/H145)^4,0) -> 1.54002663e-05 | AY151: =IFERROR(AY38*(F151/I145)^4,0) -> 1.68235907e-08 | AZ151: =IFERROR(AZ38*(F151/J145)^4,0) -> 6.397045707e-07 | BA151: =IFERROR(BA38*(F151/K145)^4,0) -> 1.818896468e-07 | BB151: =IFERROR(BB38*(F151/L145)^4,0) -> 0 | BC151: =IFERROR(BC38*(F151/G145)^4,0) -> 1.08752782e-05 | BD151: =IFERROR(BD38*(F151/H145)^4,0) -> 1.635604926e-06 | BE151: =IFERROR(BE38*(F151/I145)^4,0) -> 2.91582378e-08 | BF151: =IFERROR(BF38*(F151/J145)^4,0) -> 1.137708693e-07 | BG151: =IFERROR(BG38*(F151/K145)^4,0) -> 1.835007664e-08 | BH151: =IFERROR(BH38*(F151/L145)^4,0) -> 7.573581524e-11 | BI151: =IFERROR(BI38*(F151/G145)^4,0) -> 6.494915262e-06 | BJ151: =IFERROR(BJ38*(F151/H145)^4,0) -> 4.13970694e-07 | BK151: =IFERROR(BK38*(F151/I145)^4,0) -> 4.703290944e-08 | BL151: =IFERROR(BL38*(F151/J145)^4,0) -> 3.625919333e-07 | BM151: =IFERROR(BM38*(F151/K145)^4,0) -> 1.309909149e-08 | BN151: =IFERROR(BN38*(F151/L145)^4,0) -> 7.620768859e-11 | BO151: =IFERROR(BO38*(F151/G145)^4,0) -> 8.403214479e-06 | BP151: =IFERROR(BP38*(F151/H145)^4,0) -> 2.728989926e-06 | BQ151: =IFERROR(BQ38*(F151/I145)^4,0) -> 5.447437013e-09 | BR151: =IFERROR(BR38*(F151/J145)^4,0) -> 1.579025023e-07 | BS151: =IFERROR(BS38*(F151/K145)^4,0) -> 4.41496736e-08 | BT151: =IFERROR(BT38*(F151/L145)^4,0) -> 2.196140745e-10 | BU151: =IFERROR(BU38*(F151/G145)^4,0) -> 6.302136432e-06 | BV151: =IFERROR(BV38*(F151/H145)^4,0) -> 1.44858255e-06 | BW151: =IFERROR(BW38*(F151/I145)^4,0) -> 0 | BX151: =IFERROR(BX38*(F151/J145)^4,0) -> 5.735605723e-08 | BY151: =IFERROR(BY38*(F151/K145)^4,0) -> 1.336218716e-08 | BZ151: =IFERROR(BZ38*(F151/L145)^4,0) -> 1.910712028e-10
F152: 30 | G152: =IFERROR(G39*(F152/G145)^4,0) -> 0 | H152: =IFERROR(H39*(F152/H145)^4,0) -> 0 | I152: =IFERROR(I39*(F152/I145)^4,0) -> 0 | J152: =IFERROR(J39*(F152/J145)^4,0) -> 0 | K152: =IFERROR(K39*(F152/K145)^4,0) -> 0 | L152: =IFERROR(L39*(F152/L145)^4,0) -> 0 | R152: 30 | S152: =IFERROR(S39*(F152/G145)^4,0) -> 0.01910884382 | T152: =IFERROR(T39*(F152/H145)^4,0) -> 0.001741570041 | U152: =IFERROR(U39*(F152/I145)^4,0) -> 0 | V152: =IFERROR(V39*(F152/J145)^4,0) -> 0 | W152: =IFERROR(W39*(F152/K145)^4,0) -> 0 | X152: =IFERROR(X39*(F152/L145)^4,0) -> 0 | Y152: =IFERROR(Y39*(F152/G145)^4,0) -> 0.001131469846 | Z152: =IFERROR(Z39*(F152/H145)^4,0) -> 2.338549246e-06 | AA152: =IFERROR(AA39*(F152/I145)^4,0) -> 1.496249275e-06 | AB152: =IFERROR(AB39*(F152/J145)^4,0) -> 7.611278397e-06 | AC152: =IFERROR(AC39*(F152/K145)^4,0) -> 3.512846786e-10 | AD152: =IFERROR(AD39*(F152/L145)^4,0) -> 0 | AE152: =IFERROR(AE39*(F152/G145)^4,0) -> 1.946332355e-05 | AF152: =IFERROR(AF39*(F152/H145)^4,0) -> 9.905338917e-07 | AG152: =IFERROR(AG39*(F152/I145)^4,0) -> 1.458244198e-05 | AH152: =IFERROR(AH39*(F152/J145)^4,0) -> 1.007993126e-05 | AI152: =IFERROR(AI39*(F152/K145)^4,0) -> 4.047177101e-08 | AJ152: =IFERROR(AJ39*(F152/L145)^4,0) -> 4.607732623e-09 | AK152: =IFERROR(AK39*(F152/G145)^4,0) -> 0.01270582129 | AL152: =IFERROR(AL39*(F152/H145)^4,0) -> 0.002563155849 | AM152: =IFERROR(AM39*(F152/I145)^4,0) -> 0 | AN152: =IFERROR(AN39*(F152/J145)^4,0) -> 7.616316262e-10 | AO152: =IFERROR(AO39*(F152/K145)^4,0) -> 0 | AP152: =IFERROR(AP39*(F152/L145)^4,0) -> 0 | AQ152: =IFERROR(AQ39*(F152/G145)^4,0) -> 0.005467855282 | AR152: =IFERROR(AR39*(F152/H145)^4,0) -> 0.001312868633 | AS152: =IFERROR(AS39*(F152/I145)^4,0) -> 3.141733697e-07 | AT152: =IFERROR(AT39*(F152/J145)^4,0) -> 0.0001297853238 | AU152: =IFERROR(AU39*(F152/K145)^4,0) -> 0 | AV152: =IFERROR(AV39*(F152/L145)^4,0) -> 0 | AW152: =IFERROR(AW39*(F152/G145)^4,0) -> 0.0006117532518 | AX152: =IFERROR(AX39*(F152/H145)^4,0) -> 0.0001954930898 | AY152: =IFERROR(AY39*(F152/I145)^4,0) -> 1.071431403e-06 | AZ152: =IFERROR(AZ39*(F152/J145)^4,0) -> 9.300442161e-06 | BA152: =IFERROR(BA39*(F152/K145)^4,0) -> 1.211671127e-06 | BB152: =IFERROR(BB39*(F152/L145)^4,0) -> 0 | BC152: =IFERROR(BC39*(F152/G145)^4,0) -> 0.00027885266 | BD152: =IFERROR(BD39*(F152/H145)^4,0) -> 5.853071616e-05 | BE152: =IFERROR(BE39*(F152/I145)^4,0) -> 3.351478111e-07 | BF152: =IFERROR(BF39*(F152/J145)^4,0) -> 3.010016769e-06 | BG152: =IFERROR(BG39*(F152/K145)^4,0) -> 5.245567104e-07 | BH152: =IFERROR(BH39*(F152/L145)^4,0) -> 9.390829483e-10 | BI152: =IFERROR(BI39*(F152/G145)^4,0) -> 0.0001987927398 | BJ152: =IFERROR(BJ39*(F152/H145)^4,0) -> 7.560532809e-06 | BK152: =IFERROR(BK39*(F152/I145)^4,0) -> 3.798710943e-07 | BL152: =IFERROR(BL39*(F152/J145)^4,0) -> 1.928599192e-05 | BM152: =IFERROR(BM39*(F152/K145)^4,0) -> 3.596479005e-07 | BN152: =IFERROR(BN39*(F152/L145)^4,0) -> 6.944425623e-10 | BO152: =IFERROR(BO39*(F152/G145)^4,0) -> 0.0001565075911 | BP152: =IFERROR(BP39*(F152/H145)^4,0) -> 2.069377213e-05 | BQ152: =IFERROR(BQ39*(F152/I145)^4,0) -> 5.091258439e-08 | BR152: =IFERROR(BR39*(F152/J145)^4,0) -> 5.503699259e-06 | BS152: =IFERROR(BS39*(F152/K145)^4,0) -> 1.99891397e-06 | BT152: =IFERROR(BT39*(F152/L145)^4,0) -> 2.17726766e-09 | BU152: =IFERROR(BU39*(F152/G145)^4,0) -> 8.827286714e-05 | BV152: =IFERROR(BV39*(F152/H145)^4,0) -> 9.914495512e-06 | BW152: =IFERROR(BW39*(F152/I145)^4,0) -> 0 | BX152: =IFERROR(BX39*(F152/J145)^4,0) -> 1.177872096e-06 | BY152: =IFERROR(BY39*(F152/K145)^4,0) -> 6.722567317e-07 | BZ152: =IFERROR(BZ39*(F152/L145)^4,0) -> 4.836489821e-10
F153: 40 | G153: =IFERROR(G40*(F153/G145)^4,0) -> 0 | H153: =IFERROR(H40*(F153/H145)^4,0) -> 0 | I153: =IFERROR(I40*(F153/I145)^4,0) -> 0 | J153: =IFERROR(J40*(F153/J145)^4,0) -> 0 | K153: =IFERROR(K40*(F153/K145)^4,0) -> 0 | L153: =IFERROR(L40*(F153/L145)^4,0) -> 0 | R153: 40 | S153: =IFERROR(S40*(F153/G145)^4,0) -> 0.04728818383 | T153: =IFERROR(T40*(F153/H145)^4,0) -> 0.007393410535 | U153: =IFERROR(U40*(F153/I145)^4,0) -> 0 | V153: =IFERROR(V40*(F153/J145)^4,0) -> 0 | W153: =IFERROR(W40*(F153/K145)^4,0) -> 0 | X153: =IFERROR(X40*(F153/L145)^4,0) -> 0 | Y153: =IFERROR(Y40*(F153/G145)^4,0) -> 0.01702482153 | Z153: =IFERROR(Z40*(F153/H145)^4,0) -> 6.144966808e-06 | AA153: =IFERROR(AA40*(F153/I145)^4,0) -> 5.329964272e-06 | AB153: =IFERROR(AB40*(F153/J145)^4,0) -> 0.0001617002905 | AC153: =IFERROR(AC40*(F153/K145)^4,0) -> 9.516283358e-10 | AD153: =IFERROR(AD40*(F153/L145)^4,0) -> 0 | AE153: =IFERROR(AE40*(F153/G145)^4,0) -> 0.0001025530548 | AF153: =IFERROR(AF40*(F153/H145)^4,0) -> 9.448390765e-06 | AG153: =IFERROR(AG40*(F153/I145)^4,0) -> 0.0001726585062 | AH153: =IFERROR(AH40*(F153/J145)^4,0) -> 0.0001104148527 | AI153: =IFERROR(AI40*(F153/K145)^4,0) -> 2.818283215e-07 | AJ153: =IFERROR(AJ40*(F153/L145)^4,0) -> 1.702716921e-08 | AK153: =IFERROR(AK40*(F153/G145)^4,0) -> 0.03069564399 | AL153: =IFERROR(AL40*(F153/H145)^4,0) -> 0.006740239969 | AM153: =IFERROR(AM40*(F153/I145)^4,0) -> 0 | AN153: =IFERROR(AN40*(F153/J145)^4,0) -> 9.628528213e-09 | AO153: =IFERROR(AO40*(F153/K145)^4,0) -> 0 | AP153: =IFERROR(AP40*(F153/L145)^4,0) -> 0 | AQ153: =IFERROR(AQ40*(F153/G145)^4,0) -> 0.01156604424 | AR153: =IFERROR(AR40*(F153/H145)^4,0) -> 0.002738151858 | AS153: =IFERROR(AS40*(F153/I145)^4,0) -> 7.163374468e-07 | AT153: =IFERROR(AT40*(F153/J145)^4,0) -> 0.0001998623396 | AU153: =IFERROR(AU40*(F153/K145)^4,0) -> 0 | AV153: =IFERROR(AV40*(F153/L145)^4,0) -> 0 | AW153: =IFERROR(AW40*(F153/G145)^4,0) -> 0.005233067688 | AX153: =IFERROR(AX40*(F153/H145)^4,0) -> 0.0005399252536 | AY153: =IFERROR(AY40*(F153/I145)^4,0) -> 4.699838297e-06 | AZ153: =IFERROR(AZ40*(F153/J145)^4,0) -> 9.692115695e-05 | BA153: =IFERROR(BA40*(F153/K145)^4,0) -> 3.729429391e-06 | BB153: =IFERROR(BB40*(F153/L145)^4,0) -> 0 | BC153: =IFERROR(BC40*(F153/G145)^4,0) -> 0.002692671065 | BD153: =IFERROR(BD40*(F153/H145)^4,0) -> 0.0001097213182 | BE153: =IFERROR(BE40*(F153/I145)^4,0) -> 1.938014195e-06 | BF153: =IFERROR(BF40*(F153/J145)^4,0) -> 2.395909435e-05 | BG153: =IFERROR(BG40*(F153/K145)^4,0) -> 7.907000571e-06 | BH153: =IFERROR(BH40*(F153/L145)^4,0) -> 3.740690701e-09 | BI153: =IFERROR(BI40*(F153/G145)^4,0) -> 0.001756863964 | BJ153: =IFERROR(BJ40*(F153/H145)^4,0) -> 2.575351861e-05 | BK153: =IFERROR(BK40*(F153/I145)^4,0) -> 2.76876819e-06 | BL153: =IFERROR(BL40*(F153/J145)^4,0) -> 0.0002269864513 | BM153: =IFERROR(BM40*(F153/K145)^4,0) -> 5.949595761e-06 | BN153: =IFERROR(BN40*(F153/L145)^4,0) -> 2.901988782e-09 | BO153: =IFERROR(BO40*(F153/G145)^4,0) -> 0.001775429697 | BP153: =IFERROR(BP40*(F153/H145)^4,0) -> 4.895868519e-05 | BQ153: =IFERROR(BQ40*(F153/I145)^4,0) -> 2.346588252e-07 | BR153: =IFERROR(BR40*(F153/J145)^4,0) -> 0.0001077304363 | BS153: =IFERROR(BS40*(F153/K145)^4,0) -> 4.161399112e-05 | BT153: =IFERROR(BT40*(F153/L145)^4,0) -> 1.068788496e-08 | BU153: =IFERROR(BU40*(F153/G145)^4,0) -> 0.0007804498083 | BV153: =IFERROR(BV40*(F153/H145)^4,0) -> 2.9780915e-05 | BW153: =IFERROR(BW40*(F153/I145)^4,0) -> 4.464525197e-08 | BX153: =IFERROR(BX40*(F153/J145)^4,0) -> 1.630308521e-05 | BY153: =IFERROR(BY40*(F153/K145)^4,0) -> 1.985515322e-05 | BZ153: =IFERROR(BZ40*(F153/L145)^4,0) -> 4.07618566e-09
F154: 50 | G154: =IFERROR(G41*(F154/G145)^4,0) -> 0 | H154: =IFERROR(H41*(F154/H145)^4,0) -> 0 | I154: =IFERROR(I41*(F154/I145)^4,0) -> 0 | J154: =IFERROR(J41*(F154/J145)^4,0) -> 0 | K154: =IFERROR(K41*(F154/K145)^4,0) -> 0 | L154: =IFERROR(L41*(F154/L145)^4,0) -> 0 | R154: 50 | S154: =IFERROR(S41*(F154/G145)^4,0) -> 0.06527220738 | T154: =IFERROR(T41*(F154/H145)^4,0) -> 0.01533136363 | U154: =IFERROR(U41*(F154/I145)^4,0) -> 3.592048806e-08 | V154: =IFERROR(V41*(F154/J145)^4,0) -> 0 | W154: =IFERROR(W41*(F154/K145)^4,0) -> 0 | X154: =IFERROR(X41*(F154/L145)^4,0) -> 0 | Y154: =IFERROR(Y41*(F154/G145)^4,0) -> 0.1162131331 | Z154: =IFERROR(Z41*(F154/H145)^4,0) -> 1.308164295e-05 | AA154: =IFERROR(AA41*(F154/I145)^4,0) -> 1.26981492e-05 | AB154: =IFERROR(AB41*(F154/J145)^4,0) -> 0.0008420863412 | AC154: =IFERROR(AC41*(F154/K145)^4,0) -> 1.548874244e-09 | AD154: =IFERROR(AD41*(F154/L145)^4,0) -> 0 | AE154: =IFERROR(AE41*(F154/G145)^4,0) -> 0.0003297766257 | AF154: =IFERROR(AF41*(F154/H145)^4,0) -> 2.569572515e-05 | AG154: =IFERROR(AG41*(F154/I145)^4,0) -> 0.001175941605 | AH154: =IFERROR(AH41*(F154/J145)^4,0) -> 0.0006515913008 | AI154: =IFERROR(AI41*(F154/K145)^4,0) -> 2.18856684e-06 | AJ154: =IFERROR(AJ41*(F154/L145)^4,0) -> 3.008372439e-08 | AK154: =IFERROR(AK41*(F154/G145)^4,0) -> 0.03829322774 | AL154: =IFERROR(AL41*(F154/H145)^4,0) -> 0.01556863361 | AM154: =IFERROR(AM41*(F154/I145)^4,0) -> 0 | AN154: =IFERROR(AN41*(F154/J145)^4,0) -> 2.350714896e-08 | AO154: =IFERROR(AO41*(F154/K145)^4,0) -> 0 | AP154: =IFERROR(AP41*(F154/L145)^4,0) -> 0 | AQ154: =IFERROR(AQ41*(F154/G145)^4,0) -> 0.04717477822 | AR154: =IFERROR(AR41*(F154/H145)^4,0) -> 0.006766517371 | AS154: =IFERROR(AS41*(F154/I145)^4,0) -> 1.627661858e-06 | AT154: =IFERROR(AT41*(F154/J145)^4,0) -> 0.0003368768149 | AU154: =IFERROR(AU41*(F154/K145)^4,0) -> 0 | AV154: =IFERROR(AV41*(F154/L145)^4,0) -> 0 | AW154: =IFERROR(AW41*(F154/G145)^4,0) -> 0.0693609112 | AX154: =IFERROR(AX41*(F154/H145)^4,0) -> 0.001739507982 | AY154: =IFERROR(AY41*(F154/I145)^4,0) -> 1.264397988e-05 | AZ154: =IFERROR(AZ41*(F154/J145)^4,0) -> 0.0005852277236 | BA154: =IFERROR(BA41*(F154/K145)^4,0) -> 8.113940531e-06 | BB154: =IFERROR(BB41*(F154/L145)^4,0) -> 0 | BC154: =IFERROR(BC41*(F154/G145)^4,0) -> 0.05653755549 | BD154: =IFERROR(BD41*(F154/H145)^4,0) -> 0.0001044637784 | BE154: =IFERROR(BE41*(F154/I145)^4,0) -> 6.019115887e-06 | BF154: =IFERROR(BF41*(F154/J145)^4,0) -> 0.0001523164301 | BG154: =IFERROR(BG41*(F154/K145)^4,0) -> 7.137067723e-05 | BH154: =IFERROR(BH41*(F154/L145)^4,0) -> 1.166221793e-08 | BI154: =IFERROR(BI41*(F154/G145)^4,0) -> 0.03071880107 | BJ154: =IFERROR(BJ41*(F154/H145)^4,0) -> 3.926689978e-05 | BK154: =IFERROR(BK41*(F154/I145)^4,0) -> 8.211566512e-06 | BL154: =IFERROR(BL41*(F154/J145)^4,0) -> 0.000600654887 | BM154: =IFERROR(BM41*(F154/K145)^4,0) -> 5.359273688e-05 | BN154: =IFERROR(BN41*(F154/L145)^4,0) -> 1.315773373e-08 | BO154: =IFERROR(BO41*(F154/G145)^4,0) -> 0.0272552402 | BP154: =IFERROR(BP41*(F154/H145)^4,0) -> 0.0001383721408 | BQ154: =IFERROR(BQ41*(F154/I145)^4,0) -> 7.856880307e-07 | BR154: =IFERROR(BR41*(F154/J145)^4,0) -> 0.0006214628528 | BS154: =IFERROR(BS41*(F154/K145)^4,0) -> 0.0002300082036 | BT154: =IFERROR(BT41*(F154/L145)^4,0) -> 2.573602435e-08 | BU154: =IFERROR(BU41*(F154/G145)^4,0) -> 0.02137652493 | BV154: =IFERROR(BV41*(F154/H145)^4,0) -> 5.547884024e-05 | BW154: =IFERROR(BW41*(F154/I145)^4,0) -> 5.449859859e-07 | BX154: =IFERROR(BX41*(F154/J145)^4,0) -> 0.0001161343265 | BY154: =IFERROR(BY41*(F154/K145)^4,0) -> 0.0001706102882 | BZ154: =IFERROR(BZ41*(F154/L145)^4,0) -> 1.243953143e-08
F155: 60 | G155: =IFERROR(G42*(F155/G145)^4,0) -> 0 | H155: =IFERROR(H42*(F155/H145)^4,0) -> 0 | I155: =IFERROR(I42*(F155/I145)^4,0) -> 0 | J155: =IFERROR(J42*(F155/J145)^4,0) -> 0 | K155: =IFERROR(K42*(F155/K145)^4,0) -> 0 | L155: =IFERROR(L42*(F155/L145)^4,0) -> 0 | R155: 60 | S155: =IFERROR(S42*(F155/G145)^4,0) -> 0.06625622903 | T155: =IFERROR(T42*(F155/H145)^4,0) -> 0.02311601072 | U155: =IFERROR(U42*(F155/I145)^4,0) -> 5.213930683e-08 | V155: =IFERROR(V42*(F155/J145)^4,0) -> 0 | W155: =IFERROR(W42*(F155/K145)^4,0) -> 0 | X155: =IFERROR(X42*(F155/L145)^4,0) -> 0 | Y155: =IFERROR(Y42*(F155/G145)^4,0) -> 0.2879249418 | Z155: =IFERROR(Z42*(F155/H145)^4,0) -> 2.514545933e-05 | AA155: =IFERROR(AA42*(F155/I145)^4,0) -> 2.192170144e-05 | AB155: =IFERROR(AB42*(F155/J145)^4,0) -> 0.002073904189 | AC155: =IFERROR(AC42*(F155/K145)^4,0) -> 4.81761845e-09 | AD155: =IFERROR(AD42*(F155/L145)^4,0) -> 0 | AE155: =IFERROR(AE42*(F155/G145)^4,0) -> 0.0008576474827 | AF155: =IFERROR(AF42*(F155/H145)^4,0) -> 2.854171865e-05 | AG155: =IFERROR(AG42*(F155/I145)^4,0) -> 0.007124387218 | AH155: =IFERROR(AH42*(F155/J145)^4,0) -> 0.002050539698 | AI155: =IFERROR(AI42*(F155/K145)^4,0) -> 1.008670728e-05 | AJ155: =IFERROR(AJ42*(F155/L145)^4,0) -> 4.083159986e-08 | AK155: =IFERROR(AK42*(F155/G145)^4,0) -> 0.02166574041 | AL155: =IFERROR(AL42*(F155/H145)^4,0) -> 0.03283869404 | AM155: =IFERROR(AM42*(F155/I145)^4,0) -> 0 | AN155: =IFERROR(AN42*(F155/J145)^4,0) -> 1.096749542e-07 | AO155: =IFERROR(AO42*(F155/K145)^4,0) -> 3.383586737e-09 | AP155: =IFERROR(AP42*(F155/L145)^4,0) -> 0 | AQ155: =IFERROR(AQ42*(F155/G145)^4,0) -> 0.1192416757 | AR155: =IFERROR(AR42*(F155/H145)^4,0) -> 0.01512414862 | AS155: =IFERROR(AS42*(F155/I145)^4,0) -> 2.621103542e-06 | AT155: =IFERROR(AT42*(F155/J145)^4,0) -> 0.0009070934987 | AU155: =IFERROR(AU42*(F155/K145)^4,0) -> 0 | AV155: =IFERROR(AV42*(F155/L145)^4,0) -> 0 | AW155: =IFERROR(AW42*(F155/G145)^4,0) -> 0.2465277448 | AX155: =IFERROR(AX42*(F155/H145)^4,0) -> 0.003303248977 | AY155: =IFERROR(AY42*(F155/I145)^4,0) -> 6.437446039e-05 | AZ155: =IFERROR(AZ42*(F155/J145)^4,0) -> 0.002223761607 | BA155: =IFERROR(BA42*(F155/K145)^4,0) -> 2.991123037e-05 | BB155: =IFERROR(BB42*(F155/L145)^4,0) -> 0 | BC155: =IFERROR(BC42*(F155/G145)^4,0) -> 0.2725628997 | BD155: =IFERROR(BD42*(F155/H145)^4,0) -> 0.0002441301705 | BE155: =IFERROR(BE42*(F155/I145)^4,0) -> 2.759167021e-05 | BF155: =IFERROR(BF42*(F155/J145)^4,0) -> 0.0009690834358 | BG155: =IFERROR(BG42*(F155/K145)^4,0) -> 0.0002929673977 | BH155: =IFERROR(BH42*(F155/L145)^4,0) -> 3.974154583e-08 | BI155: =IFERROR(BI42*(F155/G145)^4,0) -> 0.169740024 | BJ155: =IFERROR(BJ42*(F155/H145)^4,0) -> 6.596282399e-05 | BK155: =IFERROR(BK42*(F155/I145)^4,0) -> 3.384364694e-05 | BL155: =IFERROR(BL42*(F155/J145)^4,0) -> 0.001209621911 | BM155: =IFERROR(BM42*(F155/K145)^4,0) -> 0.0002333389564 | BN155: =IFERROR(BN42*(F155/L145)^4,0) -> 3.617274147e-08 | BO155: =IFERROR(BO42*(F155/G145)^4,0) -> 0.1324738327 | BP155: =IFERROR(BP42*(F155/H145)^4,0) -> 0.0003741396248 | BQ155: =IFERROR(BQ42*(F155/I145)^4,0) -> 3.190521955e-06 | BR155: =IFERROR(BR42*(F155/J145)^4,0) -> 0.001923895506 | BS155: =IFERROR(BS42*(F155/K145)^4,0) -> 0.0004767971064 | BT155: =IFERROR(BT42*(F155/L145)^4,0) -> 7.930813265e-08 | BU155: =IFERROR(BU42*(F155/G145)^4,0) -> 0.09940948769 | BV155: =IFERROR(BV42*(F155/H145)^4,0) -> 0.0001073387531 | BW155: =IFERROR(BW42*(F155/I145)^4,0) -> 1.582116117e-06 | BX155: =IFERROR(BX42*(F155/J145)^4,0) -> 0.0005178294371 | BY155: =IFERROR(BY42*(F155/K145)^4,0) -> 0.0006829975522 | BZ155: =IFERROR(BZ42*(F155/L145)^4,0) -> 3.35329961e-08
F156: 70 | G156: =IFERROR(G43*(F156/G145)^4,0) -> 0 | H156: =IFERROR(H43*(F156/H145)^4,0) -> 0 | I156: =IFERROR(I43*(F156/I145)^4,0) -> 0 | J156: =IFERROR(J43*(F156/J145)^4,0) -> 0 | K156: =IFERROR(K43*(F156/K145)^4,0) -> 0 | L156: =IFERROR(L43*(F156/L145)^4,0) -> 0 | R156: 70 | S156: =IFERROR(S43*(F156/G145)^4,0) -> 0.04065466456 | T156: =IFERROR(T43*(F156/H145)^4,0) -> 0.02582212119 | U156: =IFERROR(U43*(F156/I145)^4,0) -> 4.139764408e-08 | V156: =IFERROR(V43*(F156/J145)^4,0) -> 0 | W156: =IFERROR(W43*(F156/K145)^4,0) -> 0 | X156: =IFERROR(X43*(F156/L145)^4,0) -> 0 | Y156: =IFERROR(Y43*(F156/G145)^4,0) -> 0.2648680454 | Z156: =IFERROR(Z43*(F156/H145)^4,0) -> 3.868794157e-05 | AA156: =IFERROR(AA43*(F156/I145)^4,0) -> 3.060330626e-05 | AB156: =IFERROR(AB43*(F156/J145)^4,0) -> 0.004361158226 | AC156: =IFERROR(AC43*(F156/K145)^4,0) -> 1.636292707e-08 | AD156: =IFERROR(AD43*(F156/L145)^4,0) -> 6.256336579e-10 | AE156: =IFERROR(AE43*(F156/G145)^4,0) -> 0.001264320851 | AF156: =IFERROR(AF43*(F156/H145)^4,0) -> 1.208998048e-05 | AG156: =IFERROR(AG43*(F156/I145)^4,0) -> 0.02685982162 | AH156: =IFERROR(AH43*(F156/J145)^4,0) -> 0.003957054612 | AI156: =IFERROR(AI43*(F156/K145)^4,0) -> 1.476432017e-05 | AJ156: =IFERROR(AJ43*(F156/L145)^4,0) -> 8.194937798e-08 | AK156: =IFERROR(AK43*(F156/G145)^4,0) -> 0.01401884088 | AL156: =IFERROR(AL43*(F156/H145)^4,0) -> 0.03019572973 | AM156: =IFERROR(AM43*(F156/I145)^4,0) -> 0 | AN156: =IFERROR(AN43*(F156/J145)^4,0) -> 2.257626586e-07 | AO156: =IFERROR(AO43*(F156/K145)^4,0) -> 3.134256078e-08 | AP156: =IFERROR(AP43*(F156/L145)^4,0) -> 0 | AQ156: =IFERROR(AQ43*(F156/G145)^4,0) -> 0.07622744682 | AR156: =IFERROR(AR43*(F156/H145)^4,0) -> 0.02138973566 | AS156: =IFERROR(AS43*(F156/I145)^4,0) -> 3.459010014e-06 | AT156: =IFERROR(AT43*(F156/J145)^4,0) -> 0.001796050789 | AU156: =IFERROR(AU43*(F156/K145)^4,0) -> 1.841586235e-08 | AV156: =IFERROR(AV43*(F156/L145)^4,0) -> 0 | AW156: =IFERROR(AW43*(F156/G145)^4,0) -> 0.1579130956 | AX156: =IFERROR(AX43*(F156/H145)^4,0) -> 0.004296215443 | AY156: =IFERROR(AY43*(F156/I145)^4,0) -> 0.000166168519 | AZ156: =IFERROR(AZ43*(F156/J145)^4,0) -> 0.005153843102 | BA156: =IFERROR(BA43*(F156/K145)^4,0) -> 0.0001255521686 | BB156: =IFERROR(BB43*(F156/L145)^4,0) -> 1.202406813e-09 | BC156: =IFERROR(BC43*(F156/G145)^4,0) -> 0.2194604914 | BD156: =IFERROR(BD43*(F156/H145)^4,0) -> 0.0005787238186 | BE156: =IFERROR(BE43*(F156/I145)^4,0) -> 7.817526136e-05 | BF156: =IFERROR(BF43*(F156/J145)^4,0) -> 0.002969155166 | BG156: =IFERROR(BG43*(F156/K145)^4,0) -> 0.0007859847934 | BH156: =IFERROR(BH43*(F156/L145)^4,0) -> 1.070625906e-07 | BI156: =IFERROR(BI43*(F156/G145)^4,0) -> 0.2574039574 | BJ156: =IFERROR(BJ43*(F156/H145)^4,0) -> 0.0001157969965 | BK156: =IFERROR(BK43*(F156/I145)^4,0) -> 0.0001006917272 | BL156: =IFERROR(BL43*(F156/J145)^4,0) -> 0.002397499553 | BM156: =IFERROR(BM43*(F156/K145)^4,0) -> 0.0005811613994 | BN156: =IFERROR(BN43*(F156/L145)^4,0) -> 1.072688946e-07 | BO156: =IFERROR(BO43*(F156/G145)^4,0) -> 0.1805387812 | BP156: =IFERROR(BP43*(F156/H145)^4,0) -> 0.0007305596046 | BQ156: =IFERROR(BQ43*(F156/I145)^4,0) -> 1.144438423e-05 | BR156: =IFERROR(BR43*(F156/J145)^4,0) -> 0.003401964686 | BS156: =IFERROR(BS43*(F156/K145)^4,0) -> 0.001088853818 | BT156: =IFERROR(BT43*(F156/L145)^4,0) -> 1.579133859e-07 | BU156: =IFERROR(BU43*(F156/G145)^4,0) -> 0.1083985403 | BV156: =IFERROR(BV43*(F156/H145)^4,0) -> 0.0001864106735 | BW156: =IFERROR(BW43*(F156/I145)^4,0) -> 4.270981054e-05 | BX156: =IFERROR(BX43*(F156/J145)^4,0) -> 0.001708899817 | BY156: =IFERROR(BY43*(F156/K145)^4,0) -> 0.001664364765 | BZ156: =IFERROR(BZ43*(F156/L145)^4,0) -> 4.300893356e-08
F157: 80 | G157: =IFERROR(G44*(F157/G145)^4,0) -> 0 | H157: =IFERROR(H44*(F157/H145)^4,0) -> 0 | I157: =IFERROR(I44*(F157/I145)^4,0) -> 0 | J157: =IFERROR(J44*(F157/J145)^4,0) -> 0 | K157: =IFERROR(K44*(F157/K145)^4,0) -> 0 | L157: =IFERROR(L44*(F157/L145)^4,0) -> 0 | R157: 80 | S157: =IFERROR(S44*(F157/G145)^4,0) -> 0.02091699918 | T157: =IFERROR(T44*(F157/H145)^4,0) -> 0.02937352923 | U157: =IFERROR(U44*(F157/I145)^4,0) -> 4.708170211e-08 | V157: =IFERROR(V44*(F157/J145)^4,0) -> 0 | W157: =IFERROR(W44*(F157/K145)^4,0) -> 0 | X157: =IFERROR(X44*(F157/L145)^4,0) -> 0 | Y157: =IFERROR(Y44*(F157/G145)^4,0) -> 0.1004118204 | Z157: =IFERROR(Z44*(F157/H145)^4,0) -> 6.055662792e-05 | AA157: =IFERROR(AA44*(F157/I145)^4,0) -> 3.238459304e-05 | AB157: =IFERROR(AB44*(F157/J145)^4,0) -> 0.007746180935 | AC157: =IFERROR(AC44*(F157/K145)^4,0) -> 3.806513343e-08 | AD157: =IFERROR(AD44*(F157/L145)^4,0) -> 1.0673034e-09 | AE157: =IFERROR(AE44*(F157/G145)^4,0) -> 0.001363991866 | AF157: =IFERROR(AF44*(F157/H145)^4,0) -> 1.019916244e-05 | AG157: =IFERROR(AG44*(F157/I145)^4,0) -> 0.05345181609 | AH157: =IFERROR(AH44*(F157/J145)^4,0) -> 0.006923663232 | AI157: =IFERROR(AI44*(F157/K145)^4,0) -> 1.942970093e-05 | AJ157: =IFERROR(AJ44*(F157/L145)^4,0) -> 1.505560225e-07 | AK157: =IFERROR(AK44*(F157/G145)^4,0) -> 0.006220334995 | AL157: =IFERROR(AL44*(F157/H145)^4,0) -> 0.01960049484 | AM157: =IFERROR(AM44*(F157/I145)^4,0) -> 0 | AN157: =IFERROR(AN44*(F157/J145)^4,0) -> 5.777116928e-07 | AO157: =IFERROR(AO44*(F157/K145)^4,0) -> 2.138760999e-08 | AP157: =IFERROR(AP44*(F157/L145)^4,0) -> 0 | AQ157: =IFERROR(AQ44*(F157/G145)^4,0) -> 0.01802040102 | AR157: =IFERROR(AR44*(F157/H145)^4,0) -> 0.02567819032 | AS157: =IFERROR(AS44*(F157/I145)^4,0) -> 3.744813583e-06 | AT157: =IFERROR(AT44*(F157/J145)^4,0) -> 0.002503591489 | AU157: =IFERROR(AU44*(F157/K145)^4,0) -> 0 | AV157: =IFERROR(AV44*(F157/L145)^4,0) -> 0 | AW157: =IFERROR(AW44*(F157/G145)^4,0) -> 0.03641933468 | AX157: =IFERROR(AX44*(F157/H145)^4,0) -> 0.005462551428 | AY157: =IFERROR(AY44*(F157/I145)^4,0) -> 0.0003294732002 | AZ157: =IFERROR(AZ44*(F157/J145)^4,0) -> 0.009357593202 | BA157: =IFERROR(BA44*(F157/K145)^4,0) -> 0.0001641882729 | BB157: =IFERROR(BB44*(F157/L145)^4,0) -> 0 | BC157: =IFERROR(BC44*(F157/G145)^4,0) -> 0.03319138248 | BD157: =IFERROR(BD44*(F157/H145)^4,0) -> 0.0009567892067 | BE157: =IFERROR(BE44*(F157/I145)^4,0) -> 0.000186976558 | BF157: =IFERROR(BF44*(F157/J145)^4,0) -> 0.005431408967 | BG157: =IFERROR(BG44*(F157/K145)^4,0) -> 0.001470673322 | BH157: =IFERROR(BH44*(F157/L145)^4,0) -> 3.340981216e-07 | BI157: =IFERROR(BI44*(F157/G145)^4,0) -> 0.05788739148 | BJ157: =IFERROR(BJ44*(F157/H145)^4,0) -> 0.0001616725379 | BK157: =IFERROR(BK44*(F157/I145)^4,0) -> 0.0002544130359 | BL157: =IFERROR(BL44*(F157/J145)^4,0) -> 0.003166734278 | BM157: =IFERROR(BM44*(F157/K145)^4,0) -> 0.001036775703 | BN157: =IFERROR(BN44*(F157/L145)^4,0) -> 3.901833656e-07 | BO157: =IFERROR(BO44*(F157/G145)^4,0) -> 0.06752631151 | BP157: =IFERROR(BP44*(F157/H145)^4,0) -> 0.0009160829991 | BQ157: =IFERROR(BQ44*(F157/I145)^4,0) -> 3.357632561e-05 | BR157: =IFERROR(BR44*(F157/J145)^4,0) -> 0.004071844681 | BS157: =IFERROR(BS44*(F157/K145)^4,0) -> 0.001536363774 | BT157: =IFERROR(BT44*(F157/L145)^4,0) -> 2.764209151e-07 | BU157: =IFERROR(BU44*(F157/G145)^4,0) -> 0.05074734032 | BV157: =IFERROR(BV44*(F157/H145)^4,0) -> 0.0002801995654 | BW157: =IFERROR(BW44*(F157/I145)^4,0) -> 4.893119616e-05 | BX157: =IFERROR(BX44*(F157/J145)^4,0) -> 0.003349226664 | BY157: =IFERROR(BY44*(F157/K145)^4,0) -> 0.00215487961 | BZ157: =IFERROR(BZ44*(F157/L145)^4,0) -> 1.385903124e-07
F158: 90 | G158: =IFERROR(G45*(F158/G145)^4,0) -> 0 | H158: =IFERROR(H45*(F158/H145)^4,0) -> 0 | I158: =IFERROR(I45*(F158/I145)^4,0) -> 0 | J158: =IFERROR(J45*(F158/J145)^4,0) -> 0 | K158: =IFERROR(K45*(F158/K145)^4,0) -> 0 | L158: =IFERROR(L45*(F158/L145)^4,0) -> 0 | R158: 90 | S158: =IFERROR(S45*(F158/G145)^4,0) -> 0.01613021536 | T158: =IFERROR(T45*(F158/H145)^4,0) -> 0.03022425812 | U158: =IFERROR(U45*(F158/I145)^4,0) -> 3.770789154e-08 | V158: =IFERROR(V45*(F158/J145)^4,0) -> 0 | W158: =IFERROR(W45*(F158/K145)^4,0) -> 0 | X158: =IFERROR(X45*(F158/L145)^4,0) -> 0 | Y158: =IFERROR(Y45*(F158/G145)^4,0) -> 0.04437091628 | Z158: =IFERROR(Z45*(F158/H145)^4,0) -> 0.000111822482 | AA158: =IFERROR(AA45*(F158/I145)^4,0) -> 3.450397404e-05 | AB158: =IFERROR(AB45*(F158/J145)^4,0) -> 0.009369735687 | AC158: =IFERROR(AC45*(F158/K145)^4,0) -> 4.877838681e-08 | AD158: =IFERROR(AD45*(F158/L145)^4,0) -> 0 | AE158: =IFERROR(AE45*(F158/G145)^4,0) -> 0.001393103866 | AF158: =IFERROR(AF45*(F158/H145)^4,0) -> 9.439205321e-06 | AG158: =IFERROR(AG45*(F158/I145)^4,0) -> 0.09181162207 | AH158: =IFERROR(AH45*(F158/J145)^4,0) -> 0.008014800641 | AI158: =IFERROR(AI45*(F158/K145)^4,0) -> 2.198171344e-05 | AJ158: =IFERROR(AJ45*(F158/L145)^4,0) -> 1.722583119e-07 | AK158: =IFERROR(AK45*(F158/G145)^4,0) -> 0.007216383402 | AL158: =IFERROR(AL45*(F158/H145)^4,0) -> 0.01372427828 | AM158: =IFERROR(AM45*(F158/I145)^4,0) -> 0 | AN158: =IFERROR(AN45*(F158/J145)^4,0) -> 9.253824258e-07 | AO158: =IFERROR(AO45*(F158/K145)^4,0) -> 0 | AP158: =IFERROR(AP45*(F158/L145)^4,0) -> 0 | AQ158: =IFERROR(AQ45*(F158/G145)^4,0) -> 0.008784262034 | AR158: =IFERROR(AR45*(F158/H145)^4,0) -> 0.03026697439 | AS158: =IFERROR(AS45*(F158/I145)^4,0) -> 6.180239001e-06 | AT158: =IFERROR(AT45*(F158/J145)^4,0) -> 0.003068245138 | AU158: =IFERROR(AU45*(F158/K145)^4,0) -> 0 | AV158: =IFERROR(AV45*(F158/L145)^4,0) -> 0 | AW158: =IFERROR(AW45*(F158/G145)^4,0) -> 0.02263213677 | AX158: =IFERROR(AX45*(F158/H145)^4,0) -> 0.005655291197 | AY158: =IFERROR(AY45*(F158/I145)^4,0) -> 0.000553691561 | AZ158: =IFERROR(AZ45*(F158/J145)^4,0) -> 0.01333902031 | BA158: =IFERROR(BA45*(F158/K145)^4,0) -> 0.0001811699188 | BB158: =IFERROR(BB45*(F158/L145)^4,0) -> 0 | BC158: =IFERROR(BC45*(F158/G145)^4,0) -> 0.009034408999 | BD158: =IFERROR(BD45*(F158/H145)^4,0) -> 0.001071814279 | BE158: =IFERROR(BE45*(F158/I145)^4,0) -> 0.0002786700667 | BF158: =IFERROR(BF45*(F158/J145)^4,0) -> 0.006686091048 | BG158: =IFERROR(BG45*(F158/K145)^4,0) -> 0.00165258208 | BH158: =IFERROR(BH45*(F158/L145)^4,0) -> 1.065370156e-06 | BI158: =IFERROR(BI45*(F158/G145)^4,0) -> 0.01445281815 | BJ158: =IFERROR(BJ45*(F158/H145)^4,0) -> 0.0001513698253 | BK158: =IFERROR(BK45*(F158/I145)^4,0) -> 0.0004550971701 | BL158: =IFERROR(BL45*(F158/J145)^4,0) -> 0.003585230265 | BM158: =IFERROR(BM45*(F158/K145)^4,0) -> 0.001334024512 | BN158: =IFERROR(BN45*(F158/L145)^4,0) -> 8.487476996e-07 | BO158: =IFERROR(BO45*(F158/G145)^4,0) -> 0.02243037082 | BP158: =IFERROR(BP45*(F158/H145)^4,0) -> 0.001289877385 | BQ158: =IFERROR(BQ45*(F158/I145)^4,0) -> 7.491786793e-05 | BR158: =IFERROR(BR45*(F158/J145)^4,0) -> 0.002958914136 | BS158: =IFERROR(BS45*(F158/K145)^4,0) -> 0.0008361146581 | BT158: =IFERROR(BT45*(F158/L145)^4,0) -> 4.540297944e-07 | BU158: =IFERROR(BU45*(F158/G145)^4,0) -> 0.02194894938 | BV158: =IFERROR(BV45*(F158/H145)^4,0) -> 0.0003575671 | BW158: =IFERROR(BW45*(F158/I145)^4,0) -> 9.782986755e-05 | BX158: =IFERROR(BX45*(F158/J145)^4,0) -> 0.004299479329 | BY158: =IFERROR(BY45*(F158/K145)^4,0) -> 0.002224423 | BZ158: =IFERROR(BZ45*(F158/L145)^4,0) -> 3.395215855e-07
F159: 100 | G159: =IFERROR(G46*(F159/G145)^4,0) -> 0 | H159: =IFERROR(H46*(F159/H145)^4,0) -> 0 | I159: =IFERROR(I46*(F159/I145)^4,0) -> 0 | J159: =IFERROR(J46*(F159/J145)^4,0) -> 0 | K159: =IFERROR(K46*(F159/K145)^4,0) -> 0 | L159: =IFERROR(L46*(F159/L145)^4,0) -> 0 | R159: 100 | S159: =IFERROR(S46*(F159/G145)^4,0) -> 0 | T159: =IFERROR(T46*(F159/H145)^4,0) -> 0.02619274654 | U159: =IFERROR(U46*(F159/I145)^4,0) -> 0 | V159: =IFERROR(V46*(F159/J145)^4,0) -> 0 | W159: =IFERROR(W46*(F159/K145)^4,0) -> 0 | X159: =IFERROR(X46*(F159/L145)^4,0) -> 0 | Y159: =IFERROR(Y46*(F159/G145)^4,0) -> 0 | Z159: =IFERROR(Z46*(F159/H145)^4,0) -> 0.0001024936343 | AA159: =IFERROR(AA46*(F159/I145)^4,0) -> 4.492269765e-05 | AB159: =IFERROR(AB46*(F159/J145)^4,0) -> 0.01092730605 | AC159: =IFERROR(AC46*(F159/K145)^4,0) -> 6.195496978e-08 | AD159: =IFERROR(AD46*(F159/L145)^4,0) -> 0 | AE159: =IFERROR(AE46*(F159/G145)^4,0) -> 0 | AF159: =IFERROR(AF46*(F159/H145)^4,0) -> 5.533399764e-07 | AG159: =IFERROR(AG46*(F159/I145)^4,0) -> 0.1212057075 | AH159: =IFERROR(AH46*(F159/J145)^4,0) -> 0.008709140965 | AI159: =IFERROR(AI46*(F159/K145)^4,0) -> 3.325481313e-05 | AJ159: =IFERROR(AJ46*(F159/L145)^4,0) -> 2.888037541e-07 | AK159: =IFERROR(AK46*(F159/G145)^4,0) -> 0 | AL159: =IFERROR(AL46*(F159/H145)^4,0) -> 0.01094447184 | AM159: =IFERROR(AM46*(F159/I145)^4,0) -> 0 | AN159: =IFERROR(AN46*(F159/J145)^4,0) -> 1.12834315e-06 | AO159: =IFERROR(AO46*(F159/K145)^4,0) -> 5.22158447e-08 | AP159: =IFERROR(AP46*(F159/L145)^4,0) -> 0 | AQ159: =IFERROR(AQ46*(F159/G145)^4,0) -> 0 | AR159: =IFERROR(AR46*(F159/H145)^4,0) -> 0.02232441748 | AS159: =IFERROR(AS46*(F159/I145)^4,0) -> 5.540976538e-06 | AT159: =IFERROR(AT46*(F159/J145)^4,0) -> 0.002996346772 | AU159: =IFERROR(AU46*(F159/K145)^4,0) -> 3.068032045e-08 | AV159: =IFERROR(AV46*(F159/L145)^4,0) -> 0 | AW159: =IFERROR(AW46*(F159/G145)^4,0) -> 0 | AX159: =IFERROR(AX46*(F159/H145)^4,0) -> 0.004085904097 | AY159: =IFERROR(AY46*(F159/I145)^4,0) -> 0.00118501167 | AZ159: =IFERROR(AZ46*(F159/J145)^4,0) -> 0.01579937605 | BA159: =IFERROR(BA46*(F159/K145)^4,0) -> 0.0002213102816 | BB159: =IFERROR(BB46*(F159/L145)^4,0) -> 5.007941744e-09 | BC159: =IFERROR(BC46*(F159/G145)^4,0) -> 0 | BD159: =IFERROR(BD46*(F159/H145)^4,0) -> 0.0008526488246 | BE159: =IFERROR(BE46*(F159/I145)^4,0) -> 0.0003688620235 | BF159: =IFERROR(BF46*(F159/J145)^4,0) -> 0.007378527479 | BG159: =IFERROR(BG46*(F159/K145)^4,0) -> 0.001758270357 | BH159: =IFERROR(BH46*(F159/L145)^4,0) -> 1.543528843e-06 | BI159: =IFERROR(BI46*(F159/G145)^4,0) -> 0 | BJ159: =IFERROR(BJ46*(F159/H145)^4,0) -> 0.0001094120857 | BK159: =IFERROR(BK46*(F159/I145)^4,0) -> 0.0006928841759 | BL159: =IFERROR(BL46*(F159/J145)^4,0) -> 0.004349643307 | BM159: =IFERROR(BM46*(F159/K145)^4,0) -> 0.001513151551 | BN159: =IFERROR(BN46*(F159/L145)^4,0) -> 1.679426937e-06 | BO159: =IFERROR(BO46*(F159/G145)^4,0) -> 0 | BP159: =IFERROR(BP46*(F159/H145)^4,0) -> 0.002482323378 | BQ159: =IFERROR(BQ46*(F159/I145)^4,0) -> 0.0001189007887 | BR159: =IFERROR(BR46*(F159/J145)^4,0) -> 0.003061290783 | BS159: =IFERROR(BS46*(F159/K145)^4,0) -> 0.0007584488949 | BT159: =IFERROR(BT46*(F159/L145)^4,0) -> 6.977322158e-07 | BU159: =IFERROR(BU46*(F159/G145)^4,0) -> 0 | BV159: =IFERROR(BV46*(F159/H145)^4,0) -> 0.0003894582973 | BW159: =IFERROR(BW46*(F159/I145)^4,0) -> 6.97582062e-05 | BX159: =IFERROR(BX46*(F159/J145)^4,0) -> 0.005057463862 | BY159: =IFERROR(BY46*(F159/K145)^4,0) -> 0.002026881483 | BZ159: =IFERROR(BZ46*(F159/L145)^4,0) -> 4.577747568e-07
F160: 110 | G160: =IFERROR(G47*(F160/G145)^4,0) -> 0 | H160: =IFERROR(H47*(F160/H145)^4,0) -> 0 | I160: =IFERROR(I47*(F160/I145)^4,0) -> 0 | J160: =IFERROR(J47*(F160/J145)^4,0) -> 0 | K160: =IFERROR(K47*(F160/K145)^4,0) -> 0 | L160: =IFERROR(L47*(F160/L145)^4,0) -> 0 | R160: 110 | S160: =IFERROR(S47*(F160/G145)^4,0) -> 0 | T160: =IFERROR(T47*(F160/H145)^4,0) -> 0.02070366731 | U160: =IFERROR(U47*(F160/I145)^4,0) -> 0 | V160: =IFERROR(V47*(F160/J145)^4,0) -> 0 | W160: =IFERROR(W47*(F160/K145)^4,0) -> 0 | X160: =IFERROR(X47*(F160/L145)^4,0) -> 0 | Y160: =IFERROR(Y47*(F160/G145)^4,0) -> 0 | Z160: =IFERROR(Z47*(F160/H145)^4,0) -> 6.007301411e-05 | AA160: =IFERROR(AA47*(F160/I145)^4,0) -> 6.103578647e-05 | AB160: =IFERROR(AB47*(F160/J145)^4,0) -> 0.0142089166 | AC160: =IFERROR(AC47*(F160/K145)^4,0) -> 6.349578988e-08 | AD160: =IFERROR(AD47*(F160/L145)^4,0) -> 3.815036395e-09 | AE160: =IFERROR(AE47*(F160/G145)^4,0) -> 0 | AF160: =IFERROR(AF47*(F160/H145)^4,0) -> 0 | AG160: =IFERROR(AG47*(F160/I145)^4,0) -> 0.1380684373 | AH160: =IFERROR(AH47*(F160/J145)^4,0) -> 0.0113299179 | AI160: =IFERROR(AI47*(F160/K145)^4,0) -> 4.972041968e-05 | AJ160: =IFERROR(AJ47*(F160/L145)^4,0) -> 3.331447572e-07 | AK160: =IFERROR(AK47*(F160/G145)^4,0) -> 0 | AL160: =IFERROR(AL47*(F160/H145)^4,0) -> 0.00996865818 | AM160: =IFERROR(AM47*(F160/I145)^4,0) -> 0 | AN160: =IFERROR(AN47*(F160/J145)^4,0) -> 1.376672672e-06 | AO160: =IFERROR(AO47*(F160/K145)^4,0) -> 0 | AP160: =IFERROR(AP47*(F160/L145)^4,0) -> 0 | AQ160: =IFERROR(AQ47*(F160/G145)^4,0) -> 0 | AR160: =IFERROR(AR47*(F160/H145)^4,0) -> 0.01327810971 | AS160: =IFERROR(AS47*(F160/I145)^4,0) -> 1.176318844e-05 | AT160: =IFERROR(AT47*(F160/J145)^4,0) -> 0.003568246629 | AU160: =IFERROR(AU47*(F160/K145)^4,0) -> 0 | AV160: =IFERROR(AV47*(F160/L145)^4,0) -> 0 | AW160: =IFERROR(AW47*(F160/G145)^4,0) -> 0 | AX160: =IFERROR(AX47*(F160/H145)^4,0) -> 0.002467948017 | AY160: =IFERROR(AY47*(F160/I145)^4,0) -> 0.002408337007 | AZ160: =IFERROR(AZ47*(F160/J145)^4,0) -> 0.01917533796 | BA160: =IFERROR(BA47*(F160/K145)^4,0) -> 0.000296346785 | BB160: =IFERROR(BB47*(F160/L145)^4,0) -> 7.332127507e-09 | BC160: =IFERROR(BC47*(F160/G145)^4,0) -> 0 | BD160: =IFERROR(BD47*(F160/H145)^4,0) -> 0.0004492726711 | BE160: =IFERROR(BE47*(F160/I145)^4,0) -> 0.0004937356411 | BF160: =IFERROR(BF47*(F160/J145)^4,0) -> 0.00814930469 | BG160: =IFERROR(BG47*(F160/K145)^4,0) -> 0.00206441281 | BH160: =IFERROR(BH47*(F160/L145)^4,0) -> 2.076076959e-06 | BI160: =IFERROR(BI47*(F160/G145)^4,0) -> 0 | BJ160: =IFERROR(BJ47*(F160/H145)^4,0) -> 5.221278157e-05 | BK160: =IFERROR(BK47*(F160/I145)^4,0) -> 0.0008381646009 | BL160: =IFERROR(BL47*(F160/J145)^4,0) -> 0.005596757747 | BM160: =IFERROR(BM47*(F160/K145)^4,0) -> 0.001600225902 | BN160: =IFERROR(BN47*(F160/L145)^4,0) -> 2.534162561e-06 | BO160: =IFERROR(BO47*(F160/G145)^4,0) -> 0 | BP160: =IFERROR(BP47*(F160/H145)^4,0) -> 0.001093456384 | BQ160: =IFERROR(BQ47*(F160/I145)^4,0) -> 0.0001184835621 | BR160: =IFERROR(BR47*(F160/J145)^4,0) -> 0.004203173463 | BS160: =IFERROR(BS47*(F160/K145)^4,0) -> 0.0009423416517 | BT160: =IFERROR(BT47*(F160/L145)^4,0) -> 8.624559256e-07 | BU160: =IFERROR(BU47*(F160/G145)^4,0) -> 0 | BV160: =IFERROR(BV47*(F160/H145)^4,0) -> 0.0003832227918 | BW160: =IFERROR(BW47*(F160/I145)^4,0) -> 7.404641753e-05 | BX160: =IFERROR(BX47*(F160/J145)^4,0) -> 0.00616600154 | BY160: =IFERROR(BY47*(F160/K145)^4,0) -> 0.001828904426 | BZ160: =IFERROR(BZ47*(F160/L145)^4,0) -> 4.662455801e-07
F161: 120 | G161: =IFERROR(G48*(F161/G145)^4,0) -> 0 | H161: =IFERROR(H48*(F161/H145)^4,0) -> 0 | I161: =IFERROR(I48*(F161/I145)^4,0) -> 0 | J161: =IFERROR(J48*(F161/J145)^4,0) -> 0 | K161: =IFERROR(K48*(F161/K145)^4,0) -> 0 | L161: =IFERROR(L48*(F161/L145)^4,0) -> 0 | R161: 120 | S161: =IFERROR(S48*(F161/G145)^4,0) -> 0 | T161: =IFERROR(T48*(F161/H145)^4,0) -> 0.01611341935 | U161: =IFERROR(U48*(F161/I145)^4,0) -> 0 | V161: =IFERROR(V48*(F161/J145)^4,0) -> 0 | W161: =IFERROR(W48*(F161/K145)^4,0) -> 0 | X161: =IFERROR(X48*(F161/L145)^4,0) -> 0 | Y161: =IFERROR(Y48*(F161/G145)^4,0) -> 0 | Z161: =IFERROR(Z48*(F161/H145)^4,0) -> 9.16259203e-05 | AA161: =IFERROR(AA48*(F161/I145)^4,0) -> 6.334315997e-05 | AB161: =IFERROR(AB48*(F161/J145)^4,0) -> 0.01727318071 | AC161: =IFERROR(AC48*(F161/K145)^4,0) -> 8.992887773e-08 | AD161: =IFERROR(AD48*(F161/L145)^4,0) -> 0 | AE161: =IFERROR(AE48*(F161/G145)^4,0) -> 0 | AF161: =IFERROR(AF48*(F161/H145)^4,0) -> 0 | AG161: =IFERROR(AG48*(F161/I145)^4,0) -> 0.1202127938 | AH161: =IFERROR(AH48*(F161/J145)^4,0) -> 0.01519495578 | AI161: =IFERROR(AI48*(F161/K145)^4,0) -> 6.547492887e-05 | AJ161: =IFERROR(AJ48*(F161/L145)^4,0) -> 3.448001766e-07 | AK161: =IFERROR(AK48*(F161/G145)^4,0) -> 0 | AL161: =IFERROR(AL48*(F161/H145)^4,0) -> 0.008166813153 | AM161: =IFERROR(AM48*(F161/I145)^4,0) -> 0 | AN161: =IFERROR(AN48*(F161/J145)^4,0) -> 2.729687748e-06 | AO161: =IFERROR(AO48*(F161/K145)^4,0) -> 0 | AP161: =IFERROR(AP48*(F161/L145)^4,0) -> 0 | AQ161: =IFERROR(AQ48*(F161/G145)^4,0) -> 0 | AR161: =IFERROR(AR48*(F161/H145)^4,0) -> 0.007684772809 | AS161: =IFERROR(AS48*(F161/I145)^4,0) -> 1.09152805e-05 | AT161: =IFERROR(AT48*(F161/J145)^4,0) -> 0.004759479304 | AU161: =IFERROR(AU48*(F161/K145)^4,0) -> 3.180935624e-08 | AV161: =IFERROR(AV48*(F161/L145)^4,0) -> 1.337847697e-08 | AW161: =IFERROR(AW48*(F161/G145)^4,0) -> 0 | AX161: =IFERROR(AX48*(F161/H145)^4,0) -> 0.001691742507 | AY161: =IFERROR(AY48*(F161/I145)^4,0) -> 0.002242695003 | AZ161: =IFERROR(AZ48*(F161/J145)^4,0) -> 0.02187872097 | BA161: =IFERROR(BA48*(F161/K145)^4,0) -> 0.000324038329 | BB161: =IFERROR(BB48*(F161/L145)^4,0) -> 5.192234e-08 | BC161: =IFERROR(BC48*(F161/G145)^4,0) -> 0 | BD161: =IFERROR(BD48*(F161/H145)^4,0) -> 0.0001827708875 | BE161: =IFERROR(BE48*(F161/I145)^4,0) -> 0.0003827035215 | BF161: =IFERROR(BF48*(F161/J145)^4,0) -> 0.01021287894 | BG161: =IFERROR(BG48*(F161/K145)^4,0) -> 0.002295778745 | BH161: =IFERROR(BH48*(F161/L145)^4,0) -> 1.503599604e-06 | BI161: =IFERROR(BI48*(F161/G145)^4,0) -> 0 | BJ161: =IFERROR(BJ48*(F161/H145)^4,0) -> 2.754215149e-05 | BK161: =IFERROR(BK48*(F161/I145)^4,0) -> 0.0006682741265 | BL161: =IFERROR(BL48*(F161/J145)^4,0) -> 0.008606975238 | BM161: =IFERROR(BM48*(F161/K145)^4,0) -> 0.001867528547 | BN161: =IFERROR(BN48*(F161/L145)^4,0) -> 2.109623912e-06 | BO161: =IFERROR(BO48*(F161/G145)^4,0) -> 0 | BP161: =IFERROR(BP48*(F161/H145)^4,0) -> 0.0004039650843 | BQ161: =IFERROR(BQ48*(F161/I145)^4,0) -> 8.254627016e-05 | BR161: =IFERROR(BR48*(F161/J145)^4,0) -> 0.006536341556 | BS161: =IFERROR(BS48*(F161/K145)^4,0) -> 0.001185378434 | BT161: =IFERROR(BT48*(F161/L145)^4,0) -> 9.961694418e-07 | BU161: =IFERROR(BU48*(F161/G145)^4,0) -> 0 | BV161: =IFERROR(BV48*(F161/H145)^4,0) -> 0.0003749481939 | BW161: =IFERROR(BW48*(F161/I145)^4,0) -> 8.317410442e-05 | BX161: =IFERROR(BX48*(F161/J145)^4,0) -> 0.009007921406 | BY161: =IFERROR(BY48*(F161/K145)^4,0) -> 0.001849243359 | BZ161: =IFERROR(BZ48*(F161/L145)^4,0) -> 5.365279375e-07
F162: 130 | G162: =IFERROR(G49*(F162/G145)^4,0) -> 0 | H162: =IFERROR(H49*(F162/H145)^4,0) -> 0 | I162: =IFERROR(I49*(F162/I145)^4,0) -> 0 | J162: =IFERROR(J49*(F162/J145)^4,0) -> 0 | K162: =IFERROR(K49*(F162/K145)^4,0) -> 0 | L162: =IFERROR(L49*(F162/L145)^4,0) -> 0 | R162: 130 | S162: =IFERROR(S49*(F162/G145)^4,0) -> 0 | T162: =IFERROR(T49*(F162/H145)^4,0) -> 0.01373275 | U162: =IFERROR(U49*(F162/I145)^4,0) -> 1.641480095e-07 | V162: =IFERROR(V49*(F162/J145)^4,0) -> 0 | W162: =IFERROR(W49*(F162/K145)^4,0) -> 0 | X162: =IFERROR(X49*(F162/L145)^4,0) -> 0 | Y162: =IFERROR(Y49*(F162/G145)^4,0) -> 0 | Z162: =IFERROR(Z49*(F162/H145)^4,0) -> 0.0002021132275 | AA162: =IFERROR(AA49*(F162/I145)^4,0) -> 6.432293e-05 | AB162: =IFERROR(AB49*(F162/J145)^4,0) -> 0.02039856726 | AC162: =IFERROR(AC49*(F162/K145)^4,0) -> 1.415596713e-07 | AD162: =IFERROR(AD49*(F162/L145)^4,0) -> 0 | AE162: =IFERROR(AE49*(F162/G145)^4,0) -> 0 | AF162: =IFERROR(AF49*(F162/H145)^4,0) -> 0 | AG162: =IFERROR(AG49*(F162/I145)^4,0) -> 0.06980296687 | AH162: =IFERROR(AH49*(F162/J145)^4,0) -> 0.02003203131 | AI162: =IFERROR(AI49*(F162/K145)^4,0) -> 9.012353319e-05 | AJ162: =IFERROR(AJ49*(F162/L145)^4,0) -> 3.999284374e-07 | AK162: =IFERROR(AK49*(F162/G145)^4,0) -> 0 | AL162: =IFERROR(AL49*(F162/H145)^4,0) -> 0.007977961937 | AM162: =IFERROR(AM49*(F162/I145)^4,0) -> 0 | AN162: =IFERROR(AN49*(F162/J145)^4,0) -> 3.222660871e-06 | AO162: =IFERROR(AO49*(F162/K145)^4,0) -> 7.456683703e-08 | AP162: =IFERROR(AP49*(F162/L145)^4,0) -> 0 | AQ162: =IFERROR(AQ49*(F162/G145)^4,0) -> 0 | AR162: =IFERROR(AR49*(F162/H145)^4,0) -> 0.006498772766 | AS162: =IFERROR(AS49*(F162/I145)^4,0) -> 1.424302478e-05 | AT162: =IFERROR(AT49*(F162/J145)^4,0) -> 0.005779056147 | AU162: =IFERROR(AU49*(F162/K145)^4,0) -> 8.762606324e-08 | AV162: =IFERROR(AV49*(F162/L145)^4,0) -> 1.842701971e-08 | AW162: =IFERROR(AW49*(F162/G145)^4,0) -> 0 | AX162: =IFERROR(AX49*(F162/H145)^4,0) -> 0.001203590317 | AY162: =IFERROR(AY49*(F162/I145)^4,0) -> 0.001272119974 | AZ162: =IFERROR(AZ49*(F162/J145)^4,0) -> 0.02728446133 | BA162: =IFERROR(BA49*(F162/K145)^4,0) -> 0.0003832013155 | BB162: =IFERROR(BB49*(F162/L145)^4,0) -> 4.290954724e-08 | BC162: =IFERROR(BC49*(F162/G145)^4,0) -> 0 | BD162: =IFERROR(BD49*(F162/H145)^4,0) -> 0.000108726551 | BE162: =IFERROR(BE49*(F162/I145)^4,0) -> 0.0001802901838 | BF162: =IFERROR(BF49*(F162/J145)^4,0) -> 0.01474994676 | BG162: =IFERROR(BG49*(F162/K145)^4,0) -> 0.002776355431 | BH162: =IFERROR(BH49*(F162/L145)^4,0) -> 1.655626425e-06 | BI162: =IFERROR(BI49*(F162/G145)^4,0) -> 0 | BJ162: =IFERROR(BJ49*(F162/H145)^4,0) -> 2.269203624e-05 | BK162: =IFERROR(BK49*(F162/I145)^4,0) -> 0.0003766121838 | BL162: =IFERROR(BL49*(F162/J145)^4,0) -> 0.01523072507 | BM162: =IFERROR(BM49*(F162/K145)^4,0) -> 0.002475274457 | BN162: =IFERROR(BN49*(F162/L145)^4,0) -> 2.53026006e-06 | BO162: =IFERROR(BO49*(F162/G145)^4,0) -> 0 | BP162: =IFERROR(BP49*(F162/H145)^4,0) -> 0.0002745632453 | BQ162: =IFERROR(BQ49*(F162/I145)^4,0) -> 9.649215414e-05 | BR162: =IFERROR(BR49*(F162/J145)^4,0) -> 0.01188220235 | BS162: =IFERROR(BS49*(F162/K145)^4,0) -> 0.001573327075 | BT162: =IFERROR(BT49*(F162/L145)^4,0) -> 1.437424446e-06 | BU162: =IFERROR(BU49*(F162/G145)^4,0) -> 0 | BV162: =IFERROR(BV49*(F162/H145)^4,0) -> 0.0003033632299 | BW162: =IFERROR(BW49*(F162/I145)^4,0) -> 7.720410993e-05 | BX162: =IFERROR(BX49*(F162/J145)^4,0) -> 0.01379782182 | BY162: =IFERROR(BY49*(F162/K145)^4,0) -> 0.002412994271 | BZ162: =IFERROR(BZ49*(F162/L145)^4,0) -> 7.389937511e-07
F163: 140 | G163: =IFERROR(G50*(F163/G145)^4,0) -> 0 | H163: =IFERROR(H50*(F163/H145)^4,0) -> 0 | I163: =IFERROR(I50*(F163/I145)^4,0) -> 0 | J163: =IFERROR(J50*(F163/J145)^4,0) -> 0 | K163: =IFERROR(K50*(F163/K145)^4,0) -> 0 | L163: =IFERROR(L50*(F163/L145)^4,0) -> 0 | R163: 140 | S163: =IFERROR(S50*(F163/G145)^4,0) -> 0 | T163: =IFERROR(T50*(F163/H145)^4,0) -> 0.009669001481 | U163: =IFERROR(U50*(F163/I145)^4,0) -> 0 | V163: =IFERROR(V50*(F163/J145)^4,0) -> 0 | W163: =IFERROR(W50*(F163/K145)^4,0) -> 0 | X163: =IFERROR(X50*(F163/L145)^4,0) -> 0 | Y163: =IFERROR(Y50*(F163/G145)^4,0) -> 0 | Z163: =IFERROR(Z50*(F163/H145)^4,0) -> 0.0001780443002 | AA163: =IFERROR(AA50*(F163/I145)^4,0) -> 5.798521186e-05 | AB163: =IFERROR(AB50*(F163/J145)^4,0) -> 0.02350187873 | AC163: =IFERROR(AC50*(F163/K145)^4,0) -> 1.904049695e-07 | AD163: =IFERROR(AD50*(F163/L145)^4,0) -> 1.001013853e-08 | AE163: =IFERROR(AE50*(F163/G145)^4,0) -> 0 | AF163: =IFERROR(AF50*(F163/H145)^4,0) -> 0 | AG163: =IFERROR(AG50*(F163/I145)^4,0) -> 0.04383941354 | AH163: =IFERROR(AH50*(F163/J145)^4,0) -> 0.02468434231 | AI163: =IFERROR(AI50*(F163/K145)^4,0) -> 0.0001349198024 | AJ163: =IFERROR(AJ50*(F163/L145)^4,0) -> 3.69822834e-07 | AK163: =IFERROR(AK50*(F163/G145)^4,0) -> 0 | AL163: =IFERROR(AL50*(F163/H145)^4,0) -> 0.00805412056 | AM163: =IFERROR(AM50*(F163/I145)^4,0) -> 0 | AN163: =IFERROR(AN50*(F163/J145)^4,0) -> 4.334643045e-06 | AO163: =IFERROR(AO50*(F163/K145)^4,0) -> 0 | AP163: =IFERROR(AP50*(F163/L145)^4,0) -> 0 | AQ163: =IFERROR(AQ50*(F163/G145)^4,0) -> 0 | AR163: =IFERROR(AR50*(F163/H145)^4,0) -> 0.006056445708 | AS163: =IFERROR(AS50*(F163/I145)^4,0) -> 2.447914779e-05 | AT163: =IFERROR(AT50*(F163/J145)^4,0) -> 0.005898075104 | AU163: =IFERROR(AU50*(F163/K145)^4,0) -> 5.893075952e-08 | AV163: =IFERROR(AV50*(F163/L145)^4,0) -> 0 | AW163: =IFERROR(AW50*(F163/G145)^4,0) -> 0 | AX163: =IFERROR(AX50*(F163/H145)^4,0) -> 0.0008131022772 | AY163: =IFERROR(AY50*(F163/I145)^4,0) -> 0.0006422557161 | AZ163: =IFERROR(AZ50*(F163/J145)^4,0) -> 0.03018619959 | BA163: =IFERROR(BA50*(F163/K145)^4,0) -> 0.0003702472432 | BB163: =IFERROR(BB50*(F163/L145)^4,0) -> 9.619254502e-08 | BC163: =IFERROR(BC50*(F163/G145)^4,0) -> 0 | BD163: =IFERROR(BD50*(F163/H145)^4,0) -> 6.356192922e-05 | BE163: =IFERROR(BE50*(F163/I145)^4,0) -> 9.785839282e-05 | BF163: =IFERROR(BF50*(F163/J145)^4,0) -> 0.0211398428 | BG163: =IFERROR(BG50*(F163/K145)^4,0) -> 0.003364042476 | BH163: =IFERROR(BH50*(F163/L145)^4,0) -> 1.80523999e-06 | BI163: =IFERROR(BI50*(F163/G145)^4,0) -> 0 | BJ163: =IFERROR(BJ50*(F163/H145)^4,0) -> 1.933833141e-05 | BK163: =IFERROR(BK50*(F163/I145)^4,0) -> 0.0002281441695 | BL163: =IFERROR(BL50*(F163/J145)^4,0) -> 0.02519241069 | BM163: =IFERROR(BM50*(F163/K145)^4,0) -> 0.003329239778 | BN163: =IFERROR(BN50*(F163/L145)^4,0) -> 2.587261697e-06 | BO163: =IFERROR(BO50*(F163/G145)^4,0) -> 0 | BP163: =IFERROR(BP50*(F163/H145)^4,0) -> 0.0002000383408 | BQ163: =IFERROR(BQ50*(F163/I145)^4,0) -> 9.658557244e-05 | BR163: =IFERROR(BR50*(F163/J145)^4,0) -> 0.02127007534 | BS163: =IFERROR(BS50*(F163/K145)^4,0) -> 0.002275444983 | BT163: =IFERROR(BT50*(F163/L145)^4,0) -> 1.713703527e-06 | BU163: =IFERROR(BU50*(F163/G145)^4,0) -> 0 | BV163: =IFERROR(BV50*(F163/H145)^4,0) -> 0.0002720259991 | BW163: =IFERROR(BW50*(F163/I145)^4,0) -> 7.369535936e-05 | BX163: =IFERROR(BX50*(F163/J145)^4,0) -> 0.02119984787 | BY163: =IFERROR(BY50*(F163/K145)^4,0) -> 0.003945073652 | BZ163: =IFERROR(BZ50*(F163/L145)^4,0) -> 3.058413053e-07
F164: 150 | G164: =IFERROR(G51*(F164/G145)^4,0) -> 0 | H164: =IFERROR(H51*(F164/H145)^4,0) -> 0 | I164: =IFERROR(I51*(F164/I145)^4,0) -> 0 | J164: =IFERROR(J51*(F164/J145)^4,0) -> 0 | K164: =IFERROR(K51*(F164/K145)^4,0) -> 0 | L164: =IFERROR(L51*(F164/L145)^4,0) -> 0 | R164: 150 | S164: =IFERROR(S51*(F164/G145)^4,0) -> 0 | T164: =IFERROR(T51*(F164/H145)^4,0) -> 0.007945128566 | U164: =IFERROR(U51*(F164/I145)^4,0) -> 0 | V164: =IFERROR(V51*(F164/J145)^4,0) -> 0 | W164: =IFERROR(W51*(F164/K145)^4,0) -> 0 | X164: =IFERROR(X51*(F164/L145)^4,0) -> 0 | Y164: =IFERROR(Y51*(F164/G145)^4,0) -> 0 | Z164: =IFERROR(Z51*(F164/H145)^4,0) -> 0.0001000745686 | AA164: =IFERROR(AA51*(F164/I145)^4,0) -> 8.005224721e-05 | AB164: =IFERROR(AB51*(F164/J145)^4,0) -> 0.02699073324 | AC164: =IFERROR(AC51*(F164/K145)^4,0) -> 0 | AD164: =IFERROR(AD51*(F164/L145)^4,0) -> 0 | AE164: =IFERROR(AE51*(F164/G145)^4,0) -> 0 | AF164: =IFERROR(AF51*(F164/H145)^4,0) -> 0 | AG164: =IFERROR(AG51*(F164/I145)^4,0) -> 0.04006477918 | AH164: =IFERROR(AH51*(F164/J145)^4,0) -> 0.0313032138 | AI164: =IFERROR(AI51*(F164/K145)^4,0) -> 0.0001819970201 | AJ164: =IFERROR(AJ51*(F164/L145)^4,0) -> 4.873563351e-07 | AK164: =IFERROR(AK51*(F164/G145)^4,0) -> 0 | AL164: =IFERROR(AL51*(F164/H145)^4,0) -> 0.006611935292 | AM164: =IFERROR(AM51*(F164/I145)^4,0) -> 0 | AN164: =IFERROR(AN51*(F164/J145)^4,0) -> 5.712237197e-06 | AO164: =IFERROR(AO51*(F164/K145)^4,0) -> 1.321713569e-07 | AP164: =IFERROR(AP51*(F164/L145)^4,0) -> 0 | AQ164: =IFERROR(AQ51*(F164/G145)^4,0) -> 0 | AR164: =IFERROR(AR51*(F164/H145)^4,0) -> 0.00533193049 | AS164: =IFERROR(AS51*(F164/I145)^4,0) -> 1.683071623e-05 | AT164: =IFERROR(AT51*(F164/J145)^4,0) -> 0.00564534307 | AU164: =IFERROR(AU51*(F164/K145)^4,0) -> 0 | AV164: =IFERROR(AV51*(F164/L145)^4,0) -> 0 | AW164: =IFERROR(AW51*(F164/G145)^4,0) -> 0 | AX164: =IFERROR(AX51*(F164/H145)^4,0) -> 0.0005670834102 | AY164: =IFERROR(AY51*(F164/I145)^4,0) -> 0.0005961859954 | AZ164: =IFERROR(AZ51*(F164/J145)^4,0) -> 0.02966807147 | BA164: =IFERROR(BA51*(F164/K145)^4,0) -> 0.0003431237561 | BB164: =IFERROR(BB51*(F164/L145)^4,0) -> 2.535270508e-08 | BC164: =IFERROR(BC51*(F164/G145)^4,0) -> 0 | BD164: =IFERROR(BD51*(F164/H145)^4,0) -> 3.182535421e-05 | BE164: =IFERROR(BE51*(F164/I145)^4,0) -> 7.049940971e-05 | BF164: =IFERROR(BF51*(F164/J145)^4,0) -> 0.03114996314 | BG164: =IFERROR(BG51*(F164/K145)^4,0) -> 0.004199491192 | BH164: =IFERROR(BH51*(F164/L145)^4,0) -> 2.733203699e-06 | BI164: =IFERROR(BI51*(F164/G145)^4,0) -> 0 | BJ164: =IFERROR(BJ51*(F164/H145)^4,0) -> 9.825253812e-06 | BK164: =IFERROR(BK51*(F164/I145)^4,0) -> 0.000180833462 | BL164: =IFERROR(BL51*(F164/J145)^4,0) -> 0.04176242224 | BM164: =IFERROR(BM51*(F164/K145)^4,0) -> 0.004683494199 | BN164: =IFERROR(BN51*(F164/L145)^4,0) -> 3.862836753e-06 | BO164: =IFERROR(BO51*(F164/G145)^4,0) -> 0 | BP164: =IFERROR(BP51*(F164/H145)^4,0) -> 0.0001419452372 | BQ164: =IFERROR(BQ51*(F164/I145)^4,0) -> 0.0001286073095 | BR164: =IFERROR(BR51*(F164/J145)^4,0) -> 0.03403755354 | BS164: =IFERROR(BS51*(F164/K145)^4,0) -> 0.003746106632 | BT164: =IFERROR(BT51*(F164/L145)^4,0) -> 2.084617973e-06 | BU164: =IFERROR(BU51*(F164/G145)^4,0) -> 0 | BV164: =IFERROR(BV51*(F164/H145)^4,0) -> 0.0001024224743 | BW164: =IFERROR(BW51*(F164/I145)^4,0) -> 7.504457026e-05 | BX164: =IFERROR(BX51*(F164/J145)^4,0) -> 0.02977425211 | BY164: =IFERROR(BY51*(F164/K145)^4,0) -> 0.006961669431 | BZ164: =IFERROR(BZ51*(F164/L145)^4,0) -> 7.053214323e-07
F165: 160 | G165: =IFERROR(G52*(F165/G145)^4,0) -> 0 | H165: =IFERROR(H52*(F165/H145)^4,0) -> 0 | I165: =IFERROR(I52*(F165/I145)^4,0) -> 0 | J165: =IFERROR(J52*(F165/J145)^4,0) -> 0 | K165: =IFERROR(K52*(F165/K145)^4,0) -> 0 | L165: =IFERROR(L52*(F165/L145)^4,0) -> 0 | R165: 160 | S165: =IFERROR(S52*(F165/G145)^4,0) -> 0 | T165: =IFERROR(T52*(F165/H145)^4,0) -> 0.00597635909 | U165: =IFERROR(U52*(F165/I145)^4,0) -> 0 | V165: =IFERROR(V52*(F165/J145)^4,0) -> 0 | W165: =IFERROR(W52*(F165/K145)^4,0) -> 0 | X165: =IFERROR(X52*(F165/L145)^4,0) -> 0 | Y165: =IFERROR(Y52*(F165/G145)^4,0) -> 0 | Z165: =IFERROR(Z52*(F165/H145)^4,0) -> 1.959585263e-05 | AA165: =IFERROR(AA52*(F165/I145)^4,0) -> 8.792907687e-05 | AB165: =IFERROR(AB52*(F165/J145)^4,0) -> 0.0325375143 | AC165: =IFERROR(AC52*(F165/K145)^4,0) -> 2.03014045e-07 | AD165: =IFERROR(AD52*(F165/L145)^4,0) -> 0 | AE165: =IFERROR(AE52*(F165/G145)^4,0) -> 0 | AF165: =IFERROR(AF52*(F165/H145)^4,0) -> 0 | AG165: =IFERROR(AG52*(F165/I145)^4,0) -> 0.04251030236 | AH165: =IFERROR(AH52*(F165/J145)^4,0) -> 0.04383801576 | AI165: =IFERROR(AI52*(F165/K145)^4,0) -> 0.0002725593012 | AJ165: =IFERROR(AJ52*(F165/L145)^4,0) -> 8.603201287e-07 | AK165: =IFERROR(AK52*(F165/G145)^4,0) -> 0 | AL165: =IFERROR(AL52*(F165/H145)^4,0) -> 0.003498031444 | AM165: =IFERROR(AM52*(F165/I145)^4,0) -> 0 | AN165: =IFERROR(AN52*(F165/J145)^4,0) -> 3.697354834e-06 | AO165: =IFERROR(AO52*(F165/K145)^4,0) -> 0 | AP165: =IFERROR(AP52*(F165/L145)^4,0) -> 0 | AQ165: =IFERROR(AQ52*(F165/G145)^4,0) -> 0 | AR165: =IFERROR(AR52*(F165/H145)^4,0) -> 0.004219024096 | AS165: =IFERROR(AS52*(F165/I145)^4,0) -> 2.541934069e-05 | AT165: =IFERROR(AT52*(F165/J145)^4,0) -> 0.006742552546 | AU165: =IFERROR(AU52*(F165/K145)^4,0) -> 0 | AV165: =IFERROR(AV52*(F165/L145)^4,0) -> 8.456518775e-08 | AW165: =IFERROR(AW52*(F165/G145)^4,0) -> 0 | AX165: =IFERROR(AX52*(F165/H145)^4,0) -> 0.0005095105907 | AY165: =IFERROR(AY52*(F165/I145)^4,0) -> 0.0009261427056 | AZ165: =IFERROR(AZ52*(F165/J145)^4,0) -> 0.0296785068 | BA165: =IFERROR(BA52*(F165/K145)^4,0) -> 0.0003345953944 | BB165: =IFERROR(BB52*(F165/L145)^4,0) -> 1.641002351e-07 | BC165: =IFERROR(BC52*(F165/G145)^4,0) -> 0 | BD165: =IFERROR(BD52*(F165/H145)^4,0) -> 1.802462333e-05 | BE165: =IFERROR(BE52*(F165/I145)^4,0) -> 0.0001047848038 | BF165: =IFERROR(BF52*(F165/J145)^4,0) -> 0.04641598026 | BG165: =IFERROR(BG52*(F165/K145)^4,0) -> 0.005707595823 | BH165: =IFERROR(BH52*(F165/L145)^4,0) -> 5.26464458e-06 | BI165: =IFERROR(BI52*(F165/G145)^4,0) -> 0 | BJ165: =IFERROR(BJ52*(F165/H145)^4,0) -> 7.94947943e-07 | BK165: =IFERROR(BK52*(F165/I145)^4,0) -> 0.000176744964 | BL165: =IFERROR(BL52*(F165/J145)^4,0) -> 0.07587546035 | BM165: =IFERROR(BM52*(F165/K145)^4,0) -> 0.006965715704 | BN165: =IFERROR(BN52*(F165/L145)^4,0) -> 7.048272316e-06 | BO165: =IFERROR(BO52*(F165/G145)^4,0) -> 0 | BP165: =IFERROR(BP52*(F165/H145)^4,0) -> 1.670486745e-05 | BQ165: =IFERROR(BQ52*(F165/I145)^4,0) -> 0.0001887997862 | BR165: =IFERROR(BR52*(F165/J145)^4,0) -> 0.05258532064 | BS165: =IFERROR(BS52*(F165/K145)^4,0) -> 0.006566851754 | BT165: =IFERROR(BT52*(F165/L145)^4,0) -> 2.098924915e-06 | BU165: =IFERROR(BU52*(F165/G145)^4,0) -> 0 | BV165: =IFERROR(BV52*(F165/H145)^4,0) -> 4.143431652e-05 | BW165: =IFERROR(BW52*(F165/I145)^4,0) -> 0.0001257210295 | BX165: =IFERROR(BX52*(F165/J145)^4,0) -> 0.03372477114 | BY165: =IFERROR(BY52*(F165/K145)^4,0) -> 0.01250135913 | BZ165: =IFERROR(BZ52*(F165/L145)^4,0) -> 9.130655879e-07
F166: 170 | G166: =IFERROR(G53*(F166/G145)^4,0) -> 0 | H166: =IFERROR(H53*(F166/H145)^4,0) -> 0 | I166: =IFERROR(I53*(F166/I145)^4,0) -> 0 | J166: =IFERROR(J53*(F166/J145)^4,0) -> 0 | K166: =IFERROR(K53*(F166/K145)^4,0) -> 0 | L166: =IFERROR(L53*(F166/L145)^4,0) -> 0 | R166: 170 | S166: =IFERROR(S53*(F166/G145)^4,0) -> 0 | T166: =IFERROR(T53*(F166/H145)^4,0) -> 0.005512744939 | U166: =IFERROR(U53*(F166/I145)^4,0) -> 0 | V166: =IFERROR(V53*(F166/J145)^4,0) -> 0 | W166: =IFERROR(W53*(F166/K145)^4,0) -> 0 | X166: =IFERROR(X53*(F166/L145)^4,0) -> 0 | Y166: =IFERROR(Y53*(F166/G145)^4,0) -> 0 | Z166: =IFERROR(Z53*(F166/H145)^4,0) -> 2.219869259e-05 | AA166: =IFERROR(AA53*(F166/I145)^4,0) -> 6.703553019e-05 | AB166: =IFERROR(AB53*(F166/J145)^4,0) -> 0.03172941396 | AC166: =IFERROR(AC53*(F166/K145)^4,0) -> 1.034908206e-07 | AD166: =IFERROR(AD53*(F166/L145)^4,0) -> 0 | AE166: =IFERROR(AE53*(F166/G145)^4,0) -> 0 | AF166: =IFERROR(AF53*(F166/H145)^4,0) -> 0 | AG166: =IFERROR(AG53*(F166/I145)^4,0) -> 0.03494149246 | AH166: =IFERROR(AH53*(F166/J145)^4,0) -> 0.0533310242 | AI166: =IFERROR(AI53*(F166/K145)^4,0) -> 0.0003877036832 | AJ166: =IFERROR(AJ53*(F166/L145)^4,0) -> 6.578503186e-07 | AK166: =IFERROR(AK53*(F166/G145)^4,0) -> 0 | AL166: =IFERROR(AL53*(F166/H145)^4,0) -> 0.002722706591 | AM166: =IFERROR(AM53*(F166/I145)^4,0) -> 0 | AN166: =IFERROR(AN53*(F166/J145)^4,0) -> 3.141344941e-06 | AO166: =IFERROR(AO53*(F166/K145)^4,0) -> 0 | AP166: =IFERROR(AP53*(F166/L145)^4,0) -> 0 | AQ166: =IFERROR(AQ53*(F166/G145)^4,0) -> 0 | AR166: =IFERROR(AR53*(F166/H145)^4,0) -> 0.003797441829 | AS166: =IFERROR(AS53*(F166/I145)^4,0) -> 2.082545556e-05 | AT166: =IFERROR(AT53*(F166/J145)^4,0) -> 0.00833177169 | AU166: =IFERROR(AU53*(F166/K145)^4,0) -> 2.562451044e-07 | AV166: =IFERROR(AV53*(F166/L145)^4,0) -> 2.155447097e-07 | AW166: =IFERROR(AW53*(F166/G145)^4,0) -> 0 | AX166: =IFERROR(AX53*(F166/H145)^4,0) -> 0.0004850136663 | AY166: =IFERROR(AY53*(F166/I145)^4,0) -> 0.001196111055 | AZ166: =IFERROR(AZ53*(F166/J145)^4,0) -> 0.02756350072 | BA166: =IFERROR(BA53*(F166/K145)^4,0) -> 0.0003393738762 | BB166: =IFERROR(BB53*(F166/L145)^4,0) -> 3.346146419e-07 | BC166: =IFERROR(BC53*(F166/G145)^4,0) -> 0 | BD166: =IFERROR(BD53*(F166/H145)^4,0) -> 1.385558924e-05 | BE166: =IFERROR(BE53*(F166/I145)^4,0) -> 0.0001263612121 | BF166: =IFERROR(BF53*(F166/J145)^4,0) -> 0.05407578057 | BG166: =IFERROR(BG53*(F166/K145)^4,0) -> 0.007706119188 | BH166: =IFERROR(BH53*(F166/L145)^4,0) -> 6.663580237e-06 | BI166: =IFERROR(BI53*(F166/G145)^4,0) -> 0 | BJ166: =IFERROR(BJ53*(F166/H145)^4,0) -> 2.026209935e-06 | BK166: =IFERROR(BK53*(F166/I145)^4,0) -> 0.0001485048483 | BL166: =IFERROR(BL53*(F166/J145)^4,0) -> 0.1128439946 | BM166: =IFERROR(BM53*(F166/K145)^4,0) -> 0.009948650807 | BN166: =IFERROR(BN53*(F166/L145)^4,0) -> 1.019982013e-05 | BO166: =IFERROR(BO53*(F166/G145)^4,0) -> 0 | BP166: =IFERROR(BP53*(F166/H145)^4,0) -> 1.824786248e-05 | BQ166: =IFERROR(BQ53*(F166/I145)^4,0) -> 0.0002253003117 | BR166: =IFERROR(BR53*(F166/J145)^4,0) -> 0.06871389967 | BS166: =IFERROR(BS53*(F166/K145)^4,0) -> 0.01119322273 | BT166: =IFERROR(BT53*(F166/L145)^4,0) -> 3.200364418e-06 | BU166: =IFERROR(BU53*(F166/G145)^4,0) -> 0 | BV166: =IFERROR(BV53*(F166/H145)^4,0) -> 2.112204315e-05 | BW166: =IFERROR(BW53*(F166/I145)^4,0) -> 9.467697102e-05 | BX166: =IFERROR(BX53*(F166/J145)^4,0) -> 0.0329745966 | BY166: =IFERROR(BY53*(F166/K145)^4,0) -> 0.02131202419 | BZ166: =IFERROR(BZ53*(F166/L145)^4,0) -> 1.163637557e-06
F167: 180 | G167: =IFERROR(G54*(F167/G145)^4,0) -> 0 | H167: =IFERROR(H54*(F167/H145)^4,0) -> 0 | I167: =IFERROR(I54*(F167/I145)^4,0) -> 0 | J167: =IFERROR(J54*(F167/J145)^4,0) -> 0 | K167: =IFERROR(K54*(F167/K145)^4,0) -> 0 | L167: =IFERROR(L54*(F167/L145)^4,0) -> 0 | R167: 180 | S167: =IFERROR(S54*(F167/G145)^4,0) -> 0 | T167: =IFERROR(T54*(F167/H145)^4,0) -> 0.004992261725 | U167: =IFERROR(U54*(F167/I145)^4,0) -> 0 | V167: =IFERROR(V54*(F167/J145)^4,0) -> 0 | W167: =IFERROR(W54*(F167/K145)^4,0) -> 0 | X167: =IFERROR(X54*(F167/L145)^4,0) -> 0 | Y167: =IFERROR(Y54*(F167/G145)^4,0) -> 0 | Z167: =IFERROR(Z54*(F167/H145)^4,0) -> 1.220674267e-05 | AA167: =IFERROR(AA54*(F167/I145)^4,0) -> 0 | AB167: =IFERROR(AB54*(F167/J145)^4,0) -> 0.02451433942 | AC167: =IFERROR(AC54*(F167/K145)^4,0) -> 3.251892454e-07 | AD167: =IFERROR(AD54*(F167/L145)^4,0) -> 0 | AE167: =IFERROR(AE54*(F167/G145)^4,0) -> 0 | AF167: =IFERROR(AF54*(F167/H145)^4,0) -> 0 | AG167: =IFERROR(AG54*(F167/I145)^4,0) -> 0 | AH167: =IFERROR(AH54*(F167/J145)^4,0) -> 0.04591312066 | AI167: =IFERROR(AI54*(F167/K145)^4,0) -> 0.0006137468504 | AJ167: =IFERROR(AJ54*(F167/L145)^4,0) -> 8.268398971e-07 | AK167: =IFERROR(AK54*(F167/G145)^4,0) -> 0 | AL167: =IFERROR(AL54*(F167/H145)^4,0) -> 0.002651041112 | AM167: =IFERROR(AM54*(F167/I145)^4,0) -> 0 | AN167: =IFERROR(AN54*(F167/J145)^4,0) -> 1.974149175e-06 | AO167: =IFERROR(AO54*(F167/K145)^4,0) -> 8.22211577e-07 | AP167: =IFERROR(AP54*(F167/L145)^4,0) -> 0 | AQ167: =IFERROR(AQ54*(F167/G145)^4,0) -> 0 | AR167: =IFERROR(AR54*(F167/H145)^4,0) -> 0.002718760097 | AS167: =IFERROR(AS54*(F167/I145)^4,0) -> 0 | AT167: =IFERROR(AT54*(F167/J145)^4,0) -> 0.01081516016 | AU167: =IFERROR(AU54*(F167/K145)^4,0) -> 0 | AV167: =IFERROR(AV54*(F167/L145)^4,0) -> 6.772853965e-08 | AW167: =IFERROR(AW54*(F167/G145)^4,0) -> 0 | AX167: =IFERROR(AX54*(F167/H145)^4,0) -> 0.0004397148698 | AY167: =IFERROR(AY54*(F167/I145)^4,0) -> 0 | AZ167: =IFERROR(AZ54*(F167/J145)^4,0) -> 0.01913806098 | BA167: =IFERROR(BA54*(F167/K145)^4,0) -> 0.0003900017397 | BB167: =IFERROR(BB54*(F167/L145)^4,0) -> 2.628568462e-07 | BC167: =IFERROR(BC54*(F167/G145)^4,0) -> 0 | BD167: =IFERROR(BD54*(F167/H145)^4,0) -> 1.099884242e-05 | BE167: =IFERROR(BE54*(F167/I145)^4,0) -> 0 | BF167: =IFERROR(BF54*(F167/J145)^4,0) -> 0.04034913405 | BG167: =IFERROR(BG54*(F167/K145)^4,0) -> 0.01118933135 | BH167: =IFERROR(BH54*(F167/L145)^4,0) -> 9.347531646e-06 | BI167: =IFERROR(BI54*(F167/G145)^4,0) -> 0 | BJ167: =IFERROR(BJ54*(F167/H145)^4,0) -> 6.36676447e-07 | BK167: =IFERROR(BK54*(F167/I145)^4,0) -> 0 | BL167: =IFERROR(BL54*(F167/J145)^4,0) -> 0.09257372662 | BM167: =IFERROR(BM54*(F167/K145)^4,0) -> 0.01501930037 | BN167: =IFERROR(BN54*(F167/L145)^4,0) -> 1.493995951e-05 | BO167: =IFERROR(BO54*(F167/G145)^4,0) -> 0 | BP167: =IFERROR(BP54*(F167/H145)^4,0) -> 3.058053442e-05 | BQ167: =IFERROR(BQ54*(F167/I145)^4,0) -> 0 | BR167: =IFERROR(BR54*(F167/J145)^4,0) -> 0.06037999837 | BS167: =IFERROR(BS54*(F167/K145)^4,0) -> 0.01813757047 | BT167: =IFERROR(BT54*(F167/L145)^4,0) -> 2.401479904e-06 | BU167: =IFERROR(BU54*(F167/G145)^4,0) -> 0 | BV167: =IFERROR(BV54*(F167/H145)^4,0) -> 2.654790534e-05 | BW167: =IFERROR(BW54*(F167/I145)^4,0) -> 0 | BX167: =IFERROR(BX54*(F167/J145)^4,0) -> 0.02913972243 | BY167: =IFERROR(BY54*(F167/K145)^4,0) -> 0.031808605 | BZ167: =IFERROR(BZ54*(F167/L145)^4,0) -> 2.298299963e-06
F168: 190 | G168: =IFERROR(G55*(F168/G145)^4,0) -> 0 | H168: =IFERROR(H55*(F168/H145)^4,0) -> 0 | I168: =IFERROR(I55*(F168/I145)^4,0) -> 0 | J168: =IFERROR(J55*(F168/J145)^4,0) -> 0 | K168: =IFERROR(K55*(F168/K145)^4,0) -> 0 | L168: =IFERROR(L55*(F168/L145)^4,0) -> 0 | R168: 190 | S168: =IFERROR(S55*(F168/G145)^4,0) -> 0 | T168: =IFERROR(T55*(F168/H145)^4,0) -> 0 | U168: =IFERROR(U55*(F168/I145)^4,0) -> 0 | V168: =IFERROR(V55*(F168/J145)^4,0) -> 0 | W168: =IFERROR(W55*(F168/K145)^4,0) -> 0 | X168: =IFERROR(X55*(F168/L145)^4,0) -> 0 | Y168: =IFERROR(Y55*(F168/G145)^4,0) -> 0 | Z168: =IFERROR(Z55*(F168/H145)^4,0) -> 0 | AA168: =IFERROR(AA55*(F168/I145)^4,0) -> 0 | AB168: =IFERROR(AB55*(F168/J145)^4,0) -> 0.01665143294 | AC168: =IFERROR(AC55*(F168/K145)^4,0) -> 4.037016808e-07 | AD168: =IFERROR(AD55*(F168/L145)^4,0) -> 0 | AE168: =IFERROR(AE55*(F168/G145)^4,0) -> 0 | AF168: =IFERROR(AF55*(F168/H145)^4,0) -> 0 | AG168: =IFERROR(AG55*(F168/I145)^4,0) -> 0 | AH168: =IFERROR(AH55*(F168/J145)^4,0) -> 0.03504982434 | AI168: =IFERROR(AI55*(F168/K145)^4,0) -> 0.0008791887052 | AJ168: =IFERROR(AJ55*(F168/L145)^4,0) -> 1.254573135e-06 | AK168: =IFERROR(AK55*(F168/G145)^4,0) -> 0 | AL168: =IFERROR(AL55*(F168/H145)^4,0) -> 0 | AM168: =IFERROR(AM55*(F168/I145)^4,0) -> 0 | AN168: =IFERROR(AN55*(F168/J145)^4,0) -> 1.225390064e-06 | AO168: =IFERROR(AO55*(F168/K145)^4,0) -> 0 | AP168: =IFERROR(AP55*(F168/L145)^4,0) -> 0 | AQ168: =IFERROR(AQ55*(F168/G145)^4,0) -> 0 | AR168: =IFERROR(AR55*(F168/H145)^4,0) -> 0 | AS168: =IFERROR(AS55*(F168/I145)^4,0) -> 0 | AT168: =IFERROR(AT55*(F168/J145)^4,0) -> 0.007546243689 | AU168: =IFERROR(AU55*(F168/K145)^4,0) -> 0 | AV168: =IFERROR(AV55*(F168/L145)^4,0) -> 0 | AW168: =IFERROR(AW55*(F168/G145)^4,0) -> 0 | AX168: =IFERROR(AX55*(F168/H145)^4,0) -> 0 | AY168: =IFERROR(AY55*(F168/I145)^4,0) -> 0 | AZ168: =IFERROR(AZ55*(F168/J145)^4,0) -> 0.01176871858 | BA168: =IFERROR(BA55*(F168/K145)^4,0) -> 0.0005838654144 | BB168: =IFERROR(BB55*(F168/L145)^4,0) -> 5.873759784e-07 | BC168: =IFERROR(BC55*(F168/G145)^4,0) -> 0 | BD168: =IFERROR(BD55*(F168/H145)^4,0) -> 0 | BE168: =IFERROR(BE55*(F168/I145)^4,0) -> 0 | BF168: =IFERROR(BF55*(F168/J145)^4,0) -> 0.0204959808 | BG168: =IFERROR(BG55*(F168/K145)^4,0) -> 0.01619540456 | BH168: =IFERROR(BH55*(F168/L145)^4,0) -> 1.434006101e-05 | BI168: =IFERROR(BI55*(F168/G145)^4,0) -> 0 | BJ168: =IFERROR(BJ55*(F168/H145)^4,0) -> 0 | BK168: =IFERROR(BK55*(F168/I145)^4,0) -> 0 | BL168: =IFERROR(BL55*(F168/J145)^4,0) -> 0.04406725926 | BM168: =IFERROR(BM55*(F168/K145)^4,0) -> 0.02244224766 | BN168: =IFERROR(BN55*(F168/L145)^4,0) -> 1.801318954e-05 | BO168: =IFERROR(BO55*(F168/G145)^4,0) -> 0 | BP168: =IFERROR(BP55*(F168/H145)^4,0) -> 0 | BQ168: =IFERROR(BQ55*(F168/I145)^4,0) -> 0 | BR168: =IFERROR(BR55*(F168/J145)^4,0) -> 0.03847732645 | BS168: =IFERROR(BS55*(F168/K145)^4,0) -> 0.02682725418 | BT168: =IFERROR(BT55*(F168/L145)^4,0) -> 2.608623445e-06 | BU168: =IFERROR(BU55*(F168/G145)^4,0) -> 0 | BV168: =IFERROR(BV55*(F168/H145)^4,0) -> 0 | BW168: =IFERROR(BW55*(F168/I145)^4,0) -> 0 | BX168: =IFERROR(BX55*(F168/J145)^4,0) -> 0.02347421013 | BY168: =IFERROR(BY55*(F168/K145)^4,0) -> 0.04299938395 | BZ168: =IFERROR(BZ55*(F168/L145)^4,0) -> 2.334430333e-06
F169: 200 | G169: =IFERROR(G56*(F169/G145)^4,0) -> 0 | H169: =IFERROR(H56*(F169/H145)^4,0) -> 0 | I169: =IFERROR(I56*(F169/I145)^4,0) -> 0 | J169: =IFERROR(J56*(F169/J145)^4,0) -> 0 | K169: =IFERROR(K56*(F169/K145)^4,0) -> 0 | L169: =IFERROR(L56*(F169/L145)^4,0) -> 0 | R169: 200 | S169: =IFERROR(S56*(F169/G145)^4,0) -> 0 | T169: =IFERROR(T56*(F169/H145)^4,0) -> 0 | U169: =IFERROR(U56*(F169/I145)^4,0) -> 0 | V169: =IFERROR(V56*(F169/J145)^4,0) -> 0 | W169: =IFERROR(W56*(F169/K145)^4,0) -> 0 | X169: =IFERROR(X56*(F169/L145)^4,0) -> 0 | Y169: =IFERROR(Y56*(F169/G145)^4,0) -> 0 | Z169: =IFERROR(Z56*(F169/H145)^4,0) -> 0 | AA169: =IFERROR(AA56*(F169/I145)^4,0) -> 0 | AB169: =IFERROR(AB56*(F169/J145)^4,0) -> 0.01162086416 | AC169: =IFERROR(AC56*(F169/K145)^4,0) -> 1.982559033e-07 | AD169: =IFERROR(AD56*(F169/L145)^4,0) -> 4.169153905e-08 | AE169: =IFERROR(AE56*(F169/G145)^4,0) -> 0 | AF169: =IFERROR(AF56*(F169/H145)^4,0) -> 0 | AG169: =IFERROR(AG56*(F169/I145)^4,0) -> 0 | AH169: =IFERROR(AH56*(F169/J145)^4,0) -> 0.02843832327 | AI169: =IFERROR(AI56*(F169/K145)^4,0) -> 0.001199163586 | AJ169: =IFERROR(AJ56*(F169/L145)^4,0) -> 1.120208501e-06 | AK169: =IFERROR(AK56*(F169/G145)^4,0) -> 0 | AL169: =IFERROR(AL56*(F169/H145)^4,0) -> 0 | AM169: =IFERROR(AM56*(F169/I145)^4,0) -> 0 | AN169: =IFERROR(AN56*(F169/J145)^4,0) -> 0 | AO169: =IFERROR(AO56*(F169/K145)^4,0) -> 0 | AP169: =IFERROR(AP56*(F169/L145)^4,0) -> 0 | AQ169: =IFERROR(AQ56*(F169/G145)^4,0) -> 0 | AR169: =IFERROR(AR56*(F169/H145)^4,0) -> 0 | AS169: =IFERROR(AS56*(F169/I145)^4,0) -> 0 | AT169: =IFERROR(AT56*(F169/J145)^4,0) -> 0.003543117982 | AU169: =IFERROR(AU56*(F169/K145)^4,0) -> 0 | AV169: =IFERROR(AV56*(F169/L145)^4,0) -> 0 | AW169: =IFERROR(AW56*(F169/G145)^4,0) -> 0 | AX169: =IFERROR(AX56*(F169/H145)^4,0) -> 0 | AY169: =IFERROR(AY56*(F169/I145)^4,0) -> 0 | AZ169: =IFERROR(AZ56*(F169/J145)^4,0) -> 0.009261665431 | BA169: =IFERROR(BA56*(F169/K145)^4,0) -> 0.0009794640944 | BB169: =IFERROR(BB56*(F169/L145)^4,0) -> 9.615248148e-07 | BC169: =IFERROR(BC56*(F169/G145)^4,0) -> 0 | BD169: =IFERROR(BD56*(F169/H145)^4,0) -> 0 | BE169: =IFERROR(BE56*(F169/I145)^4,0) -> 0 | BF169: =IFERROR(BF56*(F169/J145)^4,0) -> 0.01043255618 | BG169: =IFERROR(BG56*(F169/K145)^4,0) -> 0.02271897489 | BH169: =IFERROR(BH56*(F169/L145)^4,0) -> 2.166702888e-05 | BI169: =IFERROR(BI56*(F169/G145)^4,0) -> 0 | BJ169: =IFERROR(BJ56*(F169/H145)^4,0) -> 0 | BK169: =IFERROR(BK56*(F169/I145)^4,0) -> 0 | BL169: =IFERROR(BL56*(F169/J145)^4,0) -> 0.02119273924 | BM169: =IFERROR(BM56*(F169/K145)^4,0) -> 0.03269574532 | BN169: =IFERROR(BN56*(F169/L145)^4,0) -> 2.124670358e-05 | BO169: =IFERROR(BO56*(F169/G145)^4,0) -> 0 | BP169: =IFERROR(BP56*(F169/H145)^4,0) -> 0 | BQ169: =IFERROR(BQ56*(F169/I145)^4,0) -> 0 | BR169: =IFERROR(BR56*(F169/J145)^4,0) -> 0.02524429455 | BS169: =IFERROR(BS56*(F169/K145)^4,0) -> 0.03630794379 | BT169: =IFERROR(BT56*(F169/L145)^4,0) -> 3.934752168e-06 | BU169: =IFERROR(BU56*(F169/G145)^4,0) -> 0 | BV169: =IFERROR(BV56*(F169/H145)^4,0) -> 0 | BW169: =IFERROR(BW56*(F169/I145)^4,0) -> 0 | BX169: =IFERROR(BX56*(F169/J145)^4,0) -> 0.01770057801 | BY169: =IFERROR(BY56*(F169/K145)^4,0) -> 0.05313243471 | BZ169: =IFERROR(BZ56*(F169/L145)^4,0) -> 2.866068042e-06
F170: 210 | G170: =IFERROR(G57*(F170/G145)^4,0) -> 0 | H170: =IFERROR(H57*(F170/H145)^4,0) -> 0 | I170: =IFERROR(I57*(F170/I145)^4,0) -> 0 | J170: =IFERROR(J57*(F170/J145)^4,0) -> 0 | K170: =IFERROR(K57*(F170/K145)^4,0) -> 0 | L170: =IFERROR(L57*(F170/L145)^4,0) -> 0 | R170: 210 | S170: =IFERROR(S57*(F170/G145)^4,0) -> 0 | T170: =IFERROR(T57*(F170/H145)^4,0) -> 0 | U170: =IFERROR(U57*(F170/I145)^4,0) -> 0 | V170: =IFERROR(V57*(F170/J145)^4,0) -> 0 | W170: =IFERROR(W57*(F170/K145)^4,0) -> 0 | X170: =IFERROR(X57*(F170/L145)^4,0) -> 0 | Y170: =IFERROR(Y57*(F170/G145)^4,0) -> 0 | Z170: =IFERROR(Z57*(F170/H145)^4,0) -> 0 | AA170: =IFERROR(AA57*(F170/I145)^4,0) -> 0 | AB170: =IFERROR(AB57*(F170/J145)^4,0) -> 0.008609355 | AC170: =IFERROR(AC57*(F170/K145)^4,0) -> 7.229438686e-07 | AD170: =IFERROR(AD57*(F170/L145)^4,0) -> 0 | AE170: =IFERROR(AE57*(F170/G145)^4,0) -> 0 | AF170: =IFERROR(AF57*(F170/H145)^4,0) -> 0 | AG170: =IFERROR(AG57*(F170/I145)^4,0) -> 0 | AH170: =IFERROR(AH57*(F170/J145)^4,0) -> 0.02381438702 | AI170: =IFERROR(AI57*(F170/K145)^4,0) -> 0.00140759325 | AJ170: =IFERROR(AJ57*(F170/L145)^4,0) -> 1.021215326e-06 | AK170: =IFERROR(AK57*(F170/G145)^4,0) -> 0 | AL170: =IFERROR(AL57*(F170/H145)^4,0) -> 0 | AM170: =IFERROR(AM57*(F170/I145)^4,0) -> 0 | AN170: =IFERROR(AN57*(F170/J145)^4,0) -> 0 | AO170: =IFERROR(AO57*(F170/K145)^4,0) -> 5.077494847e-07 | AP170: =IFERROR(AP57*(F170/L145)^4,0) -> 0 | AQ170: =IFERROR(AQ57*(F170/G145)^4,0) -> 0 | AR170: =IFERROR(AR57*(F170/H145)^4,0) -> 0 | AS170: =IFERROR(AS57*(F170/I145)^4,0) -> 0 | AT170: =IFERROR(AT57*(F170/J145)^4,0) -> 0.002066616078 | AU170: =IFERROR(AU57*(F170/K145)^4,0) -> 2.983369701e-07 | AV170: =IFERROR(AV57*(F170/L145)^4,0) -> 0 | AW170: =IFERROR(AW57*(F170/G145)^4,0) -> 0 | AX170: =IFERROR(AX57*(F170/H145)^4,0) -> 0 | AY170: =IFERROR(AY57*(F170/I145)^4,0) -> 0 | AZ170: =IFERROR(AZ57*(F170/J145)^4,0) -> 0.008042673088 | BA170: =IFERROR(BA57*(F170/K145)^4,0) -> 0.001210352592 | BB170: =IFERROR(BB57*(F170/L145)^4,0) -> 1.266134374e-06 | BC170: =IFERROR(BC57*(F170/G145)^4,0) -> 0 | BD170: =IFERROR(BD57*(F170/H145)^4,0) -> 0 | BE170: =IFERROR(BE57*(F170/I145)^4,0) -> 0 | BF170: =IFERROR(BF57*(F170/J145)^4,0) -> 0.005897652394 | BG170: =IFERROR(BG57*(F170/K145)^4,0) -> 0.02716779072 | BH170: =IFERROR(BH57*(F170/L145)^4,0) -> 3.468827937e-05 | BI170: =IFERROR(BI57*(F170/G145)^4,0) -> 0 | BJ170: =IFERROR(BJ57*(F170/H145)^4,0) -> 0 | BK170: =IFERROR(BK57*(F170/I145)^4,0) -> 0 | BL170: =IFERROR(BL57*(F170/J145)^4,0) -> 0.01274664715 | BM170: =IFERROR(BM57*(F170/K145)^4,0) -> 0.04075065948 | BN170: =IFERROR(BN57*(F170/L145)^4,0) -> 2.991978774e-05 | BO170: =IFERROR(BO57*(F170/G145)^4,0) -> 0 | BP170: =IFERROR(BP57*(F170/H145)^4,0) -> 0 | BQ170: =IFERROR(BQ57*(F170/I145)^4,0) -> 0 | BR170: =IFERROR(BR57*(F170/J145)^4,0) -> 0.01674403585 | BS170: =IFERROR(BS57*(F170/K145)^4,0) -> 0.04271601955 | BT170: =IFERROR(BT57*(F170/L145)^4,0) -> 5.561297502e-06 | BU170: =IFERROR(BU57*(F170/G145)^4,0) -> 0 | BV170: =IFERROR(BV57*(F170/H145)^4,0) -> 0 | BW170: =IFERROR(BW57*(F170/I145)^4,0) -> 0 | BX170: =IFERROR(BX57*(F170/J145)^4,0) -> 0.01275814623 | BY170: =IFERROR(BY57*(F170/K145)^4,0) -> 0.05209770872 | BZ170: =IFERROR(BZ57*(F170/L145)^4,0) -> 3.096643216e-06
F171: 220 | G171: =IFERROR(G58*(F171/G145)^4,0) -> 0 | H171: =IFERROR(H58*(F171/H145)^4,0) -> 0 | I171: =IFERROR(I58*(F171/I145)^4,0) -> 0 | J171: =IFERROR(J58*(F171/J145)^4,0) -> 0 | K171: =IFERROR(K58*(F171/K145)^4,0) -> 0 | L171: =IFERROR(L58*(F171/L145)^4,0) -> 0 | R171: 220 | S171: =IFERROR(S58*(F171/G145)^4,0) -> 0 | T171: =IFERROR(T58*(F171/H145)^4,0) -> 0 | U171: =IFERROR(U58*(F171/I145)^4,0) -> 0 | V171: =IFERROR(V58*(F171/J145)^4,0) -> 0 | W171: =IFERROR(W58*(F171/K145)^4,0) -> 0 | X171: =IFERROR(X58*(F171/L145)^4,0) -> 0 | Y171: =IFERROR(Y58*(F171/G145)^4,0) -> 0 | Z171: =IFERROR(Z58*(F171/H145)^4,0) -> 0 | AA171: =IFERROR(AA58*(F171/I145)^4,0) -> 0 | AB171: =IFERROR(AB58*(F171/J145)^4,0) -> 0.006526037745 | AC171: =IFERROR(AC58*(F171/K145)^4,0) -> 7.2566617e-07 | AD171: =IFERROR(AD58*(F171/L145)^4,0) -> 0 | AE171: =IFERROR(AE58*(F171/G145)^4,0) -> 0 | AF171: =IFERROR(AF58*(F171/H145)^4,0) -> 0 | AG171: =IFERROR(AG58*(F171/I145)^4,0) -> 0 | AH171: =IFERROR(AH58*(F171/J145)^4,0) -> 0.0189047773 | AI171: =IFERROR(AI58*(F171/K145)^4,0) -> 0.00130208005 | AJ171: =IFERROR(AJ58*(F171/L145)^4,0) -> 1.025060791e-06 | AK171: =IFERROR(AK58*(F171/G145)^4,0) -> 0 | AL171: =IFERROR(AL58*(F171/H145)^4,0) -> 0 | AM171: =IFERROR(AM58*(F171/I145)^4,0) -> 0 | AN171: =IFERROR(AN58*(F171/J145)^4,0) -> 0 | AO171: =IFERROR(AO58*(F171/K145)^4,0) -> 6.115937458e-07 | AP171: =IFERROR(AP58*(F171/L145)^4,0) -> 0 | AQ171: =IFERROR(AQ58*(F171/G145)^4,0) -> 0 | AR171: =IFERROR(AR58*(F171/H145)^4,0) -> 0 | AS171: =IFERROR(AS58*(F171/I145)^4,0) -> 0 | AT171: =IFERROR(AT58*(F171/J145)^4,0) -> 0.001188253207 | AU171: =IFERROR(AU58*(F171/K145)^4,0) -> 3.593524574e-07 | AV171: =IFERROR(AV58*(F171/L145)^4,0) -> 1.511375627e-07 | AW171: =IFERROR(AW58*(F171/G145)^4,0) -> 0 | AX171: =IFERROR(AX58*(F171/H145)^4,0) -> 0 | AY171: =IFERROR(AY58*(F171/I145)^4,0) -> 0 | AZ171: =IFERROR(AZ58*(F171/J145)^4,0) -> 0.005973622679 | BA171: =IFERROR(BA58*(F171/K145)^4,0) -> 0.0009698937316 | BB171: =IFERROR(BB58*(F171/L145)^4,0) -> 8.211982808e-07 | BC171: =IFERROR(BC58*(F171/G145)^4,0) -> 0 | BD171: =IFERROR(BD58*(F171/H145)^4,0) -> 0 | BE171: =IFERROR(BE58*(F171/I145)^4,0) -> 0 | BF171: =IFERROR(BF58*(F171/J145)^4,0) -> 0.003352370419 | BG171: =IFERROR(BG58*(F171/K145)^4,0) -> 0.02268370205 | BH171: =IFERROR(BH58*(F171/L145)^4,0) -> 4.412893917e-05 | BI171: =IFERROR(BI58*(F171/G145)^4,0) -> 0 | BJ171: =IFERROR(BJ58*(F171/H145)^4,0) -> 0 | BK171: =IFERROR(BK58*(F171/I145)^4,0) -> 0 | BL171: =IFERROR(BL58*(F171/J145)^4,0) -> 0.007588749826 | BM171: =IFERROR(BM58*(F171/K145)^4,0) -> 0.03926608857 | BN171: =IFERROR(BN58*(F171/L145)^4,0) -> 4.471953129e-05 | BO171: =IFERROR(BO58*(F171/G145)^4,0) -> 0 | BP171: =IFERROR(BP58*(F171/H145)^4,0) -> 0 | BQ171: =IFERROR(BQ58*(F171/I145)^4,0) -> 0 | BR171: =IFERROR(BR58*(F171/J145)^4,0) -> 0.01017466553 | BS171: =IFERROR(BS58*(F171/K145)^4,0) -> 0.04049121177 | BT171: =IFERROR(BT58*(F171/L145)^4,0) -> 4.287159553e-06 | BU171: =IFERROR(BU58*(F171/G145)^4,0) -> 0 | BV171: =IFERROR(BV58*(F171/H145)^4,0) -> 0 | BW171: =IFERROR(BW58*(F171/I145)^4,0) -> 0 | BX171: =IFERROR(BX58*(F171/J145)^4,0) -> 0.008357338381 | BY171: =IFERROR(BY58*(F171/K145)^4,0) -> 0.04385225796 | BZ171: =IFERROR(BZ58*(F171/L145)^4,0) -> 3.729964641e-06
F172: 230 | G172: =IFERROR(G59*(F172/G145)^4,0) -> 0 | H172: =IFERROR(H59*(F172/H145)^4,0) -> 0 | I172: =IFERROR(I59*(F172/I145)^4,0) -> 0 | J172: =IFERROR(J59*(F172/J145)^4,0) -> 0 | K172: =IFERROR(K59*(F172/K145)^4,0) -> 0 | L172: =IFERROR(L59*(F172/L145)^4,0) -> 0 | R172: 230 | S172: =IFERROR(S59*(F172/G145)^4,0) -> 0 | T172: =IFERROR(T59*(F172/H145)^4,0) -> 0 | U172: =IFERROR(U59*(F172/I145)^4,0) -> 0 | V172: =IFERROR(V59*(F172/J145)^4,0) -> 0 | W172: =IFERROR(W59*(F172/K145)^4,0) -> 0 | X172: =IFERROR(X59*(F172/L145)^4,0) -> 0 | Y172: =IFERROR(Y59*(F172/G145)^4,0) -> 0 | Z172: =IFERROR(Z59*(F172/H145)^4,0) -> 0 | AA172: =IFERROR(AA59*(F172/I145)^4,0) -> 0 | AB172: =IFERROR(AB59*(F172/J145)^4,0) -> 0.005387650384 | AC172: =IFERROR(AC59*(F172/K145)^4,0) -> 6.935016279e-07 | AD172: =IFERROR(AD59*(F172/L145)^4,0) -> 0 | AE172: =IFERROR(AE59*(F172/G145)^4,0) -> 0 | AF172: =IFERROR(AF59*(F172/H145)^4,0) -> 0 | AG172: =IFERROR(AG59*(F172/I145)^4,0) -> 0 | AH172: =IFERROR(AH59*(F172/J145)^4,0) -> 0.01721169664 | AI172: =IFERROR(AI59*(F172/K145)^4,0) -> 0.001357037077 | AJ172: =IFERROR(AJ59*(F172/L145)^4,0) -> 3.67359688e-06 | AK172: =IFERROR(AK59*(F172/G145)^4,0) -> 0 | AL172: =IFERROR(AL59*(F172/H145)^4,0) -> 0 | AM172: =IFERROR(AM59*(F172/I145)^4,0) -> 0 | AN172: =IFERROR(AN59*(F172/J145)^4,0) -> 0 | AO172: =IFERROR(AO59*(F172/K145)^4,0) -> 7.306067099e-07 | AP172: =IFERROR(AP59*(F172/L145)^4,0) -> 0 | AQ172: =IFERROR(AQ59*(F172/G145)^4,0) -> 0 | AR172: =IFERROR(AR59*(F172/H145)^4,0) -> 0 | AS172: =IFERROR(AS59*(F172/I145)^4,0) -> 0 | AT172: =IFERROR(AT59*(F172/J145)^4,0) -> 0.0007076134581 | AU172: =IFERROR(AU59*(F172/K145)^4,0) -> 0 | AV172: =IFERROR(AV59*(F172/L145)^4,0) -> 1.805481469e-07 | AW172: =IFERROR(AW59*(F172/G145)^4,0) -> 0 | AX172: =IFERROR(AX59*(F172/H145)^4,0) -> 0 | AY172: =IFERROR(AY59*(F172/I145)^4,0) -> 0 | AZ172: =IFERROR(AZ59*(F172/J145)^4,0) -> 0.00426915609 | BA172: =IFERROR(BA59*(F172/K145)^4,0) -> 0.0006631632297 | BB172: =IFERROR(BB59*(F172/L145)^4,0) -> 1.961998396e-06 | BC172: =IFERROR(BC59*(F172/G145)^4,0) -> 0 | BD172: =IFERROR(BD59*(F172/H145)^4,0) -> 0 | BE172: =IFERROR(BE59*(F172/I145)^4,0) -> 0 | BF172: =IFERROR(BF59*(F172/J145)^4,0) -> 0.002164894957 | BG172: =IFERROR(BG59*(F172/K145)^4,0) -> 0.01499507949 | BH172: =IFERROR(BH59*(F172/L145)^4,0) -> 5.331132236e-05 | BI172: =IFERROR(BI59*(F172/G145)^4,0) -> 0 | BJ172: =IFERROR(BJ59*(F172/H145)^4,0) -> 0 | BK172: =IFERROR(BK59*(F172/I145)^4,0) -> 0 | BL172: =IFERROR(BL59*(F172/J145)^4,0) -> 0.004895129572 | BM172: =IFERROR(BM59*(F172/K145)^4,0) -> 0.0325143206 | BN172: =IFERROR(BN59*(F172/L145)^4,0) -> 6.483114878e-05 | BO172: =IFERROR(BO59*(F172/G145)^4,0) -> 0 | BP172: =IFERROR(BP59*(F172/H145)^4,0) -> 0 | BQ172: =IFERROR(BQ59*(F172/I145)^4,0) -> 0 | BR172: =IFERROR(BR59*(F172/J145)^4,0) -> 0.006578405474 | BS172: =IFERROR(BS59*(F172/K145)^4,0) -> 0.0312731222 | BT172: =IFERROR(BT59*(F172/L145)^4,0) -> 6.881906134e-06 | BU172: =IFERROR(BU59*(F172/G145)^4,0) -> 0 | BV172: =IFERROR(BV59*(F172/H145)^4,0) -> 0 | BW172: =IFERROR(BW59*(F172/I145)^4,0) -> 0 | BX172: =IFERROR(BX59*(F172/J145)^4,0) -> 0.005369092273 | BY172: =IFERROR(BY59*(F172/K145)^4,0) -> 0.03394011064 | BZ172: =IFERROR(BZ59*(F172/L145)^4,0) -> 2.784872733e-06
F173: 240 | G173: =IFERROR(G60*(F173/G145)^4,0) -> 0 | H173: =IFERROR(H60*(F173/H145)^4,0) -> 0 | I173: =IFERROR(I60*(F173/I145)^4,0) -> 0 | J173: =IFERROR(J60*(F173/J145)^4,0) -> 0 | K173: =IFERROR(K60*(F173/K145)^4,0) -> 0 | L173: =IFERROR(L60*(F173/L145)^4,0) -> 0 | R173: 240 | S173: =IFERROR(S60*(F173/G145)^4,0) -> 0 | T173: =IFERROR(T60*(F173/H145)^4,0) -> 0 | U173: =IFERROR(U60*(F173/I145)^4,0) -> 0 | V173: =IFERROR(V60*(F173/J145)^4,0) -> 0 | W173: =IFERROR(W60*(F173/K145)^4,0) -> 0 | X173: =IFERROR(X60*(F173/L145)^4,0) -> 0 | Y173: =IFERROR(Y60*(F173/G145)^4,0) -> 0 | Z173: =IFERROR(Z60*(F173/H145)^4,0) -> 0 | AA173: =IFERROR(AA60*(F173/I145)^4,0) -> 0 | AB173: =IFERROR(AB60*(F173/J145)^4,0) -> 0.005502090422 | AC173: =IFERROR(AC60*(F173/K145)^4,0) -> 6.166551616e-07 | AD173: =IFERROR(AD60*(F173/L145)^4,0) -> 0 | AE173: =IFERROR(AE60*(F173/G145)^4,0) -> 0 | AF173: =IFERROR(AF60*(F173/H145)^4,0) -> 0 | AG173: =IFERROR(AG60*(F173/I145)^4,0) -> 0 | AH173: =IFERROR(AH60*(F173/J145)^4,0) -> 0.01529825352 | AI173: =IFERROR(AI60*(F173/K145)^4,0) -> 0.001176915071 | AJ173: =IFERROR(AJ60*(F173/L145)^4,0) -> 4.355370652e-06 | AK173: =IFERROR(AK60*(F173/G145)^4,0) -> 0 | AL173: =IFERROR(AL60*(F173/H145)^4,0) -> 0 | AM173: =IFERROR(AM60*(F173/I145)^4,0) -> 0 | AN173: =IFERROR(AN60*(F173/J145)^4,0) -> 3.119643141e-06 | AO173: =IFERROR(AO60*(F173/K145)^4,0) -> 0 | AP173: =IFERROR(AP60*(F173/L145)^4,0) -> 0 | AQ173: =IFERROR(AQ60*(F173/G145)^4,0) -> 0 | AR173: =IFERROR(AR60*(F173/H145)^4,0) -> 0 | AS173: =IFERROR(AS60*(F173/I145)^4,0) -> 0 | AT173: =IFERROR(AT60*(F173/J145)^4,0) -> 0.00043207813 | AU173: =IFERROR(AU60*(F173/K145)^4,0) -> 5.089496999e-07 | AV173: =IFERROR(AV60*(F173/L145)^4,0) -> 0 | AW173: =IFERROR(AW60*(F173/G145)^4,0) -> 0 | AX173: =IFERROR(AX60*(F173/H145)^4,0) -> 0 | AY173: =IFERROR(AY60*(F173/I145)^4,0) -> 0 | AZ173: =IFERROR(AZ60*(F173/J145)^4,0) -> 0.003162762485 | BA173: =IFERROR(BA60*(F173/K145)^4,0) -> 0.0004019597855 | BB173: =IFERROR(BB60*(F173/L145)^4,0) -> 1.163060416e-06 | BC173: =IFERROR(BC60*(F173/G145)^4,0) -> 0 | BD173: =IFERROR(BD60*(F173/H145)^4,0) -> 0 | BE173: =IFERROR(BE60*(F173/I145)^4,0) -> 0 | BF173: =IFERROR(BF60*(F173/J145)^4,0) -> 0.00155461201 | BG173: =IFERROR(BG60*(F173/K145)^4,0) -> 0.008897261523 | BH173: =IFERROR(BH60*(F173/L145)^4,0) -> 5.462462139e-05 | BI173: =IFERROR(BI60*(F173/G145)^4,0) -> 0 | BJ173: =IFERROR(BJ60*(F173/H145)^4,0) -> 0 | BK173: =IFERROR(BK60*(F173/I145)^4,0) -> 0 | BL173: =IFERROR(BL60*(F173/J145)^4,0) -> 0.003339882749 | BM173: =IFERROR(BM60*(F173/K145)^4,0) -> 0.02124749518 | BN173: =IFERROR(BN60*(F173/L145)^4,0) -> 7.755830831e-05 | BO173: =IFERROR(BO60*(F173/G145)^4,0) -> 0 | BP173: =IFERROR(BP60*(F173/H145)^4,0) -> 0 | BQ173: =IFERROR(BQ60*(F173/I145)^4,0) -> 0 | BR173: =IFERROR(BR60*(F173/J145)^4,0) -> 0.004435670429 | BS173: =IFERROR(BS60*(F173/K145)^4,0) -> 0.02265460014 | BT173: =IFERROR(BT60*(F173/L145)^4,0) -> 8.159102095e-06 | BU173: =IFERROR(BU60*(F173/G145)^4,0) -> 0 | BV173: =IFERROR(BV60*(F173/H145)^4,0) -> 0 | BW173: =IFERROR(BW60*(F173/I145)^4,0) -> 0 | BX173: =IFERROR(BX60*(F173/J145)^4,0) -> 0.003262915274 | BY173: =IFERROR(BY60*(F173/K145)^4,0) -> 0.02430931707 | BZ173: =IFERROR(BZ60*(F173/L145)^4,0) -> 3.962052462e-06
F174: 250 | G174: =IFERROR(G61*(F174/G145)^4,0) -> 0 | H174: =IFERROR(H61*(F174/H145)^4,0) -> 0 | I174: =IFERROR(I61*(F174/I145)^4,0) -> 0 | J174: =IFERROR(J61*(F174/J145)^4,0) -> 0 | K174: =IFERROR(K61*(F174/K145)^4,0) -> 0 | L174: =IFERROR(L61*(F174/L145)^4,0) -> 0 | R174: 250 | S174: =IFERROR(S61*(F174/G145)^4,0) -> 0 | T174: =IFERROR(T61*(F174/H145)^4,0) -> 0 | U174: =IFERROR(U61*(F174/I145)^4,0) -> 0 | V174: =IFERROR(V61*(F174/J145)^4,0) -> 0 | W174: =IFERROR(W61*(F174/K145)^4,0) -> 0 | X174: =IFERROR(X61*(F174/L145)^4,0) -> 0 | Y174: =IFERROR(Y61*(F174/G145)^4,0) -> 0 | Z174: =IFERROR(Z61*(F174/H145)^4,0) -> 0 | AA174: =IFERROR(AA61*(F174/I145)^4,0) -> 0 | AB174: =IFERROR(AB61*(F174/J145)^4,0) -> 0.005812077051 | AC174: =IFERROR(AC61*(F174/K145)^4,0) -> 2.420116007e-07 | AD174: =IFERROR(AD61*(F174/L145)^4,0) -> 0 | AE174: =IFERROR(AE61*(F174/G145)^4,0) -> 0 | AF174: =IFERROR(AF61*(F174/H145)^4,0) -> 0 | AG174: =IFERROR(AG61*(F174/I145)^4,0) -> 0 | AH174: =IFERROR(AH61*(F174/J145)^4,0) -> 0.01292839883 | AI174: =IFERROR(AI61*(F174/K145)^4,0) -> 0.001054438286 | AJ174: =IFERROR(AJ61*(F174/L145)^4,0) -> 5.127907567e-06 | AK174: =IFERROR(AK61*(F174/G145)^4,0) -> 0 | AL174: =IFERROR(AL61*(F174/H145)^4,0) -> 0 | AM174: =IFERROR(AM61*(F174/I145)^4,0) -> 0 | AN174: =IFERROR(AN61*(F174/J145)^4,0) -> 0 | AO174: =IFERROR(AO61*(F174/K145)^4,0) -> 0 | AP174: =IFERROR(AP61*(F174/L145)^4,0) -> 0 | AQ174: =IFERROR(AQ61*(F174/G145)^4,0) -> 0 | AR174: =IFERROR(AR61*(F174/H145)^4,0) -> 0 | AS174: =IFERROR(AS61*(F174/I145)^4,0) -> 0 | AT174: =IFERROR(AT61*(F174/J145)^4,0) -> 0.0003048350845 | AU174: =IFERROR(AU61*(F174/K145)^4,0) -> 5.992250088e-07 | AV174: =IFERROR(AV61*(F174/L145)^4,0) -> 0 | AW174: =IFERROR(AW61*(F174/G145)^4,0) -> 0 | AX174: =IFERROR(AX61*(F174/H145)^4,0) -> 0 | AY174: =IFERROR(AY61*(F174/I145)^4,0) -> 0 | AZ174: =IFERROR(AZ61*(F174/J145)^4,0) -> 0.002359247011 | BA174: =IFERROR(BA61*(F174/K145)^4,0) -> 0.0002669302868 | BB174: =IFERROR(BB61*(F174/L145)^4,0) -> 3.325586314e-06 | BC174: =IFERROR(BC61*(F174/G145)^4,0) -> 0 | BD174: =IFERROR(BD61*(F174/H145)^4,0) -> 0 | BE174: =IFERROR(BE61*(F174/I145)^4,0) -> 0 | BF174: =IFERROR(BF61*(F174/J145)^4,0) -> 0.001220592044 | BG174: =IFERROR(BG61*(F174/K145)^4,0) -> 0.005621386864 | BH174: =IFERROR(BH61*(F174/L145)^4,0) -> 5.413069902e-05 | BI174: =IFERROR(BI61*(F174/G145)^4,0) -> 0 | BJ174: =IFERROR(BJ61*(F174/H145)^4,0) -> 0 | BK174: =IFERROR(BK61*(F174/I145)^4,0) -> 0 | BL174: =IFERROR(BL61*(F174/J145)^4,0) -> 0.002469809587 | BM174: =IFERROR(BM61*(F174/K145)^4,0) -> 0.01222269947 | BN174: =IFERROR(BN61*(F174/L145)^4,0) -> 8.357542411e-05 | BO174: =IFERROR(BO61*(F174/G145)^4,0) -> 0 | BP174: =IFERROR(BP61*(F174/H145)^4,0) -> 0 | BQ174: =IFERROR(BQ61*(F174/I145)^4,0) -> 0 | BR174: =IFERROR(BR61*(F174/J145)^4,0) -> 0.003020571446 | BS174: =IFERROR(BS61*(F174/K145)^4,0) -> 0.01513373872 | BT174: =IFERROR(BT61*(F174/L145)^4,0) -> 7.595701632e-06 | BU174: =IFERROR(BU61*(F174/G145)^4,0) -> 0 | BV174: =IFERROR(BV61*(F174/H145)^4,0) -> 0 | BW174: =IFERROR(BW61*(F174/I145)^4,0) -> 0 | BX174: =IFERROR(BX61*(F174/J145)^4,0) -> 0.00214914744 | BY174: =IFERROR(BY61*(F174/K145)^4,0) -> 0.01690473559 | BZ174: =IFERROR(BZ61*(F174/L145)^4,0) -> 3.109882858e-06
F175: 260 | G175: =IFERROR(G62*(F175/G145)^4,0) -> 0 | H175: =IFERROR(H62*(F175/H145)^4,0) -> 0 | I175: =IFERROR(I62*(F175/I145)^4,0) -> 0 | J175: =IFERROR(J62*(F175/J145)^4,0) -> 0 | K175: =IFERROR(K62*(F175/K145)^4,0) -> 0 | L175: =IFERROR(L62*(F175/L145)^4,0) -> 0 | R175: 260 | S175: =IFERROR(S62*(F175/G145)^4,0) -> 0 | T175: =IFERROR(T62*(F175/H145)^4,0) -> 0 | U175: =IFERROR(U62*(F175/I145)^4,0) -> 0 | V175: =IFERROR(V62*(F175/J145)^4,0) -> 0 | W175: =IFERROR(W62*(F175/K145)^4,0) -> 0 | X175: =IFERROR(X62*(F175/L145)^4,0) -> 0 | Y175: =IFERROR(Y62*(F175/G145)^4,0) -> 0 | Z175: =IFERROR(Z62*(F175/H145)^4,0) -> 0 | AA175: =IFERROR(AA62*(F175/I145)^4,0) -> 0 | AB175: =IFERROR(AB62*(F175/J145)^4,0) -> 0.005530166263 | AC175: =IFERROR(AC62*(F175/K145)^4,0) -> 1.132477371e-06 | AD175: =IFERROR(AD62*(F175/L145)^4,0) -> 0 | AE175: =IFERROR(AE62*(F175/G145)^4,0) -> 0 | AF175: =IFERROR(AF62*(F175/H145)^4,0) -> 0 | AG175: =IFERROR(AG62*(F175/I145)^4,0) -> 0 | AH175: =IFERROR(AH62*(F175/J145)^4,0) -> 0.01001952389 | AI175: =IFERROR(AI62*(F175/K145)^4,0) -> 0.0009388953628 | AJ175: =IFERROR(AJ62*(F175/L145)^4,0) -> 8.798425624e-06 | AK175: =IFERROR(AK62*(F175/G145)^4,0) -> 0 | AL175: =IFERROR(AL62*(F175/H145)^4,0) -> 0 | AM175: =IFERROR(AM62*(F175/I145)^4,0) -> 0 | AN175: =IFERROR(AN62*(F175/J145)^4,0) -> 0 | AO175: =IFERROR(AO62*(F175/K145)^4,0) -> 0 | AP175: =IFERROR(AP62*(F175/L145)^4,0) -> 0 | AQ175: =IFERROR(AQ62*(F175/G145)^4,0) -> 0 | AR175: =IFERROR(AR62*(F175/H145)^4,0) -> 0 | AS175: =IFERROR(AS62*(F175/I145)^4,0) -> 0 | AT175: =IFERROR(AT62*(F175/J145)^4,0) -> 0.0002176734396 | AU175: =IFERROR(AU62*(F175/K145)^4,0) -> 7.010085059e-07 | AV175: =IFERROR(AV62*(F175/L145)^4,0) -> 2.948323153e-07 | AW175: =IFERROR(AW62*(F175/G145)^4,0) -> 0 | AX175: =IFERROR(AX62*(F175/H145)^4,0) -> 0 | AY175: =IFERROR(AY62*(F175/I145)^4,0) -> 0 | AZ175: =IFERROR(AZ62*(F175/J145)^4,0) -> 0.001576623733 | BA175: =IFERROR(BA62*(F175/K145)^4,0) -> 0.0002105256411 | BB175: =IFERROR(BB62*(F175/L145)^4,0) -> 2.746211024e-06 | BC175: =IFERROR(BC62*(F175/G145)^4,0) -> 0 | BD175: =IFERROR(BD62*(F175/H145)^4,0) -> 0 | BE175: =IFERROR(BE62*(F175/I145)^4,0) -> 0 | BF175: =IFERROR(BF62*(F175/J145)^4,0) -> 0.0009236588789 | BG175: =IFERROR(BG62*(F175/K145)^4,0) -> 0.003735397923 | BH175: =IFERROR(BH62*(F175/L145)^4,0) -> 4.881061006e-05 | BI175: =IFERROR(BI62*(F175/G145)^4,0) -> 0 | BJ175: =IFERROR(BJ62*(F175/H145)^4,0) -> 0 | BK175: =IFERROR(BK62*(F175/I145)^4,0) -> 0 | BL175: =IFERROR(BL62*(F175/J145)^4,0) -> 0.001846244292 | BM175: =IFERROR(BM62*(F175/K145)^4,0) -> 0.00781944288 | BN175: =IFERROR(BN62*(F175/L145)^4,0) -> 8.018475753e-05 | BO175: =IFERROR(BO62*(F175/G145)^4,0) -> 0 | BP175: =IFERROR(BP62*(F175/H145)^4,0) -> 0 | BQ175: =IFERROR(BQ62*(F175/I145)^4,0) -> 0 | BR175: =IFERROR(BR62*(F175/J145)^4,0) -> 0.00208367941 | BS175: =IFERROR(BS62*(F175/K145)^4,0) -> 0.01062843632 | BT175: =IFERROR(BT62*(F175/L145)^4,0) -> 7.056447279e-06 | BU175: =IFERROR(BU62*(F175/G145)^4,0) -> 0 | BV175: =IFERROR(BV62*(F175/H145)^4,0) -> 0 | BW175: =IFERROR(BW62*(F175/I145)^4,0) -> 0 | BX175: =IFERROR(BX62*(F175/J145)^4,0) -> 0.001673758228 | BY175: =IFERROR(BY62*(F175/K145)^4,0) -> 0.01094027292 | BZ175: =IFERROR(BZ62*(F175/L145)^4,0) -> 8.185776936e-06
F176: 270 | G176: =IFERROR(G63*(F176/G145)^4,0) -> 0 | H176: =IFERROR(H63*(F176/H145)^4,0) -> 0 | I176: =IFERROR(I63*(F176/I145)^4,0) -> 0 | J176: =IFERROR(J63*(F176/J145)^4,0) -> 0 | K176: =IFERROR(K63*(F176/K145)^4,0) -> 0 | L176: =IFERROR(L63*(F176/L145)^4,0) -> 0 | R176: 270 | S176: =IFERROR(S63*(F176/G145)^4,0) -> 0 | T176: =IFERROR(T63*(F176/H145)^4,0) -> 0 | U176: =IFERROR(U63*(F176/I145)^4,0) -> 0 | V176: =IFERROR(V63*(F176/J145)^4,0) -> 0 | W176: =IFERROR(W63*(F176/K145)^4,0) -> 0 | X176: =IFERROR(X63*(F176/L145)^4,0) -> 0 | Y176: =IFERROR(Y63*(F176/G145)^4,0) -> 0 | Z176: =IFERROR(Z63*(F176/H145)^4,0) -> 0 | AA176: =IFERROR(AA63*(F176/I145)^4,0) -> 0 | AB176: =IFERROR(AB63*(F176/J145)^4,0) -> 0.003770906949 | AC176: =IFERROR(AC63*(F176/K145)^4,0) -> 0 | AD176: =IFERROR(AD63*(F176/L145)^4,0) -> 0 | AE176: =IFERROR(AE63*(F176/G145)^4,0) -> 0 | AF176: =IFERROR(AF63*(F176/H145)^4,0) -> 0 | AG176: =IFERROR(AG63*(F176/I145)^4,0) -> 0 | AH176: =IFERROR(AH63*(F176/J145)^4,0) -> 0.007010191445 | AI176: =IFERROR(AI63*(F176/K145)^4,0) -> 0.0006798144137 | AJ176: =IFERROR(AJ63*(F176/L145)^4,0) -> 1.162743605e-05 | AK176: =IFERROR(AK63*(F176/G145)^4,0) -> 0 | AL176: =IFERROR(AL63*(F176/H145)^4,0) -> 0 | AM176: =IFERROR(AM63*(F176/I145)^4,0) -> 0 | AN176: =IFERROR(AN63*(F176/J145)^4,0) -> 0 | AO176: =IFERROR(AO63*(F176/K145)^4,0) -> 0 | AP176: =IFERROR(AP63*(F176/L145)^4,0) -> 0 | AQ176: =IFERROR(AQ63*(F176/G145)^4,0) -> 0 | AR176: =IFERROR(AR63*(F176/H145)^4,0) -> 0 | AS176: =IFERROR(AS63*(F176/I145)^4,0) -> 0 | AT176: =IFERROR(AT63*(F176/J145)^4,0) -> 0.0001992833296 | AU176: =IFERROR(AU63*(F176/K145)^4,0) -> 0 | AV176: =IFERROR(AV63*(F176/L145)^4,0) -> 3.42875732e-07 | AW176: =IFERROR(AW63*(F176/G145)^4,0) -> 0 | AX176: =IFERROR(AX63*(F176/H145)^4,0) -> 0 | AY176: =IFERROR(AY63*(F176/I145)^4,0) -> 0 | AZ176: =IFERROR(AZ63*(F176/J145)^4,0) -> 0.0009853703296 | BA176: =IFERROR(BA63*(F176/K145)^4,0) -> 0.0001548289502 | BB176: =IFERROR(BB63*(F176/L145)^4,0) -> 2.661425568e-06 | BC176: =IFERROR(BC63*(F176/G145)^4,0) -> 0 | BD176: =IFERROR(BD63*(F176/H145)^4,0) -> 0 | BE176: =IFERROR(BE63*(F176/I145)^4,0) -> 0 | BF176: =IFERROR(BF63*(F176/J145)^4,0) -> 0.000728605219 | BG176: =IFERROR(BG63*(F176/K145)^4,0) -> 0.002363691977 | BH176: =IFERROR(BH63*(F176/L145)^4,0) -> 4.07959804e-05 | BI176: =IFERROR(BI63*(F176/G145)^4,0) -> 0 | BJ176: =IFERROR(BJ63*(F176/H145)^4,0) -> 0 | BK176: =IFERROR(BK63*(F176/I145)^4,0) -> 0 | BL176: =IFERROR(BL63*(F176/J145)^4,0) -> 0.001256379225 | BM176: =IFERROR(BM63*(F176/K145)^4,0) -> 0.005248719946 | BN176: =IFERROR(BN63*(F176/L145)^4,0) -> 7.279855269e-05 | BO176: =IFERROR(BO63*(F176/G145)^4,0) -> 0 | BP176: =IFERROR(BP63*(F176/H145)^4,0) -> 0 | BQ176: =IFERROR(BQ63*(F176/I145)^4,0) -> 0 | BR176: =IFERROR(BR63*(F176/J145)^4,0) -> 0.001442959799 | BS176: =IFERROR(BS63*(F176/K145)^4,0) -> 0.007922787851 | BT176: =IFERROR(BT63*(F176/L145)^4,0) -> 1.063780551e-05 | BU176: =IFERROR(BU63*(F176/G145)^4,0) -> 0 | BV176: =IFERROR(BV63*(F176/H145)^4,0) -> 0 | BW176: =IFERROR(BW63*(F176/I145)^4,0) -> 0 | BX176: =IFERROR(BX63*(F176/J145)^4,0) -> 0.00101880634 | BY176: =IFERROR(BY63*(F176/K145)^4,0) -> 0.007199006249 | BZ176: =IFERROR(BZ63*(F176/L145)^4,0) -> 4.230961296e-06
F177: 280 | G177: =IFERROR(G64*(F177/G145)^4,0) -> 0 | H177: =IFERROR(H64*(F177/H145)^4,0) -> 0 | I177: =IFERROR(I64*(F177/I145)^4,0) -> 0 | J177: =IFERROR(J64*(F177/J145)^4,0) -> 0 | K177: =IFERROR(K64*(F177/K145)^4,0) -> 0 | L177: =IFERROR(L64*(F177/L145)^4,0) -> 0 | R177: 280 | S177: =IFERROR(S64*(F177/G145)^4,0) -> 0 | T177: =IFERROR(T64*(F177/H145)^4,0) -> 0 | U177: =IFERROR(U64*(F177/I145)^4,0) -> 0 | V177: =IFERROR(V64*(F177/J145)^4,0) -> 0 | W177: =IFERROR(W64*(F177/K145)^4,0) -> 0 | X177: =IFERROR(X64*(F177/L145)^4,0) -> 0 | Y177: =IFERROR(Y64*(F177/G145)^4,0) -> 0 | Z177: =IFERROR(Z64*(F177/H145)^4,0) -> 0 | AA177: =IFERROR(AA64*(F177/I145)^4,0) -> 0 | AB177: =IFERROR(AB64*(F177/J145)^4,0) -> 0.002380072438 | AC177: =IFERROR(AC64*(F177/K145)^4,0) -> 3.80809939e-07 | AD177: =IFERROR(AD64*(F177/L145)^4,0) -> 0 | AE177: =IFERROR(AE64*(F177/G145)^4,0) -> 0 | AF177: =IFERROR(AF64*(F177/H145)^4,0) -> 0 | AG177: =IFERROR(AG64*(F177/I145)^4,0) -> 0 | AH177: =IFERROR(AH64*(F177/J145)^4,0) -> 0.004613895759 | AI177: =IFERROR(AI64*(F177/K145)^4,0) -> 0.0005505110237 | AJ177: =IFERROR(AJ64*(F177/L145)^4,0) -> 2.635828199e-05 | AK177: =IFERROR(AK64*(F177/G145)^4,0) -> 0 | AL177: =IFERROR(AL64*(F177/H145)^4,0) -> 0 | AM177: =IFERROR(AM64*(F177/I145)^4,0) -> 0 | AN177: =IFERROR(AN64*(F177/J145)^4,0) -> 0 | AO177: =IFERROR(AO64*(F177/K145)^4,0) -> 0 | AP177: =IFERROR(AP64*(F177/L145)^4,0) -> 0 | AQ177: =IFERROR(AQ64*(F177/G145)^4,0) -> 0 | AR177: =IFERROR(AR64*(F177/H145)^4,0) -> 0 | AS177: =IFERROR(AS64*(F177/I145)^4,0) -> 0 | AT177: =IFERROR(AT64*(F177/J145)^4,0) -> 9.344102086e-05 | AU177: =IFERROR(AU64*(F177/K145)^4,0) -> 0 | AV177: =IFERROR(AV64*(F177/L145)^4,0) -> 0 | AW177: =IFERROR(AW64*(F177/G145)^4,0) -> 0 | AX177: =IFERROR(AX64*(F177/H145)^4,0) -> 0 | AY177: =IFERROR(AY64*(F177/I145)^4,0) -> 0 | AZ177: =IFERROR(AZ64*(F177/J145)^4,0) -> 0.0006660057478 | BA177: =IFERROR(BA64*(F177/K145)^4,0) -> 0.0001557786386 | BB177: =IFERROR(BB64*(F177/L145)^4,0) -> 3.385977585e-06 | BC177: =IFERROR(BC64*(F177/G145)^4,0) -> 0 | BD177: =IFERROR(BD64*(F177/H145)^4,0) -> 0 | BE177: =IFERROR(BE64*(F177/I145)^4,0) -> 0 | BF177: =IFERROR(BF64*(F177/J145)^4,0) -> 0.0004847055876 | BG177: =IFERROR(BG64*(F177/K145)^4,0) -> 0.001626522384 | BH177: =IFERROR(BH64*(F177/L145)^4,0) -> 3.30582926e-05 | BI177: =IFERROR(BI64*(F177/G145)^4,0) -> 0 | BJ177: =IFERROR(BJ64*(F177/H145)^4,0) -> 0 | BK177: =IFERROR(BK64*(F177/I145)^4,0) -> 0 | BL177: =IFERROR(BL64*(F177/J145)^4,0) -> 0.0008269980445 | BM177: =IFERROR(BM64*(F177/K145)^4,0) -> 0.003813354306 | BN177: =IFERROR(BN64*(F177/L145)^4,0) -> 6.019134425e-05 | BO177: =IFERROR(BO64*(F177/G145)^4,0) -> 0 | BP177: =IFERROR(BP64*(F177/H145)^4,0) -> 0 | BQ177: =IFERROR(BQ64*(F177/I145)^4,0) -> 0 | BR177: =IFERROR(BR64*(F177/J145)^4,0) -> 0.0009489304185 | BS177: =IFERROR(BS64*(F177/K145)^4,0) -> 0.005964163799 | BT177: =IFERROR(BT64*(F177/L145)^4,0) -> 1.335809929e-05 | BU177: =IFERROR(BU64*(F177/G145)^4,0) -> 0 | BV177: =IFERROR(BV64*(F177/H145)^4,0) -> 0 | BW177: =IFERROR(BW64*(F177/I145)^4,0) -> 0 | BX177: =IFERROR(BX64*(F177/J145)^4,0) -> 0.0006897569618 | BY177: =IFERROR(BY64*(F177/K145)^4,0) -> 0.004933109328 | BZ177: =IFERROR(BZ64*(F177/L145)^4,0) -> 2.446730443e-06
F178: 290 | G178: =IFERROR(G65*(F178/G145)^4,0) -> 0 | H178: =IFERROR(H65*(F178/H145)^4,0) -> 0 | I178: =IFERROR(I65*(F178/I145)^4,0) -> 0 | J178: =IFERROR(J65*(F178/J145)^4,0) -> 0 | K178: =IFERROR(K65*(F178/K145)^4,0) -> 0 | L178: =IFERROR(L65*(F178/L145)^4,0) -> 0 | R178: 290 | S178: =IFERROR(S65*(F178/G145)^4,0) -> 0 | T178: =IFERROR(T65*(F178/H145)^4,0) -> 0 | U178: =IFERROR(U65*(F178/I145)^4,0) -> 0 | V178: =IFERROR(V65*(F178/J145)^4,0) -> 0 | W178: =IFERROR(W65*(F178/K145)^4,0) -> 0 | X178: =IFERROR(X65*(F178/L145)^4,0) -> 0 | Y178: =IFERROR(Y65*(F178/G145)^4,0) -> 0 | Z178: =IFERROR(Z65*(F178/H145)^4,0) -> 0 | AA178: =IFERROR(AA65*(F178/I145)^4,0) -> 0 | AB178: =IFERROR(AB65*(F178/J145)^4,0) -> 0.001262250043 | AC178: =IFERROR(AC65*(F178/K145)^4,0) -> 8.763914596e-07 | AD178: =IFERROR(AD65*(F178/L145)^4,0) -> 0 | AE178: =IFERROR(AE65*(F178/G145)^4,0) -> 0 | AF178: =IFERROR(AF65*(F178/H145)^4,0) -> 0 | AG178: =IFERROR(AG65*(F178/I145)^4,0) -> 0 | AH178: =IFERROR(AH65*(F178/J145)^4,0) -> 0.002567713661 | AI178: =IFERROR(AI65*(F178/K145)^4,0) -> 0.0003328648958 | AJ178: =IFERROR(AJ65*(F178/L145)^4,0) -> 3.961510944e-05 | AK178: =IFERROR(AK65*(F178/G145)^4,0) -> 0 | AL178: =IFERROR(AL65*(F178/H145)^4,0) -> 0 | AM178: =IFERROR(AM65*(F178/I145)^4,0) -> 0 | AN178: =IFERROR(AN65*(F178/J145)^4,0) -> 0 | AO178: =IFERROR(AO65*(F178/K145)^4,0) -> 0 | AP178: =IFERROR(AP65*(F178/L145)^4,0) -> 0 | AQ178: =IFERROR(AQ65*(F178/G145)^4,0) -> 0 | AR178: =IFERROR(AR65*(F178/H145)^4,0) -> 0 | AS178: =IFERROR(AS65*(F178/I145)^4,0) -> 0 | AT178: =IFERROR(AT65*(F178/J145)^4,0) -> 7.52654185e-05 | AU178: =IFERROR(AU65*(F178/K145)^4,0) -> 0 | AV178: =IFERROR(AV65*(F178/L145)^4,0) -> 0 | AW178: =IFERROR(AW65*(F178/G145)^4,0) -> 0 | AX178: =IFERROR(AX65*(F178/H145)^4,0) -> 0 | AY178: =IFERROR(AY65*(F178/I145)^4,0) -> 0 | AZ178: =IFERROR(AZ65*(F178/J145)^4,0) -> 0.00048693472 | BA178: =IFERROR(BA65*(F178/K145)^4,0) -> 0.0001264826465 | BB178: =IFERROR(BB65*(F178/L145)^4,0) -> 3.542022045e-06 | BC178: =IFERROR(BC65*(F178/G145)^4,0) -> 0 | BD178: =IFERROR(BD65*(F178/H145)^4,0) -> 0 | BE178: =IFERROR(BE65*(F178/I145)^4,0) -> 0 | BF178: =IFERROR(BF65*(F178/J145)^4,0) -> 0.000368151642 | BG178: =IFERROR(BG65*(F178/K145)^4,0) -> 0.001136301279 | BH178: =IFERROR(BH65*(F178/L145)^4,0) -> 2.692881272e-05 | BI178: =IFERROR(BI65*(F178/G145)^4,0) -> 0 | BJ178: =IFERROR(BJ65*(F178/H145)^4,0) -> 0 | BK178: =IFERROR(BK65*(F178/I145)^4,0) -> 0 | BL178: =IFERROR(BL65*(F178/J145)^4,0) -> 0.0005522474055 | BM178: =IFERROR(BM65*(F178/K145)^4,0) -> 0.002819967599 | BN178: =IFERROR(BN65*(F178/L145)^4,0) -> 4.824072392e-05 | BO178: =IFERROR(BO65*(F178/G145)^4,0) -> 0 | BP178: =IFERROR(BP65*(F178/H145)^4,0) -> 0 | BQ178: =IFERROR(BQ65*(F178/I145)^4,0) -> 0 | BR178: =IFERROR(BR65*(F178/J145)^4,0) -> 0.0006157969336 | BS178: =IFERROR(BS65*(F178/K145)^4,0) -> 0.004447161825 | BT178: =IFERROR(BT65*(F178/L145)^4,0) -> 1.173056512e-05 | BU178: =IFERROR(BU65*(F178/G145)^4,0) -> 0 | BV178: =IFERROR(BV65*(F178/H145)^4,0) -> 0 | BW178: =IFERROR(BW65*(F178/I145)^4,0) -> 0 | BX178: =IFERROR(BX65*(F178/J145)^4,0) -> 0.0005732272214 | BY178: =IFERROR(BY65*(F178/K145)^4,0) -> 0.00339722312 | BZ178: =IFERROR(BZ65*(F178/L145)^4,0) -> 1.266947169e-05
F179: 300 | G179: =IFERROR(G66*(F179/G145)^4,0) -> 0 | H179: =IFERROR(H66*(F179/H145)^4,0) -> 0 | I179: =IFERROR(I66*(F179/I145)^4,0) -> 0 | J179: =IFERROR(J66*(F179/J145)^4,0) -> 0 | K179: =IFERROR(K66*(F179/K145)^4,0) -> 0 | L179: =IFERROR(L66*(F179/L145)^4,0) -> 0 | R179: 300 | S179: =IFERROR(S66*(F179/G145)^4,0) -> 0 | T179: =IFERROR(T66*(F179/H145)^4,0) -> 0 | U179: =IFERROR(U66*(F179/I145)^4,0) -> 0 | V179: =IFERROR(V66*(F179/J145)^4,0) -> 0 | W179: =IFERROR(W66*(F179/K145)^4,0) -> 0 | X179: =IFERROR(X66*(F179/L145)^4,0) -> 0 | Y179: =IFERROR(Y66*(F179/G145)^4,0) -> 0 | Z179: =IFERROR(Z66*(F179/H145)^4,0) -> 0 | AA179: =IFERROR(AA66*(F179/I145)^4,0) -> 0 | AB179: =IFERROR(AB66*(F179/J145)^4,0) -> 0.0005652965246 | AC179: =IFERROR(AC66*(F179/K145)^4,0) -> 5.018352552e-07 | AD179: =IFERROR(AD66*(F179/L145)^4,0) -> 0 | AE179: =IFERROR(AE66*(F179/G145)^4,0) -> 0 | AF179: =IFERROR(AF66*(F179/H145)^4,0) -> 0 | AG179: =IFERROR(AG66*(F179/I145)^4,0) -> 0 | AH179: =IFERROR(AH66*(F179/J145)^4,0) -> 0.001403982528 | AI179: =IFERROR(AI66*(F179/K145)^4,0) -> 0.0002686922557 | AJ179: =IFERROR(AJ66*(F179/L145)^4,0) -> 3.686186098e-05 | AK179: =IFERROR(AK66*(F179/G145)^4,0) -> 0 | AL179: =IFERROR(AL66*(F179/H145)^4,0) -> 0 | AM179: =IFERROR(AM66*(F179/I145)^4,0) -> 0 | AN179: =IFERROR(AN66*(F179/J145)^4,0) -> 0 | AO179: =IFERROR(AO66*(F179/K145)^4,0) -> 0 | AP179: =IFERROR(AP66*(F179/L145)^4,0) -> 0 | AQ179: =IFERROR(AQ66*(F179/G145)^4,0) -> 0 | AR179: =IFERROR(AR66*(F179/H145)^4,0) -> 0 | AS179: =IFERROR(AS66*(F179/I145)^4,0) -> 0 | AT179: =IFERROR(AT66*(F179/J145)^4,0) -> 5.335960004e-05 | AU179: =IFERROR(AU66*(F179/K145)^4,0) -> 1.242552978e-06 | AV179: =IFERROR(AV66*(F179/L145)^4,0) -> 0 | AW179: =IFERROR(AW66*(F179/G145)^4,0) -> 0 | AX179: =IFERROR(AX66*(F179/H145)^4,0) -> 0 | AY179: =IFERROR(AY66*(F179/I145)^4,0) -> 0 | AZ179: =IFERROR(AZ66*(F179/J145)^4,0) -> 0.0002756578435 | BA179: =IFERROR(BA66*(F179/K145)^4,0) -> 0.0001112768987 | BB179: =IFERROR(BB66*(F179/L145)^4,0) -> 4.462076094e-06 | BC179: =IFERROR(BC66*(F179/G145)^4,0) -> 0 | BD179: =IFERROR(BD66*(F179/H145)^4,0) -> 0 | BE179: =IFERROR(BE66*(F179/I145)^4,0) -> 0 | BF179: =IFERROR(BF66*(F179/J145)^4,0) -> 0.000265528161 | BG179: =IFERROR(BG66*(F179/K145)^4,0) -> 0.0008283933254 | BH179: =IFERROR(BH66*(F179/L145)^4,0) -> 2.1726712e-05 | BI179: =IFERROR(BI66*(F179/G145)^4,0) -> 0 | BJ179: =IFERROR(BJ66*(F179/H145)^4,0) -> 0 | BK179: =IFERROR(BK66*(F179/I145)^4,0) -> 0 | BL179: =IFERROR(BL66*(F179/J145)^4,0) -> 0.0003234949235 | BM179: =IFERROR(BM66*(F179/K145)^4,0) -> 0.002082403707 | BN179: =IFERROR(BN66*(F179/L145)^4,0) -> 3.742273808e-05 | BO179: =IFERROR(BO66*(F179/G145)^4,0) -> 0 | BP179: =IFERROR(BP66*(F179/H145)^4,0) -> 0 | BQ179: =IFERROR(BQ66*(F179/I145)^4,0) -> 0 | BR179: =IFERROR(BR66*(F179/J145)^4,0) -> 0.0002653699114 | BS179: =IFERROR(BS66*(F179/K145)^4,0) -> 0.003224409784 | BT179: =IFERROR(BT66*(F179/L145)^4,0) -> 9.728217206e-06 | BU179: =IFERROR(BU66*(F179/G145)^4,0) -> 0 | BV179: =IFERROR(BV66*(F179/H145)^4,0) -> 0 | BW179: =IFERROR(BW66*(F179/I145)^4,0) -> 0 | BX179: =IFERROR(BX66*(F179/J145)^4,0) -> 0.0003408633075 | BY179: =IFERROR(BY66*(F179/K145)^4,0) -> 0.002224294587 | BZ179: =IFERROR(BZ66*(F179/L145)^4,0) -> 1.128514292e-05
F180: 310 | G180: =IFERROR(G67*(F180/G145)^4,0) -> 0 | H180: =IFERROR(H67*(F180/H145)^4,0) -> 0 | I180: =IFERROR(I67*(F180/I145)^4,0) -> 0 | J180: =IFERROR(J67*(F180/J145)^4,0) -> 0 | K180: =IFERROR(K67*(F180/K145)^4,0) -> 0 | L180: =IFERROR(L67*(F180/L145)^4,0) -> 0 | R180: 310 | S180: =IFERROR(S67*(F180/G145)^4,0) -> 0 | T180: =IFERROR(T67*(F180/H145)^4,0) -> 0 | U180: =IFERROR(U67*(F180/I145)^4,0) -> 0 | V180: =IFERROR(V67*(F180/J145)^4,0) -> 0 | W180: =IFERROR(W67*(F180/K145)^4,0) -> 0 | X180: =IFERROR(X67*(F180/L145)^4,0) -> 0 | Y180: =IFERROR(Y67*(F180/G145)^4,0) -> 0 | Z180: =IFERROR(Z67*(F180/H145)^4,0) -> 0 | AA180: =IFERROR(AA67*(F180/I145)^4,0) -> 0 | AB180: =IFERROR(AB67*(F180/J145)^4,0) -> 0.0003232062894 | AC180: =IFERROR(AC67*(F180/K145)^4,0) -> 5.721671564e-07 | AD180: =IFERROR(AD67*(F180/L145)^4,0) -> 0 | AE180: =IFERROR(AE67*(F180/G145)^4,0) -> 0 | AF180: =IFERROR(AF67*(F180/H145)^4,0) -> 0 | AG180: =IFERROR(AG67*(F180/I145)^4,0) -> 0 | AH180: =IFERROR(AH67*(F180/J145)^4,0) -> 0.0008949073758 | AI180: =IFERROR(AI67*(F180/K145)^4,0) -> 0.0001914683184 | AJ180: =IFERROR(AJ67*(F180/L145)^4,0) -> 5.091857244e-05 | AK180: =IFERROR(AK67*(F180/G145)^4,0) -> 0 | AL180: =IFERROR(AL67*(F180/H145)^4,0) -> 0 | AM180: =IFERROR(AM67*(F180/I145)^4,0) -> 0 | AN180: =IFERROR(AN67*(F180/J145)^4,0) -> 0 | AO180: =IFERROR(AO67*(F180/K145)^4,0) -> 0 | AP180: =IFERROR(AP67*(F180/L145)^4,0) -> 0 | AQ180: =IFERROR(AQ67*(F180/G145)^4,0) -> 0 | AR180: =IFERROR(AR67*(F180/H145)^4,0) -> 0 | AS180: =IFERROR(AS67*(F180/I145)^4,0) -> 0 | AT180: =IFERROR(AT67*(F180/J145)^4,0) -> 2.807903771e-05 | AU180: =IFERROR(AU67*(F180/K145)^4,0) -> 0 | AV180: =IFERROR(AV67*(F180/L145)^4,0) -> 0 | AW180: =IFERROR(AW67*(F180/G145)^4,0) -> 0 | AX180: =IFERROR(AX67*(F180/H145)^4,0) -> 0 | AY180: =IFERROR(AY67*(F180/I145)^4,0) -> 0 | AZ180: =IFERROR(AZ67*(F180/J145)^4,0) -> 0.0003106785785 | BA180: =IFERROR(BA67*(F180/K145)^4,0) -> 0.0001148412946 | BB180: =IFERROR(BB67*(F180/L145)^4,0) -> 1.479980598e-05 | BC180: =IFERROR(BC67*(F180/G145)^4,0) -> 0 | BD180: =IFERROR(BD67*(F180/H145)^4,0) -> 0 | BE180: =IFERROR(BE67*(F180/I145)^4,0) -> 0 | BF180: =IFERROR(BF67*(F180/J145)^4,0) -> 0.0002067989751 | BG180: =IFERROR(BG67*(F180/K145)^4,0) -> 0.0006609639058 | BH180: =IFERROR(BH67*(F180/L145)^4,0) -> 1.767596813e-05 | BI180: =IFERROR(BI67*(F180/G145)^4,0) -> 0 | BJ180: =IFERROR(BJ67*(F180/H145)^4,0) -> 0 | BK180: =IFERROR(BK67*(F180/I145)^4,0) -> 0 | BL180: =IFERROR(BL67*(F180/J145)^4,0) -> 0.0002666092873 | BM180: =IFERROR(BM67*(F180/K145)^4,0) -> 0.001640543876 | BN180: =IFERROR(BN67*(F180/L145)^4,0) -> 2.815176031e-05 | BO180: =IFERROR(BO67*(F180/G145)^4,0) -> 0 | BP180: =IFERROR(BP67*(F180/H145)^4,0) -> 0 | BQ180: =IFERROR(BQ67*(F180/I145)^4,0) -> 0 | BR180: =IFERROR(BR67*(F180/J145)^4,0) -> 0.0001740763878 | BS180: =IFERROR(BS67*(F180/K145)^4,0) -> 0.002272285079 | BT180: =IFERROR(BT67*(F180/L145)^4,0) -> 1.426065537e-05 | BU180: =IFERROR(BU67*(F180/G145)^4,0) -> 0 | BV180: =IFERROR(BV67*(F180/H145)^4,0) -> 0 | BW180: =IFERROR(BW67*(F180/I145)^4,0) -> 0 | BX180: =IFERROR(BX67*(F180/J145)^4,0) -> 0.0003022717364 | BY180: =IFERROR(BY67*(F180/K145)^4,0) -> 0.0016906854 | BZ180: =IFERROR(BZ67*(F180/L145)^4,0) -> 5.514320884e-06
F181: 320 | G181: =IFERROR(G68*(F181/G145)^4,0) -> 0 | H181: =IFERROR(H68*(F181/H145)^4,0) -> 0 | I181: =IFERROR(I68*(F181/I145)^4,0) -> 0 | J181: =IFERROR(J68*(F181/J145)^4,0) -> 0 | K181: =IFERROR(K68*(F181/K145)^4,0) -> 0 | L181: =IFERROR(L68*(F181/L145)^4,0) -> 0 | R181: 320 | S181: =IFERROR(S68*(F181/G145)^4,0) -> 0 | T181: =IFERROR(T68*(F181/H145)^4,0) -> 0 | U181: =IFERROR(U68*(F181/I145)^4,0) -> 0 | V181: =IFERROR(V68*(F181/J145)^4,0) -> 0 | W181: =IFERROR(W68*(F181/K145)^4,0) -> 0 | X181: =IFERROR(X68*(F181/L145)^4,0) -> 0 | Y181: =IFERROR(Y68*(F181/G145)^4,0) -> 0 | Z181: =IFERROR(Z68*(F181/H145)^4,0) -> 0 | AA181: =IFERROR(AA68*(F181/I145)^4,0) -> 0 | AB181: =IFERROR(AB68*(F181/J145)^4,0) -> 0.0002403559367 | AC181: =IFERROR(AC68*(F181/K145)^4,0) -> 1.299289888e-06 | AD181: =IFERROR(AD68*(F181/L145)^4,0) -> 0 | AE181: =IFERROR(AE68*(F181/G145)^4,0) -> 0 | AF181: =IFERROR(AF68*(F181/H145)^4,0) -> 0 | AG181: =IFERROR(AG68*(F181/I145)^4,0) -> 0 | AH181: =IFERROR(AH68*(F181/J145)^4,0) -> 0.0007513325085 | AI181: =IFERROR(AI68*(F181/K145)^4,0) -> 0.0001369590108 | AJ181: =IFERROR(AJ68*(F181/L145)^4,0) -> 5.781351265e-05 | AK181: =IFERROR(AK68*(F181/G145)^4,0) -> 0 | AL181: =IFERROR(AL68*(F181/H145)^4,0) -> 0 | AM181: =IFERROR(AM68*(F181/I145)^4,0) -> 0 | AN181: =IFERROR(AN68*(F181/J145)^4,0) -> 0 | AO181: =IFERROR(AO68*(F181/K145)^4,0) -> 0 | AP181: =IFERROR(AP68*(F181/L145)^4,0) -> 0 | AQ181: =IFERROR(AQ68*(F181/G145)^4,0) -> 0 | AR181: =IFERROR(AR68*(F181/H145)^4,0) -> 0 | AS181: =IFERROR(AS68*(F181/I145)^4,0) -> 0 | AT181: =IFERROR(AT68*(F181/J145)^4,0) -> 3.188125127e-05 | AU181: =IFERROR(AU68*(F181/K145)^4,0) -> 0 | AV181: =IFERROR(AV68*(F181/L145)^4,0) -> 1.353043004e-06 | AW181: =IFERROR(AW68*(F181/G145)^4,0) -> 0 | AX181: =IFERROR(AX68*(F181/H145)^4,0) -> 0 | AY181: =IFERROR(AY68*(F181/I145)^4,0) -> 0 | AZ181: =IFERROR(AZ68*(F181/J145)^4,0) -> 0.0001927808337 | BA181: =IFERROR(BA68*(F181/K145)^4,0) -> 0.0001378430574 | BB181: =IFERROR(BB68*(F181/L145)^4,0) -> 1.470338106e-05 | BC181: =IFERROR(BC68*(F181/G145)^4,0) -> 0 | BD181: =IFERROR(BD68*(F181/H145)^4,0) -> 0 | BE181: =IFERROR(BE68*(F181/I145)^4,0) -> 0 | BF181: =IFERROR(BF68*(F181/J145)^4,0) -> 0.0001919053607 | BG181: =IFERROR(BG68*(F181/K145)^4,0) -> 0.0005038987988 | BH181: =IFERROR(BH68*(F181/L145)^4,0) -> 1.402706327e-05 | BI181: =IFERROR(BI68*(F181/G145)^4,0) -> 0 | BJ181: =IFERROR(BJ68*(F181/H145)^4,0) -> 0 | BK181: =IFERROR(BK68*(F181/I145)^4,0) -> 0 | BL181: =IFERROR(BL68*(F181/J145)^4,0) -> 0.000268205212 | BM181: =IFERROR(BM68*(F181/K145)^4,0) -> 0.001178248673 | BN181: =IFERROR(BN68*(F181/L145)^4,0) -> 2.177535327e-05 | BO181: =IFERROR(BO68*(F181/G145)^4,0) -> 0 | BP181: =IFERROR(BP68*(F181/H145)^4,0) -> 0 | BQ181: =IFERROR(BQ68*(F181/I145)^4,0) -> 0 | BR181: =IFERROR(BR68*(F181/J145)^4,0) -> 0.0001741187088 | BS181: =IFERROR(BS68*(F181/K145)^4,0) -> 0.001738030266 | BT181: =IFERROR(BT68*(F181/L145)^4,0) -> 1.559201365e-05 | BU181: =IFERROR(BU68*(F181/G145)^4,0) -> 0 | BV181: =IFERROR(BV68*(F181/H145)^4,0) -> 0 | BW181: =IFERROR(BW68*(F181/I145)^4,0) -> 0 | BX181: =IFERROR(BX68*(F181/J145)^4,0) -> 0.0001470868657 | BY181: =IFERROR(BY68*(F181/K145)^4,0) -> 0.001261607886 | BZ181: =IFERROR(BZ68*(F181/L145)^4,0) -> 6.261021174e-06
F182: 330 | G182: =IFERROR(G69*(F182/G145)^4,0) -> 0 | H182: =IFERROR(H69*(F182/H145)^4,0) -> 0 | I182: =IFERROR(I69*(F182/I145)^4,0) -> 0 | J182: =IFERROR(J69*(F182/J145)^4,0) -> 0 | K182: =IFERROR(K69*(F182/K145)^4,0) -> 0 | L182: =IFERROR(L69*(F182/L145)^4,0) -> 0 | R182: 330 | S182: =IFERROR(S69*(F182/G145)^4,0) -> 0 | T182: =IFERROR(T69*(F182/H145)^4,0) -> 0 | U182: =IFERROR(U69*(F182/I145)^4,0) -> 0 | V182: =IFERROR(V69*(F182/J145)^4,0) -> 0 | W182: =IFERROR(W69*(F182/K145)^4,0) -> 0 | X182: =IFERROR(X69*(F182/L145)^4,0) -> 0 | Y182: =IFERROR(Y69*(F182/G145)^4,0) -> 0 | Z182: =IFERROR(Z69*(F182/H145)^4,0) -> 0 | AA182: =IFERROR(AA69*(F182/I145)^4,0) -> 0 | AB182: =IFERROR(AB69*(F182/J145)^4,0) -> 0.0002014516225 | AC182: =IFERROR(AC69*(F182/K145)^4,0) -> 7.347369971e-07 | AD182: =IFERROR(AD69*(F182/L145)^4,0) -> 3.09017948e-07 | AE182: =IFERROR(AE69*(F182/G145)^4,0) -> 0 | AF182: =IFERROR(AF69*(F182/H145)^4,0) -> 0 | AG182: =IFERROR(AG69*(F182/I145)^4,0) -> 0 | AH182: =IFERROR(AH69*(F182/J145)^4,0) -> 0.0005584030967 | AI182: =IFERROR(AI69*(F182/K145)^4,0) -> 0.0001253938057 | AJ182: =IFERROR(AJ69*(F182/L145)^4,0) -> 6.642393928e-05 | AK182: =IFERROR(AK69*(F182/G145)^4,0) -> 0 | AL182: =IFERROR(AL69*(F182/H145)^4,0) -> 0 | AM182: =IFERROR(AM69*(F182/I145)^4,0) -> 0 | AN182: =IFERROR(AN69*(F182/J145)^4,0) -> 0 | AO182: =IFERROR(AO69*(F182/K145)^4,0) -> 0 | AP182: =IFERROR(AP69*(F182/L145)^4,0) -> 0 | AQ182: =IFERROR(AQ69*(F182/G145)^4,0) -> 0 | AR182: =IFERROR(AR69*(F182/H145)^4,0) -> 0 | AS182: =IFERROR(AS69*(F182/I145)^4,0) -> 0 | AT182: =IFERROR(AT69*(F182/J145)^4,0) -> 0 | AU182: =IFERROR(AU69*(F182/K145)^4,0) -> 0 | AV182: =IFERROR(AV69*(F182/L145)^4,0) -> 7.651339113e-07 | AW182: =IFERROR(AW69*(F182/G145)^4,0) -> 0 | AX182: =IFERROR(AX69*(F182/H145)^4,0) -> 0 | AY182: =IFERROR(AY69*(F182/I145)^4,0) -> 0 | AZ182: =IFERROR(AZ69*(F182/J145)^4,0) -> 0.000167003027 | BA182: =IFERROR(BA69*(F182/K145)^4,0) -> 0.0001558980717 | BB182: =IFERROR(BB69*(F182/L145)^4,0) -> 2.078658148e-05 | BC182: =IFERROR(BC69*(F182/G145)^4,0) -> 0 | BD182: =IFERROR(BD69*(F182/H145)^4,0) -> 0 | BE182: =IFERROR(BE69*(F182/I145)^4,0) -> 0 | BF182: =IFERROR(BF69*(F182/J145)^4,0) -> 0.0001781017714 | BG182: =IFERROR(BG69*(F182/K145)^4,0) -> 0.0003952007036 | BH182: =IFERROR(BH69*(F182/L145)^4,0) -> 1.228471083e-05 | BI182: =IFERROR(BI69*(F182/G145)^4,0) -> 0 | BJ182: =IFERROR(BJ69*(F182/H145)^4,0) -> 0 | BK182: =IFERROR(BK69*(F182/I145)^4,0) -> 0 | BL182: =IFERROR(BL69*(F182/J145)^4,0) -> 0.0002181886024 | BM182: =IFERROR(BM69*(F182/K145)^4,0) -> 0.0008916972063 | BN182: =IFERROR(BN69*(F182/L145)^4,0) -> 1.58158522e-05 | BO182: =IFERROR(BO69*(F182/G145)^4,0) -> 0 | BP182: =IFERROR(BP69*(F182/H145)^4,0) -> 0 | BQ182: =IFERROR(BQ69*(F182/I145)^4,0) -> 0 | BR182: =IFERROR(BR69*(F182/J145)^4,0) -> 0.0001064460513 | BS182: =IFERROR(BS69*(F182/K145)^4,0) -> 0.001152018338 | BT182: =IFERROR(BT69*(F182/L145)^4,0) -> 1.695605097e-05 | BU182: =IFERROR(BU69*(F182/G145)^4,0) -> 0 | BV182: =IFERROR(BV69*(F182/H145)^4,0) -> 0 | BW182: =IFERROR(BW69*(F182/I145)^4,0) -> 0 | BX182: =IFERROR(BX69*(F182/J145)^4,0) -> 0.0001478690277 | BY182: =IFERROR(BY69*(F182/K145)^4,0) -> 0.0009288554828 | BZ182: =IFERROR(BZ69*(F182/L145)^4,0) -> 1.41622095e-05
F183: 340 | G183: =IFERROR(G70*(F183/G145)^4,0) -> 0 | H183: =IFERROR(H70*(F183/H145)^4,0) -> 0 | I183: =IFERROR(I70*(F183/I145)^4,0) -> 0 | J183: =IFERROR(J70*(F183/J145)^4,0) -> 0 | K183: =IFERROR(K70*(F183/K145)^4,0) -> 0 | L183: =IFERROR(L70*(F183/L145)^4,0) -> 0 | R183: 340 | S183: =IFERROR(S70*(F183/G145)^4,0) -> 0 | T183: =IFERROR(T70*(F183/H145)^4,0) -> 0 | U183: =IFERROR(U70*(F183/I145)^4,0) -> 0 | V183: =IFERROR(V70*(F183/J145)^4,0) -> 0 | W183: =IFERROR(W70*(F183/K145)^4,0) -> 0 | X183: =IFERROR(X70*(F183/L145)^4,0) -> 0 | Y183: =IFERROR(Y70*(F183/G145)^4,0) -> 0 | Z183: =IFERROR(Z70*(F183/H145)^4,0) -> 0 | AA183: =IFERROR(AA70*(F183/I145)^4,0) -> 0 | AB183: =IFERROR(AB70*(F183/J145)^4,0) -> 0 | AC183: =IFERROR(AC70*(F183/K145)^4,0) -> 8.279265649e-07 | AD183: =IFERROR(AD70*(F183/L145)^4,0) -> 3.482119033e-07 | AE183: =IFERROR(AE70*(F183/G145)^4,0) -> 0 | AF183: =IFERROR(AF70*(F183/H145)^4,0) -> 0 | AG183: =IFERROR(AG70*(F183/I145)^4,0) -> 0 | AH183: =IFERROR(AH70*(F183/J145)^4,0) -> 0 | AI183: =IFERROR(AI70*(F183/K145)^4,0) -> 8.588701512e-05 | AJ183: =IFERROR(AJ70*(F183/L145)^4,0) -> 5.847558388e-05 | AK183: =IFERROR(AK70*(F183/G145)^4,0) -> 0 | AL183: =IFERROR(AL70*(F183/H145)^4,0) -> 0 | AM183: =IFERROR(AM70*(F183/I145)^4,0) -> 0 | AN183: =IFERROR(AN70*(F183/J145)^4,0) -> 0 | AO183: =IFERROR(AO70*(F183/K145)^4,0) -> 0 | AP183: =IFERROR(AP70*(F183/L145)^4,0) -> 0 | AQ183: =IFERROR(AQ70*(F183/G145)^4,0) -> 0 | AR183: =IFERROR(AR70*(F183/H145)^4,0) -> 0 | AS183: =IFERROR(AS70*(F183/I145)^4,0) -> 0 | AT183: =IFERROR(AT70*(F183/J145)^4,0) -> 0 | AU183: =IFERROR(AU70*(F183/K145)^4,0) -> 0 | AV183: =IFERROR(AV70*(F183/L145)^4,0) -> 0 | AW183: =IFERROR(AW70*(F183/G145)^4,0) -> 0 | AX183: =IFERROR(AX70*(F183/H145)^4,0) -> 0 | AY183: =IFERROR(AY70*(F183/I145)^4,0) -> 0 | AZ183: =IFERROR(AZ70*(F183/J145)^4,0) -> 0 | BA183: =IFERROR(BA70*(F183/K145)^4,0) -> 0.0001630102442 | BB183: =IFERROR(BB70*(F183/L145)^4,0) -> 3.346146419e-05 | BC183: =IFERROR(BC70*(F183/G145)^4,0) -> 0 | BD183: =IFERROR(BD70*(F183/H145)^4,0) -> 0 | BE183: =IFERROR(BE70*(F183/I145)^4,0) -> 0 | BF183: =IFERROR(BF70*(F183/J145)^4,0) -> 0 | BG183: =IFERROR(BG70*(F183/K145)^4,0) -> 0.0003081347972 | BH183: =IFERROR(BH70*(F183/L145)^4,0) -> 1.017585426e-05 | BI183: =IFERROR(BI70*(F183/G145)^4,0) -> 0 | BJ183: =IFERROR(BJ70*(F183/H145)^4,0) -> 0 | BK183: =IFERROR(BK70*(F183/I145)^4,0) -> 0 | BL183: =IFERROR(BL70*(F183/J145)^4,0) -> 0 | BM183: =IFERROR(BM70*(F183/K145)^4,0) -> 0.0006293203478 | BN183: =IFERROR(BN70*(F183/L145)^4,0) -> 1.451206858e-05 | BO183: =IFERROR(BO70*(F183/G145)^4,0) -> 0 | BP183: =IFERROR(BP70*(F183/H145)^4,0) -> 0 | BQ183: =IFERROR(BQ70*(F183/I145)^4,0) -> 0 | BR183: =IFERROR(BR70*(F183/J145)^4,0) -> 0 | BS183: =IFERROR(BS70*(F183/K145)^4,0) -> 0.0008551339846 | BT183: =IFERROR(BT70*(F183/L145)^4,0) -> 8.406927428e-06 | BU183: =IFERROR(BU70*(F183/G145)^4,0) -> 0 | BV183: =IFERROR(BV70*(F183/H145)^4,0) -> 0 | BW183: =IFERROR(BW70*(F183/I145)^4,0) -> 0 | BX183: =IFERROR(BX70*(F183/J145)^4,0) -> 0 | BY183: =IFERROR(BY70*(F183/K145)^4,0) -> 0.0005674694409 | BZ183: =IFERROR(BZ70*(F183/L145)^4,0) -> 5.319485977e-06
F184: 350 | G184: =IFERROR(G71*(F184/G145)^4,0) -> 0 | H184: =IFERROR(H71*(F184/H145)^4,0) -> 0 | I184: =IFERROR(I71*(F184/I145)^4,0) -> 0 | J184: =IFERROR(J71*(F184/J145)^4,0) -> 0 | K184: =IFERROR(K71*(F184/K145)^4,0) -> 0 | L184: =IFERROR(L71*(F184/L145)^4,0) -> 0 | R184: 350 | S184: =IFERROR(S71*(F184/G145)^4,0) -> 0 | T184: =IFERROR(T71*(F184/H145)^4,0) -> 0 | U184: =IFERROR(U71*(F184/I145)^4,0) -> 0 | V184: =IFERROR(V71*(F184/J145)^4,0) -> 0 | W184: =IFERROR(W71*(F184/K145)^4,0) -> 0 | X184: =IFERROR(X71*(F184/L145)^4,0) -> 0 | Y184: =IFERROR(Y71*(F184/G145)^4,0) -> 0 | Z184: =IFERROR(Z71*(F184/H145)^4,0) -> 0 | AA184: =IFERROR(AA71*(F184/I145)^4,0) -> 0 | AB184: =IFERROR(AB71*(F184/J145)^4,0) -> 0 | AC184: =IFERROR(AC71*(F184/K145)^4,0) -> 0 | AD184: =IFERROR(AD71*(F184/L145)^4,0) -> 0 | AE184: =IFERROR(AE71*(F184/G145)^4,0) -> 0 | AF184: =IFERROR(AF71*(F184/H145)^4,0) -> 0 | AG184: =IFERROR(AG71*(F184/I145)^4,0) -> 0 | AH184: =IFERROR(AH71*(F184/J145)^4,0) -> 0 | AI184: =IFERROR(AI71*(F184/K145)^4,0) -> 9.333479541e-05 | AJ184: =IFERROR(AJ71*(F184/L145)^4,0) -> 8.273735277e-05 | AK184: =IFERROR(AK71*(F184/G145)^4,0) -> 0 | AL184: =IFERROR(AL71*(F184/H145)^4,0) -> 0 | AM184: =IFERROR(AM71*(F184/I145)^4,0) -> 0 | AN184: =IFERROR(AN71*(F184/J145)^4,0) -> 0 | AO184: =IFERROR(AO71*(F184/K145)^4,0) -> 0 | AP184: =IFERROR(AP71*(F184/L145)^4,0) -> 0 | AQ184: =IFERROR(AQ71*(F184/G145)^4,0) -> 0 | AR184: =IFERROR(AR71*(F184/H145)^4,0) -> 0 | AS184: =IFERROR(AS71*(F184/I145)^4,0) -> 0 | AT184: =IFERROR(AT71*(F184/J145)^4,0) -> 0 | AU184: =IFERROR(AU71*(F184/K145)^4,0) -> 0 | AV184: =IFERROR(AV71*(F184/L145)^4,0) -> 0 | AW184: =IFERROR(AW71*(F184/G145)^4,0) -> 0 | AX184: =IFERROR(AX71*(F184/H145)^4,0) -> 0 | AY184: =IFERROR(AY71*(F184/I145)^4,0) -> 0 | AZ184: =IFERROR(AZ71*(F184/J145)^4,0) -> 0 | BA184: =IFERROR(BA71*(F184/K145)^4,0) -> 0.0001226262009 | BB184: =IFERROR(BB71*(F184/L145)^4,0) -> 3.456919586e-05 | BC184: =IFERROR(BC71*(F184/G145)^4,0) -> 0 | BD184: =IFERROR(BD71*(F184/H145)^4,0) -> 0 | BE184: =IFERROR(BE71*(F184/I145)^4,0) -> 0 | BF184: =IFERROR(BF71*(F184/J145)^4,0) -> 0 | BG184: =IFERROR(BG71*(F184/K145)^4,0) -> 0.0002354870893 | BH184: =IFERROR(BH71*(F184/L145)^4,0) -> 9.882700674e-06 | BI184: =IFERROR(BI71*(F184/G145)^4,0) -> 0 | BJ184: =IFERROR(BJ71*(F184/H145)^4,0) -> 0 | BK184: =IFERROR(BK71*(F184/I145)^4,0) -> 0 | BL184: =IFERROR(BL71*(F184/J145)^4,0) -> 0 | BM184: =IFERROR(BM71*(F184/K145)^4,0) -> 0.0004722584621 | BN184: =IFERROR(BN71*(F184/L145)^4,0) -> 1.215066104e-05 | BO184: =IFERROR(BO71*(F184/G145)^4,0) -> 0 | BP184: =IFERROR(BP71*(F184/H145)^4,0) -> 0 | BQ184: =IFERROR(BQ71*(F184/I145)^4,0) -> 0 | BR184: =IFERROR(BR71*(F184/J145)^4,0) -> 0 | BS184: =IFERROR(BS71*(F184/K145)^4,0) -> 0.0005769739481 | BT184: =IFERROR(BT71*(F184/L145)^4,0) -> 6.865799386e-06 | BU184: =IFERROR(BU71*(F184/G145)^4,0) -> 0 | BV184: =IFERROR(BV71*(F184/H145)^4,0) -> 0 | BW184: =IFERROR(BW71*(F184/I145)^4,0) -> 0 | BX184: =IFERROR(BX71*(F184/J145)^4,0) -> 0 | BY184: =IFERROR(BY71*(F184/K145)^4,0) -> 0.0004885461212 | BZ184: =IFERROR(BZ71*(F184/L145)^4,0) -> 2.986731497e-06
F185: 360 | G185: =IFERROR(G72*(F185/G145)^4,0) -> 0 | H185: =IFERROR(H72*(F185/H145)^4,0) -> 0 | I185: =IFERROR(I72*(F185/I145)^4,0) -> 0 | J185: =IFERROR(J72*(F185/J145)^4,0) -> 0 | K185: =IFERROR(K72*(F185/K145)^4,0) -> 0 | L185: =IFERROR(L72*(F185/L145)^4,0) -> 0 | R185: 360 | S185: =IFERROR(S72*(F185/G145)^4,0) -> 0 | T185: =IFERROR(T72*(F185/H145)^4,0) -> 0 | U185: =IFERROR(U72*(F185/I145)^4,0) -> 0 | V185: =IFERROR(V72*(F185/J145)^4,0) -> 0 | W185: =IFERROR(W72*(F185/K145)^4,0) -> 0 | X185: =IFERROR(X72*(F185/L145)^4,0) -> 0 | Y185: =IFERROR(Y72*(F185/G145)^4,0) -> 0 | Z185: =IFERROR(Z72*(F185/H145)^4,0) -> 0 | AA185: =IFERROR(AA72*(F185/I145)^4,0) -> 0 | AB185: =IFERROR(AB72*(F185/J145)^4,0) -> 0 | AC185: =IFERROR(AC72*(F185/K145)^4,0) -> 0 | AD185: =IFERROR(AD72*(F185/L145)^4,0) -> 0 | AE185: =IFERROR(AE72*(F185/G145)^4,0) -> 0 | AF185: =IFERROR(AF72*(F185/H145)^4,0) -> 0 | AG185: =IFERROR(AG72*(F185/I145)^4,0) -> 0 | AH185: =IFERROR(AH72*(F185/J145)^4,0) -> 0 | AI185: =IFERROR(AI72*(F185/K145)^4,0) -> 7.660953594e-05 | AJ185: =IFERROR(AJ72*(F185/L145)^4,0) -> 0.0001455238219 | AK185: =IFERROR(AK72*(F185/G145)^4,0) -> 0 | AL185: =IFERROR(AL72*(F185/H145)^4,0) -> 0 | AM185: =IFERROR(AM72*(F185/I145)^4,0) -> 0 | AN185: =IFERROR(AN72*(F185/J145)^4,0) -> 0 | AO185: =IFERROR(AO72*(F185/K145)^4,0) -> 0 | AP185: =IFERROR(AP72*(F185/L145)^4,0) -> 0 | AQ185: =IFERROR(AQ72*(F185/G145)^4,0) -> 0 | AR185: =IFERROR(AR72*(F185/H145)^4,0) -> 0 | AS185: =IFERROR(AS72*(F185/I145)^4,0) -> 0 | AT185: =IFERROR(AT72*(F185/J145)^4,0) -> 0 | AU185: =IFERROR(AU72*(F185/K145)^4,0) -> 0 | AV185: =IFERROR(AV72*(F185/L145)^4,0) -> 0 | AW185: =IFERROR(AW72*(F185/G145)^4,0) -> 0 | AX185: =IFERROR(AX72*(F185/H145)^4,0) -> 0 | AY185: =IFERROR(AY72*(F185/I145)^4,0) -> 0 | AZ185: =IFERROR(AZ72*(F185/J145)^4,0) -> 0 | BA185: =IFERROR(BA72*(F185/K145)^4,0) -> 9.150184267e-05 | BB185: =IFERROR(BB72*(F185/L145)^4,0) -> 8.579647462e-05 | BC185: =IFERROR(BC72*(F185/G145)^4,0) -> 0 | BD185: =IFERROR(BD72*(F185/H145)^4,0) -> 0 | BE185: =IFERROR(BE72*(F185/I145)^4,0) -> 0 | BF185: =IFERROR(BF72*(F185/J145)^4,0) -> 0 | BG185: =IFERROR(BG72*(F185/K145)^4,0) -> 0.0002096560552 | BH185: =IFERROR(BH72*(F185/L145)^4,0) -> 1.037014297e-05 | BI185: =IFERROR(BI72*(F185/G145)^4,0) -> 0 | BJ185: =IFERROR(BJ72*(F185/H145)^4,0) -> 0 | BK185: =IFERROR(BK72*(F185/I145)^4,0) -> 0 | BL185: =IFERROR(BL72*(F185/J145)^4,0) -> 0 | BM185: =IFERROR(BM72*(F185/K145)^4,0) -> 0.0003681104371 | BN185: =IFERROR(BN72*(F185/L145)^4,0) -> 7.679979185e-06 | BO185: =IFERROR(BO72*(F185/G145)^4,0) -> 0 | BP185: =IFERROR(BP72*(F185/H145)^4,0) -> 0 | BQ185: =IFERROR(BQ72*(F185/I145)^4,0) -> 0 | BR185: =IFERROR(BR72*(F185/J145)^4,0) -> 0 | BS185: =IFERROR(BS72*(F185/K145)^4,0) -> 0.0004107523902 | BT185: =IFERROR(BT72*(F185/L145)^4,0) -> 1.536947139e-05 | BU185: =IFERROR(BU72*(F185/G145)^4,0) -> 0 | BV185: =IFERROR(BV72*(F185/H145)^4,0) -> 0 | BW185: =IFERROR(BW72*(F185/I145)^4,0) -> 0 | BX185: =IFERROR(BX72*(F185/J145)^4,0) -> 0 | BY185: =IFERROR(BY72*(F185/K145)^4,0) -> 0.0003011465562 | BZ185: =IFERROR(BZ72*(F185/L145)^4,0) -> 3.342981765e-06
F186: 370 | G186: =IFERROR(G73*(F186/G145)^4,0) -> 0 | H186: =IFERROR(H73*(F186/H145)^4,0) -> 0 | I186: =IFERROR(I73*(F186/I145)^4,0) -> 0 | J186: =IFERROR(J73*(F186/J145)^4,0) -> 0 | K186: =IFERROR(K73*(F186/K145)^4,0) -> 0 | L186: =IFERROR(L73*(F186/L145)^4,0) -> 0 | R186: 370 | S186: =IFERROR(S73*(F186/G145)^4,0) -> 0 | T186: =IFERROR(T73*(F186/H145)^4,0) -> 0 | U186: =IFERROR(U73*(F186/I145)^4,0) -> 0 | V186: =IFERROR(V73*(F186/J145)^4,0) -> 0 | W186: =IFERROR(W73*(F186/K145)^4,0) -> 0 | X186: =IFERROR(X73*(F186/L145)^4,0) -> 0 | Y186: =IFERROR(Y73*(F186/G145)^4,0) -> 0 | Z186: =IFERROR(Z73*(F186/H145)^4,0) -> 0 | AA186: =IFERROR(AA73*(F186/I145)^4,0) -> 0 | AB186: =IFERROR(AB73*(F186/J145)^4,0) -> 0 | AC186: =IFERROR(AC73*(F186/K145)^4,0) -> 0 | AD186: =IFERROR(AD73*(F186/L145)^4,0) -> 0 | AE186: =IFERROR(AE73*(F186/G145)^4,0) -> 0 | AF186: =IFERROR(AF73*(F186/H145)^4,0) -> 0 | AG186: =IFERROR(AG73*(F186/I145)^4,0) -> 0 | AH186: =IFERROR(AH73*(F186/J145)^4,0) -> 0 | AI186: =IFERROR(AI73*(F186/K145)^4,0) -> 4.662708765e-05 | AJ186: =IFERROR(AJ73*(F186/L145)^4,0) -> 0.0002509500124 | AK186: =IFERROR(AK73*(F186/G145)^4,0) -> 0 | AL186: =IFERROR(AL73*(F186/H145)^4,0) -> 0 | AM186: =IFERROR(AM73*(F186/I145)^4,0) -> 0 | AN186: =IFERROR(AN73*(F186/J145)^4,0) -> 0 | AO186: =IFERROR(AO73*(F186/K145)^4,0) -> 0 | AP186: =IFERROR(AP73*(F186/L145)^4,0) -> 0 | AQ186: =IFERROR(AQ73*(F186/G145)^4,0) -> 0 | AR186: =IFERROR(AR73*(F186/H145)^4,0) -> 0 | AS186: =IFERROR(AS73*(F186/I145)^4,0) -> 0 | AT186: =IFERROR(AT73*(F186/J145)^4,0) -> 0 | AU186: =IFERROR(AU73*(F186/K145)^4,0) -> 0 | AV186: =IFERROR(AV73*(F186/L145)^4,0) -> 1.209173407e-06 | AW186: =IFERROR(AW73*(F186/G145)^4,0) -> 0 | AX186: =IFERROR(AX73*(F186/H145)^4,0) -> 0 | AY186: =IFERROR(AY73*(F186/I145)^4,0) -> 0 | AZ186: =IFERROR(AZ73*(F186/J145)^4,0) -> 0 | BA186: =IFERROR(BA73*(F186/K145)^4,0) -> 4.217183537e-05 | BB186: =IFERROR(BB73*(F186/L145)^4,0) -> 9.948830453e-05 | BC186: =IFERROR(BC73*(F186/G145)^4,0) -> 0 | BD186: =IFERROR(BD73*(F186/H145)^4,0) -> 0 | BE186: =IFERROR(BE73*(F186/I145)^4,0) -> 0 | BF186: =IFERROR(BF73*(F186/J145)^4,0) -> 0 | BG186: =IFERROR(BG73*(F186/K145)^4,0) -> 0.0001572833543 | BH186: =IFERROR(BH73*(F186/L145)^4,0) -> 9.899878229e-06 | BI186: =IFERROR(BI73*(F186/G145)^4,0) -> 0 | BJ186: =IFERROR(BJ73*(F186/H145)^4,0) -> 0 | BK186: =IFERROR(BK73*(F186/I145)^4,0) -> 0 | BL186: =IFERROR(BL73*(F186/J145)^4,0) -> 0 | BM186: =IFERROR(BM73*(F186/K145)^4,0) -> 0.0002537469619 | BN186: =IFERROR(BN73*(F186/L145)^4,0) -> 5.35595542e-06 | BO186: =IFERROR(BO73*(F186/G145)^4,0) -> 0 | BP186: =IFERROR(BP73*(F186/H145)^4,0) -> 0 | BQ186: =IFERROR(BQ73*(F186/I145)^4,0) -> 0 | BR186: =IFERROR(BR73*(F186/J145)^4,0) -> 0 | BS186: =IFERROR(BS73*(F186/K145)^4,0) -> 0.0002495344796 | BT186: =IFERROR(BT73*(F186/L145)^4,0) -> 5.359272571e-06 | BU186: =IFERROR(BU73*(F186/G145)^4,0) -> 0 | BV186: =IFERROR(BV73*(F186/H145)^4,0) -> 0 | BW186: =IFERROR(BW73*(F186/I145)^4,0) -> 0 | BX186: =IFERROR(BX73*(F186/J145)^4,0) -> 0 | BY186: =IFERROR(BY73*(F186/K145)^4,0) -> 0.0001856993965 | BZ186: =IFERROR(BZ73*(F186/L145)^4,0) -> 0
F187: 380 | G187: =IFERROR(G74*(F187/G145)^4,0) -> 0 | H187: =IFERROR(H74*(F187/H145)^4,0) -> 0 | I187: =IFERROR(I74*(F187/I145)^4,0) -> 0 | J187: =IFERROR(J74*(F187/J145)^4,0) -> 0 | K187: =IFERROR(K74*(F187/K145)^4,0) -> 0 | L187: =IFERROR(L74*(F187/L145)^4,0) -> 0 | R187: 380 | S187: =IFERROR(S74*(F187/G145)^4,0) -> 0 | T187: =IFERROR(T74*(F187/H145)^4,0) -> 0 | U187: =IFERROR(U74*(F187/I145)^4,0) -> 0 | V187: =IFERROR(V74*(F187/J145)^4,0) -> 0 | W187: =IFERROR(W74*(F187/K145)^4,0) -> 0 | X187: =IFERROR(X74*(F187/L145)^4,0) -> 0 | Y187: =IFERROR(Y74*(F187/G145)^4,0) -> 0 | Z187: =IFERROR(Z74*(F187/H145)^4,0) -> 0 | AA187: =IFERROR(AA74*(F187/I145)^4,0) -> 0 | AB187: =IFERROR(AB74*(F187/J145)^4,0) -> 0 | AC187: =IFERROR(AC74*(F187/K145)^4,0) -> 0 | AD187: =IFERROR(AD74*(F187/L145)^4,0) -> 0 | AE187: =IFERROR(AE74*(F187/G145)^4,0) -> 0 | AF187: =IFERROR(AF74*(F187/H145)^4,0) -> 0 | AG187: =IFERROR(AG74*(F187/I145)^4,0) -> 0 | AH187: =IFERROR(AH74*(F187/J145)^4,0) -> 0 | AI187: =IFERROR(AI74*(F187/K145)^4,0) -> 9.942883944e-05 | AJ187: =IFERROR(AJ74*(F187/L145)^4,0) -> 0.0003266452235 | AK187: =IFERROR(AK74*(F187/G145)^4,0) -> 0 | AL187: =IFERROR(AL74*(F187/H145)^4,0) -> 0 | AM187: =IFERROR(AM74*(F187/I145)^4,0) -> 0 | AN187: =IFERROR(AN74*(F187/J145)^4,0) -> 0 | AO187: =IFERROR(AO74*(F187/K145)^4,0) -> 0 | AP187: =IFERROR(AP74*(F187/L145)^4,0) -> 0 | AQ187: =IFERROR(AQ74*(F187/G145)^4,0) -> 0 | AR187: =IFERROR(AR74*(F187/H145)^4,0) -> 0 | AS187: =IFERROR(AS74*(F187/I145)^4,0) -> 0 | AT187: =IFERROR(AT74*(F187/J145)^4,0) -> 0 | AU187: =IFERROR(AU74*(F187/K145)^4,0) -> 0 | AV187: =IFERROR(AV74*(F187/L145)^4,0) -> 0 | AW187: =IFERROR(AW74*(F187/G145)^4,0) -> 0 | AX187: =IFERROR(AX74*(F187/H145)^4,0) -> 0 | AY187: =IFERROR(AY74*(F187/I145)^4,0) -> 0 | AZ187: =IFERROR(AZ74*(F187/J145)^4,0) -> 0 | BA187: =IFERROR(BA74*(F187/K145)^4,0) -> 1.975542507e-05 | BB187: =IFERROR(BB74*(F187/L145)^4,0) -> 0.0001336606671 | BC187: =IFERROR(BC74*(F187/G145)^4,0) -> 0 | BD187: =IFERROR(BD74*(F187/H145)^4,0) -> 0 | BE187: =IFERROR(BE74*(F187/I145)^4,0) -> 0 | BF187: =IFERROR(BF74*(F187/J145)^4,0) -> 0 | BG187: =IFERROR(BG74*(F187/K145)^4,0) -> 0.0001481458578 | BH187: =IFERROR(BH74*(F187/L145)^4,0) -> 8.010408145e-06 | BI187: =IFERROR(BI74*(F187/G145)^4,0) -> 0 | BJ187: =IFERROR(BJ74*(F187/H145)^4,0) -> 0 | BK187: =IFERROR(BK74*(F187/I145)^4,0) -> 0 | BL187: =IFERROR(BL74*(F187/J145)^4,0) -> 0 | BM187: =IFERROR(BM74*(F187/K145)^4,0) -> 0.0001845881915 | BN187: =IFERROR(BN74*(F187/L145)^4,0) -> 7.547911261e-06 | BO187: =IFERROR(BO74*(F187/G145)^4,0) -> 0 | BP187: =IFERROR(BP74*(F187/H145)^4,0) -> 0 | BQ187: =IFERROR(BQ74*(F187/I145)^4,0) -> 0 | BR187: =IFERROR(BR74*(F187/J145)^4,0) -> 0 | BS187: =IFERROR(BS74*(F187/K145)^4,0) -> 0.0002068020491 | BT187: =IFERROR(BT74*(F187/L145)^4,0) -> 1.311764933e-05 | BU187: =IFERROR(BU74*(F187/G145)^4,0) -> 0 | BV187: =IFERROR(BV74*(F187/H145)^4,0) -> 0 | BW187: =IFERROR(BW74*(F187/I145)^4,0) -> 0 | BX187: =IFERROR(BX74*(F187/J145)^4,0) -> 0 | BY187: =IFERROR(BY74*(F187/K145)^4,0) -> 0.0001869271088 | BZ187: =IFERROR(BZ74*(F187/L145)^4,0) -> 8.300196741e-06
F188: 390 | G188: =IFERROR(G75*(F188/G145)^4,0) -> 0 | H188: =IFERROR(H75*(F188/H145)^4,0) -> 0 | I188: =IFERROR(I75*(F188/I145)^4,0) -> 0 | J188: =IFERROR(J75*(F188/J145)^4,0) -> 0 | K188: =IFERROR(K75*(F188/K145)^4,0) -> 0 | L188: =IFERROR(L75*(F188/L145)^4,0) -> 0 | R188: 390 | S188: =IFERROR(S75*(F188/G145)^4,0) -> 0 | T188: =IFERROR(T75*(F188/H145)^4,0) -> 0 | U188: =IFERROR(U75*(F188/I145)^4,0) -> 0 | V188: =IFERROR(V75*(F188/J145)^4,0) -> 0 | W188: =IFERROR(W75*(F188/K145)^4,0) -> 0 | X188: =IFERROR(X75*(F188/L145)^4,0) -> 0 | Y188: =IFERROR(Y75*(F188/G145)^4,0) -> 0 | Z188: =IFERROR(Z75*(F188/H145)^4,0) -> 0 | AA188: =IFERROR(AA75*(F188/I145)^4,0) -> 0 | AB188: =IFERROR(AB75*(F188/J145)^4,0) -> 0 | AC188: =IFERROR(AC75*(F188/K145)^4,0) -> 0 | AD188: =IFERROR(AD75*(F188/L145)^4,0) -> 0 | AE188: =IFERROR(AE75*(F188/G145)^4,0) -> 0 | AF188: =IFERROR(AF75*(F188/H145)^4,0) -> 0 | AG188: =IFERROR(AG75*(F188/I145)^4,0) -> 0 | AH188: =IFERROR(AH75*(F188/J145)^4,0) -> 0 | AI188: =IFERROR(AI75*(F188/K145)^4,0) -> 0.0001534823903 | AJ188: =IFERROR(AJ75*(F188/L145)^4,0) -> 0.0004798391383 | AK188: =IFERROR(AK75*(F188/G145)^4,0) -> 0 | AL188: =IFERROR(AL75*(F188/H145)^4,0) -> 0 | AM188: =IFERROR(AM75*(F188/I145)^4,0) -> 0 | AN188: =IFERROR(AN75*(F188/J145)^4,0) -> 0 | AO188: =IFERROR(AO75*(F188/K145)^4,0) -> 0 | AP188: =IFERROR(AP75*(F188/L145)^4,0) -> 0 | AQ188: =IFERROR(AQ75*(F188/G145)^4,0) -> 0 | AR188: =IFERROR(AR75*(F188/H145)^4,0) -> 0 | AS188: =IFERROR(AS75*(F188/I145)^4,0) -> 0 | AT188: =IFERROR(AT75*(F188/J145)^4,0) -> 0 | AU188: =IFERROR(AU75*(F188/K145)^4,0) -> 0 | AV188: =IFERROR(AV75*(F188/L145)^4,0) -> 0 | AW188: =IFERROR(AW75*(F188/G145)^4,0) -> 0 | AX188: =IFERROR(AX75*(F188/H145)^4,0) -> 0 | AY188: =IFERROR(AY75*(F188/I145)^4,0) -> 0 | AZ188: =IFERROR(AZ75*(F188/J145)^4,0) -> 0 | BA188: =IFERROR(BA75*(F188/K145)^4,0) -> 1.369904959e-05 | BB188: =IFERROR(BB75*(F188/L145)^4,0) -> 0.0001552467419 | BC188: =IFERROR(BC75*(F188/G145)^4,0) -> 0 | BD188: =IFERROR(BD75*(F188/H145)^4,0) -> 0 | BE188: =IFERROR(BE75*(F188/I145)^4,0) -> 0 | BF188: =IFERROR(BF75*(F188/J145)^4,0) -> 0 | BG188: =IFERROR(BG75*(F188/K145)^4,0) -> 0.000114981218 | BH188: =IFERROR(BH75*(F188/L145)^4,0) -> 5.554675639e-06 | BI188: =IFERROR(BI75*(F188/G145)^4,0) -> 0 | BJ188: =IFERROR(BJ75*(F188/H145)^4,0) -> 0 | BK188: =IFERROR(BK75*(F188/I145)^4,0) -> 0 | BL188: =IFERROR(BL75*(F188/J145)^4,0) -> 0 | BM188: =IFERROR(BM75*(F188/K145)^4,0) -> 0.000147706738 | BN188: =IFERROR(BN75*(F188/L145)^4,0) -> 5.289059739e-06 | BO188: =IFERROR(BO75*(F188/G145)^4,0) -> 0 | BP188: =IFERROR(BP75*(F188/H145)^4,0) -> 0 | BQ188: =IFERROR(BQ75*(F188/I145)^4,0) -> 0 | BR188: =IFERROR(BR75*(F188/J145)^4,0) -> 0 | BS188: =IFERROR(BS75*(F188/K145)^4,0) -> 0.0001100079479 | BT188: =IFERROR(BT75*(F188/L145)^4,0) -> 2.64616773e-06 | BU188: =IFERROR(BU75*(F188/G145)^4,0) -> 0 | BV188: =IFERROR(BV75*(F188/H145)^4,0) -> 0 | BW188: =IFERROR(BW75*(F188/I145)^4,0) -> 0 | BX188: =IFERROR(BX75*(F188/J145)^4,0) -> 0 | BY188: =IFERROR(BY75*(F188/K145)^4,0) -> 0.000163732159 | BZ188: =IFERROR(BZ75*(F188/L145)^4,0) -> 0
F189: 400 | G189: =IFERROR(G76*(F189/G145)^4,0) -> 0 | H189: =IFERROR(H76*(F189/H145)^4,0) -> 0 | I189: =IFERROR(I76*(F189/I145)^4,0) -> 0 | J189: =IFERROR(J76*(F189/J145)^4,0) -> 0 | K189: =IFERROR(K76*(F189/K145)^4,0) -> 0 | L189: =IFERROR(L76*(F189/L145)^4,0) -> 0 | R189: 400 | S189: =IFERROR(S76*(F189/G145)^4,0) -> 0 | T189: =IFERROR(T76*(F189/H145)^4,0) -> 0 | U189: =IFERROR(U76*(F189/I145)^4,0) -> 0 | V189: =IFERROR(V76*(F189/J145)^4,0) -> 0 | W189: =IFERROR(W76*(F189/K145)^4,0) -> 0 | X189: =IFERROR(X76*(F189/L145)^4,0) -> 0 | Y189: =IFERROR(Y76*(F189/G145)^4,0) -> 0 | Z189: =IFERROR(Z76*(F189/H145)^4,0) -> 0 | AA189: =IFERROR(AA76*(F189/I145)^4,0) -> 0 | AB189: =IFERROR(AB76*(F189/J145)^4,0) -> 0 | AC189: =IFERROR(AC76*(F189/K145)^4,0) -> 0 | AD189: =IFERROR(AD76*(F189/L145)^4,0) -> 0 | AE189: =IFERROR(AE76*(F189/G145)^4,0) -> 0 | AF189: =IFERROR(AF76*(F189/H145)^4,0) -> 0 | AG189: =IFERROR(AG76*(F189/I145)^4,0) -> 0 | AH189: =IFERROR(AH76*(F189/J145)^4,0) -> 0 | AI189: =IFERROR(AI76*(F189/K145)^4,0) -> 9.02275229e-05 | AJ189: =IFERROR(AJ76*(F189/L145)^4,0) -> 0.0005175363274 | AK189: =IFERROR(AK76*(F189/G145)^4,0) -> 0 | AL189: =IFERROR(AL76*(F189/H145)^4,0) -> 0 | AM189: =IFERROR(AM76*(F189/I145)^4,0) -> 0 | AN189: =IFERROR(AN76*(F189/J145)^4,0) -> 0 | AO189: =IFERROR(AO76*(F189/K145)^4,0) -> 0 | AP189: =IFERROR(AP76*(F189/L145)^4,0) -> 0 | AQ189: =IFERROR(AQ76*(F189/G145)^4,0) -> 0 | AR189: =IFERROR(AR76*(F189/H145)^4,0) -> 0 | AS189: =IFERROR(AS76*(F189/I145)^4,0) -> 0 | AT189: =IFERROR(AT76*(F189/J145)^4,0) -> 0 | AU189: =IFERROR(AU76*(F189/K145)^4,0) -> 0 | AV189: =IFERROR(AV76*(F189/L145)^4,0) -> 1.651663823e-06 | AW189: =IFERROR(AW76*(F189/G145)^4,0) -> 0 | AX189: =IFERROR(AX76*(F189/H145)^4,0) -> 0 | AY189: =IFERROR(AY76*(F189/I145)^4,0) -> 0 | AZ189: =IFERROR(AZ76*(F189/J145)^4,0) -> 0 | BA189: =IFERROR(BA76*(F189/K145)^4,0) -> 2.122266949e-05 | BB189: =IFERROR(BB76*(F189/L145)^4,0) -> 0.0001641002351 | BC189: =IFERROR(BC76*(F189/G145)^4,0) -> 0 | BD189: =IFERROR(BD76*(F189/H145)^4,0) -> 0 | BE189: =IFERROR(BE76*(F189/I145)^4,0) -> 0 | BF189: =IFERROR(BF76*(F189/J145)^4,0) -> 0 | BG189: =IFERROR(BG76*(F189/K145)^4,0) -> 0.0001130519072 | BH189: =IFERROR(BH76*(F189/L145)^4,0) -> 7.551629114e-06 | BI189: =IFERROR(BI76*(F189/G145)^4,0) -> 0 | BJ189: =IFERROR(BJ76*(F189/H145)^4,0) -> 0 | BK189: =IFERROR(BK76*(F189/I145)^4,0) -> 0 | BL189: =IFERROR(BL76*(F189/J145)^4,0) -> 0 | BM189: =IFERROR(BM76*(F189/K145)^4,0) -> 0.0001060678647 | BN189: =IFERROR(BN76*(F189/L145)^4,0) -> 3.901833656e-06 | BO189: =IFERROR(BO76*(F189/G145)^4,0) -> 0 | BP189: =IFERROR(BP76*(F189/H145)^4,0) -> 0 | BQ189: =IFERROR(BQ76*(F189/I145)^4,0) -> 0 | BR189: =IFERROR(BR76*(F189/J145)^4,0) -> 0 | BS189: =IFERROR(BS76*(F189/K145)^4,0) -> 7.303934185e-05 | BT189: =IFERROR(BT76*(F189/L145)^4,0) -> 4.39228149e-06 | BU189: =IFERROR(BU76*(F189/G145)^4,0) -> 0 | BV189: =IFERROR(BV76*(F189/H145)^4,0) -> 0 | BW189: =IFERROR(BW76*(F189/I145)^4,0) -> 0 | BX189: =IFERROR(BX76*(F189/J145)^4,0) -> 0 | BY189: =IFERROR(BY76*(F189/K145)^4,0) -> 6.039406625e-05 | BZ189: =IFERROR(BZ76*(F189/L145)^4,0) -> 5.095232075e-06
F190: 410 | G190: =IFERROR(G77*(F190/G145)^4,0) -> 0 | H190: =IFERROR(H77*(F190/H145)^4,0) -> 0 | I190: =IFERROR(I77*(F190/I145)^4,0) -> 0 | J190: =IFERROR(J77*(F190/J145)^4,0) -> 0 | K190: =IFERROR(K77*(F190/K145)^4,0) -> 0 | L190: =IFERROR(L77*(F190/L145)^4,0) -> 0 | R190: 410 | S190: =IFERROR(S77*(F190/G145)^4,0) -> 0 | T190: =IFERROR(T77*(F190/H145)^4,0) -> 0 | U190: =IFERROR(U77*(F190/I145)^4,0) -> 0 | V190: =IFERROR(V77*(F190/J145)^4,0) -> 0 | W190: =IFERROR(W77*(F190/K145)^4,0) -> 0 | X190: =IFERROR(X77*(F190/L145)^4,0) -> 0 | Y190: =IFERROR(Y77*(F190/G145)^4,0) -> 0 | Z190: =IFERROR(Z77*(F190/H145)^4,0) -> 0 | AA190: =IFERROR(AA77*(F190/I145)^4,0) -> 0 | AB190: =IFERROR(AB77*(F190/J145)^4,0) -> 0 | AC190: =IFERROR(AC77*(F190/K145)^4,0) -> 0 | AD190: =IFERROR(AD77*(F190/L145)^4,0) -> 0 | AE190: =IFERROR(AE77*(F190/G145)^4,0) -> 0 | AF190: =IFERROR(AF77*(F190/H145)^4,0) -> 0 | AG190: =IFERROR(AG77*(F190/I145)^4,0) -> 0 | AH190: =IFERROR(AH77*(F190/J145)^4,0) -> 0 | AI190: =IFERROR(AI77*(F190/K145)^4,0) -> 0 | AJ190: =IFERROR(AJ77*(F190/L145)^4,0) -> 0.0005218032462 | AK190: =IFERROR(AK77*(F190/G145)^4,0) -> 0 | AL190: =IFERROR(AL77*(F190/H145)^4,0) -> 0 | AM190: =IFERROR(AM77*(F190/I145)^4,0) -> 0 | AN190: =IFERROR(AN77*(F190/J145)^4,0) -> 0 | AO190: =IFERROR(AO77*(F190/K145)^4,0) -> 0 | AP190: =IFERROR(AP77*(F190/L145)^4,0) -> 0 | AQ190: =IFERROR(AQ77*(F190/G145)^4,0) -> 0 | AR190: =IFERROR(AR77*(F190/H145)^4,0) -> 0 | AS190: =IFERROR(AS77*(F190/I145)^4,0) -> 0 | AT190: =IFERROR(AT77*(F190/J145)^4,0) -> 0 | AU190: =IFERROR(AU77*(F190/K145)^4,0) -> 0 | AV190: =IFERROR(AV77*(F190/L145)^4,0) -> 0 | AW190: =IFERROR(AW77*(F190/G145)^4,0) -> 0 | AX190: =IFERROR(AX77*(F190/H145)^4,0) -> 0 | AY190: =IFERROR(AY77*(F190/I145)^4,0) -> 0 | AZ190: =IFERROR(AZ77*(F190/J145)^4,0) -> 0 | BA190: =IFERROR(BA77*(F190/K145)^4,0) -> 0 | BB190: =IFERROR(BB77*(F190/L145)^4,0) -> 0.0001542485865 | BC190: =IFERROR(BC77*(F190/G145)^4,0) -> 0 | BD190: =IFERROR(BD77*(F190/H145)^4,0) -> 0 | BE190: =IFERROR(BE77*(F190/I145)^4,0) -> 0 | BF190: =IFERROR(BF77*(F190/J145)^4,0) -> 0 | BG190: =IFERROR(BG77*(F190/K145)^4,0) -> 0 | BH190: =IFERROR(BH77*(F190/L145)^4,0) -> 6.397077291e-06 | BI190: =IFERROR(BI77*(F190/G145)^4,0) -> 0 | BJ190: =IFERROR(BJ77*(F190/H145)^4,0) -> 0 | BK190: =IFERROR(BK77*(F190/I145)^4,0) -> 0 | BL190: =IFERROR(BL77*(F190/J145)^4,0) -> 0 | BM190: =IFERROR(BM77*(F190/K145)^4,0) -> 0 | BN190: =IFERROR(BN77*(F190/L145)^4,0) -> 4.576075179e-06 | BO190: =IFERROR(BO77*(F190/G145)^4,0) -> 0 | BP190: =IFERROR(BP77*(F190/H145)^4,0) -> 0 | BQ190: =IFERROR(BQ77*(F190/I145)^4,0) -> 0 | BR190: =IFERROR(BR77*(F190/J145)^4,0) -> 0 | BS190: =IFERROR(BS77*(F190/K145)^4,0) -> 0 | BT190: =IFERROR(BT77*(F190/L145)^4,0) -> 1.616085642e-06 | BU190: =IFERROR(BU77*(F190/G145)^4,0) -> 0 | BV190: =IFERROR(BV77*(F190/H145)^4,0) -> 0 | BW190: =IFERROR(BW77*(F190/I145)^4,0) -> 0 | BX190: =IFERROR(BX77*(F190/J145)^4,0) -> 0 | BY190: =IFERROR(BY77*(F190/K145)^4,0) -> 0 | BZ190: =IFERROR(BZ77*(F190/L145)^4,0) -> 0
F191: 420 | G191: =IFERROR(G78*(F191/G145)^4,0) -> 0 | H191: =IFERROR(H78*(F191/H145)^4,0) -> 0 | I191: =IFERROR(I78*(F191/I145)^4,0) -> 0 | J191: =IFERROR(J78*(F191/J145)^4,0) -> 0 | K191: =IFERROR(K78*(F191/K145)^4,0) -> 0 | L191: =IFERROR(L78*(F191/L145)^4,0) -> 0 | R191: 420 | S191: =IFERROR(S78*(F191/G145)^4,0) -> 0 | T191: =IFERROR(T78*(F191/H145)^4,0) -> 0 | U191: =IFERROR(U78*(F191/I145)^4,0) -> 0 | V191: =IFERROR(V78*(F191/J145)^4,0) -> 0 | W191: =IFERROR(W78*(F191/K145)^4,0) -> 0 | X191: =IFERROR(X78*(F191/L145)^4,0) -> 0 | Y191: =IFERROR(Y78*(F191/G145)^4,0) -> 0 | Z191: =IFERROR(Z78*(F191/H145)^4,0) -> 0 | AA191: =IFERROR(AA78*(F191/I145)^4,0) -> 0 | AB191: =IFERROR(AB78*(F191/J145)^4,0) -> 0 | AC191: =IFERROR(AC78*(F191/K145)^4,0) -> 0 | AD191: =IFERROR(AD78*(F191/L145)^4,0) -> 0 | AE191: =IFERROR(AE78*(F191/G145)^4,0) -> 0 | AF191: =IFERROR(AF78*(F191/H145)^4,0) -> 0 | AG191: =IFERROR(AG78*(F191/I145)^4,0) -> 0 | AH191: =IFERROR(AH78*(F191/J145)^4,0) -> 0 | AI191: =IFERROR(AI78*(F191/K145)^4,0) -> 0 | AJ191: =IFERROR(AJ78*(F191/L145)^4,0) -> 0.0003349586268 | AK191: =IFERROR(AK78*(F191/G145)^4,0) -> 0 | AL191: =IFERROR(AL78*(F191/H145)^4,0) -> 0 | AM191: =IFERROR(AM78*(F191/I145)^4,0) -> 0 | AN191: =IFERROR(AN78*(F191/J145)^4,0) -> 0 | AO191: =IFERROR(AO78*(F191/K145)^4,0) -> 0 | AP191: =IFERROR(AP78*(F191/L145)^4,0) -> 0 | AQ191: =IFERROR(AQ78*(F191/G145)^4,0) -> 0 | AR191: =IFERROR(AR78*(F191/H145)^4,0) -> 0 | AS191: =IFERROR(AS78*(F191/I145)^4,0) -> 0 | AT191: =IFERROR(AT78*(F191/J145)^4,0) -> 0 | AU191: =IFERROR(AU78*(F191/K145)^4,0) -> 0 | AV191: =IFERROR(AV78*(F191/L145)^4,0) -> 0 | AW191: =IFERROR(AW78*(F191/G145)^4,0) -> 0 | AX191: =IFERROR(AX78*(F191/H145)^4,0) -> 0 | AY191: =IFERROR(AY78*(F191/I145)^4,0) -> 0 | AZ191: =IFERROR(AZ78*(F191/J145)^4,0) -> 0 | BA191: =IFERROR(BA78*(F191/K145)^4,0) -> 0 | BB191: =IFERROR(BB78*(F191/L145)^4,0) -> 0.0001199905807 | BC191: =IFERROR(BC78*(F191/G145)^4,0) -> 0 | BD191: =IFERROR(BD78*(F191/H145)^4,0) -> 0 | BE191: =IFERROR(BE78*(F191/I145)^4,0) -> 0 | BF191: =IFERROR(BF78*(F191/J145)^4,0) -> 0 | BG191: =IFERROR(BG78*(F191/K145)^4,0) -> 0 | BH191: =IFERROR(BH78*(F191/L145)^4,0) -> 3.415461353e-06 | BI191: =IFERROR(BI78*(F191/G145)^4,0) -> 0 | BJ191: =IFERROR(BJ78*(F191/H145)^4,0) -> 0 | BK191: =IFERROR(BK78*(F191/I145)^4,0) -> 0 | BL191: =IFERROR(BL78*(F191/J145)^4,0) -> 0 | BM191: =IFERROR(BM78*(F191/K145)^4,0) -> 0 | BN191: =IFERROR(BN78*(F191/L145)^4,0) -> 3.260608447e-06 | BO191: =IFERROR(BO78*(F191/G145)^4,0) -> 0 | BP191: =IFERROR(BP78*(F191/H145)^4,0) -> 0 | BQ191: =IFERROR(BQ78*(F191/I145)^4,0) -> 0 | BR191: =IFERROR(BR78*(F191/J145)^4,0) -> 0 | BS191: =IFERROR(BS78*(F191/K145)^4,0) -> 0 | BT191: =IFERROR(BT78*(F191/L145)^4,0) -> 0 | BU191: =IFERROR(BU78*(F191/G145)^4,0) -> 0 | BV191: =IFERROR(BV78*(F191/H145)^4,0) -> 0 | BW191: =IFERROR(BW78*(F191/I145)^4,0) -> 0 | BX191: =IFERROR(BX78*(F191/J145)^4,0) -> 0 | BY191: =IFERROR(BY78*(F191/K145)^4,0) -> 0 | BZ191: =IFERROR(BZ78*(F191/L145)^4,0) -> 6.193286433e-06
F192: 430 | G192: =IFERROR(G79*(F192/G145)^4,0) -> 0 | H192: =IFERROR(H79*(F192/H145)^4,0) -> 0 | I192: =IFERROR(I79*(F192/I145)^4,0) -> 0 | J192: =IFERROR(J79*(F192/J145)^4,0) -> 0 | K192: =IFERROR(K79*(F192/K145)^4,0) -> 0 | L192: =IFERROR(L79*(F192/L145)^4,0) -> 0 | R192: 430 | S192: =IFERROR(S79*(F192/G145)^4,0) -> 0 | T192: =IFERROR(T79*(F192/H145)^4,0) -> 0 | U192: =IFERROR(U79*(F192/I145)^4,0) -> 0 | V192: =IFERROR(V79*(F192/J145)^4,0) -> 0 | W192: =IFERROR(W79*(F192/K145)^4,0) -> 0 | X192: =IFERROR(X79*(F192/L145)^4,0) -> 0 | Y192: =IFERROR(Y79*(F192/G145)^4,0) -> 0 | Z192: =IFERROR(Z79*(F192/H145)^4,0) -> 0 | AA192: =IFERROR(AA79*(F192/I145)^4,0) -> 0 | AB192: =IFERROR(AB79*(F192/J145)^4,0) -> 0 | AC192: =IFERROR(AC79*(F192/K145)^4,0) -> 0 | AD192: =IFERROR(AD79*(F192/L145)^4,0) -> 0 | AE192: =IFERROR(AE79*(F192/G145)^4,0) -> 0 | AF192: =IFERROR(AF79*(F192/H145)^4,0) -> 0 | AG192: =IFERROR(AG79*(F192/I145)^4,0) -> 0 | AH192: =IFERROR(AH79*(F192/J145)^4,0) -> 0 | AI192: =IFERROR(AI79*(F192/K145)^4,0) -> 0 | AJ192: =IFERROR(AJ79*(F192/L145)^4,0) -> 0.0002992007768 | AK192: =IFERROR(AK79*(F192/G145)^4,0) -> 0 | AL192: =IFERROR(AL79*(F192/H145)^4,0) -> 0 | AM192: =IFERROR(AM79*(F192/I145)^4,0) -> 0 | AN192: =IFERROR(AN79*(F192/J145)^4,0) -> 0 | AO192: =IFERROR(AO79*(F192/K145)^4,0) -> 0 | AP192: =IFERROR(AP79*(F192/L145)^4,0) -> 0 | AQ192: =IFERROR(AQ79*(F192/G145)^4,0) -> 0 | AR192: =IFERROR(AR79*(F192/H145)^4,0) -> 0 | AS192: =IFERROR(AS79*(F192/I145)^4,0) -> 0 | AT192: =IFERROR(AT79*(F192/J145)^4,0) -> 0 | AU192: =IFERROR(AU79*(F192/K145)^4,0) -> 0 | AV192: =IFERROR(AV79*(F192/L145)^4,0) -> 0 | AW192: =IFERROR(AW79*(F192/G145)^4,0) -> 0 | AX192: =IFERROR(AX79*(F192/H145)^4,0) -> 0 | AY192: =IFERROR(AY79*(F192/I145)^4,0) -> 0 | AZ192: =IFERROR(AZ79*(F192/J145)^4,0) -> 0 | BA192: =IFERROR(BA79*(F192/K145)^4,0) -> 0 | BB192: =IFERROR(BB79*(F192/L145)^4,0) -> 8.560578121e-05 | BC192: =IFERROR(BC79*(F192/G145)^4,0) -> 0 | BD192: =IFERROR(BD79*(F192/H145)^4,0) -> 0 | BE192: =IFERROR(BE79*(F192/I145)^4,0) -> 0 | BF192: =IFERROR(BF79*(F192/J145)^4,0) -> 0 | BG192: =IFERROR(BG79*(F192/K145)^4,0) -> 0 | BH192: =IFERROR(BH79*(F192/L145)^4,0) -> 3.518011969e-06 | BI192: =IFERROR(BI79*(F192/G145)^4,0) -> 0 | BJ192: =IFERROR(BJ79*(F192/H145)^4,0) -> 0 | BK192: =IFERROR(BK79*(F192/I145)^4,0) -> 0 | BL192: =IFERROR(BL79*(F192/J145)^4,0) -> 0 | BM192: =IFERROR(BM79*(F192/K145)^4,0) -> 0 | BN192: =IFERROR(BN79*(F192/L145)^4,0) -> 1.954041915e-06 | BO192: =IFERROR(BO79*(F192/G145)^4,0) -> 0 | BP192: =IFERROR(BP79*(F192/H145)^4,0) -> 0 | BQ192: =IFERROR(BQ79*(F192/I145)^4,0) -> 0 | BR192: =IFERROR(BR79*(F192/J145)^4,0) -> 0 | BS192: =IFERROR(BS79*(F192/K145)^4,0) -> 0 | BT192: =IFERROR(BT79*(F192/L145)^4,0) -> 1.955252129e-06 | BU192: =IFERROR(BU79*(F192/G145)^4,0) -> 0 | BV192: =IFERROR(BV79*(F192/H145)^4,0) -> 0 | BW192: =IFERROR(BW79*(F192/I145)^4,0) -> 0 | BX192: =IFERROR(BX79*(F192/J145)^4,0) -> 0 | BY192: =IFERROR(BY79*(F192/K145)^4,0) -> 0 | BZ192: =IFERROR(BZ79*(F192/L145)^4,0) -> 6.804525201e-06
F193: 440 | G193: =IFERROR(G80*(F193/G145)^4,0) -> 0 | H193: =IFERROR(H80*(F193/H145)^4,0) -> 0 | I193: =IFERROR(I80*(F193/I145)^4,0) -> 0 | J193: =IFERROR(J80*(F193/J145)^4,0) -> 0 | K193: =IFERROR(K80*(F193/K145)^4,0) -> 0 | L193: =IFERROR(L80*(F193/L145)^4,0) -> 0 | R193: 440 | S193: =IFERROR(S80*(F193/G145)^4,0) -> 0 | T193: =IFERROR(T80*(F193/H145)^4,0) -> 0 | U193: =IFERROR(U80*(F193/I145)^4,0) -> 0 | V193: =IFERROR(V80*(F193/J145)^4,0) -> 0 | W193: =IFERROR(W80*(F193/K145)^4,0) -> 0 | X193: =IFERROR(X80*(F193/L145)^4,0) -> 0 | Y193: =IFERROR(Y80*(F193/G145)^4,0) -> 0 | Z193: =IFERROR(Z80*(F193/H145)^4,0) -> 0 | AA193: =IFERROR(AA80*(F193/I145)^4,0) -> 0 | AB193: =IFERROR(AB80*(F193/J145)^4,0) -> 0 | AC193: =IFERROR(AC80*(F193/K145)^4,0) -> 0 | AD193: =IFERROR(AD80*(F193/L145)^4,0) -> 0 | AE193: =IFERROR(AE80*(F193/G145)^4,0) -> 0 | AF193: =IFERROR(AF80*(F193/H145)^4,0) -> 0 | AG193: =IFERROR(AG80*(F193/I145)^4,0) -> 0 | AH193: =IFERROR(AH80*(F193/J145)^4,0) -> 0 | AI193: =IFERROR(AI80*(F193/K145)^4,0) -> 0 | AJ193: =IFERROR(AJ80*(F193/L145)^4,0) -> 0.0001574493376 | AK193: =IFERROR(AK80*(F193/G145)^4,0) -> 0 | AL193: =IFERROR(AL80*(F193/H145)^4,0) -> 0 | AM193: =IFERROR(AM80*(F193/I145)^4,0) -> 0 | AN193: =IFERROR(AN80*(F193/J145)^4,0) -> 0 | AO193: =IFERROR(AO80*(F193/K145)^4,0) -> 0 | AP193: =IFERROR(AP80*(F193/L145)^4,0) -> 0 | AQ193: =IFERROR(AQ80*(F193/G145)^4,0) -> 0 | AR193: =IFERROR(AR80*(F193/H145)^4,0) -> 0 | AS193: =IFERROR(AS80*(F193/I145)^4,0) -> 0 | AT193: =IFERROR(AT80*(F193/J145)^4,0) -> 0 | AU193: =IFERROR(AU80*(F193/K145)^4,0) -> 0 | AV193: =IFERROR(AV80*(F193/L145)^4,0) -> 0 | AW193: =IFERROR(AW80*(F193/G145)^4,0) -> 0 | AX193: =IFERROR(AX80*(F193/H145)^4,0) -> 0 | AY193: =IFERROR(AY80*(F193/I145)^4,0) -> 0 | AZ193: =IFERROR(AZ80*(F193/J145)^4,0) -> 0 | BA193: =IFERROR(BA80*(F193/K145)^4,0) -> 0 | BB193: =IFERROR(BB80*(F193/L145)^4,0) -> 3.378644355e-05 | BC193: =IFERROR(BC80*(F193/G145)^4,0) -> 0 | BD193: =IFERROR(BD80*(F193/H145)^4,0) -> 0 | BE193: =IFERROR(BE80*(F193/I145)^4,0) -> 0 | BF193: =IFERROR(BF80*(F193/J145)^4,0) -> 0 | BG193: =IFERROR(BG80*(F193/K145)^4,0) -> 0 | BH193: =IFERROR(BH80*(F193/L145)^4,0) -> 3.599738665e-06 | BI193: =IFERROR(BI80*(F193/G145)^4,0) -> 0 | BJ193: =IFERROR(BJ80*(F193/H145)^4,0) -> 0 | BK193: =IFERROR(BK80*(F193/I145)^4,0) -> 0 | BL193: =IFERROR(BL80*(F193/J145)^4,0) -> 0 | BM193: =IFERROR(BM80*(F193/K145)^4,0) -> 0 | BN193: =IFERROR(BN80*(F193/L145)^4,0) -> 3.213379494e-06 | BO193: =IFERROR(BO80*(F193/G145)^4,0) -> 0 | BP193: =IFERROR(BP80*(F193/H145)^4,0) -> 0 | BQ193: =IFERROR(BQ80*(F193/I145)^4,0) -> 0 | BR193: =IFERROR(BR80*(F193/J145)^4,0) -> 0 | BS193: =IFERROR(BS80*(F193/K145)^4,0) -> 0 | BT193: =IFERROR(BT80*(F193/L145)^4,0) -> 0 | BU193: =IFERROR(BU80*(F193/G145)^4,0) -> 0 | BV193: =IFERROR(BV80*(F193/H145)^4,0) -> 0 | BW193: =IFERROR(BW80*(F193/I145)^4,0) -> 0 | BX193: =IFERROR(BX80*(F193/J145)^4,0) -> 0 | BY193: =IFERROR(BY80*(F193/K145)^4,0) -> 0 | BZ193: =IFERROR(BZ80*(F193/L145)^4,0) -> 0
F194: 450 | G194: =IFERROR(G81*(F194/G145)^4,0) -> 0 | H194: =IFERROR(H81*(F194/H145)^4,0) -> 0 | I194: =IFERROR(I81*(F194/I145)^4,0) -> 0 | J194: =IFERROR(J81*(F194/J145)^4,0) -> 0 | K194: =IFERROR(K81*(F194/K145)^4,0) -> 0 | L194: =IFERROR(L81*(F194/L145)^4,0) -> 0 | R194: 450 | S194: =IFERROR(S81*(F194/G145)^4,0) -> 0 | T194: =IFERROR(T81*(F194/H145)^4,0) -> 0 | U194: =IFERROR(U81*(F194/I145)^4,0) -> 0 | V194: =IFERROR(V81*(F194/J145)^4,0) -> 0 | W194: =IFERROR(W81*(F194/K145)^4,0) -> 0 | X194: =IFERROR(X81*(F194/L145)^4,0) -> 0 | Y194: =IFERROR(Y81*(F194/G145)^4,0) -> 0 | Z194: =IFERROR(Z81*(F194/H145)^4,0) -> 0 | AA194: =IFERROR(AA81*(F194/I145)^4,0) -> 0 | AB194: =IFERROR(AB81*(F194/J145)^4,0) -> 0 | AC194: =IFERROR(AC81*(F194/K145)^4,0) -> 0 | AD194: =IFERROR(AD81*(F194/L145)^4,0) -> 1.068508546e-06 | AE194: =IFERROR(AE81*(F194/G145)^4,0) -> 0 | AF194: =IFERROR(AF81*(F194/H145)^4,0) -> 0 | AG194: =IFERROR(AG81*(F194/I145)^4,0) -> 0 | AH194: =IFERROR(AH81*(F194/J145)^4,0) -> 0 | AI194: =IFERROR(AI81*(F194/K145)^4,0) -> 0 | AJ194: =IFERROR(AJ81*(F194/L145)^4,0) -> 0.0001291937339 | AK194: =IFERROR(AK81*(F194/G145)^4,0) -> 0 | AL194: =IFERROR(AL81*(F194/H145)^4,0) -> 0 | AM194: =IFERROR(AM81*(F194/I145)^4,0) -> 0 | AN194: =IFERROR(AN81*(F194/J145)^4,0) -> 0 | AO194: =IFERROR(AO81*(F194/K145)^4,0) -> 0 | AP194: =IFERROR(AP81*(F194/L145)^4,0) -> 0 | AQ194: =IFERROR(AQ81*(F194/G145)^4,0) -> 0 | AR194: =IFERROR(AR81*(F194/H145)^4,0) -> 0 | AS194: =IFERROR(AS81*(F194/I145)^4,0) -> 0 | AT194: =IFERROR(AT81*(F194/J145)^4,0) -> 0 | AU194: =IFERROR(AU81*(F194/K145)^4,0) -> 0 | AV194: =IFERROR(AV81*(F194/L145)^4,0) -> 0 | AW194: =IFERROR(AW81*(F194/G145)^4,0) -> 0 | AX194: =IFERROR(AX81*(F194/H145)^4,0) -> 0 | AY194: =IFERROR(AY81*(F194/I145)^4,0) -> 0 | AZ194: =IFERROR(AZ81*(F194/J145)^4,0) -> 0 | BA194: =IFERROR(BA81*(F194/K145)^4,0) -> 0 | BB194: =IFERROR(BB81*(F194/L145)^4,0) -> 4.517852045e-05 | BC194: =IFERROR(BC81*(F194/G145)^4,0) -> 0 | BD194: =IFERROR(BD81*(F194/H145)^4,0) -> 0 | BE194: =IFERROR(BE81*(F194/I145)^4,0) -> 0 | BF194: =IFERROR(BF81*(F194/J145)^4,0) -> 0 | BG194: =IFERROR(BG81*(F194/K145)^4,0) -> 0 | BH194: =IFERROR(BH81*(F194/L145)^4,0) -> 3.094389449e-06 | BI194: =IFERROR(BI81*(F194/G145)^4,0) -> 0 | BJ194: =IFERROR(BJ81*(F194/H145)^4,0) -> 0 | BK194: =IFERROR(BK81*(F194/I145)^4,0) -> 0 | BL194: =IFERROR(BL81*(F194/J145)^4,0) -> 0 | BM194: =IFERROR(BM81*(F194/K145)^4,0) -> 0 | BN194: =IFERROR(BN81*(F194/L145)^4,0) -> 1.953119706e-06 | BO194: =IFERROR(BO81*(F194/G145)^4,0) -> 0 | BP194: =IFERROR(BP81*(F194/H145)^4,0) -> 0 | BQ194: =IFERROR(BQ81*(F194/I145)^4,0) -> 0 | BR194: =IFERROR(BR81*(F194/J145)^4,0) -> 0 | BS194: =IFERROR(BS81*(F194/K145)^4,0) -> 0 | BT194: =IFERROR(BT81*(F194/L145)^4,0) -> 2.345195219e-06 | BU194: =IFERROR(BU81*(F194/G145)^4,0) -> 0 | BV194: =IFERROR(BV81*(F194/H145)^4,0) -> 0 | BW194: =IFERROR(BW81*(F194/I145)^4,0) -> 0 | BX194: =IFERROR(BX81*(F194/J145)^4,0) -> 0 | BY194: =IFERROR(BY81*(F194/K145)^4,0) -> 0 | BZ194: =IFERROR(BZ81*(F194/L145)^4,0) -> 0
F195: 460 | G195: =IFERROR(G82*(F195/G145)^4,0) -> 0 | H195: =IFERROR(H82*(F195/H145)^4,0) -> 0 | I195: =IFERROR(I82*(F195/I145)^4,0) -> 0 | J195: =IFERROR(J82*(F195/J145)^4,0) -> 0 | K195: =IFERROR(K82*(F195/K145)^4,0) -> 0 | L195: =IFERROR(L82*(F195/L145)^4,0) -> 0 | R195: 460 | S195: =IFERROR(S82*(F195/G145)^4,0) -> 0 | T195: =IFERROR(T82*(F195/H145)^4,0) -> 0 | U195: =IFERROR(U82*(F195/I145)^4,0) -> 0 | V195: =IFERROR(V82*(F195/J145)^4,0) -> 0 | W195: =IFERROR(W82*(F195/K145)^4,0) -> 0 | X195: =IFERROR(X82*(F195/L145)^4,0) -> 0 | Y195: =IFERROR(Y82*(F195/G145)^4,0) -> 0 | Z195: =IFERROR(Z82*(F195/H145)^4,0) -> 0 | AA195: =IFERROR(AA82*(F195/I145)^4,0) -> 0 | AB195: =IFERROR(AB82*(F195/J145)^4,0) -> 0 | AC195: =IFERROR(AC82*(F195/K145)^4,0) -> 0 | AD195: =IFERROR(AD82*(F195/L145)^4,0) -> 0 | AE195: =IFERROR(AE82*(F195/G145)^4,0) -> 0 | AF195: =IFERROR(AF82*(F195/H145)^4,0) -> 0 | AG195: =IFERROR(AG82*(F195/I145)^4,0) -> 0 | AH195: =IFERROR(AH82*(F195/J145)^4,0) -> 0 | AI195: =IFERROR(AI82*(F195/K145)^4,0) -> 0 | AJ195: =IFERROR(AJ82*(F195/L145)^4,0) -> 9.012557679e-05 | AK195: =IFERROR(AK82*(F195/G145)^4,0) -> 0 | AL195: =IFERROR(AL82*(F195/H145)^4,0) -> 0 | AM195: =IFERROR(AM82*(F195/I145)^4,0) -> 0 | AN195: =IFERROR(AN82*(F195/J145)^4,0) -> 0 | AO195: =IFERROR(AO82*(F195/K145)^4,0) -> 0 | AP195: =IFERROR(AP82*(F195/L145)^4,0) -> 0 | AQ195: =IFERROR(AQ82*(F195/G145)^4,0) -> 0 | AR195: =IFERROR(AR82*(F195/H145)^4,0) -> 0 | AS195: =IFERROR(AS82*(F195/I145)^4,0) -> 0 | AT195: =IFERROR(AT82*(F195/J145)^4,0) -> 0 | AU195: =IFERROR(AU82*(F195/K145)^4,0) -> 0 | AV195: =IFERROR(AV82*(F195/L145)^4,0) -> 0 | AW195: =IFERROR(AW82*(F195/G145)^4,0) -> 0 | AX195: =IFERROR(AX82*(F195/H145)^4,0) -> 0 | AY195: =IFERROR(AY82*(F195/I145)^4,0) -> 0 | AZ195: =IFERROR(AZ82*(F195/J145)^4,0) -> 0 | BA195: =IFERROR(BA82*(F195/K145)^4,0) -> 0 | BB195: =IFERROR(BB82*(F195/L145)^4,0) -> 2.018055493e-05 | BC195: =IFERROR(BC82*(F195/G145)^4,0) -> 0 | BD195: =IFERROR(BD82*(F195/H145)^4,0) -> 0 | BE195: =IFERROR(BE82*(F195/I145)^4,0) -> 0 | BF195: =IFERROR(BF82*(F195/J145)^4,0) -> 0 | BG195: =IFERROR(BG82*(F195/K145)^4,0) -> 0 | BH195: =IFERROR(BH82*(F195/L145)^4,0) -> 2.457273771e-06 | BI195: =IFERROR(BI82*(F195/G145)^4,0) -> 0 | BJ195: =IFERROR(BJ82*(F195/H145)^4,0) -> 0 | BK195: =IFERROR(BK82*(F195/I145)^4,0) -> 0 | BL195: =IFERROR(BL82*(F195/J145)^4,0) -> 0 | BM195: =IFERROR(BM82*(F195/K145)^4,0) -> 0 | BN195: =IFERROR(BN82*(F195/L145)^4,0) -> 2.98564501e-06 | BO195: =IFERROR(BO82*(F195/G145)^4,0) -> 0 | BP195: =IFERROR(BP82*(F195/H145)^4,0) -> 0 | BQ195: =IFERROR(BQ82*(F195/I145)^4,0) -> 0 | BR195: =IFERROR(BR82*(F195/J145)^4,0) -> 0 | BS195: =IFERROR(BS82*(F195/K145)^4,0) -> 0 | BT195: =IFERROR(BT82*(F195/L145)^4,0) -> 2.560709259e-06 | BU195: =IFERROR(BU82*(F195/G145)^4,0) -> 0 | BV195: =IFERROR(BV82*(F195/H145)^4,0) -> 0 | BW195: =IFERROR(BW82*(F195/I145)^4,0) -> 0 | BX195: =IFERROR(BX82*(F195/J145)^4,0) -> 0 | BY195: =IFERROR(BY82*(F195/K145)^4,0) -> 0 | BZ195: =IFERROR(BZ82*(F195/L145)^4,0) -> 0
F196: 470 | G196: =IFERROR(G83*(F196/G145)^4,0) -> 0 | H196: =IFERROR(H83*(F196/H145)^4,0) -> 0 | I196: =IFERROR(I83*(F196/I145)^4,0) -> 0 | J196: =IFERROR(J83*(F196/J145)^4,0) -> 0 | K196: =IFERROR(K83*(F196/K145)^4,0) -> 0 | L196: =IFERROR(L83*(F196/L145)^4,0) -> 0 | R196: 470 | S196: =IFERROR(S83*(F196/G145)^4,0) -> 0 | T196: =IFERROR(T83*(F196/H145)^4,0) -> 0 | U196: =IFERROR(U83*(F196/I145)^4,0) -> 0 | V196: =IFERROR(V83*(F196/J145)^4,0) -> 0 | W196: =IFERROR(W83*(F196/K145)^4,0) -> 0 | X196: =IFERROR(X83*(F196/L145)^4,0) -> 0 | Y196: =IFERROR(Y83*(F196/G145)^4,0) -> 0 | Z196: =IFERROR(Z83*(F196/H145)^4,0) -> 0 | AA196: =IFERROR(AA83*(F196/I145)^4,0) -> 0 | AB196: =IFERROR(AB83*(F196/J145)^4,0) -> 0 | AC196: =IFERROR(AC83*(F196/K145)^4,0) -> 0 | AD196: =IFERROR(AD83*(F196/L145)^4,0) -> 0 | AE196: =IFERROR(AE83*(F196/G145)^4,0) -> 0 | AF196: =IFERROR(AF83*(F196/H145)^4,0) -> 0 | AG196: =IFERROR(AG83*(F196/I145)^4,0) -> 0 | AH196: =IFERROR(AH83*(F196/J145)^4,0) -> 0 | AI196: =IFERROR(AI83*(F196/K145)^4,0) -> 0 | AJ196: =IFERROR(AJ83*(F196/L145)^4,0) -> 8.541031466e-05 | AK196: =IFERROR(AK83*(F196/G145)^4,0) -> 0 | AL196: =IFERROR(AL83*(F196/H145)^4,0) -> 0 | AM196: =IFERROR(AM83*(F196/I145)^4,0) -> 0 | AN196: =IFERROR(AN83*(F196/J145)^4,0) -> 0 | AO196: =IFERROR(AO83*(F196/K145)^4,0) -> 0 | AP196: =IFERROR(AP83*(F196/L145)^4,0) -> 0 | AQ196: =IFERROR(AQ83*(F196/G145)^4,0) -> 0 | AR196: =IFERROR(AR83*(F196/H145)^4,0) -> 0 | AS196: =IFERROR(AS83*(F196/I145)^4,0) -> 0 | AT196: =IFERROR(AT83*(F196/J145)^4,0) -> 0 | AU196: =IFERROR(AU83*(F196/K145)^4,0) -> 0 | AV196: =IFERROR(AV83*(F196/L145)^4,0) -> 0 | AW196: =IFERROR(AW83*(F196/G145)^4,0) -> 0 | AX196: =IFERROR(AX83*(F196/H145)^4,0) -> 0 | AY196: =IFERROR(AY83*(F196/I145)^4,0) -> 0 | AZ196: =IFERROR(AZ83*(F196/J145)^4,0) -> 0 | BA196: =IFERROR(BA83*(F196/K145)^4,0) -> 0 | BB196: =IFERROR(BB83*(F196/L145)^4,0) -> 2.688087399e-05 | BC196: =IFERROR(BC83*(F196/G145)^4,0) -> 0 | BD196: =IFERROR(BD83*(F196/H145)^4,0) -> 0 | BE196: =IFERROR(BE83*(F196/I145)^4,0) -> 0 | BF196: =IFERROR(BF83*(F196/J145)^4,0) -> 0 | BG196: =IFERROR(BG83*(F196/K145)^4,0) -> 0 | BH196: =IFERROR(BH83*(F196/L145)^4,0) -> 2.343266604e-06 | BI196: =IFERROR(BI83*(F196/G145)^4,0) -> 0 | BJ196: =IFERROR(BJ83*(F196/H145)^4,0) -> 0 | BK196: =IFERROR(BK83*(F196/I145)^4,0) -> 0 | BL196: =IFERROR(BL83*(F196/J145)^4,0) -> 0 | BM196: =IFERROR(BM83*(F196/K145)^4,0) -> 0 | BN196: =IFERROR(BN83*(F196/L145)^4,0) -> 2.324182563e-06 | BO196: =IFERROR(BO83*(F196/G145)^4,0) -> 0 | BP196: =IFERROR(BP83*(F196/H145)^4,0) -> 0 | BQ196: =IFERROR(BQ83*(F196/I145)^4,0) -> 0 | BR196: =IFERROR(BR83*(F196/J145)^4,0) -> 0 | BS196: =IFERROR(BS83*(F196/K145)^4,0) -> 0 | BT196: =IFERROR(BT83*(F196/L145)^4,0) -> 0 | BU196: =IFERROR(BU83*(F196/G145)^4,0) -> 0 | BV196: =IFERROR(BV83*(F196/H145)^4,0) -> 0 | BW196: =IFERROR(BW83*(F196/I145)^4,0) -> 0 | BX196: =IFERROR(BX83*(F196/J145)^4,0) -> 0 | BY196: =IFERROR(BY83*(F196/K145)^4,0) -> 0 | BZ196: =IFERROR(BZ83*(F196/L145)^4,0) -> 0
F197: 480 | G197: =IFERROR(G84*(F197/G145)^4,0) -> 0 | H197: =IFERROR(H84*(F197/H145)^4,0) -> 0 | I197: =IFERROR(I84*(F197/I145)^4,0) -> 0 | J197: =IFERROR(J84*(F197/J145)^4,0) -> 0 | K197: =IFERROR(K84*(F197/K145)^4,0) -> 0 | L197: =IFERROR(L84*(F197/L145)^4,0) -> 0 | R197: 480 | S197: =IFERROR(S84*(F197/G145)^4,0) -> 0 | T197: =IFERROR(T84*(F197/H145)^4,0) -> 0 | U197: =IFERROR(U84*(F197/I145)^4,0) -> 0 | V197: =IFERROR(V84*(F197/J145)^4,0) -> 0 | W197: =IFERROR(W84*(F197/K145)^4,0) -> 0 | X197: =IFERROR(X84*(F197/L145)^4,0) -> 0 | Y197: =IFERROR(Y84*(F197/G145)^4,0) -> 0 | Z197: =IFERROR(Z84*(F197/H145)^4,0) -> 0 | AA197: =IFERROR(AA84*(F197/I145)^4,0) -> 0 | AB197: =IFERROR(AB84*(F197/J145)^4,0) -> 0 | AC197: =IFERROR(AC84*(F197/K145)^4,0) -> 0 | AD197: =IFERROR(AD84*(F197/L145)^4,0) -> 0 | AE197: =IFERROR(AE84*(F197/G145)^4,0) -> 0 | AF197: =IFERROR(AF84*(F197/H145)^4,0) -> 0 | AG197: =IFERROR(AG84*(F197/I145)^4,0) -> 0 | AH197: =IFERROR(AH84*(F197/J145)^4,0) -> 0 | AI197: =IFERROR(AI84*(F197/K145)^4,0) -> 0 | AJ197: =IFERROR(AJ84*(F197/L145)^4,0) -> 8.826884521e-05 | AK197: =IFERROR(AK84*(F197/G145)^4,0) -> 0 | AL197: =IFERROR(AL84*(F197/H145)^4,0) -> 0 | AM197: =IFERROR(AM84*(F197/I145)^4,0) -> 0 | AN197: =IFERROR(AN84*(F197/J145)^4,0) -> 0 | AO197: =IFERROR(AO84*(F197/K145)^4,0) -> 0 | AP197: =IFERROR(AP84*(F197/L145)^4,0) -> 0 | AQ197: =IFERROR(AQ84*(F197/G145)^4,0) -> 0 | AR197: =IFERROR(AR84*(F197/H145)^4,0) -> 0 | AS197: =IFERROR(AS84*(F197/I145)^4,0) -> 0 | AT197: =IFERROR(AT84*(F197/J145)^4,0) -> 0 | AU197: =IFERROR(AU84*(F197/K145)^4,0) -> 0 | AV197: =IFERROR(AV84*(F197/L145)^4,0) -> 0 | AW197: =IFERROR(AW84*(F197/G145)^4,0) -> 0 | AX197: =IFERROR(AX84*(F197/H145)^4,0) -> 0 | AY197: =IFERROR(AY84*(F197/I145)^4,0) -> 0 | AZ197: =IFERROR(AZ84*(F197/J145)^4,0) -> 0 | BA197: =IFERROR(BA84*(F197/K145)^4,0) -> 0 | BB197: =IFERROR(BB84*(F197/L145)^4,0) -> 2.392581427e-05 | BC197: =IFERROR(BC84*(F197/G145)^4,0) -> 0 | BD197: =IFERROR(BD84*(F197/H145)^4,0) -> 0 | BE197: =IFERROR(BE84*(F197/I145)^4,0) -> 0 | BF197: =IFERROR(BF84*(F197/J145)^4,0) -> 0 | BG197: =IFERROR(BG84*(F197/K145)^4,0) -> 0 | BH197: =IFERROR(BH84*(F197/L145)^4,0) -> 3.641641426e-07 | BI197: =IFERROR(BI84*(F197/G145)^4,0) -> 0 | BJ197: =IFERROR(BJ84*(F197/H145)^4,0) -> 0 | BK197: =IFERROR(BK84*(F197/I145)^4,0) -> 0 | BL197: =IFERROR(BL84*(F197/J145)^4,0) -> 0 | BM197: =IFERROR(BM84*(F197/K145)^4,0) -> 0 | BN197: =IFERROR(BN84*(F197/L145)^4,0) -> 5.056776418e-07 | BO197: =IFERROR(BO84*(F197/G145)^4,0) -> 0 | BP197: =IFERROR(BP84*(F197/H145)^4,0) -> 0 | BQ197: =IFERROR(BQ84*(F197/I145)^4,0) -> 0 | BR197: =IFERROR(BR84*(F197/J145)^4,0) -> 0 | BS197: =IFERROR(BS84*(F197/K145)^4,0) -> 0 | BT197: =IFERROR(BT84*(F197/L145)^4,0) -> 6.071889931e-06 | BU197: =IFERROR(BU84*(F197/G145)^4,0) -> 0 | BV197: =IFERROR(BV84*(F197/H145)^4,0) -> 0 | BW197: =IFERROR(BW84*(F197/I145)^4,0) -> 0 | BX197: =IFERROR(BX84*(F197/J145)^4,0) -> 0 | BY197: =IFERROR(BY84*(F197/K145)^4,0) -> 0 | BZ197: =IFERROR(BZ84*(F197/L145)^4,0) -> 0
F198: 490 | G198: =IFERROR(G85*(F198/G145)^4,0) -> 0 | H198: =IFERROR(H85*(F198/H145)^4,0) -> 0 | I198: =IFERROR(I85*(F198/I145)^4,0) -> 0 | J198: =IFERROR(J85*(F198/J145)^4,0) -> 0 | K198: =IFERROR(K85*(F198/K145)^4,0) -> 0 | L198: =IFERROR(L85*(F198/L145)^4,0) -> 0 | R198: 490 | S198: =IFERROR(S85*(F198/G145)^4,0) -> 0 | T198: =IFERROR(T85*(F198/H145)^4,0) -> 0 | U198: =IFERROR(U85*(F198/I145)^4,0) -> 0 | V198: =IFERROR(V85*(F198/J145)^4,0) -> 0 | W198: =IFERROR(W85*(F198/K145)^4,0) -> 0 | X198: =IFERROR(X85*(F198/L145)^4,0) -> 0 | Y198: =IFERROR(Y85*(F198/G145)^4,0) -> 0 | Z198: =IFERROR(Z85*(F198/H145)^4,0) -> 0 | AA198: =IFERROR(AA85*(F198/I145)^4,0) -> 0 | AB198: =IFERROR(AB85*(F198/J145)^4,0) -> 0 | AC198: =IFERROR(AC85*(F198/K145)^4,0) -> 0 | AD198: =IFERROR(AD85*(F198/L145)^4,0) -> 0 | AE198: =IFERROR(AE85*(F198/G145)^4,0) -> 0 | AF198: =IFERROR(AF85*(F198/H145)^4,0) -> 0 | AG198: =IFERROR(AG85*(F198/I145)^4,0) -> 0 | AH198: =IFERROR(AH85*(F198/J145)^4,0) -> 0 | AI198: =IFERROR(AI85*(F198/K145)^4,0) -> 0 | AJ198: =IFERROR(AJ85*(F198/L145)^4,0) -> 0 | AK198: =IFERROR(AK85*(F198/G145)^4,0) -> 0 | AL198: =IFERROR(AL85*(F198/H145)^4,0) -> 0 | AM198: =IFERROR(AM85*(F198/I145)^4,0) -> 0 | AN198: =IFERROR(AN85*(F198/J145)^4,0) -> 0 | AO198: =IFERROR(AO85*(F198/K145)^4,0) -> 0 | AP198: =IFERROR(AP85*(F198/L145)^4,0) -> 0 | AQ198: =IFERROR(AQ85*(F198/G145)^4,0) -> 0 | AR198: =IFERROR(AR85*(F198/H145)^4,0) -> 0 | AS198: =IFERROR(AS85*(F198/I145)^4,0) -> 0 | AT198: =IFERROR(AT85*(F198/J145)^4,0) -> 0 | AU198: =IFERROR(AU85*(F198/K145)^4,0) -> 0 | AV198: =IFERROR(AV85*(F198/L145)^4,0) -> 0 | AW198: =IFERROR(AW85*(F198/G145)^4,0) -> 0 | AX198: =IFERROR(AX85*(F198/H145)^4,0) -> 0 | AY198: =IFERROR(AY85*(F198/I145)^4,0) -> 0 | AZ198: =IFERROR(AZ85*(F198/J145)^4,0) -> 0 | BA198: =IFERROR(BA85*(F198/K145)^4,0) -> 0 | BB198: =IFERROR(BB85*(F198/L145)^4,0) -> 0 | BC198: =IFERROR(BC85*(F198/G145)^4,0) -> 0 | BD198: =IFERROR(BD85*(F198/H145)^4,0) -> 0 | BE198: =IFERROR(BE85*(F198/I145)^4,0) -> 0 | BF198: =IFERROR(BF85*(F198/J145)^4,0) -> 0 | BG198: =IFERROR(BG85*(F198/K145)^4,0) -> 0 | BH198: =IFERROR(BH85*(F198/L145)^4,0) -> 0 | BI198: =IFERROR(BI85*(F198/G145)^4,0) -> 0 | BJ198: =IFERROR(BJ85*(F198/H145)^4,0) -> 0 | BK198: =IFERROR(BK85*(F198/I145)^4,0) -> 0 | BL198: =IFERROR(BL85*(F198/J145)^4,0) -> 0 | BM198: =IFERROR(BM85*(F198/K145)^4,0) -> 0 | BN198: =IFERROR(BN85*(F198/L145)^4,0) -> 0 | BO198: =IFERROR(BO85*(F198/G145)^4,0) -> 0 | BP198: =IFERROR(BP85*(F198/H145)^4,0) -> 0 | BQ198: =IFERROR(BQ85*(F198/I145)^4,0) -> 0 | BR198: =IFERROR(BR85*(F198/J145)^4,0) -> 0 | BS198: =IFERROR(BS85*(F198/K145)^4,0) -> 0 | BT198: =IFERROR(BT85*(F198/L145)^4,0) -> 0 | BU198: =IFERROR(BU85*(F198/G145)^4,0) -> 0 | BV198: =IFERROR(BV85*(F198/H145)^4,0) -> 0 | BW198: =IFERROR(BW85*(F198/I145)^4,0) -> 0 | BX198: =IFERROR(BX85*(F198/J145)^4,0) -> 0 | BY198: =IFERROR(BY85*(F198/K145)^4,0) -> 0 | BZ198: =IFERROR(BZ85*(F198/L145)^4,0) -> 0
F199: 500 | G199: =IFERROR(SUM(G86:G86)*(F199/G145)^4,0) -> 0 | H199: =IFERROR(SUM(H86:H86)*(F199/H145)^4,0) -> 0 | I199: =IFERROR(SUM(I86:I86)*(F199/I145)^4,0) -> 0 | J199: =IFERROR(SUM(J86:J86)*(F199/J145)^4,0) -> 0 | K199: =IFERROR(SUM(K86:K86)*(F199/K145)^4,0) -> 0 | L199: =IFERROR(SUM(L86:L86)*(F199/L145)^4,0) -> 0 | R199: 500 | S199: =IFERROR(SUM(S86:S86)*(F199/G145)^4,0) -> 0 | T199: =IFERROR(SUM(T86:T86)*(F199/H145)^4,0) -> 0 | U199: =IFERROR(SUM(U86:U86)*(F199/I145)^4,0) -> 0 | V199: =IFERROR(SUM(V86:V86)*(F199/J145)^4,0) -> 0 | W199: =IFERROR(SUM(W86:W86)*(F199/K145)^4,0) -> 0 | X199: =IFERROR(SUM(X86:X86)*(F199/L145)^4,0) -> 0 | Y199: =IFERROR(SUM(Y86:Y86)*(F199/G145)^4,0) -> 0 | Z199: =IFERROR(SUM(Z86:Z86)*(F199/H145)^4,0) -> 0 | AA199: =IFERROR(SUM(AA86:AA86)*(F199/I145)^4,0) -> 0 | AB199: =IFERROR(SUM(AB86:AB86)*(F199/J145)^4,0) -> 0 | AC199: =IFERROR(SUM(AC86:AC86)*(F199/K145)^4,0) -> 0 | AD199: =IFERROR(SUM(AD86:AD86)*(F199/L145)^4,0) -> 0 | AE199: =IFERROR(SUM(AE86:AE86)*(F199/G145)^4,0) -> 0 | AF199: =IFERROR(SUM(AF86:AF86)*(F199/H145)^4,0) -> 0 | AG199: =IFERROR(SUM(AG86:AG86)*(F199/I145)^4,0) -> 0 | AH199: =IFERROR(SUM(AH86:AH86)*(F199/J145)^4,0) -> 0 | AI199: =IFERROR(SUM(AI86:AI86)*(F199/K145)^4,0) -> 0 | AJ199: =IFERROR(SUM(AJ86:AJ86)*(F199/L145)^4,0) -> 0 | AK199: =IFERROR(SUM(AK86:AK86)*(F199/G145)^4,0) -> 0 | AL199: =IFERROR(SUM(AL86:AL86)*(F199/H145)^4,0) -> 0 | AM199: =IFERROR(SUM(AM86:AM86)*(F199/I145)^4,0) -> 0 | AN199: =IFERROR(SUM(AN86:AN86)*(F199/J145)^4,0) -> 0 | AO199: =IFERROR(SUM(AO86:AO86)*(F199/K145)^4,0) -> 0 | AP199: =IFERROR(SUM(AP86:AP86)*(F199/L145)^4,0) -> 0 | AQ199: =IFERROR(SUM(AQ86:AQ86)*(F199/G145)^4,0) -> 0 | AR199: =IFERROR(SUM(AR86:AR86)*(F199/H145)^4,0) -> 0 | AS199: =IFERROR(SUM(AS86:AS86)*(F199/I145)^4,0) -> 0 | AT199: =IFERROR(SUM(AT86:AT86)*(F199/J145)^4,0) -> 0 | AU199: =IFERROR(SUM(AU86:AU86)*(F199/K145)^4,0) -> 0 | AV199: =IFERROR(SUM(AV86:AV86)*(F199/L145)^4,0) -> 0 | AW199: =IFERROR(SUM(AW86:AW86)*(F199/G145)^4,0) -> 0 | AX199: =IFERROR(SUM(AX86:AX86)*(F199/H145)^4,0) -> 0 | AY199: =IFERROR(SUM(AY86:AY86)*(F199/I145)^4,0) -> 0 | AZ199: =IFERROR(SUM(AZ86:AZ86)*(F199/J145)^4,0) -> 0 | BA199: =IFERROR(SUM(BA86:BA86)*(F199/K145)^4,0) -> 0 | BB199: =IFERROR(SUM(BB86:BB86)*(F199/L145)^4,0) -> 0 | BC199: =IFERROR(SUM(BC86:BC86)*(F199/G145)^4,0) -> 0 | BD199: =IFERROR(SUM(BD86:BD86)*(F199/H145)^4,0) -> 0 | BE199: =IFERROR(SUM(BE86:BE86)*(F199/I145)^4,0) -> 0 | BF199: =IFERROR(SUM(BF86:BF86)*(F199/J145)^4,0) -> 0 | BG199: =IFERROR(SUM(BG86:BG86)*(F199/K145)^4,0) -> 0 | BH199: =IFERROR(SUM(BH86:BH86)*(F199/L145)^4,0) -> 0 | BI199: =IFERROR(SUM(BI86:BI86)*(F199/G145)^4,0) -> 0 | BJ199: =IFERROR(SUM(BJ86:BJ86)*(F199/H145)^4,0) -> 0 | BK199: =IFERROR(SUM(BK86:BK86)*(F199/I145)^4,0) -> 0 | BL199: =IFERROR(SUM(BL86:BL86)*(F199/J145)^4,0) -> 0 | BM199: =IFERROR(SUM(BM86:BM86)*(F199/K145)^4,0) -> 0 | BN199: =IFERROR(SUM(BN86:BN86)*(F199/L145)^4,0) -> 0 | BO199: =IFERROR(SUM(BO86:BO86)*(F199/G145)^4,0) -> 0 | BP199: =IFERROR(SUM(BP86:BP86)*(F199/H145)^4,0) -> 0 | BQ199: =IFERROR(SUM(BQ86:BQ86)*(F199/I145)^4,0) -> 0 | BR199: =IFERROR(SUM(BR86:BR86)*(F199/J145)^4,0) -> 0 | BS199: =IFERROR(SUM(BS86:BS86)*(F199/K145)^4,0) -> 0 | BT199: =IFERROR(SUM(BT86:BT86)*(F199/L145)^4,0) -> 0 | BU199: =IFERROR(SUM(BU86:BU86)*(F199/G145)^4,0) -> 0 | BV199: =IFERROR(SUM(BV86:BV86)*(F199/H145)^4,0) -> 0 | BW199: =IFERROR(SUM(BW86:BW86)*(F199/I145)^4,0) -> 0 | BX199: =IFERROR(SUM(BX86:BX86)*(F199/J145)^4,0) -> 0 | BY199: =IFERROR(SUM(BY86:BY86)*(F199/K145)^4,0) -> 0 | BZ199: =IFERROR(SUM(BZ86:BZ86)*(F199/L145)^4,0) -> 0

Sheet WIM site details
A1: WIM Site Details - Summary | G1: (there are no user inputs required in this worksheet) | O1: Number of heavy vehicles recorded | Y1: Number of heavy vehicle axle groups per heavy vehicle (NHVAG) | AI1: Number of equivalent standard axles per heavy vehicle axle group (ESA/HVAG) | AS1: Number of equivalent standard axles per heavy vehicle (ESA/HV)
A2: Year with Data | F2: District - Road - Lane - Description | G2: District description | H2: WIM Site ID & Lane | I2: WIM site description | J2: WIM site ID | K2: Road ID | L2: Road description | M2: Chainage | N2: Lane | O2: Class 3 | P2: Class 4 | Q2: Class 5 | R2: Class 6 | S2: Class 7 | T2: Class 8 | U2: Class 9 | V2: Class 10 | W2: Class 11 | X2: Class 12 | Y2: Class 3 | Z2: Class 4 | AA2: Class 5 | AB2: Class 6 | AC2: Class 7 | AD2: Class 8 | AE2: Class 9 | AF2: Class 10 | AG2: Class 11 | AH2: Class 12 | AI2: Class 3 | AJ2: Class 4 | AK2: Class 5 | AL2: Class 6 | AM2: Class 7 | AN2: Class 8 | AO2: Class 9 | AP2: Class 10 | AQ2: Class 11 | AR2: Class 12 | AS2: Class 3 | AT2: Class 4 | AU2: Class 5 | AV2: Class 6 | AW2: Class 7 | AX2: Class 8 | AY2: Class 9 | AZ2: Class 10 | BA2: Class 11 | BB2: Class 12
A3: 2014 - 2023 (10 Years) | F3: Presumptive CTLD (2014-2023) | G3: N/A | H3: Presumptive CTLD | I3: Presumptive CTLD (2014-2023) | J3: N/A | K3: N/A | L3: Presumptive Class-specific Traffic Load Distributions (Year 2014 - 2023) | M3: N/A | N3: N/A | O3: 13865487 | P3: 7355334 | Q3: 2204953 | R3: 1163685 | S3: 1911776 | T3: 2535232 | U3: 18474706 | V3: 10066661 | W3: 1328871 | X3: 269786 | Y3: 2.000058202 | Z3: 2.000027191 | AA3: 2.001007278 | AB3: 2.999899457 | AC3: 3.107760533 | AD3: 3.035928467 | AE3: 3.027563199 | AF3: 3.999055894 | AG3: 5.048316955 | AH3: 7.160134329 | AI3: 0.5200052896 | AJ3: 1.134734918 | AK3: 1.270239954 | AL3: 0.3139000036 | AM3: 0.5434914326 | AN3: 0.895987097 | AO3: 1.076127398 | AP3: 1.312514117 | AQ3: 1.133827871 | AR3: 0.9688430543 | AS3: 1.040040845 | AT3: 2.26950069 | AU3: 2.541759393 | AV3: 0.9416684505 | AW3: 1.689041224 | AX3: 2.720152734 | AY3: 3.258043706 | AZ3: 5.248817313 | BA3: 5.723922466 | BB3: 6.937046412
A4: 2019 | B4: 2020 | C4: 2021 | F4: =G4&" - "&K4&" - Lane "&N4&" - "&I4 -> Central West - 13E - Lane 1 - Barcaldine | G4: Central West | H4: =J4&"-"&N4 -> 70164-1 | I4: Barcaldine | J4: 70164 | K4: 13E | L4: LANDSBOROUGH HIGHWAY (BARCALDINE - LONGREACH) | M4: 2 | N4: 1 | O4: 8096 | P4: 3297 | Q4: 1420 | R4: 2478 | S4: 6917 | T4: 1111 | U4: 5226 | V4: 4677 | W4: 11359 | X4: 15750 | Y4: 2 | Z4: 2 | AA4: 2 | AB4: 3 | AC4: 3.083851381 | AD4: 3.100810081 | AE4: 3.059510142 | AF4: 3.988240325 | AG4: 5.182762567 | AH4: 7.002031746 | AI4: 0.4801894342 | AJ4: 1.541951899 | AK4: 2.154987404 | AL4: 0.1005604845 | AM4: 0.1547439815 | AN4: 1.178600734 | AO4: 1.532448801 | AP4: 1.617293869 | AQ4: 1.369950493 | AR4: 1.08445497 | AS4: 0.9603788685 | AT4: 3.083903799 | AU4: 4.309974807 | AV4: 0.3016814536 | AW4: 0.4772074411 | AX4: 3.654617038 | AY4: 4.688542647 | AZ4: 6.450156626 | BA4: 7.100128132 | BB4: 7.593388128
A5: 2019 | B5: 2020 | C5: 2021 | D5: 2022 | F5: Central West - 13E - Lane 2 - Barcaldine | G5: Central West | H5: 70164-2 | I5: Barcaldine | J5: 70164 | K5: 13E | L5: LANDSBOROUGH HIGHWAY (BARCALDINE - LONGREACH) | M5: 2 | N5: 2 | O5: 6123 | P5: 3272 | Q5: 1326 | R5: 1363 | S5: 5078 | T5: 1062 | U5: 5130 | V5: 4673 | W5: 12249 | X5: 14347 | Y5: 2 | Z5: 2 | AA5: 2 | AB5: 3 | AC5: 3.092753052 | AD5: 3.104519774 | AE5: 3.059064327 | AF5: 3.991440188 | AG5: 5.19021961 | AH5: 7.001812226 | AI5: 0.3996843616 | AJ5: 0.7959002772 | AK5: 1.195965113 | AL5: 0.09036229715 | AM5: 0.1314781402 | AN5: 0.6060778666 | AO5: 0.8275848176 | AP5: 0.9234909727 | AQ5: 0.9270768197 | AR5: 1.058142247 | AS5: 0.7993687232 | AT5: 1.591800554 | AU5: 2.391930226 | AV5: 0.2710868915 | AW5: 0.4066294196 | AX5: 1.881580722 | AY5: 2.531635194 | AZ5: 3.686058982 | BA5: 4.81173229 | BB5: 7.408913319
A6: 2019 | B6: 2020 | C6: 2021 | D6: 2022 | E6: 2023 | F6: Darling Downs - 18A - Lane 1 - Gatton | G6: Darling Downs | H6: 30041-1 | I6: Gatton | J6: 30041 | K6: 18A | L6: WARREGO HIGHWAY (IPSWICH - TOOWOOMBA) | M6: 57.7 | N6: 1 | O6: 152452 | P6: 61938 | Q6: 12697 | R6: 12639 | S6: 29213 | T6: 19908 | U6: 153856 | V6: 183404 | W6: 89267 | X6: Presumptive | Y6: 2 | Z6: 2 | AA6: 2 | AB6: 3 | AC6: 3.03844179 | AD6: 3.064044605 | AE6: 3.042331791 | AF6: 3.999427493 | AG6: 5.021497306 | AH6: Presumptive | AI6: 0.4751344732 | AJ6: 1.094146857 | AK6: 0.975554611 | AL6: 0.256281445 | AM6: 0.2426313727 | AN6: 0.9627571887 | AO6: 1.258986668 | AP6: 1.470433028 | AQ6: 1.036000552 | AR6: Presumptive | AS6: 0.9502689464 | AT6: 2.188293714 | AU6: 1.951109222 | AV6: 0.7688443351 | AW6: 0.7372213024 | AX6: 2.94993097 | AY6: 3.830255163 | AZ6: 5.880890279 | BA6: 5.202273983 | BB6: Presumptive
A7: 2019 | B7: 2020 | C7: 2021 | D7: 2022 | E7: 2023 | F7: Darling Downs - 18A - Lane 2 - Gatton | G7: Darling Downs | H7: 30041-2 | I7: Gatton | J7: 30041 | K7: 18A | L7: WARREGO HIGHWAY (IPSWICH - TOOWOOMBA) | M7: 57.7 | N7: 2 | O7: 123302 | P7: 69826 | Q7: 13502 | R7: 11268 | S7: 24092 | T7: 23768 | U7: 191487 | V7: 246307 | W7: 120152 | X7: Presumptive | Y7: 2 | Z7: 2 | AA7: 2 | AB7: 3 | AC7: 3.036651171 | AD7: 3.054653315 | AE7: 3.034054531 | AF7: 3.999110866 | AG7: 5.02635828 | AH7: Presumptive | AI7: 0.5242889579 | AJ7: 1.238830615 | AK7: 1.229296895 | AL7: 0.2942752559 | AM7: 0.3122380423 | AN7: 0.944601026 | AO7: 1.28466946 | AP7: 1.718992887 | AQ7: 1.976608056 | AR7: Presumptive | AS7: 1.048577916 | AT7: 2.47766123 | AU7: 2.45859379 | AV7: 0.8828257677 | AW7: 0.9481580166 | AX7: 2.885428656 | AY7: 3.897757197 | AZ7: 6.874443133 | BA7: 9.935140266 | BB7: Presumptive
A8: 2019 | B8: 2020 | C8: 2021 | E8: 2023 | F8: Darling Downs - 28A - Lane 1 - Southbrook | G8: Darling Downs | H8: 30042-1 | I8: Southbrook | J8: 30042 | K8: 28A | L8: GORE HIGHWAY (TOOWOOMBA-MILLMERRAN) | M8: 20.513 | N8: 1 | O8: 24308 | P8: 11454 | Q8: 4709 | R8: 1434 | S8: 5156 | T8: 5001 | U8: 44494 | V8: 89976 | W8: 34497 | X8: Presumptive | Y8: 2 | Z8: 2 | AA8: 2 | AB8: 3 | AC8: 3.037432118 | AD8: 3.130373925 | AE8: 3.046770351 | AF8: 3.998888593 | AG8: 5.088065629 | AH8: Presumptive | AI8: 0.4436125218 | AJ8: 1.341772744 | AK8: 1.421482337 | AL8: 0.2665740842 | AM8: 0.3657529354 | AN8: 0.8194473603 | AO8: 1.017561039 | AP8: 1.298653699 | AQ8: 1.06087776 | AR8: Presumptive | AS8: 0.8872250435 | AT8: 2.683545487 | AU8: 2.842964673 | AV8: 0.7997222525 | AW8: 1.110949713 | AX8: 2.56517665 | AY8: 3.100274805 | AZ8: 5.193171462 | BA8: 5.397815665 | BB8: Presumptive
A9: 2019 | B9: 2020 | C9: 2021 | D9: 2022 | E9: 2023 | F9: Darling Downs - 28A - Lane 2 - Southbrook | G9: Darling Downs | H9: 30042-2 | I9: Southbrook | J9: 30042 | K9: 28A | L9: GORE HIGHWAY (TOOWOOMBA-MILLMERRAN) | M9: 20.513 | N9: 2 | O9: 31914 | P9: 13224 | Q9: 5697 | R9: 2289 | S9: 7761 | T9: 5046 | U9: 56009 | V9: 116182 | W9: 43527 | X9: Presumptive | Y9: 2 | Z9: 2 | AA9: 2 | AB9: 3 | AC9: 3.034918181 | AD9: 3.129409433 | AE9: 3.044599975 | AF9: 3.999414711 | AG9: 5.070875549 | AH9: Presumptive | AI9: 0.4552423014 | AJ9: 1.584249024 | AK9: 1.394796222 | AL9: 0.292974407 | AM9: 0.2749486485 | AN9: 1.318703415 | AO9: 1.943524232 | AP9: 1.950730503 | AQ9: 2.053701699 | AR9: Presumptive | AS9: 0.9104846028 | AT9: 3.168498049 | AU9: 2.789592445 | AV9: 0.8789232211 | AW9: 0.8344466522 | AX9: 4.126762905 | AY9: 5.917253827 | AZ9: 7.801780272 | BA9: 10.41406573 | BB9: Presumptive
A10: 2019 | B10: 2020 | F10: Darling Downs - 18B - Lane 2 - Oakey | G10: Darling Downs | H10: 32559-2 | I10: Oakey | J10: 32559 | K10: 18B | L10: WARREGO HIGHWAY (TOOWOOMBA - DALBY) | M10: 32 | N10: 2 | O10: 1690 | P10: 883 | Q10: 246 | R10: 176 | S10: 380 | T10: 195 | U10: 2164 | V10: 3753 | W10: 2560 | X10: Presumptive | Y10: 2 | Z10: 2 | AA10: 2 | AB10: 3 | AC10: 3.047368421 | AD10: 3.133333333 | AE10: 3.037430684 | AF10: 3.999733546 | AG10: 5.140234375 | AH10: Presumptive | AI10: 0.5356182816 | AJ10: 1.375414771 | AK10: 1.002337174 | AL10: 0.3437229366 | AM10: 0.2564375977 | AN10: 0.9468140718 | AO10: 1.266859293 | AP10: 1.462763865 | AQ10: 1.331503171 | AR10: Presumptive | AS10: 1.071236563 | AT10: 2.750829541 | AU10: 2.004674348 | AV10: 1.03116881 | AW10: 0.7814598371 | AX10: 2.966684091 | AY10: 3.847997288 | AZ10: 5.850665702 | BA10: 6.844238369 | BB10: Presumptive
A11: 2019 | B11: 2020 | F11: Darling Downs - 17B - Lane 1 - Freestone | G11: Darling Downs | H11: 51601-1 | I11: Freestone | J11: 51601 | K11: 17B | L11: CUNNINGHAM HIGHWAY (IPSWICH - WARWICK) | M11: 111 | N11: 1 | O11: 5615 | P11: 2997 | Q11: 565 | R11: 824 | S11: 1791 | T11: 2077 | U11: 18803 | V11: 25262 | W11: 754 | X11: Presumptive | Y11: 2 | Z11: 2 | AA11: 2 | AB11: 3 | AC11: 3.043551089 | AD11: 3.083293211 | AE11: 3.029037919 | AF11: 3.999881245 | AG11: 5 | AH11: Presumptive | AI11: 0.6992293824 | AJ11: 1.30021782 | AK11: 1.136383114 | AL11: 0.4758919518 | AM11: 0.3159715604 | AN11: 1.336397431 | AO11: 1.614909826 | AP11: 1.994659616 | AQ11: 2.255197384 | AR11: Presumptive | AS11: 1.398458765 | AT11: 2.60043564 | AU11: 2.272766228 | AV11: 1.427675855 | AW11: 0.9616755866 | AX11: 4.120505127 | AY11: 4.891623099 | AZ11: 7.978401589 | BA11: 11.27598692 | BB11: Presumptive
A12: 2019 | B12: 2020 | C12: 2021 | F12: Darling Downs - 17B - Lane 2 - Freestone | G12: Darling Downs | H12: 51601-2 | I12: Freestone | J12: 51601 | K12: 17B | L12: CUNNINGHAM HIGHWAY (IPSWICH - WARWICK) | M12: 111 | N12: 2 | O12: 5249 | P12: 2390 | Q12: 619 | R12: 739 | S12: 1622 | T12: 1810 | U12: 16323 | V12: 23728 | W12: 699 | X12: Presumptive | Y12: 2 | Z12: 2 | AA12: 2 | AB12: 3 | AC12: 3.041307028 | AD12: 3.057458564 | AE12: 3.035961527 | AF12: 3.999747134 | AG12: 5 | AH12: Presumptive | AI12: 0.5848410943 | AJ12: 1.312441873 | AK12: 1.257130461 | AL12: 0.4018437895 | AM12: 0.2504601533 | AN12: 1.06369616 | AO12: 1.410829224 | AP12: 1.511082003 | AQ12: 1.065947087 | AR12: Presumptive | AS12: 1.169682189 | AT12: 2.624883747 | AU12: 2.514260921 | AV12: 1.205531368 | AW12: 0.7617262245 | AX12: 3.252206934 | AY12: 4.283223243 | AZ12: 6.043945912 | BA12: 5.329735436 | BB12: Presumptive
A13: 2019 | B13: 2020 | C13: 2021 | D13: 2022 | E13: 2023 | F13: Metropolitan - N239 - Lane 2 - Belmont (South) | G13: Metropolitan | H13: 130000-2 | I13: Belmont (South) | J13: 130000 | K13: N239 | L13: GATEWAY MOTORWAY (EIGHT MILE PLAINS - NUDGEE) | M13: 10.746 | N13: 2 | O13: 444048 | P13: 203613 | Q13: 89257 | R13: 23111 | S13: 38902 | T13: 26542 | U13: 144586 | V13: 38411 | W13: 506 | X13: Presumptive | Y13: 2.00003378 | Z13: 2.000044202 | AA13: 2.000952306 | AB13: 3 | AC13: 3.032337669 | AD13: 3.014203903 | AE13: 3.074855104 | AF13: 4.000104137 | AG13: 5 | AH13: Presumptive | AI13: 0.4539040333 | AJ13: 1.171326827 | AK13: 1.38271529 | AL13: 0.2599505612 | AM13: 0.3285869747 | AN13: 0.9788940896 | AO13: 1.098283151 | AP13: 1.350773517 | AQ13: 0.8997650947 | AR13: Presumptive | AS13: 0.9078233996 | AT13: 2.342705428 | AU13: 2.766747348 | AV13: 0.7798516837 | AW13: 0.996386661 | AX13: 2.950586386 | AY13: 3.377061553 | AZ13: 5.403234734 | BA13: 4.498825474 | BB13: Presumptive
B14: 2020 | C14: 2021 | D14: 2022 | F14: Metropolitan - U13C - Lane 1 - Nudgee | G14: Metropolitan | H14: 131830-1 | I14: Nudgee | J14: 131830 | K14: U13C | L14: GATEWAY ARTERIAL ROAD (GATEWAY MOTORWAY - NORTH) | M14: 8.877 | N14: 1 | O14: 38524 | P14: 18322 | Q14: 6621 | R14: 3024 | S14: 4794 | T14: 4055 | U14: 21523 | V14: 13252 | W14: 287 | X14: Presumptive | Y14: 2 | Z14: 2 | AA14: 2 | AB14: 3 | AC14: 3.028785982 | AD14: 3.074229346 | AE14: 3.061097431 | AF14: 3.998490794 | AG14: 5 | AH14: Presumptive | AI14: 0.3346347237 | AJ14: 0.7612945951 | AK14: 0.7775390407 | AL14: 0.2325180591 | AM14: 0.2255493441 | AN14: 0.6878344656 | AO14: 0.8194791047 | AP14: 1.013357394 | AQ14: 1.219914371 | AR14: Presumptive | AS14: 0.6692694473 | AT14: 1.52258919 | AU14: 1.555078081 | AV14: 0.6975541773 | AW14: 0.6831406918 | AX14: 2.1145609 | AY14: 2.508505382 | AZ14: 4.051900213 | BA14: 6.099571855 | BB14: Presumptive
A15: 2019 | B15: 2020 | C15: 2021 | F15: Metropolitan - U13C - Lane 2 - Nudgee | G15: Metropolitan | H15: 131830-2 | I15: Nudgee | J15: 131830 | K15: U13C | L15: GATEWAY ARTERIAL ROAD (GATEWAY MOTORWAY - NORTH) | M15: 8.877 | N15: 2 | O15: 186536 | P15: 80682 | Q15: 21744 | R15: 19167 | S15: 31188 | T15: 19053 | U15: 107732 | V15: 66271 | W15: 1884 | X15: Presumptive | Y15: 2 | Z15: 2 | AA15: 2 | AB15: 3 | AC15: 3.019847377 | AD15: 3.066551199 | AE15: 3.09431738 | AF15: 3.999441686 | AG15: 5.007430998 | AH15: Presumptive | AI15: 0.350916787 | AJ15: 0.8495331523 | AK15: 1.08329509 | AL15: 0.1960090068 | AM15: 0.2199409345 | AN15: 0.6469536276 | AO15: 0.8308259936 | AP15: 1.004275005 | AQ15: 0.7277477798 | AR15: Presumptive | AS15: 0.7018335739 | AT15: 1.699066305 | AU15: 2.166590179 | AV15: 0.5880270205 | AW15: 0.6641880541 | AX15: 1.983916422 | AY15: 2.570839312 | AZ15: 4.01653932 | BA15: 3.644146791 | BB15: Presumptive
A16: 2019 | B16: 2020 | C16: 2021 | D16: 2022 | E16: 2023 | F16: Metropolitan - N239 - Lane 1 - Belmont (North) | G16: Metropolitan | H16: 136161-1 | I16: Belmont (North) | J16: 136161 | K16: N239 | L16: GATEWAY MOTORWAY (EIGHT MILE PLAINS - NUDGEE) | M16: 10.746 | N16: 1 | O16: 245156 | P16: 105488 | Q16: 34546 | R16: 10492 | S16: 23621 | T16: 21381 | U16: 113640 | V16: 25126 | W16: Presumptive | X16: Presumptive | Y16: 2 | Z16: 2 | AA16: 2.000115788 | AB16: 3.000190621 | AC16: 3.01706109 | AD16: 3.02918479 | AE16: 3.056643787 | AF16: 4.000318395 | AG16: Presumptive | AH16: Presumptive | AI16: 0.4789801725 | AJ16: 1.126395153 | AK16: 1.018838487 | AL16: 0.2495872216 | AM16: 0.338536253 | AN16: 0.817098228 | AO16: 1.119542387 | AP16: 1.304434728 | AQ16: Presumptive | AR16: Presumptive | AS16: 0.957960345 | AT16: 2.252790305 | AU16: 2.037794944 | AV16: 0.7488092414 | AW16: 1.021384556 | AX16: 2.475141524 | AY16: 3.422042283 | AZ16: 5.218154239 | BA16: Presumptive | BB16: Presumptive
A17: 2019 | E17: 2023 | F17: Metropolitan - U27 - Lane 1 - Hemmant | G17: Metropolitan | H17: 136237-1 | I17: Hemmant | J17: 136237 | K17: U27 | L17: PORT OF BRISBANE MOTORWAY | M17: 2.308 | N17: 1 | O17: 175304 | P17: 127582 | Q17: 49240 | R17: 22663 | S17: 27993 | T17: 68007 | U17: 558880 | V17: 125328 | W17: 14150 | X17: Presumptive | Y17: 2.000017113 | Z17: 2 | AA17: 2.001665313 | AB17: 3 | AC17: 3.450648376 | AD17: 3.000514653 | AE17: 3.011580303 | AF17: 3.993066194 | AG17: 5.000070671 | AH17: Presumptive | AI17: 0.414985626 | AJ17: 0.8015033022 | AK17: 1.172247228 | AL17: 0.1470167961 | AM17: 0.4181481255 | AN17: 0.5940590973 | AO17: 0.8071438634 | AP17: 1.017637285 | AQ17: 1.505713478 | AR17: Presumptive | AS17: 0.8299783536 | AT17: 1.603006604 | AU17: 2.346446615 | AV17: 0.4410503883 | AW17: 1.44288215 | AX17: 1.782483026 | AY17: 2.430778561 | AZ17: 4.063493041 | BA17: 7.528673802 | BB17: Presumptive
A18: 2019 | B18: 2020 | C18: 2021 | D18: 2022 | E18: 2023 | F18: North West - 15A - Lane 2 - Cloncurry | G18: North West | H18: 100021-2 | I18: Cloncurry | J18: 100021 | K18: 15A | L18: BARKLY HIGHWAY (CLONCURRY - MT ISA) | M18: 7.058 | N18: 2 | O18: 14206 | P18: 4806 | Q18: 3182 | R18: 2361 | S18: 7578 | T18: 1936 | U18: 8994 | V18: 5244 | W18: 28550 | X18: 40927 | Y18: 2 | Z18: 2 | AA18: 2 | AB18: 3 | AC18: 3.102929533 | AD18: 3.078512397 | AE18: 3.048810318 | AF18: 3.991418764 | AG18: 5.098563923 | AH18: 7.296723434 | AI18: 0.4152620036 | AJ18: 1.15988535 | AK18: 1.267328014 | AL18: 0.06641710708 | AM18: 0.1629297747 | AN18: 0.7900486926 | AO18: 1.010231583 | AP18: 1.055687503 | AQ18: 1.401038708 | AR18: 0.7581130326 | AS18: 0.8305240073 | AT18: 2.3197707 | AU18: 2.534656028 | AV18: 0.1992513212 | AW18: 0.5055596097 | AX18: 2.432174694 | AY18: 3.080004474 | AZ18: 4.213690908 | BA18: 7.14328541 | BB18: 5.531741131
B19: 2020 | C19: 2021 | F19: North West - 15B - Lane 1 - Mt Isa | G19: North West | H19: 100088-1 | I19: Mt Isa | J19: 100088 | K19: 15B | L19: BARKLY HIGHWAY (MT ISA - CAMOOWEAL) | M19: 12.25 | N19: 1 | O19: 10466 | P19: 1715 | Q19: 806 | R19: 964 | S19: 2499 | T19: 502 | U19: 1917 | V19: 748 | W19: 2151 | X19: 11718 | Y19: 2 | Z19: 2 | AA19: 2 | AB19: 3 | AC19: 3.099239696 | AD19: 3.053784861 | AE19: 3.043296818 | AF19: 3.975935829 | AG19: 5.192003719 | AH19: 7.441969619 | AI19: 0.9657500767 | AJ19: 1.136428165 | AK19: 0.8413322123 | AL19: 0.2049151887 | AM19: 0.1962606903 | AN19: 0.6497229793 | AO19: 0.9752458982 | AP19: 0.9698201867 | AQ19: 0.8691051872 | AR19: 0.740750562 | AS19: 1.931500153 | AT19: 2.272856331 | AU19: 1.682664425 | AV19: 0.6147455662 | AW19: 0.6082589222 | AX19: 1.984114198 | AY19: 2.967962739 | AZ19: 3.855942828 | BA19: 4.512397365 | BB19: 5.512643178
B20: 2020 | C20: 2021 | F20: Northern - 14A - Lane 2 - Calcium | G20: Northern | H20: 91389-2 | I20: Calcium | J20: 91389 | K20: 14A | L20: FLINDERS HIGHWAY (TOWNSVILLE - CHARTERS TOWERS) | M20: 37.088 | N20: 2 | O20: 5877 | P20: 2355 | Q20: 723 | R20: 539 | S20: 2075 | T20: 840 | U20: 7597 | V20: 5873 | W20: 5805 | X20: 4672 | Y20: 2 | Z20: 2 | AA20: 2 | AB20: 3 | AC20: 3.073253012 | AD20: 3.217857143 | AE20: 3.07687245 | AF20: 3.997445939 | AG20: 5.173478186 | AH20: 7.071489726 | AI20: 0.3646569253 | AJ20: 0.8291653368 | AK20: 1.296765241 | AL20: 0.0727426611 | AM20: 0.1193383965 | AN20: 0.5453250573 | AO20: 1.180877113 | AP20: 1.006934503 | AQ20: 1.354026132 | AR20: 1.133466135 | AS20: 0.7293138505 | AT20: 1.658330674 | AU20: 2.593530482 | AV20: 0.2182279833 | AW20: 0.3667570865 | AX20: 1.754778131 | AY20: 3.633408256 | AZ20: 4.025166241 | BA20: 7.005024658 | BB20: 8.015294126
A21: 2019 | C21: 2021 | F21: Northern - 841 - Lane 1 - Townsville Port Access Road | G21: Northern | H21: 92206-1 | I21: Townsville Port Access Road | J21: 92206 | K21: 841 | L21: TOWNSVILLE PORT ROAD | M21: 5.439 | N21: 1 | O21: 1008 | P21: 932 | Q21: 340 | R21: 52 | S21: 101 | T21: 97 | U21: 3258 | V21: 2813 | W21: 1836 | X21: 3040 | Y21: 2 | Z21: 2 | AA21: 2 | AB21: 3 | AC21: 3.04950495 | AD21: 3.113402062 | AE21: 3.013198281 | AF21: 4 | AG21: 5.204248366 | AH21: 7.030263158 | AI21: 0.5155793406 | AJ21: 0.9710596936 | AK21: 0.8118457998 | AL21: 0.1019284408 | AM21: 0.1972460881 | AN21: 0.4406951388 | AO21: 0.924236599 | AP21: 1.25888515 | AQ21: 1.161603793 | AR21: 1.25208597 | AS21: 1.031158681 | AT21: 1.942119387 | AU21: 1.6236916 | AV21: 0.3057853224 | AW21: 0.6015029222 | AX21: 1.372061154 | AY21: 2.784908131 | AZ21: 5.035540599 | BA21: 6.045274641 | BB21: 8.802493867
A22: 2019 | B22: 2020 | C22: 2021 | F22: Northern - 841 - Lane 2 - Townsville Port Access Road | G22: Northern | H22: 92206-2 | I22: Townsville Port Access Road | J22: 92206 | K22: 841 | L22: TOWNSVILLE PORT ROAD | M22: 5.439 | N22: 2 | O22: 4630 | P22: 5462 | Q22: 1571 | R22: 111 | S22: 418 | T22: 617 | U22: 19689 | V22: 14955 | W22: 14058 | X22: 23580 | Y22: 2 | Z22: 2 | AA22: 2 | AB22: 3 | AC22: 3.043062201 | AD22: 3.056726094 | AE22: 3.029000965 | AF22: 3.999866265 | AG22: 5.166524399 | AH22: 7.015733673 | AI22: 0.3680249641 | AJ22: 0.706110826 | AK22: 0.897363727 | AL22: 0.1005382062 | AM22: 0.1283739339 | AN22: 0.8191850139 | AO22: 0.8351306656 | AP22: 0.7489034785 | AQ22: 0.7602089655 | AR22: 0.4673760441 | AS22: 0.7360499282 | AT22: 1.412221652 | AU22: 1.794727454 | AV22: 0.3016146186 | AW22: 0.3906498659 | AX22: 2.504024208 | AY22: 2.529611592 | AZ22: 2.99551376 | BA22: 3.927638168 | BB22: 3.278985851
C23: 2021 | D23: 2022 | E23: 2023 | F23: South Coast - 12A - Lane 2 - Oxenford Northbound | G23: South Coast | H23: 11643-2 | I23: Oxenford Northbound | J23: 11643 | K23: 12A | L23: PACIFIC HIGHWAY (PACIFIC MOTORWAY) | M23: 39.98 | N23: 2 | O23: 261522 | P23: 116585 | Q23: 39479 | R23: 14503 | S23: 22483 | T23: 13927 | U23: 79593 | V23: 51221 | W23: 752 | X23: Presumptive | Y23: 2 | Z23: 2 | AA23: 2 | AB23: 3 | AC23: 3.025441445 | AD23: 3.035973289 | AE23: 3.109456862 | AF23: 3.998965268 | AG23: 5.001329787 | AH23: Presumptive | AI23: 0.4988006115 | AJ23: 1.439756884 | AK23: 1.46191341 | AL23: 0.2871200527 | AM23: 0.2693747106 | AN23: 0.882084885 | AO23: 1.272655587 | AP23: 1.458396322 | AQ23: 1.501346036 | AR23: Presumptive | AS23: 0.997601223 | AT23: 2.879513768 | AU23: 2.92382682 | AV23: 0.861360158 | AW23: 0.8149774137 | AX23: 2.67798615 | AY23: 3.957267647 | AZ23: 5.832076237 | BA23: 7.508726652 | BB23: Presumptive
C24: 2021 | D24: 2022 | E24: 2023 | F24: South Coast - 12A - Lane 1 - Tugun | G24: South Coast | H24: 12058-1 | I24: Tugun | J24: 12058 | K24: 12A | L24: PACIFIC HIGHWAY (PACIFIC MOTORWAY) | M24: 79.047 | N24: 1 | O24: 226695 | P24: 110367 | Q24: 43984 | R24: 19756 | S24: 30196 | T24: 38693 | U24: 260016 | V24: 67591 | W24: 82 | X24: Presumptive | Y24: 2 | Z24: 2 | AA24: 2 | AB24: 3 | AC24: 3.907537422 | AD24: 3 | AE24: 3.021264076 | AF24: 4 | AG24: 5 | AH24: Presumptive | AI24: 0.4129402507 | AJ24: 0.9779110115 | AK24: 1.100117306 | AL24: 0.2685678062 | AM24: 0.2731850109 | AN24: 0.7651250471 | AO24: 0.9137947582 | AP24: 1.196302237 | AQ24: 0.7914457235 | AR24: Presumptive | AS24: 0.8258805014 | AT24: 1.955822023 | AU24: 2.200234611 | AV24: 0.8057034185 | AW24: 1.067480653 | AX24: 2.295375141 | AY24: 2.760815276 | AZ24: 4.785208946 | BA24: 3.957228617 | BB24: Presumptive
C25: 2021 | D25: 2022 | E25: 2023 | F25: South Coast - 12A - Lane 2 - Tugun | G25: South Coast | H25: 12058-2 | I25: Tugun | J25: 12058 | K25: 12A | L25: PACIFIC HIGHWAY (PACIFIC MOTORWAY) | M25: 79.047 | N25: 2 | O25: 303374 | P25: 131465 | Q25: 55341 | R25: 24852 | S25: 43775 | T25: 42062 | U25: 275298 | V25: 88414 | W25: 100 | X25: Presumptive | Y25: 2 | Z25: 2 | AA25: 2 | AB25: 3 | AC25: 3.881370645 | AD25: 3.000166421 | AE25: 3.033331154 | AF25: 4 | AG25: 5 | AH25: Presumptive | AI25: 0.4413155947 | AJ25: 1.091152219 | AK25: 1.062244142 | AL25: 0.3130313266 | AM25: 0.2634219568 | AN25: 0.9200148211 | AO25: 1.168242796 | AP25: 1.458930429 | AQ25: 1.208893405 | AR25: Presumptive | AS25: 0.8826311894 | AT25: 2.182304438 | AU25: 2.124488283 | AV25: 0.9390939799 | AW25: 1.02243825 | AX25: 2.760197573 | AY25: 3.543667268 | AZ25: 5.835721717 | BA25: 6.044467026 | BB25: Presumptive
F26: User-defined CTLD | G26: N/A | H26: User-defined CTLD | I26: User-defined CTLD | J26: N/A | K26: N/A | L26: User-defined Class-specific Traffic Load Distributions | M26: N/A | N26: N/A

Sheet Data to be exported
A1: Load | B1: SAST | C1: SADT | D1: TAST | E1: TADT | F1: TRDT | G1: QADT
A2: ='Class-specific TLD analysis'!F37 -> 10 | B2: ='Class-specific TLD analysis'!G37 ->  | C2: ='Class-specific TLD analysis'!H37 ->  | D2: ='Class-specific TLD analysis'!I37 ->  | E2: ='Class-specific TLD analysis'!J37 ->  | F2: ='Class-specific TLD analysis'!K37 ->  | G2: ='Class-specific TLD analysis'!L37 -> 
A3: ='Class-specific TLD analysis'!F38 -> 20 | B3: ='Class-specific TLD analysis'!G38 ->  | C3: ='Class-specific TLD analysis'!H38 ->  | D3: ='Class-specific TLD analysis'!I38 ->  | E3: ='Class-specific TLD analysis'!J38 ->  | F3: ='Class-specific TLD analysis'!K38 ->  | G3: ='Class-specific TLD analysis'!L38 -> 
A4: ='Class-specific TLD analysis'!F39 -> 30 | B4: ='Class-specific TLD analysis'!G39 ->  | C4: ='Class-specific TLD analysis'!H39 ->  | D4: ='Class-specific TLD analysis'!I39 ->  | E4: ='Class-specific TLD analysis'!J39 ->  | F4: ='Class-specific TLD analysis'!K39 ->  | G4: ='Class-specific TLD analysis'!L39 -> 
A5: ='Class-specific TLD analysis'!F40 -> 40 | B5: ='Class-specific TLD analysis'!G40 ->  | C5: ='Class-specific TLD analysis'!H40 ->  | D5: ='Class-specific TLD analysis'!I40 ->  | E5: ='Class-specific TLD analysis'!J40 ->  | F5: ='Class-specific TLD analysis'!K40 ->  | G5: ='Class-specific TLD analysis'!L40 -> 
A6: ='Class-specific TLD analysis'!F41 -> 50 | B6: ='Class-specific TLD analysis'!G41 ->  | C6: ='Class-specific TLD analysis'!H41 ->  | D6: ='Class-specific TLD analysis'!I41 ->  | E6: ='Class-specific TLD analysis'!J41 ->  | F6: ='Class-specific TLD analysis'!K41 ->  | G6: ='Class-specific TLD analysis'!L41 -> 
A7: ='Class-specific TLD analysis'!F42 -> 60 | B7: ='Class-specific TLD analysis'!G42 ->  | C7: ='Class-specific TLD analysis'!H42 ->  | D7: ='Class-specific TLD analysis'!I42 ->  | E7: ='Class-specific TLD analysis'!J42 ->  | F7: ='Class-specific TLD analysis'!K42 ->  | G7: ='Class-specific TLD analysis'!L42 -> 
A8: ='Class-specific TLD analysis'!F43 -> 70 | B8: ='Class-specific TLD analysis'!G43 ->  | C8: ='Class-specific TLD analysis'!H43 ->  | D8: ='Class-specific TLD analysis'!I43 ->  | E8: ='Class-specific TLD analysis'!J43 ->  | F8: ='Class-specific TLD analysis'!K43 ->  | G8: ='Class-specific TLD analysis'!L43 -> 
A9: ='Class-specific TLD analysis'!F44 -> 80 | B9: ='Class-specific TLD analysis'!G44 ->  | C9: ='Class-specific TLD analysis'!H44 ->  | D9: ='Class-specific TLD analysis'!I44 ->  | E9: ='Class-specific TLD analysis'!J44 ->  | F9: ='Class-specific TLD analysis'!K44 ->  | G9: ='Class-specific TLD analysis'!L44 -> 
A10: ='Class-specific TLD analysis'!F45 -> 90 | B10: ='Class-specific TLD analysis'!G45 ->  | C10: ='Class-specific TLD analysis'!H45 ->  | D10: ='Class-specific TLD analysis'!I45 ->  | E10: ='Class-specific TLD analysis'!J45 ->  | F10: ='Class-specific TLD analysis'!K45 ->  | G10: ='Class-specific TLD analysis'!L45 -> 
A11: ='Class-specific TLD analysis'!F46 -> 100 | B11: ='Class-specific TLD analysis'!G46 ->  | C11: ='Class-specific TLD analysis'!H46 ->  | D11: ='Class-specific TLD analysis'!I46 ->  | E11: ='Class-specific TLD analysis'!J46 ->  | F11: ='Class-specific TLD analysis'!K46 ->  | G11: ='Class-specific TLD analysis'!L46 -> 
A12: ='Class-specific TLD analysis'!F47 -> 110 | B12: ='Class-specific TLD analysis'!G47 ->  | C12: ='Class-specific TLD analysis'!H47 ->  | D12: ='Class-specific TLD analysis'!I47 ->  | E12: ='Class-specific TLD analysis'!J47 ->  | F12: ='Class-specific TLD analysis'!K47 ->  | G12: ='Class-specific TLD analysis'!L47 -> 
A13: ='Class-specific TLD analysis'!F48 -> 120 | B13: ='Class-specific TLD analysis'!G48 ->  | C13: ='Class-specific TLD analysis'!H48 ->  | D13: ='Class-specific TLD analysis'!I48 ->  | E13: ='Class-specific TLD analysis'!J48 ->  | F13: ='Class-specific TLD analysis'!K48 ->  | G13: ='Class-specific TLD analysis'!L48 -> 
A14: ='Class-specific TLD analysis'!F49 -> 130 | B14: ='Class-specific TLD analysis'!G49 ->  | C14: ='Class-specific TLD analysis'!H49 ->  | D14: ='Class-specific TLD analysis'!I49 ->  | E14: ='Class-specific TLD analysis'!J49 ->  | F14: ='Class-specific TLD analysis'!K49 ->  | G14: ='Class-specific TLD analysis'!L49 -> 
A15: ='Class-specific TLD analysis'!F50 -> 140 | B15: ='Class-specific TLD analysis'!G50 ->  | C15: ='Class-specific TLD analysis'!H50 ->  | D15: ='Class-specific TLD analysis'!I50 ->  | E15: ='Class-specific TLD analysis'!J50 ->  | F15: ='Class-specific TLD analysis'!K50 ->  | G15: ='Class-specific TLD analysis'!L50 -> 
A16: ='Class-specific TLD analysis'!F51 -> 150 | B16: ='Class-specific TLD analysis'!G51 ->  | C16: ='Class-specific TLD analysis'!H51 ->  | D16: ='Class-specific TLD analysis'!I51 ->  | E16: ='Class-specific TLD analysis'!J51 ->  | F16: ='Class-specific TLD analysis'!K51 ->  | G16: ='Class-specific TLD analysis'!L51 -> 
A17: ='Class-specific TLD analysis'!F52 -> 160 | B17: ='Class-specific TLD analysis'!G52 ->  | C17: ='Class-specific TLD analysis'!H52 ->  | D17: ='Class-specific TLD analysis'!I52 ->  | E17: ='Class-specific TLD analysis'!J52 ->  | F17: ='Class-specific TLD analysis'!K52 ->  | G17: ='Class-specific TLD analysis'!L52 -> 
A18: ='Class-specific TLD analysis'!F53 -> 170 | B18: ='Class-specific TLD analysis'!G53 ->  | C18: ='Class-specific TLD analysis'!H53 ->  | D18: ='Class-specific TLD analysis'!I53 ->  | E18: ='Class-specific TLD analysis'!J53 ->  | F18: ='Class-specific TLD analysis'!K53 ->  | G18: ='Class-specific TLD analysis'!L53 -> 
A19: ='Class-specific TLD analysis'!F54 -> 180 | B19: ='Class-specific TLD analysis'!G54 ->  | C19: ='Class-specific TLD analysis'!H54 ->  | D19: ='Class-specific TLD analysis'!I54 ->  | E19: ='Class-specific TLD analysis'!J54 ->  | F19: ='Class-specific TLD analysis'!K54 ->  | G19: ='Class-specific TLD analysis'!L54 -> 
A20: ='Class-specific TLD analysis'!F55 -> 190 | B20: ='Class-specific TLD analysis'!G55 ->  | C20: ='Class-specific TLD analysis'!H55 ->  | D20: ='Class-specific TLD analysis'!I55 ->  | E20: ='Class-specific TLD analysis'!J55 ->  | F20: ='Class-specific TLD analysis'!K55 ->  | G20: ='Class-specific TLD analysis'!L55 -> 
A21: ='Class-specific TLD analysis'!F56 -> 200 | B21: ='Class-specific TLD analysis'!G56 ->  | C21: ='Class-specific TLD analysis'!H56 ->  | D21: ='Class-specific TLD analysis'!I56 ->  | E21: ='Class-specific TLD analysis'!J56 ->  | F21: ='Class-specific TLD analysis'!K56 ->  | G21: ='Class-specific TLD analysis'!L56 -> 
A22: ='Class-specific TLD analysis'!F57 -> 210 | B22: ='Class-specific TLD analysis'!G57 ->  | C22: ='Class-specific TLD analysis'!H57 ->  | D22: ='Class-specific TLD analysis'!I57 ->  | E22: ='Class-specific TLD analysis'!J57 ->  | F22: ='Class-specific TLD analysis'!K57 ->  | G22: ='Class-specific TLD analysis'!L57 -> 
A23: ='Class-specific TLD analysis'!F58 -> 220 | B23: ='Class-specific TLD analysis'!G58 ->  | C23: ='Class-specific TLD analysis'!H58 ->  | D23: ='Class-specific TLD analysis'!I58 ->  | E23: ='Class-specific TLD analysis'!J58 ->  | F23: ='Class-specific TLD analysis'!K58 ->  | G23: ='Class-specific TLD analysis'!L58 -> 
A24: ='Class-specific TLD analysis'!F59 -> 230 | B24: ='Class-specific TLD analysis'!G59 ->  | C24: ='Class-specific TLD analysis'!H59 ->  | D24: ='Class-specific TLD analysis'!I59 ->  | E24: ='Class-specific TLD analysis'!J59 ->  | F24: ='Class-specific TLD analysis'!K59 ->  | G24: ='Class-specific TLD analysis'!L59 -> 
A25: ='Class-specific TLD analysis'!F60 -> 240 | B25: ='Class-specific TLD analysis'!G60 ->  | C25: ='Class-specific TLD analysis'!H60 ->  | D25: ='Class-specific TLD analysis'!I60 ->  | E25: ='Class-specific TLD analysis'!J60 ->  | F25: ='Class-specific TLD analysis'!K60 ->  | G25: ='Class-specific TLD analysis'!L60 -> 
A26: ='Class-specific TLD analysis'!F61 -> 250 | B26: ='Class-specific TLD analysis'!G61 ->  | C26: ='Class-specific TLD analysis'!H61 ->  | D26: ='Class-specific TLD analysis'!I61 ->  | E26: ='Class-specific TLD analysis'!J61 ->  | F26: ='Class-specific TLD analysis'!K61 ->  | G26: ='Class-specific TLD analysis'!L61 -> 
A27: ='Class-specific TLD analysis'!F62 -> 260 | B27: ='Class-specific TLD analysis'!G62 ->  | C27: ='Class-specific TLD analysis'!H62 ->  | D27: ='Class-specific TLD analysis'!I62 ->  | E27: ='Class-specific TLD analysis'!J62 ->  | F27: ='Class-specific TLD analysis'!K62 ->  | G27: ='Class-specific TLD analysis'!L62 -> 
A28: ='Class-specific TLD analysis'!F63 -> 270 | B28: ='Class-specific TLD analysis'!G63 ->  | C28: ='Class-specific TLD analysis'!H63 ->  | D28: ='Class-specific TLD analysis'!I63 ->  | E28: ='Class-specific TLD analysis'!J63 ->  | F28: ='Class-specific TLD analysis'!K63 ->  | G28: ='Class-specific TLD analysis'!L63 -> 
A29: ='Class-specific TLD analysis'!F64 -> 280 | B29: ='Class-specific TLD analysis'!G64 ->  | C29: ='Class-specific TLD analysis'!H64 ->  | D29: ='Class-specific TLD analysis'!I64 ->  | E29: ='Class-specific TLD analysis'!J64 ->  | F29: ='Class-specific TLD analysis'!K64 ->  | G29: ='Class-specific TLD analysis'!L64 -> 
A30: ='Class-specific TLD analysis'!F65 -> 290 | B30: ='Class-specific TLD analysis'!G65 ->  | C30: ='Class-specific TLD analysis'!H65 ->  | D30: ='Class-specific TLD analysis'!I65 ->  | E30: ='Class-specific TLD analysis'!J65 ->  | F30: ='Class-specific TLD analysis'!K65 ->  | G30: ='Class-specific TLD analysis'!L65 -> 
A31: ='Class-specific TLD analysis'!F66 -> 300 | B31: ='Class-specific TLD analysis'!G66 ->  | C31: ='Class-specific TLD analysis'!H66 ->  | D31: ='Class-specific TLD analysis'!I66 ->  | E31: ='Class-specific TLD analysis'!J66 ->  | F31: ='Class-specific TLD analysis'!K66 ->  | G31: ='Class-specific TLD analysis'!L66 -> 
A32: ='Class-specific TLD analysis'!F67 -> 310 | B32: ='Class-specific TLD analysis'!G67 ->  | C32: ='Class-specific TLD analysis'!H67 ->  | D32: ='Class-specific TLD analysis'!I67 ->  | E32: ='Class-specific TLD analysis'!J67 ->  | F32: ='Class-specific TLD analysis'!K67 ->  | G32: ='Class-specific TLD analysis'!L67 -> 
A33: ='Class-specific TLD analysis'!F68 -> 320 | B33: ='Class-specific TLD analysis'!G68 ->  | C33: ='Class-specific TLD analysis'!H68 ->  | D33: ='Class-specific TLD analysis'!I68 ->  | E33: ='Class-specific TLD analysis'!J68 ->  | F33: ='Class-specific TLD analysis'!K68 ->  | G33: ='Class-specific TLD analysis'!L68 -> 
A34: ='Class-specific TLD analysis'!F69 -> 330 | B34: ='Class-specific TLD analysis'!G69 ->  | C34: ='Class-specific TLD analysis'!H69 ->  | D34: ='Class-specific TLD analysis'!I69 ->  | E34: ='Class-specific TLD analysis'!J69 ->  | F34: ='Class-specific TLD analysis'!K69 ->  | G34: ='Class-specific TLD analysis'!L69 -> 
A35: ='Class-specific TLD analysis'!F70 -> 340 | B35: ='Class-specific TLD analysis'!G70 ->  | C35: ='Class-specific TLD analysis'!H70 ->  | D35: ='Class-specific TLD analysis'!I70 ->  | E35: ='Class-specific TLD analysis'!J70 ->  | F35: ='Class-specific TLD analysis'!K70 ->  | G35: ='Class-specific TLD analysis'!L70 -> 
A36: ='Class-specific TLD analysis'!F71 -> 350 | B36: ='Class-specific TLD analysis'!G71 ->  | C36: ='Class-specific TLD analysis'!H71 ->  | D36: ='Class-specific TLD analysis'!I71 ->  | E36: ='Class-specific TLD analysis'!J71 ->  | F36: ='Class-specific TLD analysis'!K71 ->  | G36: ='Class-specific TLD analysis'!L71 -> 
A37: ='Class-specific TLD analysis'!F72 -> 360 | B37: ='Class-specific TLD analysis'!G72 ->  | C37: ='Class-specific TLD analysis'!H72 ->  | D37: ='Class-specific TLD analysis'!I72 ->  | E37: ='Class-specific TLD analysis'!J72 ->  | F37: ='Class-specific TLD analysis'!K72 ->  | G37: ='Class-specific TLD analysis'!L72 -> 
A38: ='Class-specific TLD analysis'!F73 -> 370 | B38: ='Class-specific TLD analysis'!G73 ->  | C38: ='Class-specific TLD analysis'!H73 ->  | D38: ='Class-specific TLD analysis'!I73 ->  | E38: ='Class-specific TLD analysis'!J73 ->  | F38: ='Class-specific TLD analysis'!K73 ->  | G38: ='Class-specific TLD analysis'!L73 -> 
A39: ='Class-specific TLD analysis'!F74 -> 380 | B39: ='Class-specific TLD analysis'!G74 ->  | C39: ='Class-specific TLD analysis'!H74 ->  | D39: ='Class-specific TLD analysis'!I74 ->  | E39: ='Class-specific TLD analysis'!J74 ->  | F39: ='Class-specific TLD analysis'!K74 ->  | G39: ='Class-specific TLD analysis'!L74 -> 
A40: ='Class-specific TLD analysis'!F75 -> 390 | B40: ='Class-specific TLD analysis'!G75 ->  | C40: ='Class-specific TLD analysis'!H75 ->  | D40: ='Class-specific TLD analysis'!I75 ->  | E40: ='Class-specific TLD analysis'!J75 ->  | F40: ='Class-specific TLD analysis'!K75 ->  | G40: ='Class-specific TLD analysis'!L75 -> 
A41: ='Class-specific TLD analysis'!F76 -> 400 | B41: ='Class-specific TLD analysis'!G76 ->  | C41: ='Class-specific TLD analysis'!H76 ->  | D41: ='Class-specific TLD analysis'!I76 ->  | E41: ='Class-specific TLD analysis'!J76 ->  | F41: ='Class-specific TLD analysis'!K76 ->  | G41: ='Class-specific TLD analysis'!L76 -> 
A42: ='Class-specific TLD analysis'!F77 -> 410 | B42: ='Class-specific TLD analysis'!G77 ->  | C42: ='Class-specific TLD analysis'!H77 ->  | D42: ='Class-specific TLD analysis'!I77 ->  | E42: ='Class-specific TLD analysis'!J77 ->  | F42: ='Class-specific TLD analysis'!K77 ->  | G42: ='Class-specific TLD analysis'!L77 -> 
A43: ='Class-specific TLD analysis'!F78 -> 420 | B43: ='Class-specific TLD analysis'!G78 ->  | C43: ='Class-specific TLD analysis'!H78 ->  | D43: ='Class-specific TLD analysis'!I78 ->  | E43: ='Class-specific TLD analysis'!J78 ->  | F43: ='Class-specific TLD analysis'!K78 ->  | G43: ='Class-specific TLD analysis'!L78 -> 
A44: ='Class-specific TLD analysis'!F79 -> 430 | B44: ='Class-specific TLD analysis'!G79 ->  | C44: ='Class-specific TLD analysis'!H79 ->  | D44: ='Class-specific TLD analysis'!I79 ->  | E44: ='Class-specific TLD analysis'!J79 ->  | F44: ='Class-specific TLD analysis'!K79 ->  | G44: ='Class-specific TLD analysis'!L79 -> 
A45: ='Class-specific TLD analysis'!F80 -> 440 | B45: ='Class-specific TLD analysis'!G80 ->  | C45: ='Class-specific TLD analysis'!H80 ->  | D45: ='Class-specific TLD analysis'!I80 ->  | E45: ='Class-specific TLD analysis'!J80 ->  | F45: ='Class-specific TLD analysis'!K80 ->  | G45: ='Class-specific TLD analysis'!L80 -> 
A46: ='Class-specific TLD analysis'!F81 -> 450 | B46: ='Class-specific TLD analysis'!G81 ->  | C46: ='Class-specific TLD analysis'!H81 ->  | D46: ='Class-specific TLD analysis'!I81 ->  | E46: ='Class-specific TLD analysis'!J81 ->  | F46: ='Class-specific TLD analysis'!K81 ->  | G46: ='Class-specific TLD analysis'!L81 -> 
A47: ='Class-specific TLD analysis'!F82 -> 460 | B47: ='Class-specific TLD analysis'!G82 ->  | C47: ='Class-specific TLD analysis'!H82 ->  | D47: ='Class-specific TLD analysis'!I82 ->  | E47: ='Class-specific TLD analysis'!J82 ->  | F47: ='Class-specific TLD analysis'!K82 ->  | G47: ='Class-specific TLD analysis'!L82 -> 
A48: ='Class-specific TLD analysis'!F83 -> 470 | B48: ='Class-specific TLD analysis'!G83 ->  | C48: ='Class-specific TLD analysis'!H83 ->  | D48: ='Class-specific TLD analysis'!I83 ->  | E48: ='Class-specific TLD analysis'!J83 ->  | F48: ='Class-specific TLD analysis'!K83 ->  | G48: ='Class-specific TLD analysis'!L83 -> 
A49: ='Class-specific TLD analysis'!F84 -> 480 | B49: ='Class-specific TLD analysis'!G84 ->  | C49: ='Class-specific TLD analysis'!H84 ->  | D49: ='Class-specific TLD analysis'!I84 ->  | E49: ='Class-specific TLD analysis'!J84 ->  | F49: ='Class-specific TLD analysis'!K84 ->  | G49: ='Class-specific TLD analysis'!L84 -> 
A50: ='Class-specific TLD analysis'!F85 -> 490 | B50: ='Class-specific TLD analysis'!G85 ->  | C50: ='Class-specific TLD analysis'!H85 ->  | D50: ='Class-specific TLD analysis'!I85 ->  | E50: ='Class-specific TLD analysis'!J85 ->  | F50: ='Class-specific TLD analysis'!K85 ->  | G50: ='Class-specific TLD analysis'!L85 -> 
A51: ='Class-specific TLD analysis'!F86 -> 500 | B51: ='Class-specific TLD analysis'!G86 ->  | C51: ='Class-specific TLD analysis'!H86 ->  | D51: ='Class-specific TLD analysis'!I86 ->  | E51: ='Class-specific TLD analysis'!J86 ->  | F51: ='Class-specific TLD analysis'!K86 ->  | G51: ='Class-specific TLD analysis'!L86 -> 

Sheet User-defined CTLD
A1: User-defined Class-specific TLDs
A2: This worksheet is only relevant when the user-defined CTLD option is selected in the "Class-specific TLD analysis" worksheet.
A3: To use the user-defined option, insert user-defined CTLDs in the highlighted cells below. For each vehicle class, the sum of all proportions must equal 1.00.
B5: Class 3 | H5: Class 4 | N5: Class 5 | T5: Class 6 | Z5: Class 7 | AF5: Class 8 | AL5: Class 9 | AR5: Class 10 | AX5: Class 11 | BD5: Class 12
A6: Load (kN) | B6: SAST | C6: SADT | D6: TAST | E6: TADT | F6: TRDT | G6: QADT | H6: SAST | I6: SADT | J6: TAST | K6: TADT | L6: TRDT | M6: QADT | N6: SAST | O6: SADT | P6: TAST | Q6: TADT | R6: TRDT | S6: QADT | T6: SAST | U6: SADT | V6: TAST | W6: TADT | X6: TRDT | Y6: QADT | Z6: SAST | AA6: SADT | AB6: TAST | AC6: TADT | AD6: TRDT | AE6: QADT | AF6: SAST | AG6: SADT | AH6: TAST | AI6: TADT | AJ6: TRDT | AK6: QADT | AL6: SAST | AM6: SADT | AN6: TAST | AO6: TADT | AP6: TRDT | AQ6: QADT | AR6: SAST | AS6: SADT | AT6: TAST | AU6: TADT | AV6: TRDT | AW6: QADT | AX6: SAST | AY6: SADT | AZ6: TAST | BA6: TADT | BB6: TRDT | BC6: QADT | BD6: SAST | BE6: SADT | BF6: TAST | BG6: TADT | BH6: TRDT | BI6: QADT

Sheet Presumptive CTLD (hidden)
U1: Recorded Classified Counts from Year 2015 to Year 2019 | AE1: NHVAG - Based on recorded data | AO1: ESA / HVAG - Based on recorded data | AY1: ESA / HV - Based on recorded data
A2: Year | B2: WiM site ID | C2: WiM site descriptions | G2: Chainage | H2: District ID | I2: District descriptions | K2: Road ID | L2: Road descriptions | T2: Traffic Lane | U2: Class 3 | V2: Class 4 | W2: Class 5 | X2: Class 6 | Y2: Class 7 | Z2: Class 8 | AA2: Class 9 | AB2: Class 10 | AC2: Class 11 | AD2: Class 12 | AE2: Class 3 | AF2: Class 4 | AG2: Class 5 | AH2: Class 6 | AI2: Class 7 | AJ2: Class 8 | AK2: Class 9 | AL2: Class 10 | AM2: Class 11 | AN2: Class 12 | AO2: Class 3 | AP2: Class 4 | AQ2: Class 5 | AR2: Class 6 | AS2: Class 7 | AT2: Class 8 | AU2: Class 9 | AV2: Class 10 | AW2: Class 11 | AX2: Class 12 | AY2: Class 3 | AZ2: Class 4 | BA2: Class 5 | BB2: Class 6 | BC2: Class 7 | BD2: Class 8 | BE2: Class 9 | BF2: Class 10 | BG2: Class 11 | BH2: Class 12
A3: 2014-2023 | C3: Year 2014 to Year 2023 Presumptive CTLD | U3: 13865487 | V3: 7355334 | W3: 2204953 | X3: 1163685 | Y3: 1911776 | Z3: 2535232 | AA3: 18474706 | AB3: 10066661 | AC3: 1328871 | AD3: 269786 | AE3: 2.000058202 | AF3: 2.000027191 | AG3: 2.001007278 | AH3: 2.999899457 | AI3: 3.107760533 | AJ3: 3.035928467 | AK3: 3.027563199 | AL3: 3.999055894 | AM3: 5.048316955 | AN3: 7.160134329 | AO3: 0.5200052896 | AP3: 1.134734918 | AQ3: 1.270239954 | AR3: 0.3139000036 | AS3: 0.5434914326 | AT3: 0.895987097 | AU3: 1.076127398 | AV3: 1.312514117 | AW3: 1.133827871 | AX3: 0.9688430543 | AY3: 1.040040845 | AZ3: 2.26950069 | BA3: 2.541759393 | BB3: 0.9416684505 | BC3: 1.689041224 | BD3: 2.720152734 | BE3: 3.258043706 | BF3: 5.248817313 | BG3: 5.723922466 | BH3: 6.937046412
B5: Class 3 - Presumptive | H5: Class 4 - Presumptive | N5: Class 5 - Presumptive | T5: Class 6 - Presumptive | Z5: Class 7 - Presumptive | AF5: Class 8 - Presumptive | AL5: Class 9 - Presumptive | AR5: Class 10 - Presumptive | AX5: Class 11 - Presumptive | BD5: Class 12 - Presumptive
A6: Load (kN) | B6: SAST | C6: SADT | D6: TAST | E6: TADT | F6: TRDT | G6: QADT | H6: SAST | I6: SADT | J6: TAST | K6: TADT | L6: TRDT | M6: QADT | N6: SAST | O6: SADT | P6: TAST | Q6: TADT | R6: TRDT | S6: QADT | T6: SAST | U6: SADT | V6: TAST | W6: TADT | X6: TRDT | Y6: QADT | Z6: SAST | AA6: SADT | AB6: TAST | AC6: TADT | AD6: TRDT | AE6: QADT | AF6: SAST | AG6: SADT | AH6: TAST | AI6: TADT | AJ6: TRDT | AK6: QADT | AL6: SAST | AM6: SADT | AN6: TAST | AO6: TADT | AP6: TRDT | AQ6: QADT | AR6: SAST | AS6: SADT | AT6: TAST | AU6: TADT | AV6: TRDT | AW6: QADT | AX6: SAST | AY6: SADT | AZ6: TAST | BA6: TADT | BB6: TRDT | BC6: QADT | BD6: SAST | BE6: SADT | BF6: TAST | BG6: TADT | BH6: TRDT | BI6: QADT
A7: 10 | B7: 0.0001544066331 | C7: 0.000419639889 | D7: 0 | E7: 0 | F7: 0 | G7: 0 | H7: 0.0001417523668 | I7: 2.381440424e-05 | J7: 5.78742415e-06 | K7: 5.791773725e-05 | L7: 0 | M7: 0 | N7: 1.14485252e-05 | O7: 4.532961087e-07 | P7: 4.348822769e-05 | Q7: 9.814449352e-05 | R7: 1.433099185e-05 | S7: 4.109558397e-06 | T7: 0.0006798001818 | U7: 0.06262559391 | V7: 0 | W7: 0 | X7: 0 | Y7: 0 | Z7: 0.002015530064 | AA7: 0.02156912083 | AB7: 1.564439784e-06 | AC7: 0.009003095695 | AD7: 0 | AE7: 0 | AF7: 0.0002861216933 | AG7: 0.001245181495 | AH7: 1.319437228e-06 | AI7: 0.0003977081459 | AJ7: 0.00011655744 | AK7: 0 | AL7: 0.0001318804616 | AM7: 0.0001148354474 | AN7: 1.06969796e-05 | AO7: 6.073498059e-05 | AP7: 7.121385494e-05 | AQ7: 5.333131004e-06 | AR7: 0.0001417795015 | AS7: 0.0001554868492 | AT7: 2.261130604e-05 | AU7: 0.0001062467167 | AV7: 0.0002904471568 | AW7: 8.076550633e-06 | AX7: 0.0001471256031 | AY7: 0.001880192492 | AZ7: 6.572777037e-07 | BA7: 0.0009008064117 | BB7: 0.001684165294 | BC7: 3.834385953e-05 | BD7: 8.343437546e-05 | BE7: 0.0009685271486 | BF7: 0 | BG7: 0.004746664294 | BH7: 0.01658886132 | BI7: 2.076910359e-05
A8: 20 | B8: 0.0258585611 | C8: 0.003219957601 | D8: 0 | E8: 0 | F8: 0 | G8: 0 | H8: 0.001826560693 | I8: 5.477312974e-05 | J8: 2.112034008e-05 | K8: 0.0001345975584 | L8: 0 | M8: 0 | N8: 7.315886833e-05 | O8: 4.079664978e-06 | P8: 6.569011235e-05 | Q8: 0.0002894469243 | R8: 1.319361155e-05 | S8: 3.196323197e-06 | T8: 0.04607400369 | U8: 0.06914600705 | V8: 0 | W8: 0 | X8: 0 | Y8: 0 | Z8: 0.06899016572 | AA8: 0.06932259364 | AB8: 3.824186139e-06 | AC8: 0.04226759027 | AD8: 1.683121423e-07 | AE8: 0 | AF8: 0.002515714004 | AG8: 0.003942468173 | AH8: 6.597186138e-06 | AI8: 0.001327989206 | AJ8: 0.001247307543 | AK8: 0 | AL8: 0.0005363198499 | AM8: 0.0004187148609 | AN8: 1.143408239e-05 | AO8: 0.0002361816584 | AP8: 0.000125835579 | AQ8: 1.234852481e-06 | AR8: 0.0003203000342 | AS8: 0.0001059764977 | AT8: 1.844343837e-05 | AU8: 0.0007527196079 | AV8: 8.982696878e-05 | AW8: 1.242546251e-06 | AX8: 0.0004144087762 | AY8: 0.000698621421 | AZ8: 2.136152537e-06 | BA8: 0.0003277963428 | BB8: 0.0003027562145 | BC8: 3.580749528e-06 | BD8: 0.0003107930486 | BE8: 0.0003708371328 | BF8: 0 | BG8: 0.0001190678141 | BH8: 9.163114633e-05 | BI8: 3.115365538e-06
A9: 30 | B9: 0.1861456409 | C9: 0.08806754181 | D9: 0 | E9: 0 | F9: 0 | G9: 0 | H9: 0.01102202633 | I9: 0.0001182555273 | J9: 0.0001158988057 | K9: 0.003121099848 | L9: 4.758386793e-07 | M9: 0 | N9: 0.0001895987466 | O9: 5.008922001e-05 | P9: 0.001129549493 | Q9: 0.00413340181 | R9: 5.482173074e-05 | S9: 1.484007199e-05 | T9: 0.1237716562 | U9: 0.1296134118 | V9: 0 | W9: 3.123165687e-07 | X9: 0 | Y9: 0 | Z9: 0.05326420767 | AA9: 0.06638901135 | AB9: 2.433572997e-05 | AC9: 0.05322009434 | AD9: 0 | AE9: 0 | AF9: 0.005959293098 | AG9: 0.009885675255 | AH9: 8.299260161e-05 | AI9: 0.003813762564 | AJ9: 0.001641289882 | AK9: 0 | AL9: 0.002716397056 | AM9: 0.002959775474 | AN9: 2.596040091e-05 | AO9: 0.001234295001 | AP9: 0.0007105472782 | AQ9: 3.024493757e-06 | AR9: 0.001936506588 | AS9: 0.0003823202763 | AT9: 2.94246466e-05 | AU9: 0.007908462062 | AV9: 0.0004871672248 | AW9: 2.236583252e-06 | AX9: 0.001524592808 | AY9: 0.001046440625 | AZ9: 3.943666222e-06 | BA9: 0.002256860677 | BB9: 0.002707663161 | BC9: 7.01230116e-06 | BD9: 0.0008598955321 | BE9: 0.0005013552298 | BF9: 0 | BG9: 0.0004830011764 | BH9: 0.0009106168723 | BI9: 1.557682769e-06
A10: 40 | B10: 0.1457525453 | C10: 0.1182945686 | D10: 0 | E10: 0 | F10: 0 | G10: 0 | H10: 0.05247423078 | I10: 9.831946892e-05 | J10: 0.0001306304308 | K10: 0.02098002053 | L10: 4.078617251e-07 | M10: 0 | N10: 0.0003160909884 | O10: 0.0001511742522 | P10: 0.00423163344 | Q10: 0.01432592279 | R10: 0.0001207897885 | S10: 1.735146879e-05 | T10: 0.09461070144 | U10: 0.1078438395 | V10: 0 | W10: 1.249266275e-06 | X10: 0 | Y10: 0 | Z10: 0.03564908295 | AA10: 0.04381042973 | AB10: 1.755649091e-05 | AC10: 0.02593140664 | AD10: 0 | AE10: 0 | AF10: 0.01612946139 | AG10: 0.008638804057 | AH10: 0.00011518687 | AI10: 0.01257516518 | AJ10: 0.001598409219 | AK10: 0 | AL10: 0.008299402297 | AM10: 0.001755541091 | AN10: 4.749818504e-05 | AO10: 0.003108604751 | AP10: 0.003388889098 | AQ10: 3.811935919e-06 | AR10: 0.005415039738 | AS10: 0.0004120562978 | AT10: 6.785887541e-05 | AU10: 0.0294506608 | AV10: 0.002549958108 | AW10: 2.957260078e-06 | AX10: 0.005472263394 | AY10: 0.0007833389631 | AZ10: 5.751179907e-06 | BA10: 0.01397762959 | BB10: 0.01783548636 | BC10: 1.089144648e-05 | BD10: 0.002405517338 | BE10: 0.0004764946399 | BF10: 1.094196546e-06 | BG10: 0.002115265602 | BH10: 0.008509789736 | BI10: 4.153820718e-06
A11: 50 | B11: 0.08240465794 | C11: 0.1004756247 | D11: 3.60597107e-07 | E11: 0 | F11: 0 | G11: 0 | H11: 0.1467164029 | I11: 8.573185525e-05 | J11: 0.000127473654 | K11: 0.04475192072 | L11: 2.719078167e-07 | M11: 0 | N11: 0.0004163353919 | O11: 0.0001683995044 | P11: 0.01180499385 | Q11: 0.03462823325 | R11: 0.0003842070673 | S11: 1.255698399e-05 | T11: 0.04834431775 | U11: 0.1020305972 | V11: 0 | W11: 1.249266275e-06 | X11: 0 | Y11: 0 | Z11: 0.0595570706 | AA11: 0.04434504824 | AB11: 1.633970441e-05 | AC11: 0.01790301514 | AD11: 0 | AE11: 0 | AF11: 0.08756655232 | AG11: 0.01140003951 | AH11: 0.0001269298613 | AI11: 0.03110140066 | AJ11: 0.001424417678 | AK11: 0 | AL11: 0.07137736118 | AM11: 0.0006846138182 | AN11: 6.042445114e-05 | AO11: 0.008094719594 | AP11: 0.012529258 | AQ11: 4.867824272e-06 | AR11: 0.03878177859 | AS11: 0.0002573395544 | AT11: 8.243393361e-05 | AU11: 0.03192126338 | AV11: 0.009408306794 | AW11: 5.492054431e-06 | AX11: 0.03440911279 | AY11: 0.0009068356618 | AZ11: 7.887332444e-06 | BA11: 0.03302708399 | BB11: 0.0403783772 | BC11: 1.074224858e-05 | BD11: 0.02698737021 | BE11: 0.0003635861274 | BF11: 5.470982731e-06 | BG11: 0.00617185426 | BH11: 0.02995096029 | BI11: 5.192275897e-06
A12: 60 | B12: 0.04033900589 | C12: 0.0730580092 | D12: 2.524179749e-07 | E12: 0 | F12: 0 | G12: 0 | H12: 0.1752983243 | I12: 7.9472069e-05 | J12: 0.0001061278299 | K12: 0.05315189603 | L12: 4.078617251e-07 | M12: 0 | N12: 0.0005221644419 | O12: 9.020592562e-05 | P12: 0.03449074227 | Q12: 0.05255308969 | R12: 0.0008539451336 | S12: 8.219116793e-06 | T12: 0.01319082662 | U12: 0.1037864898 | V12: 0 | W12: 2.810849118e-06 | X12: 2.864559611e-07 | Y12: 0 | Z12: 0.07259831611 | AA12: 0.04779977834 | AB12: 1.268934491e-05 | AC12: 0.02324781424 | AD12: 0 | AE12: 0 | AF12: 0.1500943276 | AG12: 0.010439898 | AH12: 0.0003116510732 | AI12: 0.05699257776 | AJ12: 0.002532298094 | AK12: 0 | AL12: 0.1659453998 | AM12: 0.0007715718968 | AN12: 0.0001335774091 | AO12: 0.02483654853 | AP12: 0.02480275046 | AQ12: 7.999696507e-06 | AR12: 0.1033433977 | AS12: 0.0002084750981 | AT12: 0.0001638446183 | AU12: 0.03100128655 | AV12: 0.01975458004 | AW12: 7.281321032e-06 | AX12: 0.08065449534 | AY12: 0.001182465975 | AZ12: 1.544602604e-05 | BA12: 0.04930733755 | BB12: 0.04036585553 | BC12: 1.596417498e-05 | BD12: 0.06052381743 | BE12: 0.0003392434665 | BF12: 7.659375824e-06 | BG12: 0.0132714021 | BH12: 0.05782287716 | BI12: 6.749958666e-06
A13: 70 | B13: 0.0133604689 | C13: 0.04405139874 | D13: 1.081791321e-07 | E13: 0 | F13: 0 | G13: 0 | H13: 0.08704440981 | I13: 6.599992031e-05 | J13: 7.997167916e-05 | K13: 0.06033158811 | L13: 7.47746496e-07 | M13: 6.797695418e-08 | N13: 0.0004154976949 | O13: 2.062497294e-05 | P13: 0.07018931284 | Q13: 0.05474128124 | R13: 0.0006746939974 | S13: 8.904043193e-06 | T13: 0.004607055293 | U13: 0.05151258183 | V13: 0 | W13: 3.123165687e-06 | X13: 1.432279806e-06 | Y13: 0 | Z13: 0.02505086301 | AA13: 0.03648994471 | AB13: 9.038985418e-06 | AC13: 0.02484628872 | AD13: 8.415607114e-07 | AE13: 0 | AF13: 0.0518954719 | AG13: 0.007329153875 | AH13: 0.0004342267916 | AI13: 0.07129746804 | AJ13: 0.005737432782 | AK13: 1.306450697e-07 | AL13: 0.07212198407 | AM13: 0.0009872772849 | AN13: 0.0002042853431 | AO13: 0.04107483316 | AP13: 0.0359176187 | AQ13: 1.16326683e-05 | AR13: 0.08459146337 | AS13: 0.0001975445638 | AT13: 0.0002631247236 | AU13: 0.03316663786 | AV13: 0.02655768116 | AW13: 1.165508384e-05 | AX13: 0.05933102134 | AY13: 0.001246302433 | AZ13: 2.990613552e-05 | BA13: 0.0470622531 | BB13: 0.04975800622 | BC13: 1.715775816e-05 | BD13: 0.03562334953 | BE13: 0.0003180083793 | BF13: 0.0001116080477 | BG13: 0.02364065565 | BH13: 0.07605747528 | BI13: 4.673048307e-06
A14: 80 | B14: 0.004029423452 | C14: 0.02937352923 | D14: 7.21194214e-08 | E14: 0 | F14: 0 | G14: 0 | H14: 0.01934320218 | I14: 6.055662792e-05 | J14: 4.960649271e-05 | K14: 0.06281491306 | L14: 1.019654313e-06 | M14: 6.797695418e-08 | N14: 0.0002627576149 | O14: 1.019916244e-05 | P14: 0.08187711736 | Q14: 0.05614499682 | R14: 0.000520465228 | S14: 9.588969592e-06 | T14: 0.001198277224 | U14: 0.01960049484 | V14: 0 | W14: 4.684748531e-06 | X14: 5.729119222e-07 | Y14: 0 | Z14: 0.00347142656 | AA14: 0.02567819032 | AB14: 5.736279208e-06 | AC14: 0.02030198921 | AD14: 0 | AE14: 0 | AF14: 0.007015773152 | AG14: 0.005462551428 | AH14: 0.0005046847395 | AI14: 0.07588209059 | AJ14: 0.004398126724 | AK14: 0 | AL14: 0.00639394465 | AM14: 0.0009567892067 | AN14: 0.0002864093815 | AO14: 0.04404408894 | AP14: 0.03939506472 | AQ14: 2.127883478e-05 | AR14: 0.01115135163 | AS14: 0.0001616725379 | AT14: 0.0003897081058 | AU14: 0.02567951098 | AV14: 0.02777220836 | AW14: 2.485092503e-05 | AX14: 0.01300818061 | AY14: 0.0009160829991 | AZ14: 5.143198031e-05 | BA14: 0.03301918349 | BB14: 0.04115472106 | BC14: 1.760535185e-05 | BD14: 0.00977590148 | BE14: 0.0002801995654 | BF14: 7.495246342e-05 | BG14: 0.0271593684 | BH14: 0.05772296298 | BI14: 8.826869025e-06
A15: 90 | B15: 0.001939874376 | C15: 0.01886885555 | D15: 3.60597107e-08 | E15: 0 | F15: 0 | G15: 0 | H15: 0.005336196797 | I15: 6.981022499e-05 | J15: 3.299583379e-05 | K15: 0.04743428691 | L15: 8.157234502e-07 | M15: 0 | N15: 0.0001675393931 | O15: 5.892849413e-06 | P15: 0.08779861177 | Q15: 0.04057492824 | R15: 0.0003676013148 | S15: 6.849263994e-06 | T15: 0.0008678667295 | U15: 0.008567999365 | V15: 0 | W15: 4.684748531e-06 | X15: 0 | Y15: 0 | Z15: 0.001056425129 | AA15: 0.01889552311 | AB15: 5.91010585e-06 | AC15: 0.01553299101 | AD15: 0 | AE15: 0 | AF15: 0.002721817485 | AG15: 0.003530570453 | AH15: 0.0005294901594 | AI15: 0.06752879033 | AJ15: 0.003029713791 | AK15: 0 | AL15: 0.00108650865 | AM15: 0.0006691283779 | AN15: 0.0002664896279 | AO15: 0.03384833593 | AP15: 0.0276362144 | AQ15: 4.236080902e-05 | AR15: 0.001738144902 | AS15: 9.449943673e-05 | AT15: 0.000435205248 | AU15: 0.01815022822 | AV15: 0.02230895994 | AW15: 3.374755618e-05 | AX15: 0.002697552428 | AY15: 0.0008052641016 | AZ15: 7.16432697e-05 | BA15: 0.01497950281 | BB15: 0.01398238807 | BC15: 1.805294554e-05 | BD15: 0.002639655054 | BE15: 0.0002232273802 | BF15: 9.355380471e-05 | BG15: 0.02176611411 | BH15: 0.03719913927 | BI15: 1.349991733e-05
A16: 100 | C16: 0.01072854898 | D16: 0 | E16: 0 | F16: 0 | G16: 0 | I16: 4.198139261e-05 | J16: 2.818550722e-05 | K16: 0.03629511534 | L16: 6.797695418e-07 | M16: 0 | O16: 2.266480543e-07 | P16: 0.07604717711 | Q16: 0.02892746615 | R16: 0.0003648716021 | S16: 7.534190394e-06 | U16: 0.004482855664 | V16: 0 | W16: 3.747798825e-06 | X16: 5.729119222e-07 | Y16: 0 | AA16: 0.009144081399 | AB16: 3.476532853e-06 | AC16: 0.009952384529 | AD16: 3.366242845e-07 | AE16: 0 | AG16: 0.001673586318 | AH16: 0.0007435028777 | AI16: 0.05247772628 | AJ16: 0.002428215029 | AK16: 1.306450697e-07 | AM16: 0.0003492449585 | AN16: 0.0002314322998 | AO16: 0.02450782514 | AP16: 0.01929173139 | AQ16: 4.026692872e-05 | AS16: 4.481519029e-05 | AT16: 0.0004347310595 | AU16: 0.01444736743 | AV16: 0.01660228938 | AW16: 4.381218082e-05 | AY16: 0.001016759656 | AZ16: 7.460101937e-05 | BA16: 0.01016809647 | BB16: 0.008321696542 | BC16: 1.820214344e-05 | BE16: 0.0001595221186 | BF16: 4.376786185e-05 | BG16: 0.01679839783 | BH16: 0.02223893098 | BI16: 1.194223456e-05
A17: 110 | C17: 0.00579210582 | D17: 0 | E17: 0 | F17: 0 | G17: 0 | I17: 1.680616528e-05 | J17: 2.61561507e-05 | K17: 0.03223482364 | L17: 4.758386793e-07 | M17: 6.797695418e-08 | O17: 0 | P17: 0.05916756486 | Q17: 0.02570343087 | R17: 0.0003726057882 | S17: 5.936028795e-06 | U17: 0.002788854853 | V17: 0 | W17: 3.123165687e-06 | X17: 0 | Y17: 0 | AA17: 0.003714714662 | AB17: 5.040972637e-06 | AC17: 0.008095043699 | AD17: 0 | AE17: 0 | AG17: 0.0006904388413 | AH17: 0.001032063799 | AI17: 0.04350181333 | AJ17: 0.002220828547 | AK17: 1.306450697e-07 | AM17: 0.0001256895609 | AN17: 0.0002115844586 | AO17: 0.0184877853 | AP17: 0.01547074959 | AQ17: 3.699188519e-05 | AS17: 1.460716845e-05 | AT17: 0.0003591853383 | AU17: 0.0126969919 | AV17: 0.01199212391 | AW17: 4.515413077e-05 | AY17: 0.0003059078852 | AZ17: 5.077470261e-05 | BA17: 0.009535459961 | BB17: 0.007061926592 | BC17: 1.536738339e-05 | BE17: 0.000107211294 | BF17: 3.173169984e-05 | BG17: 0.01398839741 | BH17: 0.01370584519 | BI17: 8.307641436e-06
A18: 120 | C18: 0.00318289765 | D18: 0 | E18: 0 | F18: 0 | G18: 0 | I18: 1.809894722e-05 | J18: 1.916614491e-05 | K18: 0.02766829557 | L18: 4.758386793e-07 | M18: 0 | O18: 0 | P18: 0.03637355364 | Q18: 0.02433938107 | R18: 0.0003464460412 | S18: 4.337867196e-06 | U18: 0.00161319766 | V18: 0 | W18: 4.372431962e-06 | X18: 0 | Y18: 0 | AA18: 0.001517979814 | AB18: 3.302706211e-06 | AC18: 0.007623765554 | AD18: 1.683121423e-07 | AE18: 1.683121423e-07 | AG18: 0.0003341713594 | AH18: 0.0006785865661 | AI18: 0.03504548053 | AJ18: 0.001714576835 | AK18: 6.532253483e-07 | AM18: 3.610289137e-05 | AN18: 0.0001157970514 | AO18: 0.01635905731 | AP18: 0.01214760323 | AQ18: 1.891650829e-05 | AS18: 5.440424985e-06 | AT18: 0.0002022039752 | AU18: 0.01378671009 | AV18: 0.009881612446 | AW18: 2.654078793e-05 | AY18: 7.979557221e-05 | AZ18: 2.497655274e-05 | BA18: 0.01046995531 | BB18: 0.006272166658 | BC18: 1.253262335e-05 | BE18: 7.406384077e-05 | BF18: 2.516652056e-05 | BG18: 0.01442894833 | BH18: 0.009784860434 | BI18: 6.749958666e-06
A19: 130 | C19: 0.001969445887 | D19: 3.60597107e-08 | E19: 0 | F19: 0 | G19: 0 | I19: 2.898553201e-05 | J19: 1.413033429e-05 | K19: 0.02372254775 | L19: 5.438156334e-07 | M19: 0 | O19: 0 | P19: 0.01533417797 | Q19: 0.02329628417 | R19: 0.0003462185651 | S19: 3.652940797e-06 | U19: 0.001144138234 | V19: 0 | W19: 3.747798825e-06 | X19: 2.864559611e-07 | Y19: 0 | AA19: 0.0009320042453 | AB19: 3.128879568e-06 | AC19: 0.006720762967 | AD19: 3.366242845e-07 | AE19: 1.683121423e-07 | AG19: 0.0001726097103 | AH19: 0.0002794568048 | AI19: 0.03173050973 | AJ19: 0.001472106174 | AK19: 3.91935209e-07 | AM19: 1.55927297e-05 | AN19: 3.960579169e-05 | AO19: 0.01715347515 | AP19: 0.01066564703 | AQ19: 1.512246879e-05 | AS19: 3.254318142e-06 | AT19: 8.273342111e-05 | AU19: 0.01771259707 | AV19: 0.009509014353 | AW19: 2.311136027e-05 | AY19: 3.9375759e-05 | AZ19: 2.119720594e-05 | BA19: 0.013818427 | BB19: 0.006044093291 | BC19: 1.312941494e-05 | BE19: 4.350603234e-05 | BF19: 1.696004647e-05 | BG19: 0.01604619985 | BH19: 0.009269758792 | BI19: 6.749958666e-06
A20: 140 | C20: 0.001030930604 | D20: 0 | E20: 0 | F20: 0 | G20: 0 | I20: 1.898348223e-05 | J20: 9.470330427e-06 | K20: 0.02032008463 | L20: 5.438156334e-07 | M20: 6.797695418e-08 | O20: 0 | P20: 0.007159993361 | Q20: 0.02134246076 | R20: 0.0003853444476 | S20: 2.511396798e-06 | U20: 0.0008587483813 | V20: 0 | W20: 3.747798825e-06 | X20: 0 | Y20: 0 | AA20: 0.0006457518122 | AB20: 3.998012781e-06 | AC20: 0.00509956615 | AD20: 1.683121423e-07 | AE20: 0 | AG20: 8.669478674e-05 | AH20: 0.0001048952596 | AI20: 0.02609945091 | AJ20: 0.001057463151 | AK20: 6.532253483e-07 | AM20: 6.777115319e-06 | AN20: 1.598254599e-05 | AO20: 0.01827783215 | AP20: 0.009608041716 | AQ20: 1.225904274e-05 | AS20: 2.061896227e-06 | AT20: 3.726123611e-05 | AU20: 0.02178174447 | AV20: 0.00950864173 | AW20: 1.756960399e-05 | AY20: 2.132853612e-05 | AZ20: 1.577466489e-05 | BA20: 0.0183904332 | BB20: 0.006498898417 | BC20: 1.163743597e-05 | BE20: 2.900402156e-05 | BF20: 1.203616201e-05 | BG20: 0.01832971345 | BH20: 0.01126752486 | BI20: 2.076910359e-06
A21: 150 | C21: 0.0006428295626 | D21: 0 | E21: 0 | F21: 0 | G21: 0 | I21: 8.09689744e-06 | J21: 9.921298542e-06 | K21: 0.01770862008 | L21: 0 | M21: 0 | O21: 0 | P21: 0.004965440061 | Q21: 0.02053803857 | R21: 0.0003944434901 | S21: 2.511396798e-06 | U21: 0.0005349627053 | V21: 0 | W21: 3.747798825e-06 | X21: 2.864559611e-07 | Y21: 0 | AA21: 0.000431399255 | AB21: 2.085919712e-06 | AC21: 0.003703909588 | AD21: 0 | AE21: 0 | AG21: 4.588194861e-05 | AH21: 7.388848474e-05 | AI21: 0.01946522169 | AJ21: 0.0007436546589 | AK21: 1.306450697e-07 | AM21: 2.57494619e-06 | AN21: 8.737364848e-06 | AO21: 0.02043749082 | AP21: 0.009101588375 | AQ21: 1.408447685e-05 | AS21: 7.94947943e-07 | AT21: 2.241164771e-05 | AU21: 0.02740032523 | AV21: 0.01015057168 | AW21: 1.990559095e-05 | AY21: 1.148459637e-05 | AZ21: 1.593898431e-05 | BA21: 0.02233203888 | BB21: 0.00811896466 | BC21: 1.074224858e-05 | BE21: 8.286863303e-06 | BF21: 9.300670643e-06 | BG21: 0.01953488681 | BH21: 0.01508807774 | BI21: 3.634593128e-06
